{"text_format":"1","workbook":"xlsx","n_sheets":10,"sheets":["PLAN DE ACCION CONSOLIDACION","INFO_ANÁLISIS DE CONTEXTO","INFO_ESTRATEGIAS","PLAN DE ACCION","GESTION","GESTION_SEG_1_TRIM","GESTION_SEG_2_TRIM","GESTION_SEG_3_TRIM","INVERSION","JURISDICCIONAL"],"not_rendered":{"charts":0,"images":5,"macros":1,"external_links":2,"defined_names":31,"comments":0,"pivot_tables":0},"unopened":[],"bounds":{"document_bytes":16777216,"sheet_cells":100000,"rows_first":2000,"rows_last":500,"rows_between":2000,"halvings":0,"cell_chars":16384,"cell_head_chars":4096},"cells_cut":0,"cells_raw":0,"read":"row_number_cap","date_system":"1900"}

{"sheet":"PLAN DE ACCION CONSOLIDACION","index":0,"n_rows":29,"n_cols":24,"rows_kept":29,"cut":false,"hidden":true,"merged":[[27,0,28,0],[27,1,28,1],[27,3,28,3],[15,0,21,0],[15,1,21,1],[15,3,21,3],[22,0,26,0],[22,1,26,1],[22,3,26,3],[2,22,2,23],[4,0,8,0],[4,1,8,1],[4,3,8,3],[9,0,14,0],[9,1,14,1],[9,3,14,3],[1,2,1,21],[2,0,3,0],[2,1,3,1],[2,2,3,2],[2,3,3,3],[2,4,3,4],[2,5,2,7],[2,8,2,10],[2,11,2,15],[2,16,2,18],[2,19,3,19],[2,20,2,21]]}
[]
[null,null,"CONSEJO SUPERIOR DE LA JUDICATURA \nUNIDADES MISIONALES DEL CONSEJO SUPERIOR DE LA JUDICATURA - \nDIRECCIÓN EJECUTIVA DE ADMINISTRACIÓN JUDICIAL -UNIDADES MISIONALES DE LA DEAJ\nDIRECCIONES SECCIONALES DE ADMINISTRACIÓN JUDICIAL "]
["No. ","OBJETIVOS ESTRATEGICOS PLAN SECTORIAL DE DESARROLLO 2023-2026","OBJETIVOS ESPECIFICOS PLAN SECTORIAL DE DESARROLLO 2023-2026","OBJETIVOS DEL SIGCMA","DESCRIPCIÓN DE LA ACTIVIDAD (INVERSIÓN O DE GESTIÓN) ","MAPA DE PROCESO DEL SIGCMA (RELACIONE  EL PROCESO ESTRATÉGICO, MISIONAL, APOYO y EVALUACIÓN - MEJORA)",null,null,"MEDICIÓN DE LA GESTIÓN ",null,null,"PROYECTOS DE INVERSIÓN DE ACUERDO CON LOS OBJETIVOS DEL PLAN SECTORIAL DE DESARROLLO",null,null,null,null,"MEDICIÓN (INVERSIÓN INDICADORES POAI- GESTIÓN INDICADORES",null,null,"RESPONSABLE POR PROYECTO O ACTIVIDAD","FECHA DEL PROYECTO/ACTIVIDAD",null,"ANÁLISIS DE RESULTADOS"]
[null,null,null,null,null,"NOMBRE DEL PROCESO","CENTRAL","SECCIONAL","ENTREGABLE","INDICADOR","DESCRIBIR EL INDICADOR","PROGRAMA DE INVERSIÓN","NOMBRE DEL PROYECTO DE INVERSIÓN ","CODIGO BPIN (PROYECTO)","CODIGO PRESUPUESTAL","ACTIVIDAD DE INVERSIÓN (POAI)","ENTREGABLE","INDICADOR","DESCRIBIR EL INDICADOR",null,"INICIO \nDÍA/MES/AÑO","FIN\nDÍA/MES/AÑO","CUMPLIMIENTO DEL OBJETIVO (ACUMULADO DE LOS 4 TRIMESTRES)"," ANÁLISIS RESULTADO\nFINAL - ACUMULADO"]
[1,"Acceso a Infraestructura Física"," 1. Ampliar el acceso a justicia para atender las necesidades jurídicas de los \nciudadanos con un enfoque diferencial, de una manera pronta, reduciendo las \ninequidades y las brechas territoriales de acceso.","\n2. Asegurar  el cumplimiento de los objetivos institucionales, la normatividad aplicable,  la mejora del SIGCMA y la satisfacción de los usuarios, revisando de  forma continua y sistemática la planificación de la gestión y fortaleciendo la administración de riesgos y sus controles. (1,2,3 y 5)\n\n4. Hacer un uso racional de los recursos naturales aplicando los principios y fases de la Economía Circular, para prevenir, mitigar y controlar los impactos ambientales. (4)\n\n"]
[null,null,"2. Mejorar los tiempos de respuesta de la Rama Judicial y reducir el inventario de \nprocesos, identificando los retos internos y promoviendo tanto acciones articuladas\nespecíficas para abordarlos como estrategias coordinadas para enfrentar las \nbarreras que dependen de otras entidades."]
[null,null,"3. Coadyuvar en la garantía de la idoneidad en el ejercicio de la profesión jurídica de acuerdo con lo establecido en la Ley 1905 de 2018"]
[null,null,"4. Avanzar en la disposición de una infraestructura óptima para el acceso a la justicia en la Rama Judicial de modo que se fortalezca la presencia territorial, teniendo en cuenta las posibilidades que ofrece la transformación digital y las necesidades que se derivan de ella, y considerando tanto las necesidades de los usuarios como las de los servidores judiciales."]
[null,null,"5. Impulsar el uso de mecanismos alternativos para la solución de conflictos y la \nampliación de la justicia restaurativa y terapéutica y el robustecimiento de las alternativas al encarcelamiento"]
[2,"Servicios digitales y de tecnología, innovación y análisis de la información","1. Ampliar el acceso a la justicia a través de la consolidación del uso de los servicios \ndigitales que conforman el sistema único integrado de gestión judicial en todos los \ndespachos judiciales y dependencias de apoyo y, específicamente, incluyendo el \ndespliegue e implementación del Expediente Judicial Electrónico en todas las \njurisdicciones y especialidades.","6. Proteger, preservar y administrar los activos de información  implementando acciones  para gestionar de forma adecuada los incidentes  , proteger los datos personales y adoptar mecanismos  de ciberseguridad y aseguramiento de la  continuidad del negocio (1, 2, 3, 4, 5 y 6)"]
[null,null,"2. Integrar y hacer compatibles todos los aplicativos de transición con SIUGJ, para que la migración de los expedientes judiciales a dicha plataforma sea real y no suponga afectaciones en la prestación del servicio de justicia."]
[null,null,"\n3. Fortalecer las capacidades institucionales, adecuar el modelo operativo y de \nservicio, bajo un enfoque de Arquitectura Empresarial y de fortalecimiento del \nacceso a la justicia."]
[null,null,"\n4.Consolidar la cultura y apropiación de la transformación digital en los servidores y \nusuarios de los servicios de la Rama Judicial y reducir brechas de acceso y conocimiento, incluyendo la oferta efectiva de información sobre el uso de las nuevas herramientas virtuales implementadas en las diferentes jurisdicciones, con especial énfasis en las zonas del país donde es evidente la brecha digital."]
[null,null,"\n5.Consolidar la infraestructura y los recursos necesarios para la implementación exitosa de la transformación digital, incluyendo la disposición de internet de calidad en el 100% de las sedes en la Rama Judicial y modernizar los servicios tecnológicos de soporte. "]
[null,null,"\n6.Integrar y optimizar los servicios administrativos de la Rama Judicial bajo un enfoque de transformación digital e innovación incluyendo los componentes financiero, administrativo, talento humano, entre otros"]
[3,"Confianza pública, transparencia y rendición de cuentas","1. Incrementar la cantidad, la calidad y pertinencia de los datos sobre el funcionamiento del servicio de justicia bajo un modelo de gobierno de datos y un liderazgo unificado. \n","1. Gestionar el desarrollo de las competencias, la toma de conciencia , la cultura  organizacional  y el compromiso de los  servidores judiciales, contratistas, practicantes y  judicantes de contribuir a generar valor público en la administración de justicia, en el marco de  cumplimiento de los requisitos  aplicables y el comportamiento ético. (3 y 7)\n\n3. Fomentar la transparencia y la participación generando lineamientos y promoviendo la rendición de cuentas ,la consulta, reporte y planteamiento de inquietudes en relación con las decisiones y aspectos del SIGCMA. (3, 4, 5 y 6)\n\n4. Hacer un uso racional de los recursos naturales aplicando los principios y fases de la Economía Circular, para prevenir, mitigar y controlar los impactos ambientales. (1 y 7)\n"]
[null,null,"2. Consolidar la administración de la información entendida como todas las acciones \norientadas a garantizar el acceso, consulta, uso y conservación de la información \nde justicia de manera ágil, flexible e inteligente, bajo un enfoque de innovación."]
[null,null,"3. Fortalecer el Sistema integrado de Gestión de la Rama, orientado a la implementación y certificación de las normas antisoborno."]
[null,null,"4. Aumentar la confianza, la cercanía y acceso a los servicios de la Rama Judicial a \ntravés, entre otros, de una comunicación clara y asertiva con la ciudadanía."]
[null,null,"5. Prevenir fenómenos asociados con actos de corrupción en la Rama Judicial y \nreducir las experiencias de corrupción de usuarios y servidores judiciales."]
[null,null,"6. Promover la rendición de cuentas y la colaboración real con la ciudadanía como \nfundamento para diseñar acciones de mejoramiento del acceso a la justicia."]
[null,null,"7. Continuar la consolidación del SIGCMA, a través de los procesos de formación en \nmodelos de gestión, logrando la implementación y ampliación de este en los esquemas certificados de manera gradual, teniendo en cuenta las capacidades de los diferentes despachos judiciales y dependencias de la Rama Judicial y articulando el enfoque de Arquitectura Empresarial para el desarrollo del PETD a través de la gestión del conocimiento para la gestión del cambio propendiendo por una cultura de la calidad, la transparencia, la rendición de cuentas, la anticorrupción y el antisoborno"]
[4,"Talento Humano","1. Ampliar la cobertura de la carrera judicial optimizando los procesos de los concursos de méritos y propender por mitigar su litigiosidad.","1. Gestionar el desarrollo de las competencias, la toma de conciencia , la cultura  organizacional  y el compromiso de los  servidores judiciales, contratistas, practicantes y  judicantes de contribuir a generar valor público en la administración de justicia, en el marco de  cumplimiento de los requisitos  aplicables y el comportamiento ético. (1, 2, 3 y 4)\n\n5. Generar espacios de trabajo seguros y saludables que contribuyan a minimizar los  incidentes, accidentes y enfermedades laborales derivados de las condiciones y actos  inseguros y fomentar  el autocuidado, los  estilos de vida y el trabajo saludable en los servidores judiciales, contratistas, judicantes y practicantes. (5)\n"]
[null,null,"2. Impactar la función y servicios que presta la Rama Judicial, a través de una\nformación integral desde una visión de gestión del conocimiento, relacionada con \nlos problemas de la justicia y los problemas de gestión de quienes administran los \nrecursos de la justicia, y potenciando el uso de medios virtuales."]
[null,null,"3. Promover la incorporación de la perspectiva de género y el enfoque diferencial en \nlos fallos judiciales y en la atención a los ciudadanos, la administración de la Rama \nJudicial, la administración de la carrera judicial y la elaboración de listas para altas \nCortes. "]
[null,null,"4. Desarrollar en los servidores judiciales y demás grupos de valor relevantes las \ncompetencias necesarias para la efectividad de la transformación digital de modo \nque puedan, entre otros, utilizar con solvencia las herramientas digitales dispuestas \npara sus respectivas funciones. Además, fortalecer y actualizar los conocimientos \ndel personal a cargo de la gestión de proyectos de tecnología."]
[null,null,"5. Promover el bienestar de todos los servidores judiciales a través de la implementación de un sistema que contemple los diferentes niveles de estrategias y acciones necesarios para mejorar el clima laboral, la salud física y mental y la calidad del tiempo de descanso."]
[5,"Gobernanza, planeación estratégica y capacidad de toma de decisiones","1. Implementar un nuevo modelo integrado para la planeación estratégica, el \nseguimiento y la medición del desempeño institucional.","\n2. Asegurar  el cumplimiento de los objetivos institucionales, la normatividad aplicable,  la mejora del SIGCMA y la satisfacción de los usuarios, revisando de  forma continua y sistemática la planificación de la gestión y fortaleciendo la administración de riesgos y sus controles. (1 y 2)"]
[null,null,"2. Definir e implementar el modelo optimizado de formulación, seguimiento y \nevaluación de la política pública judicial."]

{"sheet":"INFO_ANÁLISIS DE CONTEXTO","index":1,"n_rows":81,"n_cols":10,"rows_kept":81,"cut":false,"hidden":false,"merged":[[64,0,65,0],[66,0,67,0],[68,0,75,0],[61,0,63,0],[76,0,80,0],[0,1,0,3],[29,0,29,4],[1,1,1,2],[3,1,3,4],[5,0,6,0],[5,1,5,2],[5,3,5,4],[6,1,6,2],[6,3,6,4],[27,0,28,0],[8,0,8,4],[10,0,11,0],[12,0,14,0],[15,0,21,0],[22,0,25,0],[51,0,60,0],[31,0,37,0],[38,0,41,0],[42,0,47,0],[48,0,50,0]]}
[null,"ANÁLISIS DE CONTEXTO"]
["CONSEJO SECCIONAL/DIRECCIÓN SECCIONAL DE ADMINISTRACIÓN JUDICIAL Y/O DISTRITO JUDICIAL SEGÚN SEA EL CASO","DISTRITO JUDICIAL DE CALI",null,"PROCESO ","ESTRATÉGICOS, MISIONALES, DE APOYO y MEJORAMIENTO Y EVALUACIÓN DEL SIGCMA"]
[]
["DEPENDENCIA ADMINISTRATIVA O JUDICIAL CERTIFICADA ","CENTRO DE SERVICIOS JUDICIALES PARA LOS JUZGADOS PENALES MUNICIPALES Y DEL CIRCUITO DE CALI"]
[]
["OBJETIVO DEL PROCESO","MAPA DE PROCESOS CONSEJO SUPERIOR DE LA JUDICATURA",null,"PROCESOS DEPENDENCIA JUDICIALES CERTIFICADAS"]
[null,null,null,"Ver objetivos de la caracterización de los Procesos Estratégico, Misionales, de Apoyo y de Evaluación y Mejora"]
[]
["CONTEXTO EXTERNO "]
["FACTORES TEMÁTICOS","No.","AMENAZAS (Factores específicos) ","No. ","OPORTUNIDADES (Factores específicos) "]
["Político (cambios de gobierno, legislación, políticas públicas, regulación)",1,"Cambios de gerentes públicos",1,"Ley 2213 de 2022, por medio de la cual se establece la vigencia permanente del Decreto Legislativo 806 de 2020 y se adoptan medidas para implementar las tecnologías de la información y las comunicaciones en las actuaciones judiciales, agilizar los procesos judiciales y flexibilizar la atención a los usuarios del servicio de justicia y se dictan otras disposiciones"]
[null,2,"Cambio de Normatividad y Regulaciones Expedidas por el Gobierno Nacional o el Congreso de la Republica que afecten la administración de Justicia."]
["Económicos y Financieros (disponibilidad de capital, liquidez, mercados financieros, desempleo, competencia)",3,"Presupuesto insuficiente asignado para  la vigencia 2023 de la Rama Judicial",2,"Incremento del PIB que potencialice el crecimiento económico del país y viabilice la asignación suficiente de recursos para la Rama Judicial "]
[null,4,"No contar con el PAC oportunamente para la ejecución de proyectos de inversión"]
[null,5,"Numero deficiente de proveedores inscritos en la plataforma de Colombia Compra Eficiente, para suplir las necesidades de adquisición de bienes y servicios "]
["Sociales  y culturales (cultura, religión, demografía, responsabilidad social, orden público)",6,"Interrupción del servicio público de Administrar Justicia a causa del conflicto armado de la región.",3,"Incremento de la credibilidad y confianza en la administración de justicia al implementar y certificar sus Sistemas de Gestión. \n\n"]
[null,7,"Interrupción del servicio público de Administrar Justicia a causa del pandemias y sus variantes.",4,"Visibilizacion de la Administración de Justicia  entre los actores no formales de la justicia (Grupos y minorías Indígenas, género)"]
[null,8,"Interrupción del servicio público de Administrar Justicia por razones de orden público"]
[null,9,"Limitaciones en  la movilidad asociados a factores del orden público "]
[null,10,"Aumento de la demanda de Justicia a causa de la problemática social y/u otros factores"]
[null,11,"Amenazas a servidores judiciales en razón al ejercicio de sus funciones."]
[null,12,"Afectaciones a la infraestructura física de las sedes Judiciales y Administrativas "]
["Tecnológicos (desarrollo digital, avances en tecnología, acceso a sistemas de información externos, gobierno en línea)",13,"Perdida o hackeo de información derivada de ataques cibernéticos",5,"Marco regulatorio del  MINTICs, para la gobernanza, gobernabilidad y transformación digital"]
[null,14,"Indisponibilidad y/o colapso de la infraestructura tecnológica ",6,"Desarrollo de alianzas estratégicas para el fortalecimiento del servicio público de administración de justicia, a través de las TICs"]
[null,15,"Afectación de la prestación del servicio de conectividad ",7,"Generar espacios donde se realicen acuerdo interinstitucionales para poder consultar información que beneficie a la administración de justicia"]
[null,16,"Ausencia de portal único de información del Estado (Ramas del poder, órganos autónomos y demás entes especiales), que garantice la consulta de información en línea de toda la información oficial. Gobierno en Línea)"]
["Legales y reglamentarios (estándares nacionales, internacionales, regulación)",17,"Normas expedidas que afecten el desarrollo de las etapas propias de los procesos",8,"Actualización del marco normativo que afecte de manera directa o indirecta la función pública de administrar justicia."]
["Ambientales (emisiones y residuos, energía, catástrofes naturales, desarrollo sostenible)",18,"Fenómenos naturales (Inundación, quema de bosques, sismo, vendavales, epidemias y plagas)"]
[null,19,"Aumento de los impactos ambientales negativos por pandemias"]
["CONTEXTO INTERNO "]
["FACTORES TEMÁTICOS","No.","DEBILIDADES  (Factores específicos)  ","No. ","FORTALEZAS(Factores específicos)"]
["Estratégicos (direccionamiento estratégico, planeación institucional, liderazgo, trabajo en equipo)",1,"No realización y/o aprobación oportuna del plan de acción, matriz de riesgos y demás documentos del SIGCMA, con su seguimiento correspondiente en los periodos establecidos,  conforme a los lineamientos emitidos desde el despacho de la Magistrada Líder del SIGCMA y la Coordinación Nacional del SIGCMA por parte de la Alta Dirección y Profesionales de Enlace de la Especialidad.",1,"Contar con el Plan Sectorial de Desarrollo de la Rama Judicial y los lineamientos entregados por parte del Despacho de la Magistrada Líder y la Coordinación Nacional SIGCMA"]
[null,2,"Falta de socialización de estrategias para fomentar el trabajo colaborativo para la implementación del Plan Estratégico de Transformación Digital (PETD) de la Rama Judicial ",2,"Socialización y capacitación de buenas prácticas en la gestión judicial desde la mirada de la utilidad de las herramientas de trabajo colaborativo "]
[null,null,null,3,"Mantenimiento y mejoramiento del SIGCMA en Ejecución Civil Municipal de Cali"]
[null,null,null,4,"Definición de roles y responsabilidades de los  líderes de proceso para el funcionamiento del SIGCMA "]
[null,null,null,5,"Contar con la Norma Técnica de Calidad Actualizada NTC 6256:2021 y GTC 286 2021"]
[null,null,null,6,"El compromiso de la Alta Dirección y de los líderes de proceso para ampliar, mantener y mejorar el SIGCMA"]
[null,null,null,7,"Participación en el Encuentro nacional e internacional del SIGCMA, comités nacionales, capacitaciones, reuniones virtuales, etc."]
["Recursos financieros (presupuesto de funcionamiento, recursos de inversión","No Aplica","No Aplica","No Aplica","No Aplica"]
[null,"No Aplica","No Aplica","No Aplica","No Aplica"]
[null,"No Aplica","No Aplica","No Aplica","No Aplica"]
[null,"No Aplica","No Aplica","No Aplica","No Aplica"]
["Personal (competencia del personal, disponibilidad, suficiencia, seguridad y salud  en el trabajo)",3,"No contar con el recurso humano suficiente y necesario para responder a la demanda de Justicia",8,"Personal integrado por servidores judiciales capacitado para llevar a cabo las funciones asignadas"]
[null,4,"Servidores Judiciales con comorbilidades y/o enfermedades laborales"]
[null,5,"Extensión en los horarios laborales de trabajo en casa y presencial, que afecta el bienestar físico, mental y emocional en los servidores judiciales y su entorno familiar",9,"Contar con leyes y acuerdos de desconexión laboral"]
[null,6,"Manuales de funciones desactualizados  para los servidores Judiciales ",10,"Mejor prestación del servicio de administración de justicia debido a la implementación de buenas practicas y revisión permanente de los procedimientos para mejorarlos continuamente"]
[null,null,null,11,"Capacitación y fortalecimiento en los procesos de inducción y reinducción de los servidores judiciales"]
[null,7,"Debilidad del personal para desarrollar competencias propias de las actividades asignadas",12,"Fortalecimiento del desarrollo de competencias, a través de capacitaciones, procesos de sensibilización y formación de los servidores judiciales"]
["Proceso (capacidad, diseño, ejecución, proveedores, entradas, salidas, gestión del conocimiento)",8,"Resistencia por parte de algunos servidores judiciales a implementar la gestión de conocimiento para la gestión del cambio en lo relativo al SIGCMA, a modelos de gestión, implementación de PETD, ambiental, seguridad y salud en el trabajo, seguridad de la información, normas antisoborno, normas de bioseguridad, entre otras.  ",13,"Sensibilización y capacitación de los servidores judiciales en la importancia del Sistema Integrado de Gestión de Calidad y Medio Ambiente SIGCMA"]
[null,9,"Falta de tiempo para acceder a la formación de  interés, tales como: Sensibilizaciones, cursos, talleres,  capacitaciones, diplomados, entre otros"]
[null,null,null,14,"Aplicabilidad de la Gestión del conocimiento generada por las experiencias de los servidores judiciales documentada en instructivos y guías\n"]
["Tecnológicos ",10,"Debilidad de la plataforma tecnológica a nivel nacional de  software y hardware en las sedes administrativas y judiciales",15,"Accesibilidad a nuevas herramientas virtuales, que facilitan el acceso a la información, la optimización del tiempo y contribuyen a la disminución de los consumos de papel"]
[null,11,"Falta de apropiación y aplicación del conocimiento y de las buenas prácticas en los avances tecnológicos",16,"Capacitación para el uso de herramientas tecnológicas  "]
[null,12,"Limitación en formación en tecnologías de la información y la comunicación aplicadas al desarrollo de la gestión Judicial estableciendo las diferencias entre: Transformación digital, digitalización, expediente digital y estrategias para la digitalización"]
[null,13,"Fallas de conectividad para la realización de las actividades propias del proceso."]
[null,14,"Falta de cobertura tecnológica en las sedes judiciales "]
[]
[null,15,"Carencia del software de gestión para el manejo integral de la información."]
[null,16,"Falta de  comunicación asertiva entre los diferentes actores para la articulación de proyectos tecnológicos"]
[null,17,"Debilidad en la generación de estrategias articuladas para la digitalización entre las dependencias Judiciales y Administrativas"]
[]
["Documentación (actualización, coherencia, aplicabilidad) ",null,null,17,"La estandarización de la plataforma estratégica del SIGCMA y documentos impartidos  desde la Coordinación Nacional del SIGCMA para la mejor prestación del servicio"]
[null,null,null,18,"Micrositio de fácil acceso a los documentos propios del Sistema Integrado de Gestión y Control de la Calidad y el Medio Ambiente."]
[null,18,"Falta de comunicación y socialización de tablas de retención documental"]
["Infraestructura física (suficiencia, comodidad)",19,"Sedes Judiciales arrendadas, en comodato y propias que no cuentan con las condiciones mínimas de seguridad para los servidores judiciales, contratistas y usuarios de la justicia según la normatividad vigente"]
[]
["Elementos de trabajo (papel, equipos, herramientas)",20,"Falta de modernización y mantenimiento del mobiliario con que cuenta la Rama Judicial",19,"Uso adecuado de los elementos de trabajo"]
[null,null,null,20,"Socialización de la plataforma tecnológica de la Rama Judicial para el cumplimiento del PETD"]
["Comunicación Interna (canales utilizados y su efectividad, flujo de la información necesaria para el desarrollo de las actividades)",null,null,21,"Elaboración y seguimiento del Plan de Comunicaciones"]
[null,null,null,22,"Implementación de estrategias y mecanismos para el fortalecimiento de la atención al usuario"]
[null,null,null,23,"Fortalecimiento de la pagina web institucional y mecanismos de comunicación"]
[null,null,null,24,"Uso adecuado del micrositio asignado al Consejo Seccional de la Judicatura"]
[null,null,null,25,"Uso adecuado de los correos electrónicos"]
[null,null,null,26,"Uso adecuado del aplicativo SIGOBIUS"]
[null,null,null,27,"Fortalecimiento para el tratamiento de PQRS"]
[null,null,null,28,"Uso adecuado de la imagen corporativa y los logos en los cuales se encuentra certificada la Rama Judicial"]
["Ambientales",21,"Desconocimiento del Plan de Gestión Ambiental que aplica para la Rama Judicial Acuerdo PSAA14-10160",29,"Disminución en el uso de papel, toners y demás elementos de oficina al implementar el uso de medios tecnológicos"]
[null,22,"Ausencia de indicadores ambientales establecidos en los programas de gestión del Acuerdo PSAA14-10160",30,"Participación virtual es los espacios  de sensibilización ambiental, como el Día SIGCMA"]
[null,23,"Baja implementación en sistemas ahorradores de agua  y energía en sedes judiciales y administrativas"]
[null,null,null,31,"Formación de Auditores en modelos de gestión en los esquemas en los que se encuentran certificada la Rama Judicial.",null,null,null,null," "]
[null,null,null,32,"Implementación de buenas practicas tendientes a la protección del medio ambiente"]

{"sheet":"INFO_ESTRATEGIAS","index":2,"n_rows":10,"n_cols":6,"rows_kept":10,"cut":false,"hidden":false,"merged":[[1,0,1,5],[2,0,3,0],[2,1,2,4],[0,1,0,4]]}
[null,"ESTRATEGIAS"]
["ESTRATEGIAS  DOFA"]
["ESTRATEGIA/ACCIÓN/ PROYECTO","GESTIONA ",null,null,null,"DOCUMENTADA EN "]
[null,"A","O","D","F"]
["Contar con el plan de acción, hacer seguimiento y realizar el reporte oportuno de las actividades a desarrollar",null,null,1,"1,2,3,10,11,","Plan de acción "]
["Mantener, actualizar y documentar  el Sistema Integrado de Gestión SIGCMA, en el contexto especifico",null,"3,5,6,7,",8.9,"3,4,5,6,7,10,13,17,18","Plan de acción "]
["Implementar mecanismos para la comunicación y retroalimentación de las  partes interesadas",null,null,null,"14,15,18,21,22,23,24,25,25, 27","Plan de acción "]
["Programar capacitaciones, fortaleciendo el proceso de inducción y reinducción de los servidores judiciales en temas de manejo del expediente digital, procedimientos, aplicativos, herramientas colaborativas, entre otras.",null,null,"7,8,12","2,11,12,13,16,20","Plan de acción "]
["Hacer uso de la información y de las herramientas tecnológicas dispuestas para la prestación del servicios",null,null,"10,11,12,","15,16,18,24,","Plan de acción "]
["Realizar identificación y cumplimiento de los requisitos legales y reglamentarios","6,7,8,15,","3,4,","3,4,5,7,","3,4,5,6,7,8,10,","Matriz de riesgos"]

{"sheet":"PLAN DE ACCION","index":3,"n_rows":1047890,"n_cols":11,"rows_kept":4500,"cut":true,"hidden":false,"merged":[[2,1,3,1],[4,1,5,1],[2,0,3,0],[4,0,5,0],[2,2,3,2],[4,2,5,2]],"bounds":{"rows_first":2000,"rows_last":500,"rows_between":2000,"halvings":0},"read":"row_number_cap"}
[]
[]
[]
[]
[]
[]
[]
[]
[]
[]
[]
[]
[]
[]
[]
[]
[]
[]
[]
[]
[]
[]
[]
[]
[]
[]
[]
[]
[]
[]
[]
[]
[]
[]
[]
[]
[]
[]
[]
[]
[]
[]
[]
[]
[]
[]
[]
[]
[]
[]
[]
[]
[]
[]
[]
[]
[]
[]
[]
[]
[]
[]
[]
[]
[]
[]
[]
[]
[]
[]
[]
[]
[]
[]
[]
[]
[]
[]
[]
[]
[]
[]
[]
[]
[]
[]
[]
[]
[]
[]
[]
[]
[]
[]
[]
[]
[]
[]
[]
[]
[]
[]
[]
[]
[]
[]
[]
[]
[]
[]
[]
[]
[]
[]
[]
[]
[]
[]
[]
[]
[]
[]
[]
[]
[]
[]
[]
[]
[]
[]
[]
[]
[]
[]
[]
[]
[]
[]
[]
[]
[]
[]
[]
[]
[]
[]
[]
[]
[]
[]
[]
[]
[]
[]
[]
[]
[]
[]
[]
[]
[]
[]
[]
[]
[]
[]
[]
[]
[]
[]
[]
[]
[]
[]
[]
[]
[]
[]
[]
[]
[]
[]
[]
[]
[]
[]
[]
[]
[]
[]
[]
[]
[]
[]
[]
[]
[]
[]
[]
[]
[]
[]
[]
[]
[]
[]
[]
[]
[]
[]
[]
[]
[]
[]
[]
[]
[]
[]
[]
[]
[]
[]
[]
[]
[]
[]
[]
[]
[]
[]
[]
[]
[]
[]
[]
[]
[]
[]
[]
[]
[]
[]
[]
[]
[]
[]
[]
[]
[]
[]
[]
[]
[]
[]
[]
[]
[]
[]
[]
[]
[]
[]
[]
[]
[]
[]
[]
[]
[]
[]
[]
[]
[]
[]
[]
[]
[]
[]
[]
[]
[]
[]
[]
[]
[]
[]
[]
[]
[]
[]
[]
[]
[]
[]
[]
[]
[]
[]
[]
[]
[]
[]
[]
[]
[]
[]
[]
[]
[]
[]
[]
[]
[]
[]
[]
[]
[]
[]
[]
[]
[]
[]
[]
[]
[]
[]
[]
[]
[]
[]
[]
[]
[]
[]
[]
[]
[]
[]
[]
[]
[]
[]
[]
[]
[]
[]
[]
[]
[]
[]
[]
[]
[]
[]
[]
[]
[]
[]
[]
[]
[]
[]
[]
[]
[]
[]
[]
[]
[]
[]
[]
[]
[]
[]
[]
[]
[]
[]
[]
[]
[]
[]
[]
[]
[]
[]
[]
[]
[]
[]
[]
[]
[]
[]
[]
[]
[]
[]
[]
[]
[]
[]
[]
[]
[]
[]
[]
[]
[]
[]
[]
[]
[]
[]
[]
[]
[]
[]
[]
[]
[]
[]
[]
[]
[]
[]
[]
[]
[]
[]
[]
[]
[]
[]
[]
[]
[]
[]
[]
[]
[]
[]
[]
[]
[]
[]
[]
[]
[]
[]
[]
[]
[]
[]
[]
[]
[]
[]
[]
[]
[]
[]
[]
[]
[]
[]
[]
[]
[]
[]
[]
[]
[]
[]
[]
[]
[]
[]
[]
[]
[]
[]
[]
[]
[]
[]
[]
[]
[]
[]
[]
[]
[]
[]
[]
[]
[]
[]
[]
[]
[]
[]
[]
[]
[]
[]
[]
[]
[]
[]
[]
[]
[]
[]
[]
[]
[]
[]
[]
[]
[]
[]
[]
[]
[]
[]
[]
[]
[]
[]
[]
[]
[]
[]
[]
[]
[]
[]
[]
[]
[]
[]
[]
[]
[]
[]
[]
[]
[]
[]
[]
[]
[]
[]
[]
[]
[]
[]
[]
[]
[]
[]
[]
[]
[]
[]
[]
[]
[]
[]
[]
[]
[]
[]
[]
[]
[]
[]
[]
[]
[]
[]
[]
[]
[]
[]
[]
[]
[]
[]
[]
[]
[]
[]
[]
[]
[]
[]
[]
[]
[]
[]
[]
[]
[]
[]
[]
[]
[]
[]
[]
[]
[]
[]
[]
[]
[]
[]
[]
[]
[]
[]
[]
[]
[]
[]
[]
[]
[]
[]
[]
[]
[]
[]
[]
[]
[]
[]
[]
[]
[]
[]
[]
[]
[]
[]
[]
[]
[]
[]
[]
[]
[]
[]
[]
[]
[]
[]
[]
[]
[]
[]
[]
[]
[]
[]
[]
[]
[]
[]
[]
[]
[]
[]
[]
[]
[]
[]
[]
[]
[]
[]
[]
[]
[]
[]
[]
[]
[]
[]
[]
[]
[]
[]
[]
[]
[]
[]
[]
[]
[]
[]
[]
[]
[]
[]
[]
[]
[]
[]
[]
[]
[]
[]
[]
[]
[]
[]
[]
[]
[]
[]
[]
[]
[]
[]
[]
[]
[]
[]
[]
[]
[]
[]
[]
[]
[]
[]
[]
[]
[]
[]
[]
[]
[]
[]
[]
[]
[]
[]
[]
[]
[]
[]
[]
[]
[]
[]
[]
[]
[]
[]
[]
[]
[]
[]
[]
[]
[]
[]
[]
[]
[]
[]
[]
[]
[]
[]
[]
[]
[]
[]
[]
[]
[]
[]
[]
[]
[]
[]
[]
[]
[]
[]
[]
[]
[]
[]
[]
[]
[]
[]
[]
[]
[]
[]
[]
[]
[]
[]
[]
[]
[]
[]
[]
[]
[]
[]
[]
[]
[]
[]
[]
[]
[]
[]
[]
[]
[]
[]
[]
[]
[]
[]
[]
[]
[]
[]
[]
[]
[]
[]
[]
[]
[]
[]
[]
[]
[]
[]
[]
[]
[]
[]
[]
[]
[]
[]
[]
[]
[]
[]
[]
[]
[]
[]
[]
[]
[]
[]
[]
[]
[]
[]
[]
[]
[]
[]
[]
[]
[]
[]
[]
[]
[]
[]
[]
[]
[]
[]
[]
[]
[]
[]
[]
[]
[]
[]
[]
[]
[]
[]
[]
[]
[]
[]
[]
[]
[]
[]
[]
[]
[]
[]
[]
[]
[]
[]
[]
[]
[]
[]
[]
[]
[]
[]
[]
[]
[]
[]
[]
[]
[]
[]
[]
[]
[]
[]
[]
[]
[]
[]
[]
[]
[]
[]
[]
[]
[]
[]
[]
[]
[]
[]
[]
[]
[]
[]
[]
[]
[]
[]
[]
[]
[]
[]
[]
[]
[]
[]
[]
[]
[]
[]
[]
[]
[]
[]
[]
[]
[]
[]
[]
[]
[]
[]
[]
[]
[]
[]
[]
[]
[]
[]
[]
[]
[]
[]
[]
[]
[]
[]
[]
[]
[]
[]
[]
[]
[]
[]
[]
[]
[]
[]
[]
[]
[]
[]
[]
[]
[]
[]
[]
[]
[]
[]
[]
[]
[]
[]
[]
[]
[]
[]
[]
[]
[]
[]
[]
[]
[]
[]
[]
[]
[]
[]
[]
[]
[]
[]
[]
[]
[]
[]
[]
[]
[]
[]
[]
[]
[]
[]
[]
[]
[]
[]
[]
[]
[]
[]
[]
[]
[]
[]
[]
[]
[]
[]
[]
[]
[]
[]
[]
[]
[]
[]
[]
[]
[]
[]
[]
[]
[]
[]
[]
[]
[]
[]
[]
[]
[]
[]
[]
[]
[]
[]
[]
[]
[]
[]
[]
[]
[]
[]
[]
[]
[]
[]
[]
[]
[]
[]
[]
[]
[]
[]
[]
[]
[]
[]
[]
[]
[]
[]
[]
[]
[]
[]
[]
[]
[]
[]
[]
[]
[]
[]
[]
[]
[]
[]
[]
[]
[]
[]
[]
[]
[]
[]
[]
[]
[]
[]
[]
[]
[]
[]
[]
[]
[]
[]
[]
[]
[]
[]
[]
[]
[]
[]
[]
[]
[]
[]
[]
[]
[]
[]
[]
[]
[]
[]
[]
[]
[]
[]
[]
[]
[]
[]
[]
[]
[]
[]
[]
[]
[]
[]
[]
[]
[]
[]
[]
[]
[]
[]
[]
[]
[]
[]
[]
[]
[]
[]
[]
[]
[]
[]
[]
[]
[]
[]
[]
[]
[]
[]
[]
[]
[]
[]
[]
[]
[]
[]
[]
[]
[]
[]
[]
[]
[]
[]
[]
[]
[]
[]
[]
[]
[]
[]
[]
[]
[]
[]
[]
[]
[]
[]
[]
[]
[]
[]
[]
[]
[]
[]
[]
[]
[]
[]
[]
[]
[]
[]
[]
[]
[]
[]
[]
[]
[]
[]
[]
[]
[]
[]
[]
[]
[]
[]
[]
[]
[]
[]
[]
[]
[]
[]
[]
[]
[]
[]
[]
[]
[]
[]
[]
[]
[]
[]
[]
[]
[]
[]
[]
[]
[]
[]
[]
[]
[]
[]
[]
[]
[]
[]
[]
[]
[]
[]
[]
[]
[]
[]
[]
[]
[]
[]
[]
[]
[]
[]
[]
[]
[]
[]
[]
[]
[]
[]
[]
[]
[]
[]
[]
[]
[]
[]
[]
[]
[]
[]
[]
[]
[]
[]
[]
[]
[]
[]
[]
[]
[]
[]
[]
[]
[]
[]
[]
[]
[]
[]
[]
[]
[]
[]
[]
[]
[]
[]
[]
[]
[]
[]
[]
[]
[]
[]
[]
[]
[]
[]
[]
[]
[]
[]
[]
[]
[]
[]
[]
[]
[]
[]
[]
[]
[]
[]
[]
[]
[]
[]
[]
[]
[]
[]
[]
[]
[]
[]
[]
[]
[]
[]
[]
[]
[]
[]
[]
[]
[]
[]
[]
[]
[]
[]
[]
[]
[]
[]
[]
[]
[]
[]
[]
[]
[]
[]
[]
[]
[]
[]
[]
[]
[]
[]
[]
[]
[]
[]
[]
[]
[]
[]
[]
[]
[]
[]
[]
[]
[]
[]
[]
[]
[]
[]
[]
[]
[]
[]
[]
[]
[]
[]
[]
[]
[]
[]
[]
[]
[]
[]
[]
[]
[]
[]
[]
[]
[]
[]
[]
[]
[]
[]
[]
[]
[]
[]
[]
[]
[]
[]
[]
[]
[]
[]
[]
[]
[]
[]
[]
[]
[]
[]
[]
[]
[]
[]
[]
[]
[]
[]
[]
[]
[]
[]
[]
[]
[]
[]
[]
[]
[]
[]
[]
[]
[]
[]
[]
[]
[]
[]
[]
[]
[]
[]
[]
[]
[]
[]
[]
[]
[]
[]
[]
[]
[]
[]
[]
[]
[]
[]
[]
[]
[]
[]
[]
[]
[]
[]
[]
[]
[]
[]
[]
[]
[]
[]
[]
[]
[]
[]
[]
[]
[]
[]
[]
[]
[]
[]
[]
[]
[]
[]
[]
[]
[]
[]
[]
[]
[]
[]
[]
[]
[]
[]
[]
[]
[]
[]
[]
[]
[]
[]
[]
[]
[]
[]
[]
[]
[]
[]
[]
[]
[]
[]
[]
[]
[]
[]
[]
[]
[]
[]
[]
[]
[]
[]
[]
[]
[]
[]
[]
[]
[]
[]
[]
[]
[]
[]
[]
[]
[]
[]
[]
[]
[]
[]
[]
[]
[]
[]
[]
[]
[]
[]
[]
[]
[]
[]
[]
[]
[]
[]
[]
[]
[]
[]
[]
[]
[]
[]
[]
[]
[]
[]
[]
[]
[]
[]
[]
[]
[]
[]
[]
[]
[]
[]
[]
[]
[]
[]
[]
[]
[]
[]
[]
[]
[]
[]
[]
[]
[]
[]
[]
[]
[]
[]
[]
[]
[]
[]
[]
[]
[]
[]
[]
[]
[]
[]
[]
[]
[]
[]
[]
[]
[]
[]
[]
[]
[]
[]
[]
[]
[]
[]
[]
[]
[]
[]
[]
[]
[]
[]
[]
[]
[]
[]
[]
[]
[]
[]
[]
[]
[]
[]
[]
[]
[]
[]
[]
[]
[]
[]
[]
[]
[]
[]
[]
[]
[]
[]
[]
[]
[]
[]
[]
[]
[]
[]
[]
[]
[]
[]
[]
[]
[]
[]
[]
[]
[]
[]
[]
[]
[]
[]
[]
[]
[]
[]
[]
[]
[]
[]
[]
[]
[]
[]
[]
[]
[]
[]
[]
[]
[]
[]
[]
[]
[]
[]
[]
[]
[]
[]
[]
[]
[]
[]
[]
[]
[]
[]
[]
[]
[]
[]
[]
[]
[]
[]
[]
[]
[]
[]
[]
[]
[]
[]
[]
[]
[]
[]
[]
[]
[]
[]
[]
[]
[]
[]
[]
[]
[]
[]
[]
[]
[]
[]
[]
[]
[]
[]
[]
[]
[]
[]
[]
[]
[]
[]
[]
[]
[]
[]
[]
[]
[]
[]
[]
[]
[]
[]
[]
[]
[]
[]
[]
[]
[]
[]
[]
[]
[]
[]
[]
[]
[]
[]
[]
[]
[]
[]
[]
[]
[]
[]
[]
[]
[]
[]
[]
[]
[]
[]
[]
[]
[]
[]
[]
[]
[]
[]
[]
[]
[]
[]
[]
[]
[]
[]
[]
[]
[]
[]
[]
[]
[]
[]
[]
[]
[]
[]
[]
[]
[]
[]
[]
[]
[]
[]
[]
[]
[]
[]
[]
[]
[]
[]
[]
[]
[]
[]
[]
[]
[]
[]
[]
[]
[]
[]
[]
[]
[]
[]
[]
[]
[]
[]
[]
[]
[]
[]
[]
[]
[]
[]
[]
[]
[]
[]
[]
[]
[]
[]
[]
[]
[]
[]
[]
[]
[]
[]
[]
[]
[]
[]
[]
[]
[]
[]
[]
[]
[]
[]
[]
[]
[]
[]
[]
[]
[]
[]
[]
[]
[]
[]
[]
[]
[]
[]
[]
[]
[]
[]
[]
[]
[]
[]
[]
[]
[]
[]
[]
[]
[]
[]
[]
[]
[]
[]
[]
[]
[]
[]
[]
[]
[]
[]
[]
[]
[]
[]
[]
[]
[]
[]
[]
[]
[]
[]
[]
[]
[]
[]
[]
[]
[]
[]
[]
[]
[]
[]
[]
[]
[]
[]
[]
[]
[]
[]
[]
[]
[]
[]
[]
[]
[]
[]
[]
[]
[]
[]
[]
[]
[]
[]
[]
[]
[]
[]
[]
[]
[]
[]
[]
[]
[]
[]
[]
[]
[]
[]
[]
[]
[]
[]
[]
[]
[]
[]
[]
[]
[]
[]
[]
[]
[]
[]
[]
[]
[]
[]
[]
[]
[]
[]
[]
[]
[]
[]
[]
[]
[]
[]
[]
[]
[]
[]
[]
[]
[]
[]
[]
[]
[]
[]
[]
[]
[]
[]
[]
[]
[]
[]
[]
[]
[]
[]
[]
[]
[]
[]
[]
[]
[]
[]
[]
[]
[]
[]
[]
[]
[]
[]
[]
[]
[]
[]
[]
[]
[]
[]
[]
[]
[]
[]
[]
[]
[]
[]
[]
[]
[]
[]
[]
[]
[]
[]
[]
[]
[]
[]
[]
[]
[]
[]
[]
[]
[]
[]
[]
[]
[]
[]
[]
[]
[]
[]
[]
[]
[]
[]
[]
[]
[]
[]
[]
[]
[]
[]
[]
[]
[]
[]
[]
[]
[]
[]
[]
[]
[]
[]
[]
[]
[]
[]
[]
[]
[]
[]
[]
[]
[]
[]
[]
[]
[]
[]
[]
[]
[]
[]
[]
[]
[]
[]
[]
[]
[]
[]
[]
[]
[]
[]
[]
[]
[]
[]
[]
[]
[]
[]
[]
[]
[]
[]
[]
[]
[]
[]
[]
[]
[]
[]
[]
[]
[]
[]
[]
[]
[]
[]
[]
[]
[]
[]
[]
[]
[]
[]
[]
[]
[]
[]
[]
[]
[]
[]
[]
[]
[]
[]
[]
[]
[]
[]
[]
[]
[]
[]
[]
[]
[]
[]
[]
[]
[]
[]
[]
[]
[]
[]
[]
[]
[]
[]
[]
[]
[]
[]
[]
[]
[]
[]
[]
[]
[]
[]
[]
[]
[]
[]
[]
[]
[]
[]
[]
[]
[]
[]
[]
[]
[]
[]
[]
[]
[]
[]
[]
[]
[]
[]
[]
[]
[]
[]
[]
[]
[]
[]
[]
[]
[]
[]
[]
[]
[]
[]
[]
[]
[]
[]
[]
[]
[]
[]
[]
[]
[]
[]
[]
[]
[]
[]
[]
[]
[]
[]
[]
[]
[]
[]
[]
[]
[]
[]
[]
[]
[]
[]
[]
[]
[]
[]
[]
[]
[]
[]
[]
[]
[]
[]
[]
[]
[]
[]
[]
[]
[]
[]
[]
[]
[]
[]
[]
[]
[]
[]
[]
[]
[]
[]
[]
[]
[]
[]
[]
[]
[]
[]
[]
[]
[]
[]
[]
[]
[]
[]
[]
[]
[]
[]
[]
[]
[]
[]
[]
[]
[]
[]
[]
[]
[]
[]
[]
[]
[]
[]
[]
[]
[]
[]
[]
[]
[]
[]
[]
[]
[]
[]
[]
[]
[]
[]
[]
[]
[]
[]
[]
[]
[]
[]
[]
[]
[]
[]
[]
[]
[]
[]
[]
[]
[]
[]
[]
[]
[]
[]
[]
[]
[]
[]
[]
[]
[]
[]
[]
[]
[]
[]
[]
[]
[]
[]
[]
[]
[]
[]
[]
[]
[]
[]
[]
[]
[]
[]
[]
[]
[]
[]
[]
[]
[]
[]
[]
[]
[]
[]
[]
[]
[]
[]
[]
[]
[]
[]
[]
[]
[]
[]
[]
[]
[]
[]
[]
[]
[]
[]
[]
[]
[]
[]
[]
[]
[]
[]
[]
[]
[]
[]
[]
[]
[]
[]
[]
[]
[]
[]
[]
[]
[]
[]
[]
[]
[]
[]
[]
[]
[]
[]
[]
[]
[]
[]
[]
[]
[]
[]
[]
[]
[]
[]
[]
[]
[]
[]
[]
[]
[]
[]
[]
[]
[]
[]
[]
[]
[]
[]
[]
[]
[]
[]
[]
[]
[]
[]
[]
[]
[]
[]
[]
[]
[]
[]
[]
[]
[]
[]
[]
[]
[]
[]
[]
[]
[]
[]
[]
[]
[]
[]
[]
[]
[]
[]
[]
[]
[]
[]
[]
[]
[]
[]
[]
[]
[]
[]
[]
[]
[]
[]
[]
[]
[]
[]
[]
[]
[]
[]
[]
[]
[]
[]
[]
[]
[]
[]
[]
[]
[]
[]
[]
[]
[]
[]
[]
[]
[]
[]
[]
[]
[]
[]
[]
[]
[]
[]
[]
[]
[]
[]
[]
[]
[]
[]
[]
[]
[]
[]
[]
[]
[]
[]
[]
[]
[]
[]
[]
[]
[]
[]
[]
[]
[]
[]
[]
[]
[]
[]
[]
[]
[]
[]
[]
[]
[]
[]
[]
[]
[]
[]
[]
[]
[]
[]
[]
[]
[]
[]
[]
[]
[]
[]
[]
[]
[]
[]
[]
[]
[]
[]
[]
[]
[]
[]
[]
[]
[]
[]
[]
[]
[]
[]
[]
[]
[]
[]
[]
[]
[]
[]
[]
[]
[]
[]
[]
[]
[]
[]
[]
[]
[]
[]
[]
[]
[]
[]
[]
[]
[]
[]
[]
[]
[]
[]
[]
[]
[]
[]
[]
[]
[]
[]
[]
[]
[]
[]
[]
[]
[]
[]
[]
[]
[]
[]
[]
[]
[]
[]
[]
[]
[]
[]
[]
[]
[]
[]
[]
[]
[]
[]
[]
[]
[]
[]
[]
[]
[]
[]
[]
[]
[]
[]
[]
[]
[]
[]
[]
[]
[]
[]
[]
[]
[]
[]
[]
[]
[]
[]
[]
[]
[]
[]
[]
[]
[]
[]
[]
[]
[]
[]
[]
[]
[]
[]
[]
[]
[]
[]
[]
[]
[]
[]
[]
[]
[]
[]
[]
[]
[]
[]
[]
[]
[]
[]
[]
[]
[]
[]
[]
[]
[]
[]
[]
[]
[]
[]
[]
[]
[]
[]
[]
[]
[]
[]
[]
[]
[]
[]
[]
[]
[]
[]
[]
[]
[]
[]
[]
[]
[]
[]
[]
[]
[]
[]
[]
[]
[]
[]
[]
[]
[]
[]
[]
[]
[]
[]
[]
[]
[]
[]
[]
[]
[]
[]
[]
[]
[]
[]
[]
[]
[]
[]
[]
[]
[]
[]
[]
[]
[]
[]
[]
[]
[]
[]
[]
[]
[]
[]
[]
[]
[]
[]
[]
[]
[]
[]
[]
[]
[]
[]
[]
[]
[]
[]
[]
[]
[]
[]
[]
[]
[]
[]
[]
[]
[]
[]
[]
[]
[]
[]
[]
[]
[]
[]
[]
[]
[]
[]
[]
[]
[]
[]
[]
[]
[]
[]
[]
[]
[]
[]
[]
[]
[]
[]
[]
[]
[]
[]
[]
[]
[]
[]
[]
[]
[]
[]
[]
[]
[]
[]
[]
[]
[]
[]
[]
[]
[]
[]
[]
[]
[]
[]
[]
[]
[]
[]
[]
[]
[]
[]
[]
[]
[]
[]
[]
[]
[]
[]
[]
[]
[]
[]
[]
[]
[]
[]
[]
[]
[]
[]
[]
[]
[]
[]
[]
[]
[]
[]
[]
[]
[]
[]
[]
[]
[]
[]
[]
[]
[]
[]
[]
[]
[]
[]
[]
[]
[]
[]
[]
[]
[]
[]
[]
[]
[]
[]
[]
[]
[]
[]
[]
[]
[]
[]
[]
[]
[]
[]
[]
[]
[]
[]
[]
[]
[]
[]
[]
[]
[]
[]
[]
[]
[]
[]
[]
[]
[]
[]
[]
[]
[]
[]
[]
[]
[]
[]
[]
[]
[]
[]
[]
[]
[]
[]
[]
[]
[]
[]
[]
[]
[]
[]
[]
[]
[]
[]
[]
[]
[]
[]
[]
[]
[]
[]
[]
[]
[]
[]
[]
[]
[]
[]
[]
[]
[]
[]
[]
[]
[]
[]
[]
[]
[]
[]
[]
[]
[]
[]
[]
[]
[]
[]
[]
[]
[]
[]
[]
[]
[]
[]
[]
[]
[]
[]
[]
[]
[]
[]
[]
[]
[]
[]
[]
[]
[]
[]
[]
[]
[]
[]
[]
[]
[]
[]
[]
[]
[]
[]
[]
[]
[]
[]
[]
[]
[]
[]
[]
[]
[]
[]
[]
[]
[]
[]
[]
[]
[]
[]
[]
[]
[]
[]
[]
[]
[]
[]
[]
[]
[]
[]
[]
[]
[]
[]
[]
[]
[]
[]
[]
[]
[]
[]
[]
[]
[]
[]
[]
[]
[]
[]
[]
[]
[]
[]
[]
[]
[]
[]
[]
[]
[]
[]
[]
[]
[]
[]
[]
[]
[]
[]
[]
[]
[]
[]
[]
[]
[]
[]
[]
[]
[]
[]
[]
[]
[]
[]
[]
[]
[]
[]
[]
[]
[]
[]
[]
[]
[]
[]
[]
[]
[]
[]
[]
[]
[]
[]
[]
[]
[]
[]
[]
[]
[]
[]
[]
[]
[]
[]
[]
[]
[]
[]
[]
[]
[]
[]
[]
[]
[]
[]
[]
[]
[]
[]
[]
[]
[]
[]
[]
[]
[]
[]
[]
[]
[]
[]
[]
[]
[]
[]
[]
[]
[]
[]
[]
[]
[]
[]
[]
[]
[]
[]
[]
[]
[]
[]
[]
[]
[]
[]
[]
[]
[]
[]
[]
[]
[]
[]
[]
[]
[]
[]
[]
[]
[]
[]
[]
[]
[]
[]
[]
[]
[]
[]
[]
[]
[]
[]
[]
[]
[]
[]
[]
[]
[]
[]
[]
[]
[]
[]
[]
[]
[]
[]
[]
[]
[]
[]
[]
[]
[]
[]
[]
[]
[]
[]
[]
[]
[]
[]
[]
[]
[]
[]
[]
[]
[]
[]
[]
[]
[]
[]
[]
[]
[]
[]
[]
[]
[]
[]
[]
[]
[]
[]
[]
[]
[]
[]
[]
[]
[]
[]
[]
[]
[]
[]
[]
[]
[]
[]
[]
[]
[]
[]
[]
[]
[]
[]
[]
[]
[]
[]
[]
[]
[]
[]
[]
[]
[]
[]
[]
[]
[]
[]
[]
[]
[]
[]
[]
[]
[]
[]
[]
[]
[]
[]
[]
[]
[]
[]
[]
[]
[]
[]
[]
[]
[]
[]
[]
[]
[]
[]
[]
[]
[]
[]
[]
[]
[]
[]
[]
[]
[]
[]
[]
[]
[]
[]
[]
[]
[]
[]
[]
[]
[]
[]
[]
[]
[]
[]
[]
[]
[]
[]
[]
[]
[]
[]
[]
[]
[]
[]
[]
[]
[]
[]
[]
[]
[]
[]
[]
[]
[]
[]
[]
[]
[]
[]
[]
[]
[]
[]
[]
[]
[]
[]
[]
[]
[]
[]
[]
[]
[]
[]
[]
[]
[]
[]
[]
[]
[]
[]
[]
[]
[]
[]
[]
[]
[]
[]
[]
[]
[]
[]
[]
[]
[]
[]
[]
[]
[]
[]
[]
[]
[]
[]
[]
[]
[]
[]
[]
[]
[]
[]
[]
[]
[]
[]
[]
[]
[]
[]
[]
[]
[]
[]
[]
[]
[]
[]
[]
[]
[]
[]
[]
[]
[]
[]
[]
[]
[]
[]
[]
[]
[]
[]
[]
[]
[]
[]
[]
[]
[]
[]
[]
[]
[]
[]
[]
[]
[]
[]
[]
[]
[]
[]
[]
[]
[]
[]
[]
[]
[]
[]
[]
[]
[]
[]
[]
[]
[]
[]
[]
[]
[]
[]
[]
[]
[]
[]
[]
[]
[]
[]
[]
[]
[]
[]
[]
[]
[]
[]
[]
[]
[]
[]
[]
[]
[]
[]
[]
[]
[]
[]
[]
[]
[]
[]
[]
[]
[]
[]
[]
[]
[]
[]
[]
[]
[]
[]
[]
[]
[]
[]
[]
[]
[]
[]
[]
[]
[]
[]
[]
[]
[]
[]
[]
[]
[]
[]
[]
[]
[]
[]
[]
[]
[]
[]
[]
[]
[]
[]
[]
[]
[]
[]
[]
[]
[]
[]
[]
[]
[]
[]
[]
[]
[]
[]
[]
[]
[]
[]
[]
[]
[]
[]
[]
[]
[]
[]
[]
[]
[]
[]
[]
[]
[]
[]
[]
[]
[]
[]
[]
[]
[]
[]
[]
[]
[]
[]
[]
[]
[]
[]
[]
[]
[]
[]
[]
[]
[]
[]
[]
[]
[]
[]
[]
[]
[]
[]
[]
[]
[]
[]
[]
[]
[]
[]
[]
[]
[]
[]
[]
[]
[]
[]
[]
[]
[]
[]
[]
[]
[]
[]
[]
[]
[]
[]
[]
[]
[]
[]
[]
[]
[]
[]
[]
[]
[]
[]
[]
[]
[]
[]
[]
[]
[]
[]
[]
[]
[]
[]
[]
[]
[]
[]
[]
[]
[]
[]
[]
[]
[]
[]
[]
[]
[]
[]
[]
[]
[]
[]
[]
[]
[]
[]
[]
[]
[]
[]
[]
[]
[]
[]
[]
[]
[]
[]
[]
[]
[]
[]
[]
[]
[]
[]
[]
[]
[]
[]
[]
[]
[]
[]
[]
[]
[]
[]
[]
[]
[]
[]
[]
[]
[]
[]
[]
[]
[]
[]
[]
[]
[]
[]
[]
[]
[]
[]
[]
[]
[]
[]
[]
[]
[]
[]
[]
[]
[]
[]
[]
[]
[]
[]
[]
[]
[]
[]
[]
[]
[]
[]
[]
[]
[]
[]
[]
[]
[]
[]
[]
[]
[]
[]
[]
[]
[]
[]
[]
[]
[]
[]
[]
[]
[]
[]
[]
[]
[]
[]
[]
[]
[]
[]
[]
[]
[]
[]
[]
[]
[]
[]
[]
[]
[]
[]
[]
[]
[]
[]
[]
[]
[]
[]
[]
[]
[]
[]
[]
[]
[]
[]
[]
[]
[]
[]
[]
[]
[]
[]
[]
[]
[]
[]
[]
[]
[]
[]
[]
[]
[]
[]
[]
[]
[]
[]
[]
[]
[]
[]
[]
[]
[]
[]
[]
[]
[]
[]
[]
[]
[]
[]
[]
[]
[]
[]
[]
[]
[]
[]
[]
[]
[]
[]
[]
[]
[]
[]
[]
[]
[]
[]
[]
[]
[]
[]
[]
[]
[]
[]
[]
[]
[]
[]
[]
[]
[]
[]
[]
[]
[]
[]
[]
[]
[]
[]
[]
[]
[]
[]
[]
[]
[]
[]
[]
[]
[]
[]
[]
[]
[]
[]
[]
[]
[]
[]
[]
[]
[]
[]
[]
[]
[]
[]
[]
[]
[]
[]
[]
[]
[]
[]
[]
[]
[]
[]
[]
[]
[]
[]
[]
[]
[]
[]
[]
[]
[]
[]
[]
[]
[]
[]
[]
[]
[]
[]
[]
[]
[]
[]
[]
[]
[]
[]
[]
[]
[]
[]
[]
[]
[]
[]
[]
[]
[]
[]
[]
[]
[]
[]
[]
[]
[]
[]
[]
[]
[]
[]
[]
[]
[]
[]
[]
[]
[]
[]
[]
[]
[]
[]
[]
[]
[]
[]
[]
[]
[]
[]
[]
[]
[]
[]
[]
[]
[]
[]
[]
[]
[]
[]
[]
[]
[]
[]
[]
[]
[]
[]
[]
[]
[]
[]
["Admin - Planeación Estratégica","Estratégicos","Central","Gestión","ANÁLISIS RESULTADO\nTRIMESTRE",null,"Estratégicos","Misionales","Apoyo","Evaluación y Mejora","Transversal_todos_procesos"]
["Admin - Comunicación Institucional","Misionales","Seccional","Producto",null,"Entregable","Admin - Planeación Estratégica","Admin - Reordenamiento Judicial","Admin - Gestión Documental","Admin - Gestión de Control Interno y Auditoría","Transversal_todos_procesos"]
["Admin - Gestión para la Integración de Listas de Altas Cortes","Apoyo",null,null,null,"Meta cuantificable","Admin - Comunicación Institucional","Admin - Modernización de la Gestión Judicial","Admin - Gestión Tecnológica","Admin - Mejoramiento del Sistema Integrado de Gestión y Control de la Calidad y del Medio Ambiente"]
["Admin - Reordenamiento Judicial","Evaluación_y_Mejora",null,null,null,null,"Admin - Gestión para la Integración de Listas de Altas Cortes","Admin - Mejoramiento de la Infraestructura Física","Admin - Gestión de la Información Estadística","Juris - Gestión de Mejoramiento del SIGCMA"]
["Admin - Modernización de la Gestión Judicial","Transversal_todos_procesos",null,null,null,null,"Juris - Gestión de Planeación Estratégica","Admin - Administración de la Carrera Judicial","Admin - Gestión Humana"]
["Admin - Mejoramiento de la Infraestructura Física",null,null,null,null,null,"Juris - Gestión de Comunicación Institucional","Admin - Gestión de la Formación Judicial","Admin - Gestión de Seguridad y Salud en el Trabajo"]
["Admin - Administración de la Carrera Judicial",null,null,null,null,null,null,"Admin - Gestión de la Información Judicial","Admin - Asistencia Legal"]
["Admin - Gestión de la Formación Judicial",null,null,null,null,null,null,"Admin - Registro y Control de Abogados y Auxiliares de la Justicia","Admin - Administración de la Seguridad"]
["Admin - Gestión de la Información Judicial",null,null,null,null,null,null,"Juris - Gestión de Acciones Constitucionales","Admin - Gestión Administrativa"]
["Admin - Registro y Control de Abogados y Auxiliares de la Justicia",null,null,null,null,null,null,"Juris - Gestión Proceso Ordinario","Admin - Compras Públicas"]
["Admin - Gestión Documental",null,null,null,null,null,null,null,"Admin - Gestión Financiera y Presupuestal"]
["Admin - Gestión Tecnológica",null,null,null,null,null,null,null,"Juris - Atención al Usuario"]
["Admin - Gestión de la Información Estadística",null,null,null,null,null,null,null,"Juris - Gestión de Servicios Judiciales"]
["Admin - Gestión Humana",null,null,null,null,null,null,null,"Juris - Gestión de Servicios Administrativos"]
["Admin - Gestión de Seguridad y Salud en el Trabajo"]
["Admin - Asistencia Legal"]
["Admin - Administración de la Seguridad"]
["Admin - Gestión Administrativa"]
["Admin - Compras Públicas"]
["Admin - Gestión Financiera y Presupuestal"]
["Admin - Gestión de Control Interno y Auditoría"]
["Admin - Mejoramiento del Sistema Integrado de Gestión y Control de la Calidad y del Medio Ambiente"]
["Juris - Gestión de Planeación Estratégica"]
["Juris - Gestión de Comunicación Institucional"]
["Juris - Gestión de Acciones Constitucionales"]
["Juris - Gestión Proceso Ordinario"]
["Juris - Atención al Usuario"]
["Juris - Gestión de Servicios Judiciales"]
["Juris - Gestión de Servicios Administrativos"]
["Juris - Gestión de Mejoramiento del SIGCMA"]

{"sheet":"GESTION","index":4,"n_rows":130,"n_cols":20,"rows_kept":130,"cut":false,"hidden":false,"merged":[[1,0,1,18],[1,19,1,28],[2,0,2,3],[3,0,4,1],[3,2,4,2],[3,3,4,3],[3,4,3,6],[3,7,3,17],[2,4,2,17],[2,18,4,18],[20,3,24,3],[25,2,29,2],[25,3,29,3],[5,1,29,1],[5,3,9,3],[10,2,14,2],[10,3,14,3],[15,2,19,2],[15,3,19,3],[5,2,9,2],[5,0,29,0],[30,2,34,2],[35,2,39,2],[40,2,44,2],[45,2,49,2],[20,2,24,2],[50,2,54,2],[55,2,59,2],[30,3,59,3],[30,1,59,1],[30,0,59,0],[75,3,89,3],[90,2,94,2],[90,3,94,3],[60,2,64,2],[60,3,64,3],[65,2,69,2],[70,2,74,2],[70,3,74,3],[65,3,69,3],[60,1,94,1],[60,0,94,0],[95,2,99,2],[100,2,104,2],[105,2,109,2],[95,0,119,0],[75,2,79,2],[80,2,84,2],[85,2,89,2],[110,2,114,2],[125,2,129,2],[120,3,129,3],[120,1,129,1],[120,0,129,0],[95,3,114,3],[115,2,119,2],[115,3,119,3],[95,1,119,1],[120,2,124,2]]}
[]
["CONSEJO SUPERIOR DE LA JUDICATURA \nUNIDADES MISIONALES DEL CONSEJO SUPERIOR DE LA JUDICATURA - \nDIRECCIÓN EJECUTIVA DE ADMINISTRACIÓN JUDICIAL - UNIDADES MISIONALES DE LA DEAJ\nDIRECCIONES SECCIONALES DE ADMINISTRACIÓN JUDICIAL - DEPENDENCIAS JUDICIALES CERTIFICADAS",null,null,null,null,null,null,null,null,null,null,null,null,null,null,null,null,null,null,"GENERADOR DE SEGUIMIENTOS TRIMESTRALES"]
["PLAN SECTORIAL DE DESARROLLO 2023-2026 - OBJETIVOS SIGCMA",null,null,null,"PLAN DE ACCIÓN Y SEGUIMIENTO A LA GESTIÓN INSTITUCIONAL (DE ACUERDO CON LA FUNCIÓN MISIONAL ASIGNADA )",null,null,null,null,null,null,null,null,null,null,null,null,null," ANÁLISIS RESULTADO"]
["OBJETIVO ESTRATÉGICO",null,"OBJETIVO ESPECÍFICO PSD","OBJETIVO ESPECÍFICO SIGCMA","MAPA PROCESO SIGCMA",null,null,"MEDICIÓN DE LA GESTIÓN ANUAL"]
[null,null,null,null,"NOMBRE MACRO PROCESO SIGCMA","PROCESO SIGCMA","NIVEL ","ACTIVIDADES ","INDIQUE SI ES ENTREGABLE O META CUANTIFICABLE","META ANUAL","UNIDAD DE MEDIDA","RESPONSABLE DEL PROCESO ","MEDIO O MECANISMO A TRAVES DEL CUAL SE HACE EL SEGUIMIENTO\n(Producto y/o servicio principal)","INICIO \nDÍA/MES/AÑO","FIN\nDÍA/MES/AÑO","AVANCE DE LA META ","NIVEL CUMPLIMIENTO","DIFICULTADES PARA LOGRAR LA META PROPUESTA"]
["1. Acceso e Infraestructura Física","Acceso e Infraestructura Física: Ampliar, en todo el territorio nacional, el acceso a una justicia efectiva, pronta, equitativa e incluyente, reduciendo el atraso y la congestión, de acuerdo con las necesidades de la demanda de justicia por jurisdicción y especialidad, y mejorando la articulación con la justicia restaurativa y terapéutica, y otros mecanismos de solución de conflictos y consolidando una infraestructura física óptima para el acceso a la justicia.","1. Ampliar el acceso a justicia para atender las necesidades jurídicas de los ciudadanos con un enfoque diferencial, de una manera pronta, reduciendo las inequidades y las brechas territoriales de acceso.","2. Asegurar  el cumplimiento de los objetivos institucionales, la normatividad aplicable,  la mejora del SIGCMA y la satisfacción de los usuarios, revisando de  forma continua y sistemática la planificación de la gestión y fortaleciendo la administración de riesgos y sus controles",null,null,null,null,null,null,null,null,null,null,null,{"$f":"IFERROR(MAX(GESTION_SEG_1_TRIM!H6,GESTION_SEG_2_TRIM!H6,GESTION_SEG_3_TRIM!H6),\" \")","v":0},{"$f":"IFERROR(P6/J6,\"\")","v":""},{"$f":"IFERROR(_xlfn.CONCAT(\"Trimestre 1\",CHAR(10),GESTION_SEG_1_TRIM!J6,CHAR(10),\"Trimestre 2\",CHAR(10),GESTION_SEG_2_TRIM!J6,CHAR(10),\"Trimestre 3\",CHAR(10),GESTION_SEG_3_TRIM!J6),\" \")","v":"Trimestre 1\n\nTrimestre 2\n\nTrimestre 3\n"},{"$f":"IFERROR(_xlfn.CONCAT(\"Trimestre 1\",CHAR(10),GESTION_SEG_1_TRIM!K6,CHAR(10),\"Trimestre 2\",CHAR(10),GESTION_SEG_2_TRIM!K6,CHAR(10),\"Trimestre 3\",CHAR(10),GESTION_SEG_3_TRIM!K6),\" \")","v":"Trimestre 1\n\nTrimestre 2\n\nTrimestre 3\n"}]
[null,null,null,null,null,null,null,null,null,null,null,null,null,null,null,{"$f":"IFERROR(MAX(GESTION_SEG_1_TRIM!H7,GESTION_SEG_2_TRIM!H7,GESTION_SEG_3_TRIM!H7),\" \")","v":0},"",{"$f":"IFERROR(_xlfn.CONCAT(\"Trimestre 1\",CHAR(10),GESTION_SEG_1_TRIM!J7,CHAR(10),\"Trimestre 2\",CHAR(10),GESTION_SEG_2_TRIM!J7,CHAR(10),\"Trimestre 3\",CHAR(10),GESTION_SEG_3_TRIM!J7),\" \")","v":"Trimestre 1\n\nTrimestre 2\n\nTrimestre 3\n"},{"$f":"IFERROR(_xlfn.CONCAT(\"Trimestre 1\",CHAR(10),GESTION_SEG_1_TRIM!K7,CHAR(10),\"Trimestre 2\",CHAR(10),GESTION_SEG_2_TRIM!K7,CHAR(10),\"Trimestre 3\",CHAR(10),GESTION_SEG_3_TRIM!K7),\" \")","v":"Trimestre 1\n\nTrimestre 2\n\nTrimestre 3\n"}]
[null,null,null,null,null,null,null,null,null,null,null,null,null,null,null,{"$f":"IFERROR(MAX(GESTION_SEG_1_TRIM!H8,GESTION_SEG_2_TRIM!H8,GESTION_SEG_3_TRIM!H8),\" \")","v":0},"",{"$f":"IFERROR(_xlfn.CONCAT(\"Trimestre 1\",CHAR(10),GESTION_SEG_1_TRIM!J8,CHAR(10),\"Trimestre 2\",CHAR(10),GESTION_SEG_2_TRIM!J8,CHAR(10),\"Trimestre 3\",CHAR(10),GESTION_SEG_3_TRIM!J8),\" \")","v":"Trimestre 1\n\nTrimestre 2\n\nTrimestre 3\n"},{"$f":"IFERROR(_xlfn.CONCAT(\"Trimestre 1\",CHAR(10),GESTION_SEG_1_TRIM!K8,CHAR(10),\"Trimestre 2\",CHAR(10),GESTION_SEG_2_TRIM!K8,CHAR(10),\"Trimestre 3\",CHAR(10),GESTION_SEG_3_TRIM!K8),\" \")","v":"Trimestre 1\n\nTrimestre 2\n\nTrimestre 3\n"}]
[null,null,null,null,null,null,null,null,null,null,null,null,null,null,null,{"$f":"IFERROR(MAX(GESTION_SEG_1_TRIM!H9,GESTION_SEG_2_TRIM!H9,GESTION_SEG_3_TRIM!H9),\" \")","v":0},"",{"$f":"IFERROR(_xlfn.CONCAT(\"Trimestre 1\",CHAR(10),GESTION_SEG_1_TRIM!J9,CHAR(10),\"Trimestre 2\",CHAR(10),GESTION_SEG_2_TRIM!J9,CHAR(10),\"Trimestre 3\",CHAR(10),GESTION_SEG_3_TRIM!J9),\" \")","v":"Trimestre 1\n\nTrimestre 2\n\nTrimestre 3\n"},{"$f":"IFERROR(_xlfn.CONCAT(\"Trimestre 1\",CHAR(10),GESTION_SEG_1_TRIM!K9,CHAR(10),\"Trimestre 2\",CHAR(10),GESTION_SEG_2_TRIM!K9,CHAR(10),\"Trimestre 3\",CHAR(10),GESTION_SEG_3_TRIM!K9),\" \")","v":"Trimestre 1\n\nTrimestre 2\n\nTrimestre 3\n"}]
[null,null,null,null,null,null,null,null,null,null,null,null,null,null,null,{"$f":"IFERROR(MAX(GESTION_SEG_1_TRIM!H10,GESTION_SEG_2_TRIM!H10,GESTION_SEG_3_TRIM!H10),\" \")","v":0},"",{"$f":"IFERROR(_xlfn.CONCAT(\"Trimestre 1\",CHAR(10),GESTION_SEG_1_TRIM!J10,CHAR(10),\"Trimestre 2\",CHAR(10),GESTION_SEG_2_TRIM!J10,CHAR(10),\"Trimestre 3\",CHAR(10),GESTION_SEG_3_TRIM!J10),\" \")","v":"Trimestre 1\n\nTrimestre 2\n\nTrimestre 3\n"},{"$f":"IFERROR(_xlfn.CONCAT(\"Trimestre 1\",CHAR(10),GESTION_SEG_1_TRIM!K10,CHAR(10),\"Trimestre 2\",CHAR(10),GESTION_SEG_2_TRIM!K10,CHAR(10),\"Trimestre 3\",CHAR(10),GESTION_SEG_3_TRIM!K10),\" \")","v":"Trimestre 1\n\nTrimestre 2\n\nTrimestre 3\n"}]
[null,null,"2. Mejorar los tiempos de respuesta de la Rama Judicial y reducir el inventario de procesos, identificando los retos internos y promoviendo tanto acciones articuladas específicas para abordarlos como estrategias coordinadas para enfrentar las barreras que dependen de otras entidades.","2. Asegurar  el cumplimiento de los objetivos institucionales, la normatividad aplicable,  la mejora del SIGCMA y la satisfacción de los usuarios, revisando de  forma continua y sistemática la planificación de la gestión y fortaleciendo la administración de riesgos y sus controles",null,null,null,null,null,null,null,null,null,null,null,{"$f":"IFERROR(MAX(GESTION_SEG_1_TRIM!H11,GESTION_SEG_2_TRIM!H11,GESTION_SEG_3_TRIM!H11),\" \")","v":0},"",{"$f":"IFERROR(_xlfn.CONCAT(\"Trimestre 1\",CHAR(10),GESTION_SEG_1_TRIM!J11,CHAR(10),\"Trimestre 2\",CHAR(10),GESTION_SEG_2_TRIM!J11,CHAR(10),\"Trimestre 3\",CHAR(10),GESTION_SEG_3_TRIM!J11),\" \")","v":"Trimestre 1\n\nTrimestre 2\n\nTrimestre 3\n"},{"$f":"IFERROR(_xlfn.CONCAT(\"Trimestre 1\",CHAR(10),GESTION_SEG_1_TRIM!K11,CHAR(10),\"Trimestre 2\",CHAR(10),GESTION_SEG_2_TRIM!K11,CHAR(10),\"Trimestre 3\",CHAR(10),GESTION_SEG_3_TRIM!K11),\" \")","v":"Trimestre 1\n\nTrimestre 2\n\nTrimestre 3\n"}]
[null,null,null,null,null,null,null,null,null,null,null,null,null,null,null,{"$f":"IFERROR(MAX(GESTION_SEG_1_TRIM!H12,GESTION_SEG_2_TRIM!H12,GESTION_SEG_3_TRIM!H12),\" \")","v":0},"",{"$f":"IFERROR(_xlfn.CONCAT(\"Trimestre 1\",CHAR(10),GESTION_SEG_1_TRIM!J12,CHAR(10),\"Trimestre 2\",CHAR(10),GESTION_SEG_2_TRIM!J12,CHAR(10),\"Trimestre 3\",CHAR(10),GESTION_SEG_3_TRIM!J12),\" \")","v":"Trimestre 1\n\nTrimestre 2\n\nTrimestre 3\n"},{"$f":"IFERROR(_xlfn.CONCAT(\"Trimestre 1\",CHAR(10),GESTION_SEG_1_TRIM!K12,CHAR(10),\"Trimestre 2\",CHAR(10),GESTION_SEG_2_TRIM!K12,CHAR(10),\"Trimestre 3\",CHAR(10),GESTION_SEG_3_TRIM!K12),\" \")","v":"Trimestre 1\n\nTrimestre 2\n\nTrimestre 3\n"}]
[null,null,null,null,null,null,null,null,null,null,null,null,null,null,null,{"$f":"IFERROR(MAX(GESTION_SEG_1_TRIM!H13,GESTION_SEG_2_TRIM!H13,GESTION_SEG_3_TRIM!H13),\" \")","v":0},"",{"$f":"IFERROR(_xlfn.CONCAT(\"Trimestre 1\",CHAR(10),GESTION_SEG_1_TRIM!J13,CHAR(10),\"Trimestre 2\",CHAR(10),GESTION_SEG_2_TRIM!J13,CHAR(10),\"Trimestre 3\",CHAR(10),GESTION_SEG_3_TRIM!J13),\" \")","v":"Trimestre 1\n\nTrimestre 2\n\nTrimestre 3\n"},{"$f":"IFERROR(_xlfn.CONCAT(\"Trimestre 1\",CHAR(10),GESTION_SEG_1_TRIM!K13,CHAR(10),\"Trimestre 2\",CHAR(10),GESTION_SEG_2_TRIM!K13,CHAR(10),\"Trimestre 3\",CHAR(10),GESTION_SEG_3_TRIM!K13),\" \")","v":"Trimestre 1\n\nTrimestre 2\n\nTrimestre 3\n"}]
[null,null,null,null,null,null,null,null,null,null,null,null,null,null,null,{"$f":"IFERROR(MAX(GESTION_SEG_1_TRIM!H14,GESTION_SEG_2_TRIM!H14,GESTION_SEG_3_TRIM!H14),\" \")","v":0},"",{"$f":"IFERROR(_xlfn.CONCAT(\"Trimestre 1\",CHAR(10),GESTION_SEG_1_TRIM!J14,CHAR(10),\"Trimestre 2\",CHAR(10),GESTION_SEG_2_TRIM!J14,CHAR(10),\"Trimestre 3\",CHAR(10),GESTION_SEG_3_TRIM!J14),\" \")","v":"Trimestre 1\n\nTrimestre 2\n\nTrimestre 3\n"},{"$f":"IFERROR(_xlfn.CONCAT(\"Trimestre 1\",CHAR(10),GESTION_SEG_1_TRIM!K14,CHAR(10),\"Trimestre 2\",CHAR(10),GESTION_SEG_2_TRIM!K14,CHAR(10),\"Trimestre 3\",CHAR(10),GESTION_SEG_3_TRIM!K14),\" \")","v":"Trimestre 1\n\nTrimestre 2\n\nTrimestre 3\n"}]
[null,null,null,null,null,null,null,null,null,null,null,null,null,null,null,{"$f":"IFERROR(MAX(GESTION_SEG_1_TRIM!H15,GESTION_SEG_2_TRIM!H15,GESTION_SEG_3_TRIM!H15),\" \")","v":0},"",{"$f":"IFERROR(_xlfn.CONCAT(\"Trimestre 1\",CHAR(10),GESTION_SEG_1_TRIM!J15,CHAR(10),\"Trimestre 2\",CHAR(10),GESTION_SEG_2_TRIM!J15,CHAR(10),\"Trimestre 3\",CHAR(10),GESTION_SEG_3_TRIM!J15),\" \")","v":"Trimestre 1\n\nTrimestre 2\n\nTrimestre 3\n"},{"$f":"IFERROR(_xlfn.CONCAT(\"Trimestre 1\",CHAR(10),GESTION_SEG_1_TRIM!K15,CHAR(10),\"Trimestre 2\",CHAR(10),GESTION_SEG_2_TRIM!K15,CHAR(10),\"Trimestre 3\",CHAR(10),GESTION_SEG_3_TRIM!K15),\" \")","v":"Trimestre 1\n\nTrimestre 2\n\nTrimestre 3\n"}]
[null,null,"3. Coadyuvar en la garantía de la idoneidad en el ejercicio de la profesión jurídica de acuerdo con lo establecido en la Ley 1905 de 2018","2. Asegurar  el cumplimiento de los objetivos institucionales, la normatividad aplicable,  la mejora del SIGCMA y la satisfacción de los usuarios, revisando de  forma continua y sistemática la planificación de la gestión y fortaleciendo la administración de riesgos y sus controles",null,null,null,null,null,null,null,null,null,null,null,{"$f":"IFERROR(MAX(GESTION_SEG_1_TRIM!H16,GESTION_SEG_2_TRIM!H16,GESTION_SEG_3_TRIM!H16),\" \")","v":0},"",{"$f":"IFERROR(_xlfn.CONCAT(\"Trimestre 1\",CHAR(10),GESTION_SEG_1_TRIM!J16,CHAR(10),\"Trimestre 2\",CHAR(10),GESTION_SEG_2_TRIM!J16,CHAR(10),\"Trimestre 3\",CHAR(10),GESTION_SEG_3_TRIM!J16),\" \")","v":"Trimestre 1\n\nTrimestre 2\n\nTrimestre 3\n"},{"$f":"IFERROR(_xlfn.CONCAT(\"Trimestre 1\",CHAR(10),GESTION_SEG_1_TRIM!K16,CHAR(10),\"Trimestre 2\",CHAR(10),GESTION_SEG_2_TRIM!K16,CHAR(10),\"Trimestre 3\",CHAR(10),GESTION_SEG_3_TRIM!K16),\" \")","v":"Trimestre 1\n\nTrimestre 2\n\nTrimestre 3\n"}]
[null,null,null,null,null,null,null,null,null,null,null,null,null,null,null,{"$f":"IFERROR(MAX(GESTION_SEG_1_TRIM!H17,GESTION_SEG_2_TRIM!H17,GESTION_SEG_3_TRIM!H17),\" \")","v":0},"",{"$f":"IFERROR(_xlfn.CONCAT(\"Trimestre 1\",CHAR(10),GESTION_SEG_1_TRIM!J17,CHAR(10),\"Trimestre 2\",CHAR(10),GESTION_SEG_2_TRIM!J17,CHAR(10),\"Trimestre 3\",CHAR(10),GESTION_SEG_3_TRIM!J17),\" \")","v":"Trimestre 1\n\nTrimestre 2\n\nTrimestre 3\n"},{"$f":"IFERROR(_xlfn.CONCAT(\"Trimestre 1\",CHAR(10),GESTION_SEG_1_TRIM!K17,CHAR(10),\"Trimestre 2\",CHAR(10),GESTION_SEG_2_TRIM!K17,CHAR(10),\"Trimestre 3\",CHAR(10),GESTION_SEG_3_TRIM!K17),\" \")","v":"Trimestre 1\n\nTrimestre 2\n\nTrimestre 3\n"}]
[null,null,null,null,null,null,null,null,null,null,null,null,null,null,null,{"$f":"IFERROR(MAX(GESTION_SEG_1_TRIM!H18,GESTION_SEG_2_TRIM!H18,GESTION_SEG_3_TRIM!H18),\" \")","v":0},"",{"$f":"IFERROR(_xlfn.CONCAT(\"Trimestre 1\",CHAR(10),GESTION_SEG_1_TRIM!J18,CHAR(10),\"Trimestre 2\",CHAR(10),GESTION_SEG_2_TRIM!J18,CHAR(10),\"Trimestre 3\",CHAR(10),GESTION_SEG_3_TRIM!J18),\" \")","v":"Trimestre 1\n\nTrimestre 2\n\nTrimestre 3\n"},{"$f":"IFERROR(_xlfn.CONCAT(\"Trimestre 1\",CHAR(10),GESTION_SEG_1_TRIM!K18,CHAR(10),\"Trimestre 2\",CHAR(10),GESTION_SEG_2_TRIM!K18,CHAR(10),\"Trimestre 3\",CHAR(10),GESTION_SEG_3_TRIM!K18),\" \")","v":"Trimestre 1\n\nTrimestre 2\n\nTrimestre 3\n"}]
[null,null,null,null,null,null,null,null,null,null,null,null,null,null,null,{"$f":"IFERROR(MAX(GESTION_SEG_1_TRIM!H19,GESTION_SEG_2_TRIM!H19,GESTION_SEG_3_TRIM!H19),\" \")","v":0},"",{"$f":"IFERROR(_xlfn.CONCAT(\"Trimestre 1\",CHAR(10),GESTION_SEG_1_TRIM!J19,CHAR(10),\"Trimestre 2\",CHAR(10),GESTION_SEG_2_TRIM!J19,CHAR(10),\"Trimestre 3\",CHAR(10),GESTION_SEG_3_TRIM!J19),\" \")","v":"Trimestre 1\n\nTrimestre 2\n\nTrimestre 3\n"},{"$f":"IFERROR(_xlfn.CONCAT(\"Trimestre 1\",CHAR(10),GESTION_SEG_1_TRIM!K19,CHAR(10),\"Trimestre 2\",CHAR(10),GESTION_SEG_2_TRIM!K19,CHAR(10),\"Trimestre 3\",CHAR(10),GESTION_SEG_3_TRIM!K19),\" \")","v":"Trimestre 1\n\nTrimestre 2\n\nTrimestre 3\n"}]
[null,null,null,null,null,null,null,null,null,null,null,null,null,null,null,{"$f":"IFERROR(MAX(GESTION_SEG_1_TRIM!H20,GESTION_SEG_2_TRIM!H20,GESTION_SEG_3_TRIM!H20),\" \")","v":0},"",{"$f":"IFERROR(_xlfn.CONCAT(\"Trimestre 1\",CHAR(10),GESTION_SEG_1_TRIM!J20,CHAR(10),\"Trimestre 2\",CHAR(10),GESTION_SEG_2_TRIM!J20,CHAR(10),\"Trimestre 3\",CHAR(10),GESTION_SEG_3_TRIM!J20),\" \")","v":"Trimestre 1\n\nTrimestre 2\n\nTrimestre 3\n"},{"$f":"IFERROR(_xlfn.CONCAT(\"Trimestre 1\",CHAR(10),GESTION_SEG_1_TRIM!K20,CHAR(10),\"Trimestre 2\",CHAR(10),GESTION_SEG_2_TRIM!K20,CHAR(10),\"Trimestre 3\",CHAR(10),GESTION_SEG_3_TRIM!K20),\" \")","v":"Trimestre 1\n\nTrimestre 2\n\nTrimestre 3\n"}]
[null,null,"4. Avanzar en la disposición de una infraestructura óptima para el acceso a la justicia en la Rama Judicial de modo que se fortalezca la presencia territorial, teniendo en cuenta las posibilidades que ofrece la transformación digital y las necesidades que se derivan de ella, y considerando tanto las necesidades de los usuarios como las de los servidores judiciales.","4. Hacer un uso racional de los recursos naturales aplicando los principios y fases de la Economía Circular, para prevenir, mitigar y controlar los impactos ambientales",null,null,null,null,null,null,null,null,null,null,null,{"$f":"IFERROR(MAX(GESTION_SEG_1_TRIM!H21,GESTION_SEG_2_TRIM!H21,GESTION_SEG_3_TRIM!H21),\" \")","v":0},"",{"$f":"IFERROR(_xlfn.CONCAT(\"Trimestre 1\",CHAR(10),GESTION_SEG_1_TRIM!J21,CHAR(10),\"Trimestre 2\",CHAR(10),GESTION_SEG_2_TRIM!J21,CHAR(10),\"Trimestre 3\",CHAR(10),GESTION_SEG_3_TRIM!J21),\" \")","v":"Trimestre 1\n\nTrimestre 2\n\nTrimestre 3\n"},{"$f":"IFERROR(_xlfn.CONCAT(\"Trimestre 1\",CHAR(10),GESTION_SEG_1_TRIM!K21,CHAR(10),\"Trimestre 2\",CHAR(10),GESTION_SEG_2_TRIM!K21,CHAR(10),\"Trimestre 3\",CHAR(10),GESTION_SEG_3_TRIM!K21),\" \")","v":"Trimestre 1\n\nTrimestre 2\n\nTrimestre 3\n"}]
[null,null,null,null,null,null,null,null,null,null,null,null,null,null,null,{"$f":"IFERROR(MAX(GESTION_SEG_1_TRIM!H22,GESTION_SEG_2_TRIM!H22,GESTION_SEG_3_TRIM!H22),\" \")","v":0},"",{"$f":"IFERROR(_xlfn.CONCAT(\"Trimestre 1\",CHAR(10),GESTION_SEG_1_TRIM!J22,CHAR(10),\"Trimestre 2\",CHAR(10),GESTION_SEG_2_TRIM!J22,CHAR(10),\"Trimestre 3\",CHAR(10),GESTION_SEG_3_TRIM!J22),\" \")","v":"Trimestre 1\n\nTrimestre 2\n\nTrimestre 3\n"},{"$f":"IFERROR(_xlfn.CONCAT(\"Trimestre 1\",CHAR(10),GESTION_SEG_1_TRIM!K22,CHAR(10),\"Trimestre 2\",CHAR(10),GESTION_SEG_2_TRIM!K22,CHAR(10),\"Trimestre 3\",CHAR(10),GESTION_SEG_3_TRIM!K22),\" \")","v":"Trimestre 1\n\nTrimestre 2\n\nTrimestre 3\n"}]
[null,null,null,null,null,null,null,null,null,null,null,null,null,null,null,{"$f":"IFERROR(MAX(GESTION_SEG_1_TRIM!H23,GESTION_SEG_2_TRIM!H23,GESTION_SEG_3_TRIM!H23),\" \")","v":0},"",{"$f":"IFERROR(_xlfn.CONCAT(\"Trimestre 1\",CHAR(10),GESTION_SEG_1_TRIM!J23,CHAR(10),\"Trimestre 2\",CHAR(10),GESTION_SEG_2_TRIM!J23,CHAR(10),\"Trimestre 3\",CHAR(10),GESTION_SEG_3_TRIM!J23),\" \")","v":"Trimestre 1\n\nTrimestre 2\n\nTrimestre 3\n"},{"$f":"IFERROR(_xlfn.CONCAT(\"Trimestre 1\",CHAR(10),GESTION_SEG_1_TRIM!K23,CHAR(10),\"Trimestre 2\",CHAR(10),GESTION_SEG_2_TRIM!K23,CHAR(10),\"Trimestre 3\",CHAR(10),GESTION_SEG_3_TRIM!K23),\" \")","v":"Trimestre 1\n\nTrimestre 2\n\nTrimestre 3\n"}]
[null,null,null,null,null,null,null,null,null,null,null,null,null,null,null,{"$f":"IFERROR(MAX(GESTION_SEG_1_TRIM!H24,GESTION_SEG_2_TRIM!H24,GESTION_SEG_3_TRIM!H24),\" \")","v":0},"",{"$f":"IFERROR(_xlfn.CONCAT(\"Trimestre 1\",CHAR(10),GESTION_SEG_1_TRIM!J24,CHAR(10),\"Trimestre 2\",CHAR(10),GESTION_SEG_2_TRIM!J24,CHAR(10),\"Trimestre 3\",CHAR(10),GESTION_SEG_3_TRIM!J24),\" \")","v":"Trimestre 1\n\nTrimestre 2\n\nTrimestre 3\n"},{"$f":"IFERROR(_xlfn.CONCAT(\"Trimestre 1\",CHAR(10),GESTION_SEG_1_TRIM!K24,CHAR(10),\"Trimestre 2\",CHAR(10),GESTION_SEG_2_TRIM!K24,CHAR(10),\"Trimestre 3\",CHAR(10),GESTION_SEG_3_TRIM!K24),\" \")","v":"Trimestre 1\n\nTrimestre 2\n\nTrimestre 3\n"}]
[null,null,null,null,null,null,null,null,null,null,null,null,null,null,null,{"$f":"IFERROR(MAX(GESTION_SEG_1_TRIM!H25,GESTION_SEG_2_TRIM!H25,GESTION_SEG_3_TRIM!H25),\" \")","v":0},"",{"$f":"IFERROR(_xlfn.CONCAT(\"Trimestre 1\",CHAR(10),GESTION_SEG_1_TRIM!J25,CHAR(10),\"Trimestre 2\",CHAR(10),GESTION_SEG_2_TRIM!J25,CHAR(10),\"Trimestre 3\",CHAR(10),GESTION_SEG_3_TRIM!J25),\" \")","v":"Trimestre 1\n\nTrimestre 2\n\nTrimestre 3\n"},{"$f":"IFERROR(_xlfn.CONCAT(\"Trimestre 1\",CHAR(10),GESTION_SEG_1_TRIM!K25,CHAR(10),\"Trimestre 2\",CHAR(10),GESTION_SEG_2_TRIM!K25,CHAR(10),\"Trimestre 3\",CHAR(10),GESTION_SEG_3_TRIM!K25),\" \")","v":"Trimestre 1\n\nTrimestre 2\n\nTrimestre 3\n"}]
[null,null,"5. Impulsar el uso de mecanismos alternativos para la solución de conflictos y la ampliación de la justicia restaurativa y terapéutica y el robustecimiento de las alternativas al encarcelamiento","2. Asegurar  el cumplimiento de los objetivos institucionales, la normatividad aplicable,  la mejora del SIGCMA y la satisfacción de los usuarios, revisando de  forma continua y sistemática la planificación de la gestión y fortaleciendo la administración de riesgos y sus controles",null,null,null,null,null,null,null,null,null,null,null,{"$f":"IFERROR(MAX(GESTION_SEG_1_TRIM!H26,GESTION_SEG_2_TRIM!H26,GESTION_SEG_3_TRIM!H26),\" \")","v":0},"",{"$f":"IFERROR(_xlfn.CONCAT(\"Trimestre 1\",CHAR(10),GESTION_SEG_1_TRIM!J26,CHAR(10),\"Trimestre 2\",CHAR(10),GESTION_SEG_2_TRIM!J26,CHAR(10),\"Trimestre 3\",CHAR(10),GESTION_SEG_3_TRIM!J26),\" \")","v":"Trimestre 1\n\nTrimestre 2\n\nTrimestre 3\n"},{"$f":"IFERROR(_xlfn.CONCAT(\"Trimestre 1\",CHAR(10),GESTION_SEG_1_TRIM!K26,CHAR(10),\"Trimestre 2\",CHAR(10),GESTION_SEG_2_TRIM!K26,CHAR(10),\"Trimestre 3\",CHAR(10),GESTION_SEG_3_TRIM!K26),\" \")","v":"Trimestre 1\n\nTrimestre 2\n\nTrimestre 3\n"}]
[null,null,null,null,null,null,null,null,null,null,null,null,null,null,null,{"$f":"IFERROR(MAX(GESTION_SEG_1_TRIM!H27,GESTION_SEG_2_TRIM!H27,GESTION_SEG_3_TRIM!H27),\" \")","v":0},"",{"$f":"IFERROR(_xlfn.CONCAT(\"Trimestre 1\",CHAR(10),GESTION_SEG_1_TRIM!J27,CHAR(10),\"Trimestre 2\",CHAR(10),GESTION_SEG_2_TRIM!J27,CHAR(10),\"Trimestre 3\",CHAR(10),GESTION_SEG_3_TRIM!J27),\" \")","v":"Trimestre 1\n\nTrimestre 2\n\nTrimestre 3\n"},{"$f":"IFERROR(_xlfn.CONCAT(\"Trimestre 1\",CHAR(10),GESTION_SEG_1_TRIM!K27,CHAR(10),\"Trimestre 2\",CHAR(10),GESTION_SEG_2_TRIM!K27,CHAR(10),\"Trimestre 3\",CHAR(10),GESTION_SEG_3_TRIM!K27),\" \")","v":"Trimestre 1\n\nTrimestre 2\n\nTrimestre 3\n"}]
[null,null,null,null,null,null,null,null,null,null,null,null,null,null,null,{"$f":"IFERROR(MAX(GESTION_SEG_1_TRIM!H28,GESTION_SEG_2_TRIM!H28,GESTION_SEG_3_TRIM!H28),\" \")","v":0},"",{"$f":"IFERROR(_xlfn.CONCAT(\"Trimestre 1\",CHAR(10),GESTION_SEG_1_TRIM!J28,CHAR(10),\"Trimestre 2\",CHAR(10),GESTION_SEG_2_TRIM!J28,CHAR(10),\"Trimestre 3\",CHAR(10),GESTION_SEG_3_TRIM!J28),\" \")","v":"Trimestre 1\n\nTrimestre 2\n\nTrimestre 3\n"},{"$f":"IFERROR(_xlfn.CONCAT(\"Trimestre 1\",CHAR(10),GESTION_SEG_1_TRIM!K28,CHAR(10),\"Trimestre 2\",CHAR(10),GESTION_SEG_2_TRIM!K28,CHAR(10),\"Trimestre 3\",CHAR(10),GESTION_SEG_3_TRIM!K28),\" \")","v":"Trimestre 1\n\nTrimestre 2\n\nTrimestre 3\n"}]
[null,null,null,null,null,null,null,null,null,null,null,null,null,null,null,{"$f":"IFERROR(MAX(GESTION_SEG_1_TRIM!H29,GESTION_SEG_2_TRIM!H29,GESTION_SEG_3_TRIM!H29),\" \")","v":0},"",{"$f":"IFERROR(_xlfn.CONCAT(\"Trimestre 1\",CHAR(10),GESTION_SEG_1_TRIM!J29,CHAR(10),\"Trimestre 2\",CHAR(10),GESTION_SEG_2_TRIM!J29,CHAR(10),\"Trimestre 3\",CHAR(10),GESTION_SEG_3_TRIM!J29),\" \")","v":"Trimestre 1\n\nTrimestre 2\n\nTrimestre 3\n"},{"$f":"IFERROR(_xlfn.CONCAT(\"Trimestre 1\",CHAR(10),GESTION_SEG_1_TRIM!K29,CHAR(10),\"Trimestre 2\",CHAR(10),GESTION_SEG_2_TRIM!K29,CHAR(10),\"Trimestre 3\",CHAR(10),GESTION_SEG_3_TRIM!K29),\" \")","v":"Trimestre 1\n\nTrimestre 2\n\nTrimestre 3\n"}]
[null,null,null,null,null,null,null,null,null,null,null,null,null,null,null,{"$f":"IFERROR(MAX(GESTION_SEG_1_TRIM!H30,GESTION_SEG_2_TRIM!H30,GESTION_SEG_3_TRIM!H30),\" \")","v":0},"",{"$f":"IFERROR(_xlfn.CONCAT(\"Trimestre 1\",CHAR(10),GESTION_SEG_1_TRIM!J30,CHAR(10),\"Trimestre 2\",CHAR(10),GESTION_SEG_2_TRIM!J30,CHAR(10),\"Trimestre 3\",CHAR(10),GESTION_SEG_3_TRIM!J30),\" \")","v":"Trimestre 1\n\nTrimestre 2\n\nTrimestre 3\n"},{"$f":"IFERROR(_xlfn.CONCAT(\"Trimestre 1\",CHAR(10),GESTION_SEG_1_TRIM!K30,CHAR(10),\"Trimestre 2\",CHAR(10),GESTION_SEG_2_TRIM!K30,CHAR(10),\"Trimestre 3\",CHAR(10),GESTION_SEG_3_TRIM!K30),\" \")","v":"Trimestre 1\n\nTrimestre 2\n\nTrimestre 3\n"}]
["2. Servicios digitales y de tecnología, innovación y análisis de la información.","Servicios digitales y de tecnología, innovación y análisis de la información: Consolidar una justicia integrada y soportada en servicios digitales y de tecnología, innovación y análisis de la información, con una cultura digital apropiada, segura y sensible a las realidades del territorio nacional. ","1. Ampliar el acceso a la justicia a través de la consolidación del uso de los servicios digitales que conforman el sistema único integrado de gestión judicial en todos los despachos judiciales y dependencias de apoyo y, específicamente, incluyendo el despliegue e implementación del Expediente Judicial Electrónico en todas las jurisdicciones y especialidades.","6. Proteger, preservar y administrar los activos de información  implementando acciones  para gestionar de forma adecuada los incidentes, proteger los datos personales y adoptar mecanismos  de ciberseguridad y aseguramiento de la  continuidad del negocio.","Apoyo","Juris - Gestión de Servicios Judiciales","Seccional","Registrar las actuaciones en el aplicativo Justicia XXI.","Entregable",null,null,"Lider de áreas","Reportes de estadisticas trimestrales realizada por las áreas establecidas. ","2023-01-01","2023-12-31",{"$f":"IFERROR(MAX(GESTION_SEG_1_TRIM!H31,GESTION_SEG_2_TRIM!H31,GESTION_SEG_3_TRIM!H31),\" \")","v":0},"",{"$f":"IFERROR(_xlfn.CONCAT(\"Trimestre 1\",CHAR(10),GESTION_SEG_1_TRIM!J31,CHAR(10),\"Trimestre 2\",CHAR(10),GESTION_SEG_2_TRIM!J31,CHAR(10),\"Trimestre 3\",CHAR(10),GESTION_SEG_3_TRIM!J31),\" \")","v":"Trimestre 1\n\nTrimestre 2\n\nTrimestre 3\n"},{"$f":"IFERROR(_xlfn.CONCAT(\"Trimestre 1\",CHAR(10),GESTION_SEG_1_TRIM!K31,CHAR(10),\"Trimestre 2\",CHAR(10),GESTION_SEG_2_TRIM!K31,CHAR(10),\"Trimestre 3\",CHAR(10),GESTION_SEG_3_TRIM!K31),\" \")","v":" "}]
[null,null,null,null,"Apoyo","Juris - Gestión de Servicios Judiciales","Seccional","Registrar la información de los procesos judiciales digitalizados y electronicos en las plataformas One Drive y BestDoc.","Entregable",null,null,"Lider de Area y empleados Judiciales asignados","Reportes de estadisticas trimestrales realizada por las áreas establecidas. ","2023-01-01","2023-12-31",{"$f":"IFERROR(MAX(GESTION_SEG_1_TRIM!H32,GESTION_SEG_2_TRIM!H32,GESTION_SEG_3_TRIM!H32),\" \")","v":0},"",{"$f":"IFERROR(_xlfn.CONCAT(\"Trimestre 1\",CHAR(10),GESTION_SEG_1_TRIM!J32,CHAR(10),\"Trimestre 2\",CHAR(10),GESTION_SEG_2_TRIM!J32,CHAR(10),\"Trimestre 3\",CHAR(10),GESTION_SEG_3_TRIM!J32),\" \")","v":" "},{"$f":"IFERROR(_xlfn.CONCAT(\"Trimestre 1\",CHAR(10),GESTION_SEG_1_TRIM!K32,CHAR(10),\"Trimestre 2\",CHAR(10),GESTION_SEG_2_TRIM!K32,CHAR(10),\"Trimestre 3\",CHAR(10),GESTION_SEG_3_TRIM!K32),\" \")","v":" "}]
[null,null,null,null,"Apoyo","Juris - Gestión de Servicios Judiciales","Seccional","Migrar la información de los procesos judiciales digitalizados y electronicos en las plataformas One Drive y BestDoc.","Entregable",null,null,"Lider de áreas","Reportes de estadisticas trimestrales realizada por las áreas establecidas. ","2023-01-01","2023-12-31",{"$f":"IFERROR(MAX(GESTION_SEG_1_TRIM!H33,GESTION_SEG_2_TRIM!H33,GESTION_SEG_3_TRIM!H33),\" \")","v":0},"",{"$f":"IFERROR(_xlfn.CONCAT(\"Trimestre 1\",CHAR(10),GESTION_SEG_1_TRIM!J33,CHAR(10),\"Trimestre 2\",CHAR(10),GESTION_SEG_2_TRIM!J33,CHAR(10),\"Trimestre 3\",CHAR(10),GESTION_SEG_3_TRIM!J33),\" \")","v":"Trimestre 1\n\nTrimestre 2\n\nTrimestre 3\n"},{"$f":"IFERROR(_xlfn.CONCAT(\"Trimestre 1\",CHAR(10),GESTION_SEG_1_TRIM!K33,CHAR(10),\"Trimestre 2\",CHAR(10),GESTION_SEG_2_TRIM!K33,CHAR(10),\"Trimestre 3\",CHAR(10),GESTION_SEG_3_TRIM!K33),\" \")","v":" "}]
[null,null,null,null,"Apoyo","Juris - Gestión de Servicios Judiciales","Seccional","Implementación SIRIS con el módulo de Administración Expedientes ","Entregable",null,null,"Lider de áreas","Seguimiento a la Plataforma y entrega de estadisticas ","2023-01-01","2023-12-31",{"$f":"IFERROR(MAX(GESTION_SEG_1_TRIM!H34,GESTION_SEG_2_TRIM!H34,GESTION_SEG_3_TRIM!H34),\" \")","v":0},"",{"$f":"IFERROR(_xlfn.CONCAT(\"Trimestre 1\",CHAR(10),GESTION_SEG_1_TRIM!J34,CHAR(10),\"Trimestre 2\",CHAR(10),GESTION_SEG_2_TRIM!J34,CHAR(10),\"Trimestre 3\",CHAR(10),GESTION_SEG_3_TRIM!J34),\" \")","v":"Trimestre 1\n\nTrimestre 2\n\nTrimestre 3\n"},{"$f":"IFERROR(_xlfn.CONCAT(\"Trimestre 1\",CHAR(10),GESTION_SEG_1_TRIM!K34,CHAR(10),\"Trimestre 2\",CHAR(10),GESTION_SEG_2_TRIM!K34,CHAR(10),\"Trimestre 3\",CHAR(10),GESTION_SEG_3_TRIM!K34),\" \")","v":"Trimestre 1\nSe ha ingresado los datos relacionados de los Procesos físicos \nTrimestre 2\nSe ha ingresado los datos relacionados de los Procesos físicos \nTrimestre 3\nSe ha ingresado los datos relacionados de los Procesos físicos "}]
[null,null,null,null,"Apoyo","Juris - Gestión de Servicios Judiciales","Seccional","Recepción de la información por medio del correo principal del Centro de Sevicios","Entregable",null,null,"Lider de area","Seguimiento a la Plataforma y entrega de estadisticas ","2023-01-01","2023-12-31",{"$f":"IFERROR(MAX(GESTION_SEG_1_TRIM!H35,GESTION_SEG_2_TRIM!H35,GESTION_SEG_3_TRIM!H35),\" \")","v":0},"",{"$f":"IFERROR(_xlfn.CONCAT(\"Trimestre 1\",CHAR(10),GESTION_SEG_1_TRIM!J35,CHAR(10),\"Trimestre 2\",CHAR(10),GESTION_SEG_2_TRIM!J35,CHAR(10),\"Trimestre 3\",CHAR(10),GESTION_SEG_3_TRIM!J35),\" \")","v":"Trimestre 1\n\nTrimestre 2\n\nTrimestre 3\n"},{"$f":"IFERROR(_xlfn.CONCAT(\"Trimestre 1\",CHAR(10),GESTION_SEG_1_TRIM!K35,CHAR(10),\"Trimestre 2\",CHAR(10),GESTION_SEG_2_TRIM!K35,CHAR(10),\"Trimestre 3\",CHAR(10),GESTION_SEG_3_TRIM!K35),\" \")","v":" "}]
[null,null,"2. Integrar y hacer compatibles todos los aplicativos de transición con SIUGJ, para que la migración de los expedientes judiciales a dicha plataforma sea real y no suponga afectaciones en la prestación del servicio de justicia.",null,null,null,null,null,null,null,null,null,null,null,null,{"$f":"IFERROR(MAX(GESTION_SEG_1_TRIM!H36,GESTION_SEG_2_TRIM!H36,GESTION_SEG_3_TRIM!H36),\" \")","v":0},"",{"$f":"IFERROR(_xlfn.CONCAT(\"Trimestre 1\",CHAR(10),GESTION_SEG_1_TRIM!J36,CHAR(10),\"Trimestre 2\",CHAR(10),GESTION_SEG_2_TRIM!J36,CHAR(10),\"Trimestre 3\",CHAR(10),GESTION_SEG_3_TRIM!J36),\" \")","v":"Trimestre 1\n\nTrimestre 2\n\nTrimestre 3\n"},{"$f":"IFERROR(_xlfn.CONCAT(\"Trimestre 1\",CHAR(10),GESTION_SEG_1_TRIM!K36,CHAR(10),\"Trimestre 2\",CHAR(10),GESTION_SEG_2_TRIM!K36,CHAR(10),\"Trimestre 3\",CHAR(10),GESTION_SEG_3_TRIM!K36),\" \")","v":"Trimestre 1\n\nTrimestre 2\n\nTrimestre 3\n"}]
[null,null,null,null,null,null,null,null,null,null,null,null,null,null,null,{"$f":"IFERROR(MAX(GESTION_SEG_1_TRIM!H37,GESTION_SEG_2_TRIM!H37,GESTION_SEG_3_TRIM!H37),\" \")","v":0},"",{"$f":"IFERROR(_xlfn.CONCAT(\"Trimestre 1\",CHAR(10),GESTION_SEG_1_TRIM!J37,CHAR(10),\"Trimestre 2\",CHAR(10),GESTION_SEG_2_TRIM!J37,CHAR(10),\"Trimestre 3\",CHAR(10),GESTION_SEG_3_TRIM!J37),\" \")","v":"Trimestre 1\n\nTrimestre 2\n\nTrimestre 3\n"},{"$f":"IFERROR(_xlfn.CONCAT(\"Trimestre 1\",CHAR(10),GESTION_SEG_1_TRIM!K37,CHAR(10),\"Trimestre 2\",CHAR(10),GESTION_SEG_2_TRIM!K37,CHAR(10),\"Trimestre 3\",CHAR(10),GESTION_SEG_3_TRIM!K37),\" \")","v":"Trimestre 1\n\nTrimestre 2\n\nTrimestre 3\n"}]
[null,null,null,null,null,null,null,null,null,null,null,null,null,null,null,{"$f":"IFERROR(MAX(GESTION_SEG_1_TRIM!H38,GESTION_SEG_2_TRIM!H38,GESTION_SEG_3_TRIM!H38),\" \")","v":0},{"$f":"IFERROR(P38/J38,\"\")","v":""},{"$f":"IFERROR(_xlfn.CONCAT(\"Trimestre 1\",CHAR(10),GESTION_SEG_1_TRIM!J38,CHAR(10),\"Trimestre 2\",CHAR(10),GESTION_SEG_2_TRIM!J38,CHAR(10),\"Trimestre 3\",CHAR(10),GESTION_SEG_3_TRIM!J38),\" \")","v":"Trimestre 1\n\nTrimestre 2\n\nTrimestre 3\n"},{"$f":"IFERROR(_xlfn.CONCAT(\"Trimestre 1\",CHAR(10),GESTION_SEG_1_TRIM!K38,CHAR(10),\"Trimestre 2\",CHAR(10),GESTION_SEG_2_TRIM!K38,CHAR(10),\"Trimestre 3\",CHAR(10),GESTION_SEG_3_TRIM!K38),\" \")","v":"Trimestre 1\n\nTrimestre 2\n\nTrimestre 3\n"}]
[null,null,null,null,null,null,null,null,null,null,null,null,null,null,null,{"$f":"IFERROR(MAX(GESTION_SEG_1_TRIM!H39,GESTION_SEG_2_TRIM!H39,GESTION_SEG_3_TRIM!H39),\" \")","v":0},"",{"$f":"IFERROR(_xlfn.CONCAT(\"Trimestre 1\",CHAR(10),GESTION_SEG_1_TRIM!J39,CHAR(10),\"Trimestre 2\",CHAR(10),GESTION_SEG_2_TRIM!J39,CHAR(10),\"Trimestre 3\",CHAR(10),GESTION_SEG_3_TRIM!J39),\" \")","v":"Trimestre 1\n\nTrimestre 2\n\nTrimestre 3\n"},{"$f":"IFERROR(_xlfn.CONCAT(\"Trimestre 1\",CHAR(10),GESTION_SEG_1_TRIM!K39,CHAR(10),\"Trimestre 2\",CHAR(10),GESTION_SEG_2_TRIM!K39,CHAR(10),\"Trimestre 3\",CHAR(10),GESTION_SEG_3_TRIM!K39),\" \")","v":"Trimestre 1\n\nTrimestre 2\n\nTrimestre 3\n"}]
[null,null,null,null,null,null,null,null,null,null,null,null,null,null,null,{"$f":"IFERROR(MAX(GESTION_SEG_1_TRIM!H40,GESTION_SEG_2_TRIM!H40,GESTION_SEG_3_TRIM!H40),\" \")","v":0},"",{"$f":"IFERROR(_xlfn.CONCAT(\"Trimestre 1\",CHAR(10),GESTION_SEG_1_TRIM!J40,CHAR(10),\"Trimestre 2\",CHAR(10),GESTION_SEG_2_TRIM!J40,CHAR(10),\"Trimestre 3\",CHAR(10),GESTION_SEG_3_TRIM!J40),\" \")","v":"Trimestre 1\n\nTrimestre 2\n\nTrimestre 3\n"},{"$f":"IFERROR(_xlfn.CONCAT(\"Trimestre 1\",CHAR(10),GESTION_SEG_1_TRIM!K40,CHAR(10),\"Trimestre 2\",CHAR(10),GESTION_SEG_2_TRIM!K40,CHAR(10),\"Trimestre 3\",CHAR(10),GESTION_SEG_3_TRIM!K40),\" \")","v":"Trimestre 1\n\nTrimestre 2\n\nTrimestre 3\n"}]
[null,null,"3. Fortalecer las capacidades institucionales, adecuar el modelo operativo y de servicio, bajo un enfoque de Arquitectura Empresarial y de fortalecimiento del acceso a la justicia.",null,null,null,null,null,null,null,null,null,null,null,null,{"$f":"IFERROR(MAX(GESTION_SEG_1_TRIM!H41,GESTION_SEG_2_TRIM!H41,GESTION_SEG_3_TRIM!H41),\" \")","v":0},"",{"$f":"IFERROR(_xlfn.CONCAT(\"Trimestre 1\",CHAR(10),GESTION_SEG_1_TRIM!J41,CHAR(10),\"Trimestre 2\",CHAR(10),GESTION_SEG_2_TRIM!J41,CHAR(10),\"Trimestre 3\",CHAR(10),GESTION_SEG_3_TRIM!J41),\" \")","v":"Trimestre 1\n\nTrimestre 2\n\nTrimestre 3\n"},{"$f":"IFERROR(_xlfn.CONCAT(\"Trimestre 1\",CHAR(10),GESTION_SEG_1_TRIM!K41,CHAR(10),\"Trimestre 2\",CHAR(10),GESTION_SEG_2_TRIM!K41,CHAR(10),\"Trimestre 3\",CHAR(10),GESTION_SEG_3_TRIM!K41),\" \")","v":"Trimestre 1\n\nTrimestre 2\n\nTrimestre 3\n"}]
[null,null,null,null,null,null,null,null,null,null,null,null,null,null,null,{"$f":"IFERROR(MAX(GESTION_SEG_1_TRIM!H42,GESTION_SEG_2_TRIM!H42,GESTION_SEG_3_TRIM!H42),\" \")","v":0},"",{"$f":"IFERROR(_xlfn.CONCAT(\"Trimestre 1\",CHAR(10),GESTION_SEG_1_TRIM!J42,CHAR(10),\"Trimestre 2\",CHAR(10),GESTION_SEG_2_TRIM!J42,CHAR(10),\"Trimestre 3\",CHAR(10),GESTION_SEG_3_TRIM!J42),\" \")","v":"Trimestre 1\n\nTrimestre 2\n\nTrimestre 3\n"},{"$f":"IFERROR(_xlfn.CONCAT(\"Trimestre 1\",CHAR(10),GESTION_SEG_1_TRIM!K42,CHAR(10),\"Trimestre 2\",CHAR(10),GESTION_SEG_2_TRIM!K42,CHAR(10),\"Trimestre 3\",CHAR(10),GESTION_SEG_3_TRIM!K42),\" \")","v":"Trimestre 1\n\nTrimestre 2\n\nTrimestre 3\n"}]
[null,null,null,null,null,null,null,null,null,null,null,null,null,null,null,{"$f":"IFERROR(MAX(GESTION_SEG_1_TRIM!H43,GESTION_SEG_2_TRIM!H43,GESTION_SEG_3_TRIM!H43),\" \")","v":0},"",{"$f":"IFERROR(_xlfn.CONCAT(\"Trimestre 1\",CHAR(10),GESTION_SEG_1_TRIM!J43,CHAR(10),\"Trimestre 2\",CHAR(10),GESTION_SEG_2_TRIM!J43,CHAR(10),\"Trimestre 3\",CHAR(10),GESTION_SEG_3_TRIM!J43),\" \")","v":"Trimestre 1\n\nTrimestre 2\n\nTrimestre 3\n"},{"$f":"IFERROR(_xlfn.CONCAT(\"Trimestre 1\",CHAR(10),GESTION_SEG_1_TRIM!K43,CHAR(10),\"Trimestre 2\",CHAR(10),GESTION_SEG_2_TRIM!K43,CHAR(10),\"Trimestre 3\",CHAR(10),GESTION_SEG_3_TRIM!K43),\" \")","v":"Trimestre 1\n\nTrimestre 2\n\nTrimestre 3\n"}]
[null,null,null,null,null,null,null,null,null,null,null,null,null,null,null,{"$f":"IFERROR(MAX(GESTION_SEG_1_TRIM!H44,GESTION_SEG_2_TRIM!H44,GESTION_SEG_3_TRIM!H44),\" \")","v":0},"",{"$f":"IFERROR(_xlfn.CONCAT(\"Trimestre 1\",CHAR(10),GESTION_SEG_1_TRIM!J44,CHAR(10),\"Trimestre 2\",CHAR(10),GESTION_SEG_2_TRIM!J44,CHAR(10),\"Trimestre 3\",CHAR(10),GESTION_SEG_3_TRIM!J44),\" \")","v":"Trimestre 1\n\nTrimestre 2\n\nTrimestre 3\n"},{"$f":"IFERROR(_xlfn.CONCAT(\"Trimestre 1\",CHAR(10),GESTION_SEG_1_TRIM!K44,CHAR(10),\"Trimestre 2\",CHAR(10),GESTION_SEG_2_TRIM!K44,CHAR(10),\"Trimestre 3\",CHAR(10),GESTION_SEG_3_TRIM!K44),\" \")","v":"Trimestre 1\n\nTrimestre 2\n\nTrimestre 3\n"}]
[null,null,null,null,null,null,null,null,null,null,null,null,null,null,null,{"$f":"IFERROR(MAX(GESTION_SEG_1_TRIM!H45,GESTION_SEG_2_TRIM!H45,GESTION_SEG_3_TRIM!H45),\" \")","v":0},"",{"$f":"IFERROR(_xlfn.CONCAT(\"Trimestre 1\",CHAR(10),GESTION_SEG_1_TRIM!J45,CHAR(10),\"Trimestre 2\",CHAR(10),GESTION_SEG_2_TRIM!J45,CHAR(10),\"Trimestre 3\",CHAR(10),GESTION_SEG_3_TRIM!J45),\" \")","v":"Trimestre 1\n\nTrimestre 2\n\nTrimestre 3\n"},{"$f":"IFERROR(_xlfn.CONCAT(\"Trimestre 1\",CHAR(10),GESTION_SEG_1_TRIM!K45,CHAR(10),\"Trimestre 2\",CHAR(10),GESTION_SEG_2_TRIM!K45,CHAR(10),\"Trimestre 3\",CHAR(10),GESTION_SEG_3_TRIM!K45),\" \")","v":"Trimestre 1\n\nTrimestre 2\n\nTrimestre 3\n"}]
[null,null,"4.Consolidar la cultura y apropiación de la transformación digital en los servidores y usuarios de los servicios de la Rama Judicial y reducir brechas de acceso y conocimiento, incluyendo la oferta efectiva de información sobre el uso de las nuevas herramientas virtuales implementadas en las diferentes jurisdicciones, con especial énfasis en las zonas del país donde es evidente la brecha digital.",null,null,null,null,null,null,null,null,null,null,null,null,{"$f":"IFERROR(MAX(GESTION_SEG_1_TRIM!H46,GESTION_SEG_2_TRIM!H46,GESTION_SEG_3_TRIM!H46),\" \")","v":0},"",{"$f":"IFERROR(_xlfn.CONCAT(\"Trimestre 1\",CHAR(10),GESTION_SEG_1_TRIM!J46,CHAR(10),\"Trimestre 2\",CHAR(10),GESTION_SEG_2_TRIM!J46,CHAR(10),\"Trimestre 3\",CHAR(10),GESTION_SEG_3_TRIM!J46),\" \")","v":"Trimestre 1\n\nTrimestre 2\n\nTrimestre 3\n"},{"$f":"IFERROR(_xlfn.CONCAT(\"Trimestre 1\",CHAR(10),GESTION_SEG_1_TRIM!K46,CHAR(10),\"Trimestre 2\",CHAR(10),GESTION_SEG_2_TRIM!K46,CHAR(10),\"Trimestre 3\",CHAR(10),GESTION_SEG_3_TRIM!K46),\" \")","v":"Trimestre 1\n\nTrimestre 2\n\nTrimestre 3\n"}]
[null,null,null,null,null,null,null,null,null,null,null,null,null,null,null,{"$f":"IFERROR(MAX(GESTION_SEG_1_TRIM!H47,GESTION_SEG_2_TRIM!H47,GESTION_SEG_3_TRIM!H47),\" \")","v":0},"",{"$f":"IFERROR(_xlfn.CONCAT(\"Trimestre 1\",CHAR(10),GESTION_SEG_1_TRIM!J47,CHAR(10),\"Trimestre 2\",CHAR(10),GESTION_SEG_2_TRIM!J47,CHAR(10),\"Trimestre 3\",CHAR(10),GESTION_SEG_3_TRIM!J47),\" \")","v":"Trimestre 1\n\nTrimestre 2\n\nTrimestre 3\n"},{"$f":"IFERROR(_xlfn.CONCAT(\"Trimestre 1\",CHAR(10),GESTION_SEG_1_TRIM!K47,CHAR(10),\"Trimestre 2\",CHAR(10),GESTION_SEG_2_TRIM!K47,CHAR(10),\"Trimestre 3\",CHAR(10),GESTION_SEG_3_TRIM!K47),\" \")","v":"Trimestre 1\n\nTrimestre 2\n\nTrimestre 3\n"}]
[null,null,null,null,null,null,null,null,null,null,null,null,null,null,null,{"$f":"IFERROR(MAX(GESTION_SEG_1_TRIM!H48,GESTION_SEG_2_TRIM!H48,GESTION_SEG_3_TRIM!H48),\" \")","v":0},"",{"$f":"IFERROR(_xlfn.CONCAT(\"Trimestre 1\",CHAR(10),GESTION_SEG_1_TRIM!J48,CHAR(10),\"Trimestre 2\",CHAR(10),GESTION_SEG_2_TRIM!J48,CHAR(10),\"Trimestre 3\",CHAR(10),GESTION_SEG_3_TRIM!J48),\" \")","v":"Trimestre 1\n\nTrimestre 2\n\nTrimestre 3\n"},{"$f":"IFERROR(_xlfn.CONCAT(\"Trimestre 1\",CHAR(10),GESTION_SEG_1_TRIM!K48,CHAR(10),\"Trimestre 2\",CHAR(10),GESTION_SEG_2_TRIM!K48,CHAR(10),\"Trimestre 3\",CHAR(10),GESTION_SEG_3_TRIM!K48),\" \")","v":"Trimestre 1\n\nTrimestre 2\n\nTrimestre 3\n"}]
[null,null,null,null,null,null,null,null,null,null,null,null,null,null,null,{"$f":"IFERROR(MAX(GESTION_SEG_1_TRIM!H49,GESTION_SEG_2_TRIM!H49,GESTION_SEG_3_TRIM!H49),\" \")","v":0},"",{"$f":"IFERROR(_xlfn.CONCAT(\"Trimestre 1\",CHAR(10),GESTION_SEG_1_TRIM!J49,CHAR(10),\"Trimestre 2\",CHAR(10),GESTION_SEG_2_TRIM!J49,CHAR(10),\"Trimestre 3\",CHAR(10),GESTION_SEG_3_TRIM!J49),\" \")","v":"Trimestre 1\n\nTrimestre 2\n\nTrimestre 3\n"},{"$f":"IFERROR(_xlfn.CONCAT(\"Trimestre 1\",CHAR(10),GESTION_SEG_1_TRIM!K49,CHAR(10),\"Trimestre 2\",CHAR(10),GESTION_SEG_2_TRIM!K49,CHAR(10),\"Trimestre 3\",CHAR(10),GESTION_SEG_3_TRIM!K49),\" \")","v":"Trimestre 1\n\nTrimestre 2\n\nTrimestre 3\n"}]
[null,null,null,null,null,null,null,null,null,null,null,null,null,null,null,{"$f":"IFERROR(MAX(GESTION_SEG_1_TRIM!H50,GESTION_SEG_2_TRIM!H50,GESTION_SEG_3_TRIM!H50),\" \")","v":0},"",{"$f":"IFERROR(_xlfn.CONCAT(\"Trimestre 1\",CHAR(10),GESTION_SEG_1_TRIM!J50,CHAR(10),\"Trimestre 2\",CHAR(10),GESTION_SEG_2_TRIM!J50,CHAR(10),\"Trimestre 3\",CHAR(10),GESTION_SEG_3_TRIM!J50),\" \")","v":"Trimestre 1\n\nTrimestre 2\n\nTrimestre 3\n"},{"$f":"IFERROR(_xlfn.CONCAT(\"Trimestre 1\",CHAR(10),GESTION_SEG_1_TRIM!K50,CHAR(10),\"Trimestre 2\",CHAR(10),GESTION_SEG_2_TRIM!K50,CHAR(10),\"Trimestre 3\",CHAR(10),GESTION_SEG_3_TRIM!K50),\" \")","v":"Trimestre 1\n\nTrimestre 2\n\nTrimestre 3\n"}]
[null,null,"5.Consolidar la infraestructura y los recursos necesarios para la implementación exitosa de la transformación digital, incluyendo la disposición de internet de calidad en el 100% de las sedes en la Rama Judicial y modernizar los servicios tecnológicos de soporte. ",null,null,null,null,null,null,null,null,null,null,null,null,{"$f":"IFERROR(MAX(GESTION_SEG_1_TRIM!H51,GESTION_SEG_2_TRIM!H51,GESTION_SEG_3_TRIM!H51),\" \")","v":0},"",{"$f":"IFERROR(_xlfn.CONCAT(\"Trimestre 1\",CHAR(10),GESTION_SEG_1_TRIM!J51,CHAR(10),\"Trimestre 2\",CHAR(10),GESTION_SEG_2_TRIM!J51,CHAR(10),\"Trimestre 3\",CHAR(10),GESTION_SEG_3_TRIM!J51),\" \")","v":"Trimestre 1\n\nTrimestre 2\n\nTrimestre 3\n"},{"$f":"IFERROR(_xlfn.CONCAT(\"Trimestre 1\",CHAR(10),GESTION_SEG_1_TRIM!K51,CHAR(10),\"Trimestre 2\",CHAR(10),GESTION_SEG_2_TRIM!K51,CHAR(10),\"Trimestre 3\",CHAR(10),GESTION_SEG_3_TRIM!K51),\" \")","v":"Trimestre 1\n\nTrimestre 2\n\nTrimestre 3\n"}]
[null,null,null,null,null,null,null,null,null,null,null,null,null,null,null,{"$f":"IFERROR(MAX(GESTION_SEG_1_TRIM!H52,GESTION_SEG_2_TRIM!H52,GESTION_SEG_3_TRIM!H52),\" \")","v":0},"",{"$f":"IFERROR(_xlfn.CONCAT(\"Trimestre 1\",CHAR(10),GESTION_SEG_1_TRIM!J52,CHAR(10),\"Trimestre 2\",CHAR(10),GESTION_SEG_2_TRIM!J52,CHAR(10),\"Trimestre 3\",CHAR(10),GESTION_SEG_3_TRIM!J52),\" \")","v":"Trimestre 1\n\nTrimestre 2\n\nTrimestre 3\n"},{"$f":"IFERROR(_xlfn.CONCAT(\"Trimestre 1\",CHAR(10),GESTION_SEG_1_TRIM!K52,CHAR(10),\"Trimestre 2\",CHAR(10),GESTION_SEG_2_TRIM!K52,CHAR(10),\"Trimestre 3\",CHAR(10),GESTION_SEG_3_TRIM!K52),\" \")","v":"Trimestre 1\n\nTrimestre 2\n\nTrimestre 3\n"}]
[null,null,null,null,null,null,null,null,null,null,null,null,null,null,null,{"$f":"IFERROR(MAX(GESTION_SEG_1_TRIM!H53,GESTION_SEG_2_TRIM!H53,GESTION_SEG_3_TRIM!H53),\" \")","v":0},"",{"$f":"IFERROR(_xlfn.CONCAT(\"Trimestre 1\",CHAR(10),GESTION_SEG_1_TRIM!J53,CHAR(10),\"Trimestre 2\",CHAR(10),GESTION_SEG_2_TRIM!J53,CHAR(10),\"Trimestre 3\",CHAR(10),GESTION_SEG_3_TRIM!J53),\" \")","v":"Trimestre 1\n\nTrimestre 2\n\nTrimestre 3\n"},{"$f":"IFERROR(_xlfn.CONCAT(\"Trimestre 1\",CHAR(10),GESTION_SEG_1_TRIM!K53,CHAR(10),\"Trimestre 2\",CHAR(10),GESTION_SEG_2_TRIM!K53,CHAR(10),\"Trimestre 3\",CHAR(10),GESTION_SEG_3_TRIM!K53),\" \")","v":"Trimestre 1\n\nTrimestre 2\n\nTrimestre 3\n"}]
[null,null,null,null,null,null,null,null,null,null,null,null,null,null,null,{"$f":"IFERROR(MAX(GESTION_SEG_1_TRIM!H54,GESTION_SEG_2_TRIM!H54,GESTION_SEG_3_TRIM!H54),\" \")","v":0},"",{"$f":"IFERROR(_xlfn.CONCAT(\"Trimestre 1\",CHAR(10),GESTION_SEG_1_TRIM!J54,CHAR(10),\"Trimestre 2\",CHAR(10),GESTION_SEG_2_TRIM!J54,CHAR(10),\"Trimestre 3\",CHAR(10),GESTION_SEG_3_TRIM!J54),\" \")","v":"Trimestre 1\n\nTrimestre 2\n\nTrimestre 3\n"},{"$f":"IFERROR(_xlfn.CONCAT(\"Trimestre 1\",CHAR(10),GESTION_SEG_1_TRIM!K54,CHAR(10),\"Trimestre 2\",CHAR(10),GESTION_SEG_2_TRIM!K54,CHAR(10),\"Trimestre 3\",CHAR(10),GESTION_SEG_3_TRIM!K54),\" \")","v":"Trimestre 1\n\nTrimestre 2\n\nTrimestre 3\n"}]
[null,null,null,null,null,null,null,null,null,null,null,null,null,null,null,{"$f":"IFERROR(MAX(GESTION_SEG_1_TRIM!H55,GESTION_SEG_2_TRIM!H55,GESTION_SEG_3_TRIM!H55),\" \")","v":0},"",{"$f":"IFERROR(_xlfn.CONCAT(\"Trimestre 1\",CHAR(10),GESTION_SEG_1_TRIM!J55,CHAR(10),\"Trimestre 2\",CHAR(10),GESTION_SEG_2_TRIM!J55,CHAR(10),\"Trimestre 3\",CHAR(10),GESTION_SEG_3_TRIM!J55),\" \")","v":"Trimestre 1\n\nTrimestre 2\n\nTrimestre 3\n"},{"$f":"IFERROR(_xlfn.CONCAT(\"Trimestre 1\",CHAR(10),GESTION_SEG_1_TRIM!K55,CHAR(10),\"Trimestre 2\",CHAR(10),GESTION_SEG_2_TRIM!K55,CHAR(10),\"Trimestre 3\",CHAR(10),GESTION_SEG_3_TRIM!K55),\" \")","v":"Trimestre 1\n\nTrimestre 2\n\nTrimestre 3\n"}]
[null,null,"6.Integrar y optimizar los servicios administrativos de la Rama Judicial bajo un enfoque de transformación digital e innovación incluyendo los componentes financiero, administrativo, talento humano, entre otros",null,null,null,null,null,null,null,null,null,null,null,null,{"$f":"IFERROR(MAX(GESTION_SEG_1_TRIM!H56,GESTION_SEG_2_TRIM!H56,GESTION_SEG_3_TRIM!H56),\" \")","v":0},"",{"$f":"IFERROR(_xlfn.CONCAT(\"Trimestre 1\",CHAR(10),GESTION_SEG_1_TRIM!J56,CHAR(10),\"Trimestre 2\",CHAR(10),GESTION_SEG_2_TRIM!J56,CHAR(10),\"Trimestre 3\",CHAR(10),GESTION_SEG_3_TRIM!J56),\" \")","v":"Trimestre 1\n\nTrimestre 2\n\nTrimestre 3\n"},{"$f":"IFERROR(_xlfn.CONCAT(\"Trimestre 1\",CHAR(10),GESTION_SEG_1_TRIM!K56,CHAR(10),\"Trimestre 2\",CHAR(10),GESTION_SEG_2_TRIM!K56,CHAR(10),\"Trimestre 3\",CHAR(10),GESTION_SEG_3_TRIM!K56),\" \")","v":"Trimestre 1\n\nTrimestre 2\n\nTrimestre 3\n"}]
[null,null,null,null,null,null,null,null,null,null,null,null,null,null,null,{"$f":"IFERROR(MAX(GESTION_SEG_1_TRIM!H57,GESTION_SEG_2_TRIM!H57,GESTION_SEG_3_TRIM!H57),\" \")","v":0},"",{"$f":"IFERROR(_xlfn.CONCAT(\"Trimestre 1\",CHAR(10),GESTION_SEG_1_TRIM!J57,CHAR(10),\"Trimestre 2\",CHAR(10),GESTION_SEG_2_TRIM!J57,CHAR(10),\"Trimestre 3\",CHAR(10),GESTION_SEG_3_TRIM!J57),\" \")","v":"Trimestre 1\n\nTrimestre 2\n\nTrimestre 3\n"},{"$f":"IFERROR(_xlfn.CONCAT(\"Trimestre 1\",CHAR(10),GESTION_SEG_1_TRIM!K57,CHAR(10),\"Trimestre 2\",CHAR(10),GESTION_SEG_2_TRIM!K57,CHAR(10),\"Trimestre 3\",CHAR(10),GESTION_SEG_3_TRIM!K57),\" \")","v":"Trimestre 1\n\nTrimestre 2\n\nTrimestre 3\n"}]
[null,null,null,null,null,null,null,null,null,null,null,null,null,null,null,{"$f":"IFERROR(MAX(GESTION_SEG_1_TRIM!H58,GESTION_SEG_2_TRIM!H58,GESTION_SEG_3_TRIM!H58),\" \")","v":0},"",{"$f":"IFERROR(_xlfn.CONCAT(\"Trimestre 1\",CHAR(10),GESTION_SEG_1_TRIM!J58,CHAR(10),\"Trimestre 2\",CHAR(10),GESTION_SEG_2_TRIM!J58,CHAR(10),\"Trimestre 3\",CHAR(10),GESTION_SEG_3_TRIM!J58),\" \")","v":"Trimestre 1\n\nTrimestre 2\n\nTrimestre 3\n"},{"$f":"IFERROR(_xlfn.CONCAT(\"Trimestre 1\",CHAR(10),GESTION_SEG_1_TRIM!K58,CHAR(10),\"Trimestre 2\",CHAR(10),GESTION_SEG_2_TRIM!K58,CHAR(10),\"Trimestre 3\",CHAR(10),GESTION_SEG_3_TRIM!K58),\" \")","v":"Trimestre 1\n\nTrimestre 2\n\nTrimestre 3\n"}]
[null,null,null,null,null,null,null,null,null,null,null,null,null,null,null,{"$f":"IFERROR(MAX(GESTION_SEG_1_TRIM!H59,GESTION_SEG_2_TRIM!H59,GESTION_SEG_3_TRIM!H59),\" \")","v":0},"",{"$f":"IFERROR(_xlfn.CONCAT(\"Trimestre 1\",CHAR(10),GESTION_SEG_1_TRIM!J59,CHAR(10),\"Trimestre 2\",CHAR(10),GESTION_SEG_2_TRIM!J59,CHAR(10),\"Trimestre 3\",CHAR(10),GESTION_SEG_3_TRIM!J59),\" \")","v":"Trimestre 1\n\nTrimestre 2\n\nTrimestre 3\n"},{"$f":"IFERROR(_xlfn.CONCAT(\"Trimestre 1\",CHAR(10),GESTION_SEG_1_TRIM!K59,CHAR(10),\"Trimestre 2\",CHAR(10),GESTION_SEG_2_TRIM!K59,CHAR(10),\"Trimestre 3\",CHAR(10),GESTION_SEG_3_TRIM!K59),\" \")","v":"Trimestre 1\n\nTrimestre 2\n\nTrimestre 3\n"}]
[null,null,null,null,null,null,null,null,null,null,null,null,null,null,null,{"$f":"IFERROR(MAX(GESTION_SEG_1_TRIM!H60,GESTION_SEG_2_TRIM!H60,GESTION_SEG_3_TRIM!H60),\" \")","v":0},"",{"$f":"IFERROR(_xlfn.CONCAT(\"Trimestre 1\",CHAR(10),GESTION_SEG_1_TRIM!J60,CHAR(10),\"Trimestre 2\",CHAR(10),GESTION_SEG_2_TRIM!J60,CHAR(10),\"Trimestre 3\",CHAR(10),GESTION_SEG_3_TRIM!J60),\" \")","v":"Trimestre 1\n\nTrimestre 2\n\nTrimestre 3\n"},{"$f":"IFERROR(_xlfn.CONCAT(\"Trimestre 1\",CHAR(10),GESTION_SEG_1_TRIM!K60,CHAR(10),\"Trimestre 2\",CHAR(10),GESTION_SEG_2_TRIM!K60,CHAR(10),\"Trimestre 3\",CHAR(10),GESTION_SEG_3_TRIM!K60),\" \")","v":"Trimestre 1\n\nTrimestre 2\n\nTrimestre 3\n"}]
["3. Confianza pública, transparencia y rendición de cuentas","Confianza pública, transparencia y rendición de cuentas: Aumentar la confianza pública en la justicia a través de la transparencia, la rendición de cuentas y la participación, incluyendo la información de justicia y la producción, gestión y acceso a las fuentes de derecho, el fortalecimiento del sistema de gestión de calidad y medio ambiente (SIGCMA) y el mejoramiento de la calidad y publicidad de la información. ","1. Incrementar la cantidad, la calidad y pertinencia de los datos sobre el funcionamiento del servicio de justicia bajo un modelo de gobierno de datos y un liderazgo unificado. ","4. Hacer un uso racional de los recursos naturales aplicando los principios y fases de la Economía Circular, para prevenir, mitigar y controlar los impactos ambientales.","Apoyo","Juris - Gestión de Servicios Judiciales","Seccional","Crear y repartir solicitudes de audiencias concentradas y reservadas de actos urgentes a los  juzgados penales municipales con funciones de control de garantias de Cali.","Entregable",null,null,"Lider de Area","Informe estadistico de reparto, actas de reparto ","2023-01-01","2023-12-31",{"$f":"IFERROR(MAX(GESTION_SEG_1_TRIM!H61,GESTION_SEG_2_TRIM!H61,GESTION_SEG_3_TRIM!H61),\" \")","v":0},"",{"$f":"IFERROR(_xlfn.CONCAT(\"Trimestre 1\",CHAR(10),GESTION_SEG_1_TRIM!J61,CHAR(10),\"Trimestre 2\",CHAR(10),GESTION_SEG_2_TRIM!J61,CHAR(10),\"Trimestre 3\",CHAR(10),GESTION_SEG_3_TRIM!J61),\" \")","v":"Trimestre 1\n\nTrimestre 2\n\nTrimestre 3\n"},{"$f":"IFERROR(_xlfn.CONCAT(\"Trimestre 1\",CHAR(10),GESTION_SEG_1_TRIM!K61,CHAR(10),\"Trimestre 2\",CHAR(10),GESTION_SEG_2_TRIM!K61,CHAR(10),\"Trimestre 3\",CHAR(10),GESTION_SEG_3_TRIM!K61),\" \")","v":" "}]
[null,null,null,null,"Apoyo","Juris - Gestión de Servicios Judiciales","Seccional","Crear y repartir las solicitudes de audiencias programadas para los  juzgados penales municipales con funciones de control de garantias de Cali.","Entregable",null,null,"Lider de Area","Informe estadistico de reparto, actas de reparto ","2023-01-01","2023-12-31",{"$f":"IFERROR(MAX(GESTION_SEG_1_TRIM!H62,GESTION_SEG_2_TRIM!H62,GESTION_SEG_3_TRIM!H62),\" \")","v":0},"",{"$f":"IFERROR(_xlfn.CONCAT(\"Trimestre 1\",CHAR(10),GESTION_SEG_1_TRIM!J62,CHAR(10),\"Trimestre 2\",CHAR(10),GESTION_SEG_2_TRIM!J62,CHAR(10),\"Trimestre 3\",CHAR(10),GESTION_SEG_3_TRIM!J62),\" \")","v":"Trimestre 1\n\nTrimestre 2\n\nTrimestre 3\n"},{"$f":"IFERROR(_xlfn.CONCAT(\"Trimestre 1\",CHAR(10),GESTION_SEG_1_TRIM!K62,CHAR(10),\"Trimestre 2\",CHAR(10),GESTION_SEG_2_TRIM!K62,CHAR(10),\"Trimestre 3\",CHAR(10),GESTION_SEG_3_TRIM!K62),\" \")","v":" "}]
[null,null,null,null,"Apoyo","Juris - Gestión de Servicios Judiciales","Seccional","Crear y repartir solicitudes para los juzgados penales municipales y del circuito con funciones de conocimiento y Tribunal Superior Sala de Decision Penal de Cali. ","Entregable",null,null,"Lider de Area","Informe estadistico de reparto, actas de reparto ","2023-01-01","2023-12-31",{"$f":"IFERROR(MAX(GESTION_SEG_1_TRIM!H63,GESTION_SEG_2_TRIM!H63,GESTION_SEG_3_TRIM!H63),\" \")","v":0},{"$f":"IFERROR(P63/#REF!,\"\")","v":""},{"$f":"IFERROR(_xlfn.CONCAT(\"Trimestre 1\",CHAR(10),GESTION_SEG_1_TRIM!J63,CHAR(10),\"Trimestre 2\",CHAR(10),GESTION_SEG_2_TRIM!J63,CHAR(10),\"Trimestre 3\",CHAR(10),GESTION_SEG_3_TRIM!J63),\" \")","v":"Trimestre 1\n\nTrimestre 2\n\nTrimestre 3\n"},{"$f":"IFERROR(_xlfn.CONCAT(\"Trimestre 1\",CHAR(10),GESTION_SEG_1_TRIM!K63,CHAR(10),\"Trimestre 2\",CHAR(10),GESTION_SEG_2_TRIM!K63,CHAR(10),\"Trimestre 3\",CHAR(10),GESTION_SEG_3_TRIM!K63),\" \")","v":" "}]
[null,null,null,null,"Apoyo","Juris - Gestión de Servicios Judiciales","Seccional","Recepcionar expedientes fisicos de los despachos penales municipales y del circuito, Tribunal Superior Sala de Decision Penal de Cali y Juzgados de Ejecución de Penas y Medidas de Seguridad de Cali. ","Entregable",null,null,"Recepción expedientes ventanilla","Inventario recepcion expedientes fisicos, oficios de recibidos de los expedientes ","2023-01-01","2023-12-31",{"$f":"IFERROR(MAX(GESTION_SEG_1_TRIM!H64,GESTION_SEG_2_TRIM!H64,GESTION_SEG_3_TRIM!H64),\" \")","v":0},{"$f":"IFERROR(P64/J63,\"\")","v":""},{"$f":"IFERROR(_xlfn.CONCAT(\"Trimestre 1\",CHAR(10),GESTION_SEG_1_TRIM!J64,CHAR(10),\"Trimestre 2\",CHAR(10),GESTION_SEG_2_TRIM!J64,CHAR(10),\"Trimestre 3\",CHAR(10),GESTION_SEG_3_TRIM!J64),\" \")","v":"Trimestre 1\n\nTrimestre 2\n\nTrimestre 3\n"},{"$f":"IFERROR(_xlfn.CONCAT(\"Trimestre 1\",CHAR(10),GESTION_SEG_1_TRIM!K64,CHAR(10),\"Trimestre 2\",CHAR(10),GESTION_SEG_2_TRIM!K64,CHAR(10),\"Trimestre 3\",CHAR(10),GESTION_SEG_3_TRIM!K64),\" \")","v":" "}]
[null,null,null,null,"Apoyo","Juris - Gestión de Servicios Judiciales","Seccional","Recepcionar expedientes electronicos y digitalizados por las plataformas establecidas (OneDrive y BestDoc) para comunicar y dar cumplimiento a las decisiones adoptados por los Juecesde los  Juzgados Penales Municipales con Funciones de Control de Garantias de Cali y demas despachos a nivel nacional.","Entregable",null,null,"Lider de Area","Informe recepción expedientes electronicos y compilado estadistico de registro de actuaciones, constancia de recibido y constancias de traslados. ","2023-01-01","2023-12-31",{"$f":"IFERROR(MAX(GESTION_SEG_1_TRIM!H65,GESTION_SEG_2_TRIM!H65,GESTION_SEG_3_TRIM!H65),\" \")","v":0},{"$f":"IFERROR(P65/J64,\"\")","v":""},{"$f":"IFERROR(_xlfn.CONCAT(\"Trimestre 1\",CHAR(10),GESTION_SEG_1_TRIM!J65,CHAR(10),\"Trimestre 2\",CHAR(10),GESTION_SEG_2_TRIM!J65,CHAR(10),\"Trimestre 3\",CHAR(10),GESTION_SEG_3_TRIM!J65),\" \")","v":"Trimestre 1\n\nTrimestre 2\n\nTrimestre 3\n"},{"$f":"IFERROR(_xlfn.CONCAT(\"Trimestre 1\",CHAR(10),GESTION_SEG_1_TRIM!K65,CHAR(10),\"Trimestre 2\",CHAR(10),GESTION_SEG_2_TRIM!K65,CHAR(10),\"Trimestre 3\",CHAR(10),GESTION_SEG_3_TRIM!K65),\" \")","v":" "}]
[null,null,"2. Consolidar la administración de la información entendida como todas las acciones rientadas a garantizar el acceso, consulta, uso y conservación de la información de justicia de manera ágil, flexible e inteligente, bajo un enfoque de innovación.",null,"Apoyo","Juris - Gestión de Servicios Judiciales","Seccional","Recepcionar expedientes electronicos y digitalizados por las plataformas establecidas (OneDrive y BestDoc) para comunicar y dar cumplimiento a las decisiones adoptados por los jueces de los Juzgados Penales Municipales y del Circuito con Funciones de Conocimiento de Cali, Tribunal Superior Sala de Decision Penal, Corte Suprema de Justicia Sala de Casacion Penal y demas despachos a nivel nacional. ","Entregable",null,null,"Lider de Area","Informe recepción expedientes electronicos y compilado estadistico de registro de actuaciones, constancia de recibido y constancias de traslados. ","2023-01-01","2023-12-31",{"$f":"IFERROR(MAX(GESTION_SEG_1_TRIM!H66,GESTION_SEG_2_TRIM!H66,GESTION_SEG_3_TRIM!H66),\" \")","v":0},{"$f":"IFERROR(P66/J65,\"\")","v":""},{"$f":"IFERROR(_xlfn.CONCAT(\"Trimestre 1\",CHAR(10),GESTION_SEG_1_TRIM!J66,CHAR(10),\"Trimestre 2\",CHAR(10),GESTION_SEG_2_TRIM!J66,CHAR(10),\"Trimestre 3\",CHAR(10),GESTION_SEG_3_TRIM!J66),\" \")","v":"Trimestre 1\n\nTrimestre 2\n\nTrimestre 3\n"},{"$f":"IFERROR(_xlfn.CONCAT(\"Trimestre 1\",CHAR(10),GESTION_SEG_1_TRIM!K66,CHAR(10),\"Trimestre 2\",CHAR(10),GESTION_SEG_2_TRIM!K66,CHAR(10),\"Trimestre 3\",CHAR(10),GESTION_SEG_3_TRIM!K66),\" \")","v":" "}]
[null,null,null,null,"Apoyo","Juris - Gestión de Servicios Judiciales","Seccional","Notificar, comunicar y publicar las decisiones adoptadas por los jueces que conforman el Sistema Penal Oral Acusatorio de Cali y demas despachos a nivel nacional e internacional. ","Entregable",null,null,"Secretaria","Informe estadistico área de secretaria, constancias de recibido, constancias de notificación.","2023-01-01","2023-12-31",{"$f":"IFERROR(MAX(GESTION_SEG_1_TRIM!H67,GESTION_SEG_2_TRIM!H67,GESTION_SEG_3_TRIM!H67),\" \")","v":0},{"$f":"IFERROR(P67/#REF!,\"\")","v":""},{"$f":"IFERROR(_xlfn.CONCAT(\"Trimestre 1\",CHAR(10),GESTION_SEG_1_TRIM!J67,CHAR(10),\"Trimestre 2\",CHAR(10),GESTION_SEG_2_TRIM!J67,CHAR(10),\"Trimestre 3\",CHAR(10),GESTION_SEG_3_TRIM!J67),\" \")","v":"Trimestre 1\n\nTrimestre 2\n\nTrimestre 3\n"},{"$f":"IFERROR(_xlfn.CONCAT(\"Trimestre 1\",CHAR(10),GESTION_SEG_1_TRIM!K67,CHAR(10),\"Trimestre 2\",CHAR(10),GESTION_SEG_2_TRIM!K67,CHAR(10),\"Trimestre 3\",CHAR(10),GESTION_SEG_3_TRIM!K67),\" \")","v":" "}]
[null,null,null,null,"Apoyo","Juris - Gestión de Servicios Judiciales","Seccional","Gestionar las actividades  donde es vinculado el Centro de Servicios Judiciales de Cali.","Entregable",null,null,"Lider de area","Informe estadistico de secretaria y archivo, constancias de envio, constancias de recibido ","2023-01-01","2023-12-31",{"$f":"IFERROR(MAX(GESTION_SEG_1_TRIM!H68,GESTION_SEG_2_TRIM!H68,GESTION_SEG_3_TRIM!H68),\" \")","v":0},{"$f":"IFERROR(P68/#REF!,\"\")","v":""},{"$f":"IFERROR(_xlfn.CONCAT(\"Trimestre 1\",CHAR(10),GESTION_SEG_1_TRIM!J68,CHAR(10),\"Trimestre 2\",CHAR(10),GESTION_SEG_2_TRIM!J68,CHAR(10),\"Trimestre 3\",CHAR(10),GESTION_SEG_3_TRIM!J68),\" \")","v":"Trimestre 1\n\nTrimestre 2\n\nTrimestre 3\n"},{"$f":"IFERROR(_xlfn.CONCAT(\"Trimestre 1\",CHAR(10),GESTION_SEG_1_TRIM!K68,CHAR(10),\"Trimestre 2\",CHAR(10),GESTION_SEG_2_TRIM!K68,CHAR(10),\"Trimestre 3\",CHAR(10),GESTION_SEG_3_TRIM!K68),\" \")","v":" "}]
[null,null,null,null,"Apoyo","Juris - Gestión de Servicios Judiciales","Seccional","Gestionar todas las actividades encaminadas al área administrativa y operativa del talento humano. ","Entregable",null,null,"Profesional Universitario","Informes de gestión periódicos, numero de resoluciones","2023-01-01","2023-12-31",{"$f":"IFERROR(MAX(GESTION_SEG_1_TRIM!H69,GESTION_SEG_2_TRIM!H69,GESTION_SEG_3_TRIM!H69),\" \")","v":0},{"$f":"IFERROR(P69/#REF!,\"\")","v":""},{"$f":"IFERROR(_xlfn.CONCAT(\"Trimestre 1\",CHAR(10),GESTION_SEG_1_TRIM!J69,CHAR(10),\"Trimestre 2\",CHAR(10),GESTION_SEG_2_TRIM!J69,CHAR(10),\"Trimestre 3\",CHAR(10),GESTION_SEG_3_TRIM!J69),\" \")","v":"Trimestre 1\n\nTrimestre 2\n\nTrimestre 3\n"},{"$f":"IFERROR(_xlfn.CONCAT(\"Trimestre 1\",CHAR(10),GESTION_SEG_1_TRIM!K69,CHAR(10),\"Trimestre 2\",CHAR(10),GESTION_SEG_2_TRIM!K69,CHAR(10),\"Trimestre 3\",CHAR(10),GESTION_SEG_3_TRIM!K69),\" \")","v":" "}]
[null,null,null,null,"Apoyo","Juris - Gestión de Servicios Judiciales","Seccional","Dar cumplimiento a las decisiones judiciales ejecutoriadas en los procesos penales.","Entregable",null,null,"Lider de Area","Informes de gestión periódicos, constancias de envios, constancias de recibidos","2023-01-01","2023-12-31",{"$f":"IFERROR(MAX(GESTION_SEG_1_TRIM!H70,GESTION_SEG_2_TRIM!H70,GESTION_SEG_3_TRIM!H70),\" \")","v":0},{"$f":"IFERROR(P70/#REF!,\"\")","v":""},{"$f":"IFERROR(_xlfn.CONCAT(\"Trimestre 1\",CHAR(10),GESTION_SEG_1_TRIM!J70,CHAR(10),\"Trimestre 2\",CHAR(10),GESTION_SEG_2_TRIM!J70,CHAR(10),\"Trimestre 3\",CHAR(10),GESTION_SEG_3_TRIM!J70),\" \")","v":"Trimestre 1\n\nTrimestre 2\n\nTrimestre 3\n"},{"$f":"IFERROR(_xlfn.CONCAT(\"Trimestre 1\",CHAR(10),GESTION_SEG_1_TRIM!K70,CHAR(10),\"Trimestre 2\",CHAR(10),GESTION_SEG_2_TRIM!K70,CHAR(10),\"Trimestre 3\",CHAR(10),GESTION_SEG_3_TRIM!K70),\" \")","v":" "}]
[null,null,"3. Fortalecer el Sistema integrado de Gestión de la Rama, orientado a la implementación y certificación de las normas antisoborno.","1. Gestionar el desarrollo de las competencias, la toma de conciencia , la cultura  organizacional  y el compromiso de los  servidores judiciales, contratistas, practicantes y  judicantes de contribuir a generar valor público en la administración de justicia, en el marco de  cumplimiento de los requisitos  aplicables y el comportamiento ético.\n3. Fomentar la transparencia y la participación generando lineamientos y promoviendo la rendición de cuentas ,la consulta, reporte y planteamiento de inquietudes en relación con las decisiones y aspectos del SIGCMA.","Apoyo","Juris - Gestión de Servicios Judiciales","Seccional","Recepcionar, custodiar y realizar devoluciones de los titulos judiciales.","Entregable",null,null,"Secretaria","Informe de control de titulos judiciales","2023-01-01","2023-12-31",{"$f":"IFERROR(MAX(GESTION_SEG_1_TRIM!H71,GESTION_SEG_2_TRIM!H71,GESTION_SEG_3_TRIM!H71),\" \")","v":0},{"$f":"IFERROR(P71/J71,\"\")","v":""},{"$f":"IFERROR(_xlfn.CONCAT(\"Trimestre 1\",CHAR(10),GESTION_SEG_1_TRIM!J71,CHAR(10),\"Trimestre 2\",CHAR(10),GESTION_SEG_2_TRIM!J71,CHAR(10),\"Trimestre 3\",CHAR(10),GESTION_SEG_3_TRIM!J71),\" \")","v":"Trimestre 1\n\nTrimestre 2\n\nTrimestre 3\n"},{"$f":"IFERROR(_xlfn.CONCAT(\"Trimestre 1\",CHAR(10),GESTION_SEG_1_TRIM!K71,CHAR(10),\"Trimestre 2\",CHAR(10),GESTION_SEG_2_TRIM!K71,CHAR(10),\"Trimestre 3\",CHAR(10),GESTION_SEG_3_TRIM!K71),\" \")","v":" "}]
[null,null,null,null,"Apoyo","Juris - Gestión de Servicios Judiciales","Seccional","Atender y brindar informacion a las partes interesadas de forma presencial y virtual.","Entregable",null,null,"Atención a partes interesadas","Encuestas de satisfacción, constancias de envio ","2023-01-01","2023-12-31",{"$f":"IFERROR(MAX(GESTION_SEG_1_TRIM!H72,GESTION_SEG_2_TRIM!H72,GESTION_SEG_3_TRIM!H72),\" \")","v":0},"",{"$f":"IFERROR(_xlfn.CONCAT(\"Trimestre 1\",CHAR(10),GESTION_SEG_1_TRIM!J72,CHAR(10),\"Trimestre 2\",CHAR(10),GESTION_SEG_2_TRIM!J72,CHAR(10),\"Trimestre 3\",CHAR(10),GESTION_SEG_3_TRIM!J72),\" \")","v":"Trimestre 1\n\nTrimestre 2\n\nTrimestre 3\n"},{"$f":"IFERROR(_xlfn.CONCAT(\"Trimestre 1\",CHAR(10),GESTION_SEG_1_TRIM!K72,CHAR(10),\"Trimestre 2\",CHAR(10),GESTION_SEG_2_TRIM!K72,CHAR(10),\"Trimestre 3\",CHAR(10),GESTION_SEG_3_TRIM!K72),\" \")","v":" "}]
[null,null,null,null,"Apoyo","Juris - Gestión de Servicios Judiciales","Seccional","Comunicar la programación de audiencias de los despachos judiciales que conforman el Sistema Penal Oral Acusatorio de Cali.","Entregable",null,null,"lider de Area","Informes de gestión, constancias de envio, planilla de imposición de envios de 472 y constancias de recibido","2023-01-01","2023-12-31",{"$f":"IFERROR(MAX(GESTION_SEG_1_TRIM!H73,GESTION_SEG_2_TRIM!H73,GESTION_SEG_3_TRIM!H73),\" \")","v":0},"",{"$f":"IFERROR(_xlfn.CONCAT(\"Trimestre 1\",CHAR(10),GESTION_SEG_1_TRIM!J73,CHAR(10),\"Trimestre 2\",CHAR(10),GESTION_SEG_2_TRIM!J73,CHAR(10),\"Trimestre 3\",CHAR(10),GESTION_SEG_3_TRIM!J73),\" \")","v":"Trimestre 1\n\nTrimestre 2\n\nTrimestre 3\n"},{"$f":"IFERROR(_xlfn.CONCAT(\"Trimestre 1\",CHAR(10),GESTION_SEG_1_TRIM!K73,CHAR(10),\"Trimestre 2\",CHAR(10),GESTION_SEG_2_TRIM!K73,CHAR(10),\"Trimestre 3\",CHAR(10),GESTION_SEG_3_TRIM!K73),\" \")","v":" "}]
[null,null,null,null,"Apoyo","Juris - Gestión de Servicios Judiciales","Seccional","Custodiar y organizar el archivo fisico del Centro de Servicios Judiciales para los Juzgados penales Municipales y del Circuito","Entregable",null,null,"lider de Area","Inventario y actualizacion de la ubicación de los expedientes fisicos en los archivos","2023-01-01","2023-12-31",{"$f":"IFERROR(MAX(GESTION_SEG_1_TRIM!H74,GESTION_SEG_2_TRIM!H74,GESTION_SEG_3_TRIM!H74),\" \")","v":0},"",{"$f":"IFERROR(_xlfn.CONCAT(\"Trimestre 1\",CHAR(10),GESTION_SEG_1_TRIM!J74,CHAR(10),\"Trimestre 2\",CHAR(10),GESTION_SEG_2_TRIM!J74,CHAR(10),\"Trimestre 3\",CHAR(10),GESTION_SEG_3_TRIM!J74),\" \")","v":"Trimestre 1\n\nTrimestre 2\n\nTrimestre 3\n"},{"$f":"IFERROR(_xlfn.CONCAT(\"Trimestre 1\",CHAR(10),GESTION_SEG_1_TRIM!K74,CHAR(10),\"Trimestre 2\",CHAR(10),GESTION_SEG_2_TRIM!K74,CHAR(10),\"Trimestre 3\",CHAR(10),GESTION_SEG_3_TRIM!K74),\" \")","v":" "}]
[null,null,null,null,"Apoyo","Juris - Gestión de Servicios Judiciales","Seccional","Digitalizar procesos recepcionados de forma fisica. ","Entregable",null,null,"Lider de Area","Inventario de recepcion de expedientes fisicos","2023-01-01","2023-12-31",{"$f":"IFERROR(MAX(GESTION_SEG_1_TRIM!H75,GESTION_SEG_2_TRIM!H75,GESTION_SEG_3_TRIM!H75),\" \")","v":0},"",{"$f":"IFERROR(_xlfn.CONCAT(\"Trimestre 1\",CHAR(10),GESTION_SEG_1_TRIM!J75,CHAR(10),\"Trimestre 2\",CHAR(10),GESTION_SEG_2_TRIM!J75,CHAR(10),\"Trimestre 3\",CHAR(10),GESTION_SEG_3_TRIM!J75),\" \")","v":"Trimestre 1\n\nTrimestre 2\n\nTrimestre 3\n"},{"$f":"IFERROR(_xlfn.CONCAT(\"Trimestre 1\",CHAR(10),GESTION_SEG_1_TRIM!K75,CHAR(10),\"Trimestre 2\",CHAR(10),GESTION_SEG_2_TRIM!K75,CHAR(10),\"Trimestre 3\",CHAR(10),GESTION_SEG_3_TRIM!K75),\" \")","v":" "}]
[null,null,"4. Aumentar la confianza, la cercanía y acceso a los servicios de la Rama Judicial a través, entre otros, de una comunicación clara y asertiva con la ciudadanía.","3. Fomentar la transparencia y la participación generando lineamientos y promoviendo la rendición de cuentas ,la consulta, reporte y planteamiento de inquietudes en relación con las decisiones y aspectos del SIGCMA.","Apoyo","Juris - Gestión de Servicios Judiciales","Seccional","Asignación de salas para la realizacion  de las  adiencias de los despachos que conforman el Sistema Penal Oral Acusatorio de Cali. ","Entregable",null,null,"Lider de Area","Inventario de prestamos de salas ","2023-01-01","2023-12-31",{"$f":"IFERROR(MAX(GESTION_SEG_1_TRIM!H76,GESTION_SEG_2_TRIM!H76,GESTION_SEG_3_TRIM!H76),\" \")","v":0},"",{"$f":"IFERROR(_xlfn.CONCAT(\"Trimestre 1\",CHAR(10),GESTION_SEG_1_TRIM!J76,CHAR(10),\"Trimestre 2\",CHAR(10),GESTION_SEG_2_TRIM!J76,CHAR(10),\"Trimestre 3\",CHAR(10),GESTION_SEG_3_TRIM!J76),\" \")","v":"Trimestre 1\n\nTrimestre 2\n\nTrimestre 3\n"},{"$f":"IFERROR(_xlfn.CONCAT(\"Trimestre 1\",CHAR(10),GESTION_SEG_1_TRIM!K76,CHAR(10),\"Trimestre 2\",CHAR(10),GESTION_SEG_2_TRIM!K76,CHAR(10),\"Trimestre 3\",CHAR(10),GESTION_SEG_3_TRIM!K76),\" \")","v":" "}]
[null,null,null,null,null,null,null,null,null,null,null,null,null,null,null,{"$f":"IFERROR(MAX(GESTION_SEG_1_TRIM!H77,GESTION_SEG_2_TRIM!H77,GESTION_SEG_3_TRIM!H77),\" \")","v":0},"",{"$f":"IFERROR(_xlfn.CONCAT(\"Trimestre 1\",CHAR(10),GESTION_SEG_1_TRIM!J77,CHAR(10),\"Trimestre 2\",CHAR(10),GESTION_SEG_2_TRIM!J77,CHAR(10),\"Trimestre 3\",CHAR(10),GESTION_SEG_3_TRIM!J77),\" \")","v":"Trimestre 1\n\nTrimestre 2\n\nTrimestre 3\n"},{"$f":"IFERROR(_xlfn.CONCAT(\"Trimestre 1\",CHAR(10),GESTION_SEG_1_TRIM!K77,CHAR(10),\"Trimestre 2\",CHAR(10),GESTION_SEG_2_TRIM!K77,CHAR(10),\"Trimestre 3\",CHAR(10),GESTION_SEG_3_TRIM!K77),\" \")","v":"Trimestre 1\n\nTrimestre 2\n\nTrimestre 3\n"}]
[null,null,null,null,null,null,null,null,null,null,null,null,null,null,null,{"$f":"IFERROR(MAX(GESTION_SEG_1_TRIM!H78,GESTION_SEG_2_TRIM!H78,GESTION_SEG_3_TRIM!H78),\" \")","v":0},"",{"$f":"IFERROR(_xlfn.CONCAT(\"Trimestre 1\",CHAR(10),GESTION_SEG_1_TRIM!J78,CHAR(10),\"Trimestre 2\",CHAR(10),GESTION_SEG_2_TRIM!J78,CHAR(10),\"Trimestre 3\",CHAR(10),GESTION_SEG_3_TRIM!J78),\" \")","v":"Trimestre 1\n\nTrimestre 2\n\nTrimestre 3\n"},{"$f":"IFERROR(_xlfn.CONCAT(\"Trimestre 1\",CHAR(10),GESTION_SEG_1_TRIM!K78,CHAR(10),\"Trimestre 2\",CHAR(10),GESTION_SEG_2_TRIM!K78,CHAR(10),\"Trimestre 3\",CHAR(10),GESTION_SEG_3_TRIM!K78),\" \")","v":"Trimestre 1\n\nTrimestre 2\n\nTrimestre 3\n"}]
[null,null,null,null,null,null,null,null,null,null,null,null,null,null,null,{"$f":"IFERROR(MAX(GESTION_SEG_1_TRIM!H79,GESTION_SEG_2_TRIM!H79,GESTION_SEG_3_TRIM!H79),\" \")","v":0},"",{"$f":"IFERROR(_xlfn.CONCAT(\"Trimestre 1\",CHAR(10),GESTION_SEG_1_TRIM!J79,CHAR(10),\"Trimestre 2\",CHAR(10),GESTION_SEG_2_TRIM!J79,CHAR(10),\"Trimestre 3\",CHAR(10),GESTION_SEG_3_TRIM!J79),\" \")","v":"Trimestre 1\n\nTrimestre 2\n\nTrimestre 3\n"},{"$f":"IFERROR(_xlfn.CONCAT(\"Trimestre 1\",CHAR(10),GESTION_SEG_1_TRIM!K79,CHAR(10),\"Trimestre 2\",CHAR(10),GESTION_SEG_2_TRIM!K79,CHAR(10),\"Trimestre 3\",CHAR(10),GESTION_SEG_3_TRIM!K79),\" \")","v":"Trimestre 1\n\nTrimestre 2\n\nTrimestre 3\n"}]
[null,null,null,null,null,null,null,null,null,null,null,null,null,null,null,{"$f":"IFERROR(MAX(GESTION_SEG_1_TRIM!H80,GESTION_SEG_2_TRIM!H80,GESTION_SEG_3_TRIM!H80),\" \")","v":0},"",{"$f":"IFERROR(_xlfn.CONCAT(\"Trimestre 1\",CHAR(10),GESTION_SEG_1_TRIM!J80,CHAR(10),\"Trimestre 2\",CHAR(10),GESTION_SEG_2_TRIM!J80,CHAR(10),\"Trimestre 3\",CHAR(10),GESTION_SEG_3_TRIM!J80),\" \")","v":"Trimestre 1\n\nTrimestre 2\n\nTrimestre 3\n"},{"$f":"IFERROR(_xlfn.CONCAT(\"Trimestre 1\",CHAR(10),GESTION_SEG_1_TRIM!K80,CHAR(10),\"Trimestre 2\",CHAR(10),GESTION_SEG_2_TRIM!K80,CHAR(10),\"Trimestre 3\",CHAR(10),GESTION_SEG_3_TRIM!K80),\" \")","v":"Trimestre 1\n\nTrimestre 2\n\nTrimestre 3\n"}]
[null,null,"5. Prevenir fenómenos asociados con actos de corrupción en la Rama Judicial y reducir las experiencias de corrupción de usuarios y servidores judiciales.",null,null,null,null,null,null,null,null,null,null,null,null,{"$f":"IFERROR(MAX(GESTION_SEG_1_TRIM!H81,GESTION_SEG_2_TRIM!H81,GESTION_SEG_3_TRIM!H81),\" \")","v":0},"",{"$f":"IFERROR(_xlfn.CONCAT(\"Trimestre 1\",CHAR(10),GESTION_SEG_1_TRIM!J81,CHAR(10),\"Trimestre 2\",CHAR(10),GESTION_SEG_2_TRIM!J81,CHAR(10),\"Trimestre 3\",CHAR(10),GESTION_SEG_3_TRIM!J81),\" \")","v":"Trimestre 1\n\nTrimestre 2\n\nTrimestre 3\n"},{"$f":"IFERROR(_xlfn.CONCAT(\"Trimestre 1\",CHAR(10),GESTION_SEG_1_TRIM!K81,CHAR(10),\"Trimestre 2\",CHAR(10),GESTION_SEG_2_TRIM!K81,CHAR(10),\"Trimestre 3\",CHAR(10),GESTION_SEG_3_TRIM!K81),\" \")","v":"Trimestre 1\n\nTrimestre 2\n\nTrimestre 3\n"}]
[null,null,null,null,null,null,null,null,null,null,null,null,null,null,null,{"$f":"IFERROR(MAX(GESTION_SEG_1_TRIM!H82,GESTION_SEG_2_TRIM!H82,GESTION_SEG_3_TRIM!H82),\" \")","v":0},"",{"$f":"IFERROR(_xlfn.CONCAT(\"Trimestre 1\",CHAR(10),GESTION_SEG_1_TRIM!J82,CHAR(10),\"Trimestre 2\",CHAR(10),GESTION_SEG_2_TRIM!J82,CHAR(10),\"Trimestre 3\",CHAR(10),GESTION_SEG_3_TRIM!J82),\" \")","v":"Trimestre 1\n\nTrimestre 2\n\nTrimestre 3\n"},{"$f":"IFERROR(_xlfn.CONCAT(\"Trimestre 1\",CHAR(10),GESTION_SEG_1_TRIM!K82,CHAR(10),\"Trimestre 2\",CHAR(10),GESTION_SEG_2_TRIM!K82,CHAR(10),\"Trimestre 3\",CHAR(10),GESTION_SEG_3_TRIM!K82),\" \")","v":"Trimestre 1\n\nTrimestre 2\n\nTrimestre 3\n"}]
[null,null,null,null,null,null,null,null,null,null,null,null,null,null,null,{"$f":"IFERROR(MAX(GESTION_SEG_1_TRIM!H83,GESTION_SEG_2_TRIM!H83,GESTION_SEG_3_TRIM!H83),\" \")","v":0},"",{"$f":"IFERROR(_xlfn.CONCAT(\"Trimestre 1\",CHAR(10),GESTION_SEG_1_TRIM!J83,CHAR(10),\"Trimestre 2\",CHAR(10),GESTION_SEG_2_TRIM!J83,CHAR(10),\"Trimestre 3\",CHAR(10),GESTION_SEG_3_TRIM!J83),\" \")","v":"Trimestre 1\n\nTrimestre 2\n\nTrimestre 3\n"},{"$f":"IFERROR(_xlfn.CONCAT(\"Trimestre 1\",CHAR(10),GESTION_SEG_1_TRIM!K83,CHAR(10),\"Trimestre 2\",CHAR(10),GESTION_SEG_2_TRIM!K83,CHAR(10),\"Trimestre 3\",CHAR(10),GESTION_SEG_3_TRIM!K83),\" \")","v":"Trimestre 1\n\nTrimestre 2\n\nTrimestre 3\n"}]
[null,null,null,null,null,null,null,null,null,null,null,null,null,null,null,{"$f":"IFERROR(MAX(GESTION_SEG_1_TRIM!H84,GESTION_SEG_2_TRIM!H84,GESTION_SEG_3_TRIM!H84),\" \")","v":0},"",{"$f":"IFERROR(_xlfn.CONCAT(\"Trimestre 1\",CHAR(10),GESTION_SEG_1_TRIM!J84,CHAR(10),\"Trimestre 2\",CHAR(10),GESTION_SEG_2_TRIM!J84,CHAR(10),\"Trimestre 3\",CHAR(10),GESTION_SEG_3_TRIM!J84),\" \")","v":"Trimestre 1\n\nTrimestre 2\n\nTrimestre 3\n"},{"$f":"IFERROR(_xlfn.CONCAT(\"Trimestre 1\",CHAR(10),GESTION_SEG_1_TRIM!K84,CHAR(10),\"Trimestre 2\",CHAR(10),GESTION_SEG_2_TRIM!K84,CHAR(10),\"Trimestre 3\",CHAR(10),GESTION_SEG_3_TRIM!K84),\" \")","v":"Trimestre 1\n\nTrimestre 2\n\nTrimestre 3\n"}]
[null,null,null,null,null,null,null,null,null,null,null,null,null,null,null,{"$f":"IFERROR(MAX(GESTION_SEG_1_TRIM!H85,GESTION_SEG_2_TRIM!H85,GESTION_SEG_3_TRIM!H85),\" \")","v":0},"",{"$f":"IFERROR(_xlfn.CONCAT(\"Trimestre 1\",CHAR(10),GESTION_SEG_1_TRIM!J85,CHAR(10),\"Trimestre 2\",CHAR(10),GESTION_SEG_2_TRIM!J85,CHAR(10),\"Trimestre 3\",CHAR(10),GESTION_SEG_3_TRIM!J85),\" \")","v":"Trimestre 1\n\nTrimestre 2\n\nTrimestre 3\n"},{"$f":"IFERROR(_xlfn.CONCAT(\"Trimestre 1\",CHAR(10),GESTION_SEG_1_TRIM!K85,CHAR(10),\"Trimestre 2\",CHAR(10),GESTION_SEG_2_TRIM!K85,CHAR(10),\"Trimestre 3\",CHAR(10),GESTION_SEG_3_TRIM!K85),\" \")","v":"Trimestre 1\n\nTrimestre 2\n\nTrimestre 3\n"}]
[null,null,"6. Promover la rendición de cuentas y la colaboración real con la ciudadanía como fundamento para diseñar acciones de mejoramiento del acceso a la justicia.",null,null,null,null,null,null,null,null,null,null,null,null,{"$f":"IFERROR(MAX(GESTION_SEG_1_TRIM!H86,GESTION_SEG_2_TRIM!H86,GESTION_SEG_3_TRIM!H86),\" \")","v":0},"",{"$f":"IFERROR(_xlfn.CONCAT(\"Trimestre 1\",CHAR(10),GESTION_SEG_1_TRIM!J86,CHAR(10),\"Trimestre 2\",CHAR(10),GESTION_SEG_2_TRIM!J86,CHAR(10),\"Trimestre 3\",CHAR(10),GESTION_SEG_3_TRIM!J86),\" \")","v":"Trimestre 1\n\nTrimestre 2\n\nTrimestre 3\n"},{"$f":"IFERROR(_xlfn.CONCAT(\"Trimestre 1\",CHAR(10),GESTION_SEG_1_TRIM!K86,CHAR(10),\"Trimestre 2\",CHAR(10),GESTION_SEG_2_TRIM!K86,CHAR(10),\"Trimestre 3\",CHAR(10),GESTION_SEG_3_TRIM!K86),\" \")","v":"Trimestre 1\n\nTrimestre 2\n\nTrimestre 3\n"}]
[null,null,null,null,null,null,null,null,null,null,null,null,null,null,null,{"$f":"IFERROR(MAX(GESTION_SEG_1_TRIM!H87,GESTION_SEG_2_TRIM!H87,GESTION_SEG_3_TRIM!H87),\" \")","v":0},"",{"$f":"IFERROR(_xlfn.CONCAT(\"Trimestre 1\",CHAR(10),GESTION_SEG_1_TRIM!J87,CHAR(10),\"Trimestre 2\",CHAR(10),GESTION_SEG_2_TRIM!J87,CHAR(10),\"Trimestre 3\",CHAR(10),GESTION_SEG_3_TRIM!J87),\" \")","v":"Trimestre 1\n\nTrimestre 2\n\nTrimestre 3\n"},{"$f":"IFERROR(_xlfn.CONCAT(\"Trimestre 1\",CHAR(10),GESTION_SEG_1_TRIM!K87,CHAR(10),\"Trimestre 2\",CHAR(10),GESTION_SEG_2_TRIM!K87,CHAR(10),\"Trimestre 3\",CHAR(10),GESTION_SEG_3_TRIM!K87),\" \")","v":"Trimestre 1\n\nTrimestre 2\n\nTrimestre 3\n"}]
[null,null,null,null,null,null,null,null,null,null,null,null,null,null,null,{"$f":"IFERROR(MAX(GESTION_SEG_1_TRIM!H88,GESTION_SEG_2_TRIM!H88,GESTION_SEG_3_TRIM!H88),\" \")","v":0},"",{"$f":"IFERROR(_xlfn.CONCAT(\"Trimestre 1\",CHAR(10),GESTION_SEG_1_TRIM!J88,CHAR(10),\"Trimestre 2\",CHAR(10),GESTION_SEG_2_TRIM!J88,CHAR(10),\"Trimestre 3\",CHAR(10),GESTION_SEG_3_TRIM!J88),\" \")","v":"Trimestre 1\n\nTrimestre 2\n\nTrimestre 3\n"},{"$f":"IFERROR(_xlfn.CONCAT(\"Trimestre 1\",CHAR(10),GESTION_SEG_1_TRIM!K88,CHAR(10),\"Trimestre 2\",CHAR(10),GESTION_SEG_2_TRIM!K88,CHAR(10),\"Trimestre 3\",CHAR(10),GESTION_SEG_3_TRIM!K88),\" \")","v":"Trimestre 1\n\nTrimestre 2\n\nTrimestre 3\n"}]
[null,null,null,null,null,null,null,null,null,null,null,null,null,null,null,{"$f":"IFERROR(MAX(GESTION_SEG_1_TRIM!H89,GESTION_SEG_2_TRIM!H89,GESTION_SEG_3_TRIM!H89),\" \")","v":0},"",{"$f":"IFERROR(_xlfn.CONCAT(\"Trimestre 1\",CHAR(10),GESTION_SEG_1_TRIM!J89,CHAR(10),\"Trimestre 2\",CHAR(10),GESTION_SEG_2_TRIM!J89,CHAR(10),\"Trimestre 3\",CHAR(10),GESTION_SEG_3_TRIM!J89),\" \")","v":"Trimestre 1\n\nTrimestre 2\n\nTrimestre 3\n"},{"$f":"IFERROR(_xlfn.CONCAT(\"Trimestre 1\",CHAR(10),GESTION_SEG_1_TRIM!K89,CHAR(10),\"Trimestre 2\",CHAR(10),GESTION_SEG_2_TRIM!K89,CHAR(10),\"Trimestre 3\",CHAR(10),GESTION_SEG_3_TRIM!K89),\" \")","v":"Trimestre 1\n\nTrimestre 2\n\nTrimestre 3\n"}]
[null,null,null,null,"Evaluación_y_Mejora","Admin - Mejoramiento del Sistema Integrado de Gestión y Control de la Calidad y del Medio Ambiente","Seccional","Preparar informe de revisión por la alta dirección del año 2022","Entregable",1,"Informe de revisión por la alta dirección","Juez y Profesional Universitario","Informe de revisión por la Alta Dirección","2023-01-01","2023-12-31",{"$f":"IFERROR(MAX(GESTION_SEG_1_TRIM!H90,GESTION_SEG_2_TRIM!H90,GESTION_SEG_3_TRIM!H90),\" \")","v":0},0,{"$f":"IFERROR(_xlfn.CONCAT(\"Trimestre 1\",CHAR(10),GESTION_SEG_1_TRIM!J90,CHAR(10),\"Trimestre 2\",CHAR(10),GESTION_SEG_2_TRIM!J90,CHAR(10),\"Trimestre 3\",CHAR(10),GESTION_SEG_3_TRIM!J90),\" \")","v":"Trimestre 1\n\nTrimestre 2\n\nTrimestre 3\n"},{"$f":"IFERROR(_xlfn.CONCAT(\"Trimestre 1\",CHAR(10),GESTION_SEG_1_TRIM!K90,CHAR(10),\"Trimestre 2\",CHAR(10),GESTION_SEG_2_TRIM!K90,CHAR(10),\"Trimestre 3\",CHAR(10),GESTION_SEG_3_TRIM!K90),\" \")","v":" "}]
[null,null,"7. Continuar la consolidación del SIGCMA, a través de los procesos de formación en modelos de gestión, logrando la implementación y ampliación de este en los esquemas certificados de manera gradual, teniendo en cuenta las capacidades de los diferentes despachos judiciales y dependencias de la Rama Judicial y articulando el enfoque de Arquitectura Empresarial para el desarrollo del PETD a través de la gestión del conocimiento para la gestión del cambio propendiendo por una cultura de la calidad, la transparencia, la rendición de cuentas, la anticorrupción y el antisoborno","1. Gestionar el desarrollo de las competencias, la toma de conciencia , la cultura  organizacional  y el compromiso de los  servidores judiciales, contratistas, practicantes y  judicantes de contribuir a generar valor público en la administración de justicia, en el marco de  cumplimiento de los requisitos  aplicables y el comportamiento ético.\n4. Hacer un uso racional de los recursos naturales aplicando los principios y fases de la Economía Circular, para prevenir, mitigar y controlar los impactos ambientales.","Evaluación_y_Mejora","Admin - Mejoramiento del Sistema Integrado de Gestión y Control de la Calidad y del Medio Ambiente","Seccional","Preparar y hacer seguimiento a la matriz de riesgos del SIGCMA","Entregable",null,null,"Profesional Universitario","Matriz de riesgos del SIGCMA","2023-01-01","2023-12-31",{"$f":"IFERROR(MAX(GESTION_SEG_1_TRIM!H91,GESTION_SEG_2_TRIM!H91,GESTION_SEG_3_TRIM!H91),\" \")","v":0},"",{"$f":"IFERROR(_xlfn.CONCAT(\"Trimestre 1\",CHAR(10),GESTION_SEG_1_TRIM!J91,CHAR(10),\"Trimestre 2\",CHAR(10),GESTION_SEG_2_TRIM!J91,CHAR(10),\"Trimestre 3\",CHAR(10),GESTION_SEG_3_TRIM!J91),\" \")","v":"Trimestre 1\n\nTrimestre 2\n\nTrimestre 3\n"},{"$f":"IFERROR(_xlfn.CONCAT(\"Trimestre 1\",CHAR(10),GESTION_SEG_1_TRIM!K91,CHAR(10),\"Trimestre 2\",CHAR(10),GESTION_SEG_2_TRIM!K91,CHAR(10),\"Trimestre 3\",CHAR(10),GESTION_SEG_3_TRIM!K91),\" \")","v":" "}]
[null,null,null,null,"Evaluación_y_Mejora","Admin - Mejoramiento del Sistema Integrado de Gestión y Control de la Calidad y del Medio Ambiente","Seccional","Preparar y atender las auditorias internas y externas al SIGCMA","Entregable",null,null,"Servidores Judiciales","Actas de auditorías internas y externas al SIGCMA","2023-01-01","2023-12-31",{"$f":"IFERROR(MAX(GESTION_SEG_1_TRIM!H92,GESTION_SEG_2_TRIM!H92,GESTION_SEG_3_TRIM!H92),\" \")","v":0},"",{"$f":"IFERROR(_xlfn.CONCAT(\"Trimestre 1\",CHAR(10),GESTION_SEG_1_TRIM!J92,CHAR(10),\"Trimestre 2\",CHAR(10),GESTION_SEG_2_TRIM!J92,CHAR(10),\"Trimestre 3\",CHAR(10),GESTION_SEG_3_TRIM!J92),\" \")","v":"Trimestre 1\n\nTrimestre 2\n\nTrimestre 3\n"},{"$f":"IFERROR(_xlfn.CONCAT(\"Trimestre 1\",CHAR(10),GESTION_SEG_1_TRIM!K92,CHAR(10),\"Trimestre 2\",CHAR(10),GESTION_SEG_2_TRIM!K92,CHAR(10),\"Trimestre 3\",CHAR(10),GESTION_SEG_3_TRIM!K92),\" \")","v":" "}]
[null,null,null,null,"Evaluación_y_Mejora","Admin - Mejoramiento del Sistema Integrado de Gestión y Control de la Calidad y del Medio Ambiente","Seccional","Formular y desarrollar las acciones de gestión del SIGCMA","Entregable",null,null,"Profesional Universitario","Formatos de acciones de gestión del SIGCMA","2023-01-01","2023-12-31",{"$f":"IFERROR(MAX(GESTION_SEG_1_TRIM!H93,GESTION_SEG_2_TRIM!H93,GESTION_SEG_3_TRIM!H93),\" \")","v":0},"",{"$f":"IFERROR(_xlfn.CONCAT(\"Trimestre 1\",CHAR(10),GESTION_SEG_1_TRIM!J93,CHAR(10),\"Trimestre 2\",CHAR(10),GESTION_SEG_2_TRIM!J93,CHAR(10),\"Trimestre 3\",CHAR(10),GESTION_SEG_3_TRIM!J93),\" \")","v":"Trimestre 1\n\nTrimestre 2\n\nTrimestre 3\n"},{"$f":"IFERROR(_xlfn.CONCAT(\"Trimestre 1\",CHAR(10),GESTION_SEG_1_TRIM!K93,CHAR(10),\"Trimestre 2\",CHAR(10),GESTION_SEG_2_TRIM!K93,CHAR(10),\"Trimestre 3\",CHAR(10),GESTION_SEG_3_TRIM!K93),\" \")","v":" "}]
[null,null,null,null,"Evaluación_y_Mejora","Juris - Gestión de Mejoramiento del SIGCMA","Seccional","Gestionar las salidas no conformes mediante su registro, seguimiento y ejecución de acciones de mejora","Entregable",null,null,"Lideres de Areas","Matriz de registro de salidas no conformes y acciones de mejora","2023-01-01","2023-12-31",{"$f":"IFERROR(MAX(GESTION_SEG_1_TRIM!H94,GESTION_SEG_2_TRIM!H94,GESTION_SEG_3_TRIM!H94),\" \")","v":0},"",{"$f":"IFERROR(_xlfn.CONCAT(\"Trimestre 1\",CHAR(10),GESTION_SEG_1_TRIM!J94,CHAR(10),\"Trimestre 2\",CHAR(10),GESTION_SEG_2_TRIM!J94,CHAR(10),\"Trimestre 3\",CHAR(10),GESTION_SEG_3_TRIM!J94),\" \")","v":"Trimestre 1\n\nTrimestre 2\n\nTrimestre 3\n"},{"$f":"IFERROR(_xlfn.CONCAT(\"Trimestre 1\",CHAR(10),GESTION_SEG_1_TRIM!K94,CHAR(10),\"Trimestre 2\",CHAR(10),GESTION_SEG_2_TRIM!K94,CHAR(10),\"Trimestre 3\",CHAR(10),GESTION_SEG_3_TRIM!K94),\" \")","v":" "}]
[null,null,null,null,"Evaluación_y_Mejora","Juris - Gestión de Mejoramiento del SIGCMA","Seccional","Medir la satisfacción de partes interesadas mediante la encuesta de satisfacción del año 2022","Entregable",1,"Informe de medición de la satisfacción de los usuarios","Profesional Universitario","Encuestas de medición e informe anual de revisión de resultados del periodo anterior","2023-01-01","2023-12-31",{"$f":"IFERROR(MAX(GESTION_SEG_1_TRIM!H95,GESTION_SEG_2_TRIM!H95,GESTION_SEG_3_TRIM!H95),\" \")","v":0},0,{"$f":"IFERROR(_xlfn.CONCAT(\"Trimestre 1\",CHAR(10),GESTION_SEG_1_TRIM!J95,CHAR(10),\"Trimestre 2\",CHAR(10),GESTION_SEG_2_TRIM!J95,CHAR(10),\"Trimestre 3\",CHAR(10),GESTION_SEG_3_TRIM!J95),\" \")","v":"Trimestre 1\n\nTrimestre 2\n\nTrimestre 3\n"},{"$f":"IFERROR(_xlfn.CONCAT(\"Trimestre 1\",CHAR(10),GESTION_SEG_1_TRIM!K95,CHAR(10),\"Trimestre 2\",CHAR(10),GESTION_SEG_2_TRIM!K95,CHAR(10),\"Trimestre 3\",CHAR(10),GESTION_SEG_3_TRIM!K95),\" \")","v":" "}]
["4. Talento Humano","Talento Humano: Fortalecer el talento humano en la Rama Judicial para que sea eficiente, capacitado y realice su labor en ambientes saludables y seguros. Ampliar la cobertura de la carrera judicial y mejorar la oferta de formación, que esté disponible para todos los servidores judiciales e impacte positivamente el servicio de justicia y responda a las necesidades reales del ejercicio de la función judicial.","1. Ampliar la cobertura de la carrera judicial optimizando los procesos de los concursos de méritos y propender por mitigar su litigiosidad.","1. Gestionar el desarrollo de las competencias, la toma de conciencia , la cultura  organizacional  y el compromiso de los  servidores judiciales, contratistas, practicantes y  judicantes de contribuir a generar valor público en la administración de justicia, en el marco de  cumplimiento de los requisitos  aplicables y el comportamiento ético.",null,null,null,null,null,null,null,null,null,null,null,{"$f":"IFERROR(MAX(GESTION_SEG_1_TRIM!H96,GESTION_SEG_2_TRIM!H96,GESTION_SEG_3_TRIM!H96),\" \")","v":0},"",{"$f":"IFERROR(_xlfn.CONCAT(\"Trimestre 1\",CHAR(10),GESTION_SEG_1_TRIM!J96,CHAR(10),\"Trimestre 2\",CHAR(10),GESTION_SEG_2_TRIM!J96,CHAR(10),\"Trimestre 3\",CHAR(10),GESTION_SEG_3_TRIM!J96),\" \")","v":"Trimestre 1\n\nTrimestre 2\n\nTrimestre 3\n"},{"$f":"IFERROR(_xlfn.CONCAT(\"Trimestre 1\",CHAR(10),GESTION_SEG_1_TRIM!K96,CHAR(10),\"Trimestre 2\",CHAR(10),GESTION_SEG_2_TRIM!K96,CHAR(10),\"Trimestre 3\",CHAR(10),GESTION_SEG_3_TRIM!K96),\" \")","v":"Trimestre 1\n\nTrimestre 2\n\nTrimestre 3\n"}]
[null,null,null,null,null,null,null,null,null,null,null,null,null,null,null,{"$f":"IFERROR(MAX(GESTION_SEG_1_TRIM!H97,GESTION_SEG_2_TRIM!H97,GESTION_SEG_3_TRIM!H97),\" \")","v":0},"",{"$f":"IFERROR(_xlfn.CONCAT(\"Trimestre 1\",CHAR(10),GESTION_SEG_1_TRIM!J97,CHAR(10),\"Trimestre 2\",CHAR(10),GESTION_SEG_2_TRIM!J97,CHAR(10),\"Trimestre 3\",CHAR(10),GESTION_SEG_3_TRIM!J97),\" \")","v":"Trimestre 1\n\nTrimestre 2\n\nTrimestre 3\n"},{"$f":"IFERROR(_xlfn.CONCAT(\"Trimestre 1\",CHAR(10),GESTION_SEG_1_TRIM!K97,CHAR(10),\"Trimestre 2\",CHAR(10),GESTION_SEG_2_TRIM!K97,CHAR(10),\"Trimestre 3\",CHAR(10),GESTION_SEG_3_TRIM!K97),\" \")","v":"Trimestre 1\n\nTrimestre 2\n\nTrimestre 3\n"}]
[null,null,null,null,null,null,null,null,null,null,null,null,null,null,null,{"$f":"IFERROR(MAX(GESTION_SEG_1_TRIM!H98,GESTION_SEG_2_TRIM!H98,GESTION_SEG_3_TRIM!H98),\" \")","v":0},"",{"$f":"IFERROR(_xlfn.CONCAT(\"Trimestre 1\",CHAR(10),GESTION_SEG_1_TRIM!J98,CHAR(10),\"Trimestre 2\",CHAR(10),GESTION_SEG_2_TRIM!J98,CHAR(10),\"Trimestre 3\",CHAR(10),GESTION_SEG_3_TRIM!J98),\" \")","v":"Trimestre 1\n\nTrimestre 2\n\nTrimestre 3\n"},{"$f":"IFERROR(_xlfn.CONCAT(\"Trimestre 1\",CHAR(10),GESTION_SEG_1_TRIM!K98,CHAR(10),\"Trimestre 2\",CHAR(10),GESTION_SEG_2_TRIM!K98,CHAR(10),\"Trimestre 3\",CHAR(10),GESTION_SEG_3_TRIM!K98),\" \")","v":"Trimestre 1\n\nTrimestre 2\n\nTrimestre 3\n"}]
[null,null,null,null,null,null,null,null,null,null,null,null,null,null,null,{"$f":"IFERROR(MAX(GESTION_SEG_1_TRIM!H99,GESTION_SEG_2_TRIM!H99,GESTION_SEG_3_TRIM!H99),\" \")","v":0},"",{"$f":"IFERROR(_xlfn.CONCAT(\"Trimestre 1\",CHAR(10),GESTION_SEG_1_TRIM!J99,CHAR(10),\"Trimestre 2\",CHAR(10),GESTION_SEG_2_TRIM!J99,CHAR(10),\"Trimestre 3\",CHAR(10),GESTION_SEG_3_TRIM!J99),\" \")","v":"Trimestre 1\n\nTrimestre 2\n\nTrimestre 3\n"},{"$f":"IFERROR(_xlfn.CONCAT(\"Trimestre 1\",CHAR(10),GESTION_SEG_1_TRIM!K99,CHAR(10),\"Trimestre 2\",CHAR(10),GESTION_SEG_2_TRIM!K99,CHAR(10),\"Trimestre 3\",CHAR(10),GESTION_SEG_3_TRIM!K99),\" \")","v":"Trimestre 1\n\nTrimestre 2\n\nTrimestre 3\n"}]
[null,null,null,null,null,null,null,null,null,null,null,null,null,null,null,{"$f":"IFERROR(MAX(GESTION_SEG_1_TRIM!H100,GESTION_SEG_2_TRIM!H100,GESTION_SEG_3_TRIM!H100),\" \")","v":0},"",{"$f":"IFERROR(_xlfn.CONCAT(\"Trimestre 1\",CHAR(10),GESTION_SEG_1_TRIM!J100,CHAR(10),\"Trimestre 2\",CHAR(10),GESTION_SEG_2_TRIM!J100,CHAR(10),\"Trimestre 3\",CHAR(10),GESTION_SEG_3_TRIM!J100),\" \")","v":"Trimestre 1\n\nTrimestre 2\n\nTrimestre 3\n"},{"$f":"IFERROR(_xlfn.CONCAT(\"Trimestre 1\",CHAR(10),GESTION_SEG_1_TRIM!K100,CHAR(10),\"Trimestre 2\",CHAR(10),GESTION_SEG_2_TRIM!K100,CHAR(10),\"Trimestre 3\",CHAR(10),GESTION_SEG_3_TRIM!K100),\" \")","v":"Trimestre 1\n\nTrimestre 2\n\nTrimestre 3\n"}]
[null,null,"2. Impactar la función y servicios que presta la Rama Judicial, a través de una formación integral desde una visión de gestión del conocimiento, relacionada con los problemas de la justicia y los problemas de gestión de quienes administran los recursos de la justicia, y potenciando el uso de medios virtuales.",null,"Apoyo","Admin - Gestión Humana","Seccional","Participar de los diplomados programados en el Plan de Formación por la Dirección Nacional del SIGCMA","Entregable",null,null,"Servidores Judiciales","Controles de asistencia y certificaciones de aprobación de diplomados.","2023-01-01","2023-12-31",{"$f":"IFERROR(MAX(GESTION_SEG_1_TRIM!H101,GESTION_SEG_2_TRIM!H101,GESTION_SEG_3_TRIM!H101),\" \")","v":0},"",{"$f":"IFERROR(_xlfn.CONCAT(\"Trimestre 1\",CHAR(10),GESTION_SEG_1_TRIM!J101,CHAR(10),\"Trimestre 2\",CHAR(10),GESTION_SEG_2_TRIM!J101,CHAR(10),\"Trimestre 3\",CHAR(10),GESTION_SEG_3_TRIM!J101),\" \")","v":"Trimestre 1\n\nTrimestre 2\n\nTrimestre 3\n"},{"$f":"IFERROR(_xlfn.CONCAT(\"Trimestre 1\",CHAR(10),GESTION_SEG_1_TRIM!K101,CHAR(10),\"Trimestre 2\",CHAR(10),GESTION_SEG_2_TRIM!K101,CHAR(10),\"Trimestre 3\",CHAR(10),GESTION_SEG_3_TRIM!K101),\" \")","v":" "}]
[null,null,null,null,"Apoyo","Admin - Gestión Humana","Seccional","Capacitar a los servidores en temas de SIGCMA. ","Entregable",null,null,"Servidores Judiciales","Controles de asistencia y evidencia fotografica.","2023-01-01","2023-12-31",{"$f":"IFERROR(MAX(GESTION_SEG_1_TRIM!H102,GESTION_SEG_2_TRIM!H102,GESTION_SEG_3_TRIM!H102),\" \")","v":0},{"$f":"IFERROR(P102/J102,\"\")","v":""},{"$f":"IFERROR(_xlfn.CONCAT(\"Trimestre 1\",CHAR(10),GESTION_SEG_1_TRIM!J102,CHAR(10),\"Trimestre 2\",CHAR(10),GESTION_SEG_2_TRIM!J102,CHAR(10),\"Trimestre 3\",CHAR(10),GESTION_SEG_3_TRIM!J102),\" \")","v":"Trimestre 1\n\nTrimestre 2\n\nTrimestre 3\n"},{"$f":"IFERROR(_xlfn.CONCAT(\"Trimestre 1\",CHAR(10),GESTION_SEG_1_TRIM!K102,CHAR(10),\"Trimestre 2\",CHAR(10),GESTION_SEG_2_TRIM!K102,CHAR(10),\"Trimestre 3\",CHAR(10),GESTION_SEG_3_TRIM!K102),\" \")","v":" "}]
[null,null,null,null,null,null,null,null,null,null,null,null,null,null,null,{"$f":"IFERROR(MAX(GESTION_SEG_1_TRIM!H103,GESTION_SEG_2_TRIM!H103,GESTION_SEG_3_TRIM!H103),\" \")","v":0},"",{"$f":"IFERROR(_xlfn.CONCAT(\"Trimestre 1\",CHAR(10),GESTION_SEG_1_TRIM!J103,CHAR(10),\"Trimestre 2\",CHAR(10),GESTION_SEG_2_TRIM!J103,CHAR(10),\"Trimestre 3\",CHAR(10),GESTION_SEG_3_TRIM!J103),\" \")","v":"Trimestre 1\n\nTrimestre 2\n\nTrimestre 3\n"},{"$f":"IFERROR(_xlfn.CONCAT(\"Trimestre 1\",CHAR(10),GESTION_SEG_1_TRIM!K103,CHAR(10),\"Trimestre 2\",CHAR(10),GESTION_SEG_2_TRIM!K103,CHAR(10),\"Trimestre 3\",CHAR(10),GESTION_SEG_3_TRIM!K103),\" \")","v":"Trimestre 1\n\nTrimestre 2\n\nTrimestre 3\n"}]
[null,null,null,null,null,null,null,null,null,null,null,null,null,null,null,{"$f":"IFERROR(MAX(GESTION_SEG_1_TRIM!H104,GESTION_SEG_2_TRIM!H104,GESTION_SEG_3_TRIM!H104),\" \")","v":0},"",{"$f":"IFERROR(_xlfn.CONCAT(\"Trimestre 1\",CHAR(10),GESTION_SEG_1_TRIM!J104,CHAR(10),\"Trimestre 2\",CHAR(10),GESTION_SEG_2_TRIM!J104,CHAR(10),\"Trimestre 3\",CHAR(10),GESTION_SEG_3_TRIM!J104),\" \")","v":"Trimestre 1\n\nTrimestre 2\n\nTrimestre 3\n"},{"$f":"IFERROR(_xlfn.CONCAT(\"Trimestre 1\",CHAR(10),GESTION_SEG_1_TRIM!K104,CHAR(10),\"Trimestre 2\",CHAR(10),GESTION_SEG_2_TRIM!K104,CHAR(10),\"Trimestre 3\",CHAR(10),GESTION_SEG_3_TRIM!K104),\" \")","v":"Trimestre 1\n\nTrimestre 2\n\nTrimestre 3\n"}]
[null,null,null,null,null,null,null,null,null,null,null,null,null,null,null,{"$f":"IFERROR(MAX(GESTION_SEG_1_TRIM!H105,GESTION_SEG_2_TRIM!H105,GESTION_SEG_3_TRIM!H105),\" \")","v":0},"",{"$f":"IFERROR(_xlfn.CONCAT(\"Trimestre 1\",CHAR(10),GESTION_SEG_1_TRIM!J105,CHAR(10),\"Trimestre 2\",CHAR(10),GESTION_SEG_2_TRIM!J105,CHAR(10),\"Trimestre 3\",CHAR(10),GESTION_SEG_3_TRIM!J105),\" \")","v":"Trimestre 1\n\nTrimestre 2\n\nTrimestre 3\n"},{"$f":"IFERROR(_xlfn.CONCAT(\"Trimestre 1\",CHAR(10),GESTION_SEG_1_TRIM!K105,CHAR(10),\"Trimestre 2\",CHAR(10),GESTION_SEG_2_TRIM!K105,CHAR(10),\"Trimestre 3\",CHAR(10),GESTION_SEG_3_TRIM!K105),\" \")","v":"Trimestre 1\n\nTrimestre 2\n\nTrimestre 3\n"}]
[null,null,"3. Promover la incorporación de la perspectiva de género y el enfoque diferencial en los fallos judiciales y en la atención a los ciudadanos, la administración de la Rama Judicial, la administración de la carrera judicial y la elaboración de listas para altas Cortes. ",null,null,null,null,null,null,null,null,null,null,null,null,{"$f":"IFERROR(MAX(GESTION_SEG_1_TRIM!H106,GESTION_SEG_2_TRIM!H106,GESTION_SEG_3_TRIM!H106),\" \")","v":0},"",{"$f":"IFERROR(_xlfn.CONCAT(\"Trimestre 1\",CHAR(10),GESTION_SEG_1_TRIM!J106,CHAR(10),\"Trimestre 2\",CHAR(10),GESTION_SEG_2_TRIM!J106,CHAR(10),\"Trimestre 3\",CHAR(10),GESTION_SEG_3_TRIM!J106),\" \")","v":"Trimestre 1\n\nTrimestre 2\n\nTrimestre 3\n"},{"$f":"IFERROR(_xlfn.CONCAT(\"Trimestre 1\",CHAR(10),GESTION_SEG_1_TRIM!K106,CHAR(10),\"Trimestre 2\",CHAR(10),GESTION_SEG_2_TRIM!K106,CHAR(10),\"Trimestre 3\",CHAR(10),GESTION_SEG_3_TRIM!K106),\" \")","v":"Trimestre 1\n\nTrimestre 2\n\nTrimestre 3\n"}]
[null,null,null,null,null,null,null,null,null,null,null,null,null,null,null,{"$f":"IFERROR(MAX(GESTION_SEG_1_TRIM!H107,GESTION_SEG_2_TRIM!H107,GESTION_SEG_3_TRIM!H107),\" \")","v":0},"",{"$f":"IFERROR(_xlfn.CONCAT(\"Trimestre 1\",CHAR(10),GESTION_SEG_1_TRIM!J107,CHAR(10),\"Trimestre 2\",CHAR(10),GESTION_SEG_2_TRIM!J107,CHAR(10),\"Trimestre 3\",CHAR(10),GESTION_SEG_3_TRIM!J107),\" \")","v":"Trimestre 1\n\nTrimestre 2\n\nTrimestre 3\n"},{"$f":"IFERROR(_xlfn.CONCAT(\"Trimestre 1\",CHAR(10),GESTION_SEG_1_TRIM!K107,CHAR(10),\"Trimestre 2\",CHAR(10),GESTION_SEG_2_TRIM!K107,CHAR(10),\"Trimestre 3\",CHAR(10),GESTION_SEG_3_TRIM!K107),\" \")","v":"Trimestre 1\n\nTrimestre 2\n\nTrimestre 3\n"}]
[null,null,null,null,null,null,null,null,null,null,null,null,null,null,null,{"$f":"IFERROR(MAX(GESTION_SEG_1_TRIM!H108,GESTION_SEG_2_TRIM!H108,GESTION_SEG_3_TRIM!H108),\" \")","v":0},"",{"$f":"IFERROR(_xlfn.CONCAT(\"Trimestre 1\",CHAR(10),GESTION_SEG_1_TRIM!J108,CHAR(10),\"Trimestre 2\",CHAR(10),GESTION_SEG_2_TRIM!J108,CHAR(10),\"Trimestre 3\",CHAR(10),GESTION_SEG_3_TRIM!J108),\" \")","v":"Trimestre 1\n\nTrimestre 2\n\nTrimestre 3\n"},{"$f":"IFERROR(_xlfn.CONCAT(\"Trimestre 1\",CHAR(10),GESTION_SEG_1_TRIM!K108,CHAR(10),\"Trimestre 2\",CHAR(10),GESTION_SEG_2_TRIM!K108,CHAR(10),\"Trimestre 3\",CHAR(10),GESTION_SEG_3_TRIM!K108),\" \")","v":"Trimestre 1\n\nTrimestre 2\n\nTrimestre 3\n"}]
[null,null,null,null,null,null,null,null,null,null,null,null,null,null,null,{"$f":"IFERROR(MAX(GESTION_SEG_1_TRIM!H109,GESTION_SEG_2_TRIM!H109,GESTION_SEG_3_TRIM!H109),\" \")","v":0},"",{"$f":"IFERROR(_xlfn.CONCAT(\"Trimestre 1\",CHAR(10),GESTION_SEG_1_TRIM!J109,CHAR(10),\"Trimestre 2\",CHAR(10),GESTION_SEG_2_TRIM!J109,CHAR(10),\"Trimestre 3\",CHAR(10),GESTION_SEG_3_TRIM!J109),\" \")","v":"Trimestre 1\n\nTrimestre 2\n\nTrimestre 3\n"},{"$f":"IFERROR(_xlfn.CONCAT(\"Trimestre 1\",CHAR(10),GESTION_SEG_1_TRIM!K109,CHAR(10),\"Trimestre 2\",CHAR(10),GESTION_SEG_2_TRIM!K109,CHAR(10),\"Trimestre 3\",CHAR(10),GESTION_SEG_3_TRIM!K109),\" \")","v":"Trimestre 1\n\nTrimestre 2\n\nTrimestre 3\n"}]
[null,null,null,null,null,null,null,null,null,null,null,null,null,null,null,{"$f":"IFERROR(MAX(GESTION_SEG_1_TRIM!H110,GESTION_SEG_2_TRIM!H110,GESTION_SEG_3_TRIM!H110),\" \")","v":0},"",{"$f":"IFERROR(_xlfn.CONCAT(\"Trimestre 1\",CHAR(10),GESTION_SEG_1_TRIM!J110,CHAR(10),\"Trimestre 2\",CHAR(10),GESTION_SEG_2_TRIM!J110,CHAR(10),\"Trimestre 3\",CHAR(10),GESTION_SEG_3_TRIM!J110),\" \")","v":"Trimestre 1\n\nTrimestre 2\n\nTrimestre 3\n"},{"$f":"IFERROR(_xlfn.CONCAT(\"Trimestre 1\",CHAR(10),GESTION_SEG_1_TRIM!K110,CHAR(10),\"Trimestre 2\",CHAR(10),GESTION_SEG_2_TRIM!K110,CHAR(10),\"Trimestre 3\",CHAR(10),GESTION_SEG_3_TRIM!K110),\" \")","v":"Trimestre 1\n\nTrimestre 2\n\nTrimestre 3\n"}]
[null,null,"4. Desarrollar en los servidores judiciales y demás grupos de valor relevantes las competencias necesarias para la efectividad de la transformación digital de modo que puedan, entre otros, utilizar con solvencia las herramientas digitales dispuestas para sus respectivas funciones. Además, fortalecer y actualizar los conocimientos del personal a cargo de la gestión de proyectos de tecnología.",null,null,null,null,null,null,null,null,null,null,null,null,{"$f":"IFERROR(MAX(GESTION_SEG_1_TRIM!H111,GESTION_SEG_2_TRIM!H111,GESTION_SEG_3_TRIM!H111),\" \")","v":0},"",{"$f":"IFERROR(_xlfn.CONCAT(\"Trimestre 1\",CHAR(10),GESTION_SEG_1_TRIM!J111,CHAR(10),\"Trimestre 2\",CHAR(10),GESTION_SEG_2_TRIM!J111,CHAR(10),\"Trimestre 3\",CHAR(10),GESTION_SEG_3_TRIM!J111),\" \")","v":"Trimestre 1\n\nTrimestre 2\n\nTrimestre 3\n"},{"$f":"IFERROR(_xlfn.CONCAT(\"Trimestre 1\",CHAR(10),GESTION_SEG_1_TRIM!K111,CHAR(10),\"Trimestre 2\",CHAR(10),GESTION_SEG_2_TRIM!K111,CHAR(10),\"Trimestre 3\",CHAR(10),GESTION_SEG_3_TRIM!K111),\" \")","v":"Trimestre 1\n\nTrimestre 2\n\nTrimestre 3\n"}]
[null,null,null,null,null,null,null,null,null,null,null,null,null,null,null,{"$f":"IFERROR(MAX(GESTION_SEG_1_TRIM!H112,GESTION_SEG_2_TRIM!H112,GESTION_SEG_3_TRIM!H112),\" \")","v":0},"",{"$f":"IFERROR(_xlfn.CONCAT(\"Trimestre 1\",CHAR(10),GESTION_SEG_1_TRIM!J112,CHAR(10),\"Trimestre 2\",CHAR(10),GESTION_SEG_2_TRIM!J112,CHAR(10),\"Trimestre 3\",CHAR(10),GESTION_SEG_3_TRIM!J112),\" \")","v":"Trimestre 1\n\nTrimestre 2\n\nTrimestre 3\n"},{"$f":"IFERROR(_xlfn.CONCAT(\"Trimestre 1\",CHAR(10),GESTION_SEG_1_TRIM!K112,CHAR(10),\"Trimestre 2\",CHAR(10),GESTION_SEG_2_TRIM!K112,CHAR(10),\"Trimestre 3\",CHAR(10),GESTION_SEG_3_TRIM!K112),\" \")","v":"Trimestre 1\n\nTrimestre 2\n\nTrimestre 3\n"}]
[null,null,null,null,null,null,null,null,null,null,null,null,null,null,null,{"$f":"IFERROR(MAX(GESTION_SEG_1_TRIM!H113,GESTION_SEG_2_TRIM!H113,GESTION_SEG_3_TRIM!H113),\" \")","v":0},"",{"$f":"IFERROR(_xlfn.CONCAT(\"Trimestre 1\",CHAR(10),GESTION_SEG_1_TRIM!J113,CHAR(10),\"Trimestre 2\",CHAR(10),GESTION_SEG_2_TRIM!J113,CHAR(10),\"Trimestre 3\",CHAR(10),GESTION_SEG_3_TRIM!J113),\" \")","v":"Trimestre 1\n\nTrimestre 2\n\nTrimestre 3\n"},{"$f":"IFERROR(_xlfn.CONCAT(\"Trimestre 1\",CHAR(10),GESTION_SEG_1_TRIM!K113,CHAR(10),\"Trimestre 2\",CHAR(10),GESTION_SEG_2_TRIM!K113,CHAR(10),\"Trimestre 3\",CHAR(10),GESTION_SEG_3_TRIM!K113),\" \")","v":"Trimestre 1\n\nTrimestre 2\n\nTrimestre 3\n"}]
[null,null,null,null,null,null,null,null,null,null,null,null,null,null,null,{"$f":"IFERROR(MAX(GESTION_SEG_1_TRIM!H114,GESTION_SEG_2_TRIM!H114,GESTION_SEG_3_TRIM!H114),\" \")","v":0},"",{"$f":"IFERROR(_xlfn.CONCAT(\"Trimestre 1\",CHAR(10),GESTION_SEG_1_TRIM!J114,CHAR(10),\"Trimestre 2\",CHAR(10),GESTION_SEG_2_TRIM!J114,CHAR(10),\"Trimestre 3\",CHAR(10),GESTION_SEG_3_TRIM!J114),\" \")","v":"Trimestre 1\n\nTrimestre 2\n\nTrimestre 3\n"},{"$f":"IFERROR(_xlfn.CONCAT(\"Trimestre 1\",CHAR(10),GESTION_SEG_1_TRIM!K114,CHAR(10),\"Trimestre 2\",CHAR(10),GESTION_SEG_2_TRIM!K114,CHAR(10),\"Trimestre 3\",CHAR(10),GESTION_SEG_3_TRIM!K114),\" \")","v":"Trimestre 1\n\nTrimestre 2\n\nTrimestre 3\n"}]
[null,null,null,null,null,null,null,null,null,null,null,null,null,null,null,{"$f":"IFERROR(MAX(GESTION_SEG_1_TRIM!H115,GESTION_SEG_2_TRIM!H115,GESTION_SEG_3_TRIM!H115),\" \")","v":0},"",{"$f":"IFERROR(_xlfn.CONCAT(\"Trimestre 1\",CHAR(10),GESTION_SEG_1_TRIM!J115,CHAR(10),\"Trimestre 2\",CHAR(10),GESTION_SEG_2_TRIM!J115,CHAR(10),\"Trimestre 3\",CHAR(10),GESTION_SEG_3_TRIM!J115),\" \")","v":"Trimestre 1\n\nTrimestre 2\n\nTrimestre 3\n"},{"$f":"IFERROR(_xlfn.CONCAT(\"Trimestre 1\",CHAR(10),GESTION_SEG_1_TRIM!K115,CHAR(10),\"Trimestre 2\",CHAR(10),GESTION_SEG_2_TRIM!K115,CHAR(10),\"Trimestre 3\",CHAR(10),GESTION_SEG_3_TRIM!K115),\" \")","v":"Trimestre 1\n\nTrimestre 2\n\nTrimestre 3\n"}]
[null,null,"5. Promover el bienestar de todos los servidores judiciales a través de la implementación de un sistema que contemple los diferentes niveles de estrategias y acciones necesarios para mejorar el clima laboral, la salud física y mental y la calidad del tiempo de descanso.","5. Generar espacios de trabajo seguros y saludables que contribuyan a minimizar los  incidentes, accidentes y enfermedades laborales derivados de las condiciones y actos  inseguros y fomentar  el autocuidado, los  estilos de vida y el trabajo saludable en los servidores judiciales, contratistas, judicantes y practicantes","Apoyo","Admin - Gestión Humana","Seccional","Asistir a las capacitaciones convocadas por la Rama Judicial, a traves del área de SST y la Coordinación del Centro de Servicios Judiciales. ","Entregable",null,null,"Servidores Judiciales","Controles de asistencia y evidencia fotografica.","2023-01-01","2023-12-31",{"$f":"IFERROR(MAX(GESTION_SEG_1_TRIM!H116,GESTION_SEG_2_TRIM!H116,GESTION_SEG_3_TRIM!H116),\" \")","v":0},"",{"$f":"IFERROR(_xlfn.CONCAT(\"Trimestre 1\",CHAR(10),GESTION_SEG_1_TRIM!J116,CHAR(10),\"Trimestre 2\",CHAR(10),GESTION_SEG_2_TRIM!J116,CHAR(10),\"Trimestre 3\",CHAR(10),GESTION_SEG_3_TRIM!J116),\" \")","v":"Trimestre 1\n\nTrimestre 2\n\nTrimestre 3\n"},{"$f":"IFERROR(_xlfn.CONCAT(\"Trimestre 1\",CHAR(10),GESTION_SEG_1_TRIM!K116,CHAR(10),\"Trimestre 2\",CHAR(10),GESTION_SEG_2_TRIM!K116,CHAR(10),\"Trimestre 3\",CHAR(10),GESTION_SEG_3_TRIM!K116),\" \")","v":" "}]
[null,null,null,null,null,null,null,null,null,null,null,null,null,null,null,{"$f":"IFERROR(MAX(GESTION_SEG_1_TRIM!H117,GESTION_SEG_2_TRIM!H117,GESTION_SEG_3_TRIM!H117),\" \")","v":0},"",{"$f":"IFERROR(_xlfn.CONCAT(\"Trimestre 1\",CHAR(10),GESTION_SEG_1_TRIM!J117,CHAR(10),\"Trimestre 2\",CHAR(10),GESTION_SEG_2_TRIM!J117,CHAR(10),\"Trimestre 3\",CHAR(10),GESTION_SEG_3_TRIM!J117),\" \")","v":"Trimestre 1\n\nTrimestre 2\n\nTrimestre 3\n"},{"$f":"IFERROR(_xlfn.CONCAT(\"Trimestre 1\",CHAR(10),GESTION_SEG_1_TRIM!K117,CHAR(10),\"Trimestre 2\",CHAR(10),GESTION_SEG_2_TRIM!K117,CHAR(10),\"Trimestre 3\",CHAR(10),GESTION_SEG_3_TRIM!K117),\" \")","v":"Trimestre 1\n\nTrimestre 2\n\nTrimestre 3\n"}]
[null,null,null,null,null,null,null,null,null,null,null,null,null,null,null,{"$f":"IFERROR(MAX(GESTION_SEG_1_TRIM!H118,GESTION_SEG_2_TRIM!H118,GESTION_SEG_3_TRIM!H118),\" \")","v":0},"",{"$f":"IFERROR(_xlfn.CONCAT(\"Trimestre 1\",CHAR(10),GESTION_SEG_1_TRIM!J118,CHAR(10),\"Trimestre 2\",CHAR(10),GESTION_SEG_2_TRIM!J118,CHAR(10),\"Trimestre 3\",CHAR(10),GESTION_SEG_3_TRIM!J118),\" \")","v":"Trimestre 1\n\nTrimestre 2\n\nTrimestre 3\n"},{"$f":"IFERROR(_xlfn.CONCAT(\"Trimestre 1\",CHAR(10),GESTION_SEG_1_TRIM!K118,CHAR(10),\"Trimestre 2\",CHAR(10),GESTION_SEG_2_TRIM!K118,CHAR(10),\"Trimestre 3\",CHAR(10),GESTION_SEG_3_TRIM!K118),\" \")","v":"Trimestre 1\n\nTrimestre 2\n\nTrimestre 3\n"}]
[null,null,null,null,null,null,null,null,null,null,null,null,null,null,null,{"$f":"IFERROR(MAX(GESTION_SEG_1_TRIM!H119,GESTION_SEG_2_TRIM!H119,GESTION_SEG_3_TRIM!H119),\" \")","v":0},"",{"$f":"IFERROR(_xlfn.CONCAT(\"Trimestre 1\",CHAR(10),GESTION_SEG_1_TRIM!J119,CHAR(10),\"Trimestre 2\",CHAR(10),GESTION_SEG_2_TRIM!J119,CHAR(10),\"Trimestre 3\",CHAR(10),GESTION_SEG_3_TRIM!J119),\" \")","v":"Trimestre 1\n\nTrimestre 2\n\nTrimestre 3\n"},{"$f":"IFERROR(_xlfn.CONCAT(\"Trimestre 1\",CHAR(10),GESTION_SEG_1_TRIM!K119,CHAR(10),\"Trimestre 2\",CHAR(10),GESTION_SEG_2_TRIM!K119,CHAR(10),\"Trimestre 3\",CHAR(10),GESTION_SEG_3_TRIM!K119),\" \")","v":"Trimestre 1\n\nTrimestre 2\n\nTrimestre 3\n"}]
[null,null,null,null,null,null,null,null,null,null,null,null,null,null,null,{"$f":"IFERROR(MAX(GESTION_SEG_1_TRIM!H120,GESTION_SEG_2_TRIM!H120,GESTION_SEG_3_TRIM!H120),\" \")","v":0},"",{"$f":"IFERROR(_xlfn.CONCAT(\"Trimestre 1\",CHAR(10),GESTION_SEG_1_TRIM!J120,CHAR(10),\"Trimestre 2\",CHAR(10),GESTION_SEG_2_TRIM!J120,CHAR(10),\"Trimestre 3\",CHAR(10),GESTION_SEG_3_TRIM!J120),\" \")","v":"Trimestre 1\n\nTrimestre 2\n\nTrimestre 3\n"},{"$f":"IFERROR(_xlfn.CONCAT(\"Trimestre 1\",CHAR(10),GESTION_SEG_1_TRIM!K120,CHAR(10),\"Trimestre 2\",CHAR(10),GESTION_SEG_2_TRIM!K120,CHAR(10),\"Trimestre 3\",CHAR(10),GESTION_SEG_3_TRIM!K120),\" \")","v":"Trimestre 1\n\nTrimestre 2\n\nTrimestre 3\n"}]
["5. Gobernanza, planeación estratégica y capacidad de toma de decisiones","Gobernanza, planeación estratégica y capacidad de toma de decisiones: Fortalecer la gobernanza, la planeación estratégica y la capacidad de toma de decisiones de la Rama Judicial con base en la evidencia empírica y la articulación efectiva con las demás entidades, para que la perspectiva de género y el enfoque diferencial sean transversales en el presente plan. ","1. Implementar un nuevo modelo integrado para la planeación estratégica, el seguimiento y la medición del desempeño institucional.","2. Asegurar  el cumplimiento de los objetivos institucionales, la normatividad aplicable,  la mejora del SIGCMA y la satisfacción de los usuarios, revisando de  forma continua y sistemática la planificación de la gestión y fortaleciendo la administración de riesgos y sus controles.","Estratégicos","Juris - Gestión de Planeación Estratégica","Seccional","Preparar plan de acción del SICGMA 2023","Meta cuantificable",1,"Plan de acción del SIGCMA","Integrantes del Comité del SIGCMA","Plan de acción 2023 aprobado por el Comité del SIGCMA","2023-01-01","2023-12-31",{"$f":"IFERROR(MAX(GESTION_SEG_1_TRIM!H121,GESTION_SEG_2_TRIM!H121,GESTION_SEG_3_TRIM!H121),\" \")","v":0},0,{"$f":"IFERROR(_xlfn.CONCAT(\"Trimestre 1\",CHAR(10),GESTION_SEG_1_TRIM!J121,CHAR(10),\"Trimestre 2\",CHAR(10),GESTION_SEG_2_TRIM!J121,CHAR(10),\"Trimestre 3\",CHAR(10),GESTION_SEG_3_TRIM!J121),\" \")","v":"Trimestre 1\n\nTrimestre 2\n\nTrimestre 3\n"},{"$f":"IFERROR(_xlfn.CONCAT(\"Trimestre 1\",CHAR(10),GESTION_SEG_1_TRIM!K121,CHAR(10),\"Trimestre 2\",CHAR(10),GESTION_SEG_2_TRIM!K121,CHAR(10),\"Trimestre 3\",CHAR(10),GESTION_SEG_3_TRIM!K121),\" \")","v":" "}]
[null,null,null,null,"Estratégicos","Juris - Gestión de Planeación Estratégica","Seccional","Realizar reuniones de seguimiento de las actividades. ","Entregable",null,null,"Profesional Universitario","Actas y listados de asistencia de las sesiones del Comité Nacional del SIGCMA","2023-01-01","2023-12-31",{"$f":"IFERROR(MAX(GESTION_SEG_1_TRIM!H122,GESTION_SEG_2_TRIM!H122,GESTION_SEG_3_TRIM!H122),\" \")","v":0},"",{"$f":"IFERROR(_xlfn.CONCAT(\"Trimestre 1\",CHAR(10),GESTION_SEG_1_TRIM!J122,CHAR(10),\"Trimestre 2\",CHAR(10),GESTION_SEG_2_TRIM!J122,CHAR(10),\"Trimestre 3\",CHAR(10),GESTION_SEG_3_TRIM!J122),\" \")","v":"Trimestre 1\n\nTrimestre 2\n\nTrimestre 3\n"},{"$f":"IFERROR(_xlfn.CONCAT(\"Trimestre 1\",CHAR(10),GESTION_SEG_1_TRIM!K122,CHAR(10),\"Trimestre 2\",CHAR(10),GESTION_SEG_2_TRIM!K122,CHAR(10),\"Trimestre 3\",CHAR(10),GESTION_SEG_3_TRIM!K122),\" \")","v":" "}]
[null,null,null,null,"Estratégicos","Juris - Gestión de Planeación Estratégica","Seccional","Asistir a las reuniones del Comité Nacional del SIGCMA","Entregable",null,null,"Integrantes del Comité del SIGCMA","Actas y listados de asistencia de las sesiones del Comité Nacional del SIGCMA","2023-01-01","2023-12-31",{"$f":"IFERROR(MAX(GESTION_SEG_1_TRIM!H123,GESTION_SEG_2_TRIM!H123,GESTION_SEG_3_TRIM!H123),\" \")","v":0},"",{"$f":"IFERROR(_xlfn.CONCAT(\"Trimestre 1\",CHAR(10),GESTION_SEG_1_TRIM!J123,CHAR(10),\"Trimestre 2\",CHAR(10),GESTION_SEG_2_TRIM!J123,CHAR(10),\"Trimestre 3\",CHAR(10),GESTION_SEG_3_TRIM!J123),\" \")","v":"Trimestre 1\n\nTrimestre 2\n\nTrimestre 3\n"},{"$f":"IFERROR(_xlfn.CONCAT(\"Trimestre 1\",CHAR(10),GESTION_SEG_1_TRIM!K123,CHAR(10),\"Trimestre 2\",CHAR(10),GESTION_SEG_2_TRIM!K123,CHAR(10),\"Trimestre 3\",CHAR(10),GESTION_SEG_3_TRIM!K123),\" \")","v":" "}]
[null,null,null,null,"Estratégicos","Juris - Gestión de Planeación Estratégica","Seccional","Actualizar los protocolos, los manuales de funciones y de procecimientos de cada una de las áreas. ","Entregable",null,null,"Integrantes del Comité del SIGCMA","Manuales de funciones y procedimeinto actualizados ","2023-01-01","2023-12-31",{"$f":"IFERROR(MAX(GESTION_SEG_1_TRIM!H124,GESTION_SEG_2_TRIM!H124,GESTION_SEG_3_TRIM!H124),\" \")","v":0},"",{"$f":"IFERROR(_xlfn.CONCAT(\"Trimestre 1\",CHAR(10),GESTION_SEG_1_TRIM!J124,CHAR(10),\"Trimestre 2\",CHAR(10),GESTION_SEG_2_TRIM!J124,CHAR(10),\"Trimestre 3\",CHAR(10),GESTION_SEG_3_TRIM!J124),\" \")","v":"Trimestre 1\n\nTrimestre 2\n\nTrimestre 3\n"},{"$f":"IFERROR(_xlfn.CONCAT(\"Trimestre 1\",CHAR(10),GESTION_SEG_1_TRIM!K124,CHAR(10),\"Trimestre 2\",CHAR(10),GESTION_SEG_2_TRIM!K124,CHAR(10),\"Trimestre 3\",CHAR(10),GESTION_SEG_3_TRIM!K124),\" \")","v":" "}]
[null,null,null,null,null,null,null,null,null,null,null,null,null,null,null,{"$f":"IFERROR(MAX(GESTION_SEG_1_TRIM!H125,GESTION_SEG_2_TRIM!H125,GESTION_SEG_3_TRIM!H125),\" \")","v":0},"",{"$f":"IFERROR(_xlfn.CONCAT(\"Trimestre 1\",CHAR(10),GESTION_SEG_1_TRIM!J125,CHAR(10),\"Trimestre 2\",CHAR(10),GESTION_SEG_2_TRIM!J125,CHAR(10),\"Trimestre 3\",CHAR(10),GESTION_SEG_3_TRIM!J125),\" \")","v":"Trimestre 1\n\nTrimestre 2\n\nTrimestre 3\n"},{"$f":"IFERROR(_xlfn.CONCAT(\"Trimestre 1\",CHAR(10),GESTION_SEG_1_TRIM!K125,CHAR(10),\"Trimestre 2\",CHAR(10),GESTION_SEG_2_TRIM!K125,CHAR(10),\"Trimestre 3\",CHAR(10),GESTION_SEG_3_TRIM!K125),\" \")","v":"Trimestre 1\n\nTrimestre 2\n\nTrimestre 3\n"}]
[null,null,"2. Definir e implementar el modelo optimizado de formulación, seguimiento y evaluación de la política pública judicial.",null,null,null,null,null,null,null,null,null,null,null,null,{"$f":"IFERROR(MAX(GESTION_SEG_1_TRIM!H126,GESTION_SEG_2_TRIM!H126,GESTION_SEG_3_TRIM!H126),\" \")","v":0},"",{"$f":"IFERROR(_xlfn.CONCAT(\"Trimestre 1\",CHAR(10),GESTION_SEG_1_TRIM!J126,CHAR(10),\"Trimestre 2\",CHAR(10),GESTION_SEG_2_TRIM!J126,CHAR(10),\"Trimestre 3\",CHAR(10),GESTION_SEG_3_TRIM!J126),\" \")","v":"Trimestre 1\n\nTrimestre 2\n\nTrimestre 3\n"},{"$f":"IFERROR(_xlfn.CONCAT(\"Trimestre 1\",CHAR(10),GESTION_SEG_1_TRIM!K126,CHAR(10),\"Trimestre 2\",CHAR(10),GESTION_SEG_2_TRIM!K126,CHAR(10),\"Trimestre 3\",CHAR(10),GESTION_SEG_3_TRIM!K126),\" \")","v":"Trimestre 1\n\nTrimestre 2\n\nTrimestre 3\n"}]
[null,null,null,null,null,null,null,null,null,null,null,null,null,null,null,{"$f":"IFERROR(MAX(GESTION_SEG_1_TRIM!H127,GESTION_SEG_2_TRIM!H127,GESTION_SEG_3_TRIM!H127),\" \")","v":0},"",{"$f":"IFERROR(_xlfn.CONCAT(\"Trimestre 1\",CHAR(10),GESTION_SEG_1_TRIM!J127,CHAR(10),\"Trimestre 2\",CHAR(10),GESTION_SEG_2_TRIM!J127,CHAR(10),\"Trimestre 3\",CHAR(10),GESTION_SEG_3_TRIM!J127),\" \")","v":"Trimestre 1\n\nTrimestre 2\n\nTrimestre 3\n"},{"$f":"IFERROR(_xlfn.CONCAT(\"Trimestre 1\",CHAR(10),GESTION_SEG_1_TRIM!K127,CHAR(10),\"Trimestre 2\",CHAR(10),GESTION_SEG_2_TRIM!K127,CHAR(10),\"Trimestre 3\",CHAR(10),GESTION_SEG_3_TRIM!K127),\" \")","v":"Trimestre 1\n\nTrimestre 2\n\nTrimestre 3\n"}]
[null,null,null,null,null,null,null,null,null,null,null,null,null,null,null,{"$f":"IFERROR(MAX(GESTION_SEG_1_TRIM!H128,GESTION_SEG_2_TRIM!H128,GESTION_SEG_3_TRIM!H128),\" \")","v":0},"",{"$f":"IFERROR(_xlfn.CONCAT(\"Trimestre 1\",CHAR(10),GESTION_SEG_1_TRIM!J128,CHAR(10),\"Trimestre 2\",CHAR(10),GESTION_SEG_2_TRIM!J128,CHAR(10),\"Trimestre 3\",CHAR(10),GESTION_SEG_3_TRIM!J128),\" \")","v":"Trimestre 1\n\nTrimestre 2\n\nTrimestre 3\n"},{"$f":"IFERROR(_xlfn.CONCAT(\"Trimestre 1\",CHAR(10),GESTION_SEG_1_TRIM!K128,CHAR(10),\"Trimestre 2\",CHAR(10),GESTION_SEG_2_TRIM!K128,CHAR(10),\"Trimestre 3\",CHAR(10),GESTION_SEG_3_TRIM!K128),\" \")","v":"Trimestre 1\n\nTrimestre 2\n\nTrimestre 3\n"}]
[null,null,null,null,null,null,null,null,null,null,null,null,null,null,null,{"$f":"IFERROR(MAX(GESTION_SEG_1_TRIM!H129,GESTION_SEG_2_TRIM!H129,GESTION_SEG_3_TRIM!H129),\" \")","v":0},"",{"$f":"IFERROR(_xlfn.CONCAT(\"Trimestre 1\",CHAR(10),GESTION_SEG_1_TRIM!J129,CHAR(10),\"Trimestre 2\",CHAR(10),GESTION_SEG_2_TRIM!J129,CHAR(10),\"Trimestre 3\",CHAR(10),GESTION_SEG_3_TRIM!J129),\" \")","v":"Trimestre 1\n\nTrimestre 2\n\nTrimestre 3\n"},{"$f":"IFERROR(_xlfn.CONCAT(\"Trimestre 1\",CHAR(10),GESTION_SEG_1_TRIM!K129,CHAR(10),\"Trimestre 2\",CHAR(10),GESTION_SEG_2_TRIM!K129,CHAR(10),\"Trimestre 3\",CHAR(10),GESTION_SEG_3_TRIM!K129),\" \")","v":"Trimestre 1\n\nTrimestre 2\n\nTrimestre 3\n"}]
[null,null,null,null,null,null,null,null,null,null,null,null,null,null,null,{"$f":"IFERROR(MAX(GESTION_SEG_1_TRIM!H130,GESTION_SEG_2_TRIM!H130,GESTION_SEG_3_TRIM!H130),\" \")","v":0},"",{"$f":"IFERROR(_xlfn.CONCAT(\"Trimestre 1\",CHAR(10),GESTION_SEG_1_TRIM!J130,CHAR(10),\"Trimestre 2\",CHAR(10),GESTION_SEG_2_TRIM!J130,CHAR(10),\"Trimestre 3\",CHAR(10),GESTION_SEG_3_TRIM!J130),\" \")","v":"Trimestre 1\n\nTrimestre 2\n\nTrimestre 3\n"},{"$f":"IFERROR(_xlfn.CONCAT(\"Trimestre 1\",CHAR(10),GESTION_SEG_1_TRIM!K130,CHAR(10),\"Trimestre 2\",CHAR(10),GESTION_SEG_2_TRIM!K130,CHAR(10),\"Trimestre 3\",CHAR(10),GESTION_SEG_3_TRIM!K130),\" \")","v":"Trimestre 1\n\nTrimestre 2\n\nTrimestre 3\n"}]

{"sheet":"GESTION_SEG_1_TRIM","index":5,"n_rows":130,"n_cols":11,"rows_kept":130,"cut":false,"hidden":false,"merged":[[15,2,19,2],[15,3,19,3],[20,2,24,2],[20,3,24,3],[1,0,1,10],[2,0,2,3],[2,4,2,9],[2,10,4,10],[3,0,4,1],[3,2,4,2],[3,3,4,3],[3,4,3,9],[25,2,29,2],[25,3,29,3],[30,0,59,0],[30,1,59,1],[30,2,34,2],[30,3,59,3],[35,2,39,2],[40,2,44,2],[45,2,49,2],[50,2,54,2],[5,0,29,0],[5,1,29,1],[5,2,9,2],[5,3,9,3],[10,2,14,2],[10,3,14,3],[55,2,59,2],[60,0,94,0],[60,1,94,1],[60,2,64,2],[60,3,64,3],[65,2,69,2],[65,3,69,3],[70,2,74,2],[70,3,74,3],[75,2,79,2],[75,3,89,3],[80,2,84,2],[85,2,89,2],[90,2,94,2],[90,3,94,3],[105,2,109,2],[110,2,114,2],[115,2,119,2],[115,3,119,3],[120,0,129,0],[120,1,129,1],[120,2,124,2],[120,3,129,3],[125,2,129,2],[95,0,119,0],[95,1,119,1],[95,2,99,2],[95,3,114,3],[100,2,104,2]]}
[]
["CONSEJO SUPERIOR DE LA JUDICATURA \nUNIDADES MISIONALES DEL CONSEJO SUPERIOR DE LA JUDICATURA - \nDIRECCIÓN EJECUTIVA DE ADMINISTRACIÓN JUDICIAL - UNIDADES MISIONALES DE LA DEAJ\nDIRECCIONES SECCIONALES DE ADMINISTRACIÓN JUDICIAL - DEPENDENCIAS JUDICIALES CERTIFICADAS"]
["PLAN SECTORIAL DE DESARROLLO 2023-2026 - OBJETIVOS SIGCMA",null,null,null,null,null,null,null,null,null," ANÁLISIS RESULTADO"]
["OBJETIVO ESTRATÉGICO",null,"OBJETIVO ESPECÍFICO PSD","OBJETIVO ESPECÍFICO SIGCMA","MEDICIÓN DE LA GESTIÓN ANUAL"]
[null,null,null,null,"ACTIVIDADES ","INDIQUE SI ES ENTREGABLE O META CUANTIFICABLE","META ANUAL","AVANCE DE LA META ","NIVEL CUMPLIMIENTO","DIFICULTADES PARA LOGRAR LA META PROPUESTA"]
["1. Acceso e Infraestructura Física","Acceso e Infraestructura Física: Ampliar, en todo el territorio nacional, el acceso a una justicia efectiva, pronta, equitativa e incluyente, reduciendo el atraso y la congestión, de acuerdo con las necesidades de la demanda de justicia por jurisdicción y especialidad, y mejorando la articulación con la justicia restaurativa y terapéutica, y otros mecanismos de solución de conflictos y consolidando una infraestructura física óptima para el acceso a la justicia.","1. Ampliar el acceso a justicia para atender las necesidades jurídicas de los ciudadanos con un enfoque diferencial, de una manera pronta, reduciendo las inequidades y las brechas territoriales de acceso.","2. Asegurar  el cumplimiento de los objetivos institucionales, la normatividad aplicable,  la mejora del SIGCMA y la satisfacción de los usuarios, revisando de  forma continua y sistemática la planificación de la gestión y fortaleciendo la administración de riesgos y sus controles",{"$f":"IFERROR(GESTION!H6,\" \")","v":0},{"$f":"IFERROR(GESTION!I6,\" \")","v":0},{"$f":"IFERROR(GESTION!J6,\" \")","v":0},null,{"$f":"IFERROR(H6/G6,\"\")","v":""}]
[null,null,null,null,{"$f":"IFERROR(GESTION!H7,\" \")","v":0},{"$f":"IFERROR(GESTION!I7,\" \")","v":0},{"$f":"IFERROR(GESTION!J7,\" \")","v":0},null,""]
[null,null,null,null,{"$f":"IFERROR(GESTION!H8,\" \")","v":0},{"$f":"IFERROR(GESTION!I8,\" \")","v":0},{"$f":"IFERROR(GESTION!J8,\" \")","v":0},null,""]
[null,null,null,null,{"$f":"IFERROR(GESTION!H9,\" \")","v":0},{"$f":"IFERROR(GESTION!I9,\" \")","v":0},{"$f":"IFERROR(GESTION!J9,\" \")","v":0},null,""]
[null,null,null,null,{"$f":"IFERROR(GESTION!H10,\" \")","v":0},{"$f":"IFERROR(GESTION!I10,\" \")","v":0},{"$f":"IFERROR(GESTION!J10,\" \")","v":0},null,""]
[null,null,"2. Mejorar los tiempos de respuesta de la Rama Judicial y reducir el inventario de procesos, identificando los retos internos y promoviendo tanto acciones articuladas específicas para abordarlos como estrategias coordinadas para enfrentar las barreras que dependen de otras entidades.","2. Asegurar  el cumplimiento de los objetivos institucionales, la normatividad aplicable,  la mejora del SIGCMA y la satisfacción de los usuarios, revisando de  forma continua y sistemática la planificación de la gestión y fortaleciendo la administración de riesgos y sus controles",{"$f":"IFERROR(GESTION!H11,\" \")","v":0},{"$f":"IFERROR(GESTION!I11,\" \")","v":0},{"$f":"IFERROR(GESTION!J11,\" \")","v":0},null,""]
[null,null,null,null,{"$f":"IFERROR(GESTION!H12,\" \")","v":0},{"$f":"IFERROR(GESTION!I12,\" \")","v":0},{"$f":"IFERROR(GESTION!J12,\" \")","v":0},null,""]
[null,null,null,null,{"$f":"IFERROR(GESTION!H13,\" \")","v":0},{"$f":"IFERROR(GESTION!I13,\" \")","v":0},{"$f":"IFERROR(GESTION!J13,\" \")","v":0},null,""]
[null,null,null,null,{"$f":"IFERROR(GESTION!H14,\" \")","v":0},{"$f":"IFERROR(GESTION!I14,\" \")","v":0},{"$f":"IFERROR(GESTION!J14,\" \")","v":0},null,""]
[null,null,null,null,{"$f":"IFERROR(GESTION!H15,\" \")","v":0},{"$f":"IFERROR(GESTION!I15,\" \")","v":0},{"$f":"IFERROR(GESTION!J15,\" \")","v":0},null,""]
[null,null,"3. Coadyuvar en la garantía de la idoneidad en el ejercicio de la profesión jurídica de acuerdo con lo establecido en la Ley 1905 de 2018","2. Asegurar  el cumplimiento de los objetivos institucionales, la normatividad aplicable,  la mejora del SIGCMA y la satisfacción de los usuarios, revisando de  forma continua y sistemática la planificación de la gestión y fortaleciendo la administración de riesgos y sus controles",{"$f":"IFERROR(GESTION!H16,\" \")","v":0},{"$f":"IFERROR(GESTION!I16,\" \")","v":0},{"$f":"IFERROR(GESTION!J16,\" \")","v":0},null,""]
[null,null,null,null,{"$f":"IFERROR(GESTION!H17,\" \")","v":0},{"$f":"IFERROR(GESTION!I17,\" \")","v":0},{"$f":"IFERROR(GESTION!J17,\" \")","v":0},null,""]
[null,null,null,null,{"$f":"IFERROR(GESTION!H18,\" \")","v":0},{"$f":"IFERROR(GESTION!I18,\" \")","v":0},{"$f":"IFERROR(GESTION!J18,\" \")","v":0},null,""]
[null,null,null,null,{"$f":"IFERROR(GESTION!H19,\" \")","v":0},{"$f":"IFERROR(GESTION!I19,\" \")","v":0},{"$f":"IFERROR(GESTION!J19,\" \")","v":0},null,""]
[null,null,null,null,{"$f":"IFERROR(GESTION!H20,\" \")","v":0},{"$f":"IFERROR(GESTION!I20,\" \")","v":0},{"$f":"IFERROR(GESTION!J20,\" \")","v":0},null,""]
[null,null,"4. Avanzar en la disposición de una infraestructura óptima para el acceso a la justicia en la Rama Judicial de modo que se fortalezca la presencia territorial, teniendo en cuenta las posibilidades que ofrece la transformación digital y las necesidades que se derivan de ella, y considerando tanto las necesidades de los usuarios como las de los servidores judiciales.","4. Hacer un uso racional de los recursos naturales aplicando los principios y fases de la Economía Circular, para prevenir, mitigar y controlar los impactos ambientales",{"$f":"IFERROR(GESTION!H21,\" \")","v":0},{"$f":"IFERROR(GESTION!I21,\" \")","v":0},{"$f":"IFERROR(GESTION!J21,\" \")","v":0},null,""]
[null,null,null,null,{"$f":"IFERROR(GESTION!H22,\" \")","v":0},{"$f":"IFERROR(GESTION!I22,\" \")","v":0},{"$f":"IFERROR(GESTION!J22,\" \")","v":0},null,""]
[null,null,null,null,{"$f":"IFERROR(GESTION!H23,\" \")","v":0},{"$f":"IFERROR(GESTION!I23,\" \")","v":0},{"$f":"IFERROR(GESTION!J23,\" \")","v":0},null,""]
[null,null,null,null,{"$f":"IFERROR(GESTION!H24,\" \")","v":0},{"$f":"IFERROR(GESTION!I24,\" \")","v":0},{"$f":"IFERROR(GESTION!J24,\" \")","v":0},null,""]
[null,null,null,null,{"$f":"IFERROR(GESTION!H25,\" \")","v":0},{"$f":"IFERROR(GESTION!I25,\" \")","v":0},{"$f":"IFERROR(GESTION!J25,\" \")","v":0},null,""]
[null,null,"5. Impulsar el uso de mecanismos alternativos para la solución de conflictos y la ampliación de la justicia restaurativa y terapéutica y el robustecimiento de las alternativas al encarcelamiento","2. Asegurar  el cumplimiento de los objetivos institucionales, la normatividad aplicable,  la mejora del SIGCMA y la satisfacción de los usuarios, revisando de  forma continua y sistemática la planificación de la gestión y fortaleciendo la administración de riesgos y sus controles",{"$f":"IFERROR(GESTION!H26,\" \")","v":0},{"$f":"IFERROR(GESTION!I26,\" \")","v":0},{"$f":"IFERROR(GESTION!J26,\" \")","v":0},null,""]
[null,null,null,null,{"$f":"IFERROR(GESTION!H27,\" \")","v":0},{"$f":"IFERROR(GESTION!I27,\" \")","v":0},{"$f":"IFERROR(GESTION!J27,\" \")","v":0},null,""]
[null,null,null,null,{"$f":"IFERROR(GESTION!H28,\" \")","v":0},{"$f":"IFERROR(GESTION!I28,\" \")","v":0},{"$f":"IFERROR(GESTION!J28,\" \")","v":0},null,""]
[null,null,null,null,{"$f":"IFERROR(GESTION!H29,\" \")","v":0},{"$f":"IFERROR(GESTION!I29,\" \")","v":0},{"$f":"IFERROR(GESTION!J29,\" \")","v":0},null,""]
[null,null,null,null,{"$f":"IFERROR(GESTION!H30,\" \")","v":0},{"$f":"IFERROR(GESTION!I30,\" \")","v":0},{"$f":"IFERROR(GESTION!J30,\" \")","v":0},null,""]
["2. Servicios digitales y de tecnología, innovación y análisis de la información.","Servicios digitales y de tecnología, innovación y análisis de la información: Consolidar una justicia integrada y soportada en servicios digitales y de tecnología, innovación y análisis de la información, con una cultura digital apropiada, segura y sensible a las realidades del territorio nacional. ","1. Ampliar el acceso a la justicia a través de la consolidación del uso de los servicios digitales que conforman el sistema único integrado de gestión judicial en todos los despachos judiciales y dependencias de apoyo y, específicamente, incluyendo el despliegue e implementación del Expediente Judicial Electrónico en todas las jurisdicciones y especialidades.","6. Proteger, preservar y administrar los activos de información  implementando acciones  para gestionar de forma adecuada los incidentes, proteger los datos personales y adoptar mecanismos  de ciberseguridad y aseguramiento de la  continuidad del negocio.",{"$f":"IFERROR(GESTION!H31,\" \")","v":"Registrar las actuaciones en el aplicativo Justicia XXI."},{"$f":"IFERROR(GESTION!I31,\" \")","v":"Entregable"},{"$f":"IFERROR(GESTION!J31,\" \")","v":0},null,"",null,"Todas las áreas realizan registros en el aplicativo de acuerdo a sus actividades"]
[null,null,null,null,{"$f":"IFERROR(GESTION!H32,\" \")","v":"Registrar la información de los procesos judiciales digitalizados y electronicos en las plataformas One Drive y BestDoc."},{"$f":"IFERROR(GESTION!I32,\" \")","v":"Entregable"},{"$f":"IFERROR(GESTION!J32,\" \")","v":0},null,"",null,"Se han creado los procesos judiciales en las plataformas OneDrive y BESTDoc."]
[null,null,null,null,{"$f":"IFERROR(GESTION!H33,\" \")","v":"Migrar la información de los procesos judiciales digitalizados y electronicos en las plataformas One Drive y BestDoc."},{"$f":"IFERROR(GESTION!I33,\" \")","v":"Entregable"},{"$f":"IFERROR(GESTION!J33,\" \")","v":0},null,"",null,"Se han migrado los procesos judiciales en las plataformas OneDrive y BestDoc"]
[null,null,null,null,{"$f":"IFERROR(GESTION!H34,\" \")","v":"Implementación SIRIS con el módulo de Administración Expedientes "},{"$f":"IFERROR(GESTION!I34,\" \")","v":"Entregable"},{"$f":"IFERROR(GESTION!J34,\" \")","v":0},null,"",null,"Se ha ingresado los datos relacionados de los Procesos físicos "]
[null,null,null,null,{"$f":"IFERROR(GESTION!H35,\" \")","v":"Recepción de la información por medio del correo principal del Centro de Sevicios"},{"$f":"IFERROR(GESTION!I35,\" \")","v":"Entregable"},{"$f":"IFERROR(GESTION!J35,\" \")","v":0},null,""]
[null,null,"2. Integrar y hacer compatibles todos los aplicativos de transición con SIUGJ, para que la migración de los expedientes judiciales a dicha plataforma sea real y no suponga afectaciones en la prestación del servicio de justicia.",null,{"$f":"IFERROR(GESTION!H36,\" \")","v":0},{"$f":"IFERROR(GESTION!I36,\" \")","v":0},{"$f":"IFERROR(GESTION!J36,\" \")","v":0},null,""]
[null,null,null,null,{"$f":"IFERROR(GESTION!H37,\" \")","v":0},{"$f":"IFERROR(GESTION!I37,\" \")","v":0},{"$f":"IFERROR(GESTION!J37,\" \")","v":0},null,""]
[null,null,null,null,{"$f":"IFERROR(GESTION!H38,\" \")","v":0},{"$f":"IFERROR(GESTION!I38,\" \")","v":0},{"$f":"IFERROR(GESTION!J38,\" \")","v":0},null,{"$f":"IFERROR(H38/G38,\"\")","v":""}]
[null,null,null,null,{"$f":"IFERROR(GESTION!H39,\" \")","v":0},{"$f":"IFERROR(GESTION!I39,\" \")","v":0},{"$f":"IFERROR(GESTION!J39,\" \")","v":0},null,""]
[null,null,null,null,{"$f":"IFERROR(GESTION!H40,\" \")","v":0},{"$f":"IFERROR(GESTION!I40,\" \")","v":0},{"$f":"IFERROR(GESTION!J40,\" \")","v":0},null,""]
[null,null,"3. Fortalecer las capacidades institucionales, adecuar el modelo operativo y de servicio, bajo un enfoque de Arquitectura Empresarial y de fortalecimiento del acceso a la justicia.",null,{"$f":"IFERROR(GESTION!H41,\" \")","v":0},{"$f":"IFERROR(GESTION!I41,\" \")","v":0},{"$f":"IFERROR(GESTION!J41,\" \")","v":0},null,""]
[null,null,null,null,{"$f":"IFERROR(GESTION!H42,\" \")","v":0},{"$f":"IFERROR(GESTION!I42,\" \")","v":0},{"$f":"IFERROR(GESTION!J42,\" \")","v":0},null,""]
[null,null,null,null,{"$f":"IFERROR(GESTION!H43,\" \")","v":0},{"$f":"IFERROR(GESTION!I43,\" \")","v":0},{"$f":"IFERROR(GESTION!J43,\" \")","v":0},null,""]
[null,null,null,null,{"$f":"IFERROR(GESTION!H44,\" \")","v":0},{"$f":"IFERROR(GESTION!I44,\" \")","v":0},{"$f":"IFERROR(GESTION!J44,\" \")","v":0},null,""]
[null,null,null,null,{"$f":"IFERROR(GESTION!H45,\" \")","v":0},{"$f":"IFERROR(GESTION!I45,\" \")","v":0},{"$f":"IFERROR(GESTION!J45,\" \")","v":0},null,""]
[null,null,"4.Consolidar la cultura y apropiación de la transformación digital en los servidores y usuarios de los servicios de la Rama Judicial y reducir brechas de acceso y conocimiento, incluyendo la oferta efectiva de información sobre el uso de las nuevas herramientas virtuales implementadas en las diferentes jurisdicciones, con especial énfasis en las zonas del país donde es evidente la brecha digital.",null,{"$f":"IFERROR(GESTION!H46,\" \")","v":0},{"$f":"IFERROR(GESTION!I46,\" \")","v":0},{"$f":"IFERROR(GESTION!J46,\" \")","v":0},null,""]
[null,null,null,null,{"$f":"IFERROR(GESTION!H47,\" \")","v":0},{"$f":"IFERROR(GESTION!I47,\" \")","v":0},{"$f":"IFERROR(GESTION!J47,\" \")","v":0},null,""]
[null,null,null,null,{"$f":"IFERROR(GESTION!H48,\" \")","v":0},{"$f":"IFERROR(GESTION!I48,\" \")","v":0},{"$f":"IFERROR(GESTION!J48,\" \")","v":0},null,""]
[null,null,null,null,{"$f":"IFERROR(GESTION!H49,\" \")","v":0},{"$f":"IFERROR(GESTION!I49,\" \")","v":0},{"$f":"IFERROR(GESTION!J49,\" \")","v":0},null,""]
[null,null,null,null,{"$f":"IFERROR(GESTION!H50,\" \")","v":0},{"$f":"IFERROR(GESTION!I50,\" \")","v":0},{"$f":"IFERROR(GESTION!J50,\" \")","v":0},null,""]
[null,null,"5.Consolidar la infraestructura y los recursos necesarios para la implementación exitosa de la transformación digital, incluyendo la disposición de internet de calidad en el 100% de las sedes en la Rama Judicial y modernizar los servicios tecnológicos de soporte. ",null,{"$f":"IFERROR(GESTION!H51,\" \")","v":0},{"$f":"IFERROR(GESTION!I51,\" \")","v":0},{"$f":"IFERROR(GESTION!J51,\" \")","v":0},null,""]
[null,null,null,null,{"$f":"IFERROR(GESTION!H52,\" \")","v":0},{"$f":"IFERROR(GESTION!I52,\" \")","v":0},{"$f":"IFERROR(GESTION!J52,\" \")","v":0},null,""]
[null,null,null,null,{"$f":"IFERROR(GESTION!H53,\" \")","v":0},{"$f":"IFERROR(GESTION!I53,\" \")","v":0},{"$f":"IFERROR(GESTION!J53,\" \")","v":0},null,""]
[null,null,null,null,{"$f":"IFERROR(GESTION!H54,\" \")","v":0},{"$f":"IFERROR(GESTION!I54,\" \")","v":0},{"$f":"IFERROR(GESTION!J54,\" \")","v":0},null,""]
[null,null,null,null,{"$f":"IFERROR(GESTION!H55,\" \")","v":0},{"$f":"IFERROR(GESTION!I55,\" \")","v":0},{"$f":"IFERROR(GESTION!J55,\" \")","v":0},null,""]
[null,null,"6.Integrar y optimizar los servicios administrativos de la Rama Judicial bajo un enfoque de transformación digital e innovación incluyendo los componentes financiero, administrativo, talento humano, entre otros",null,{"$f":"IFERROR(GESTION!H56,\" \")","v":0},{"$f":"IFERROR(GESTION!I56,\" \")","v":0},{"$f":"IFERROR(GESTION!J56,\" \")","v":0},null,""]
[null,null,null,null,{"$f":"IFERROR(GESTION!H57,\" \")","v":0},{"$f":"IFERROR(GESTION!I57,\" \")","v":0},{"$f":"IFERROR(GESTION!J57,\" \")","v":0},null,""]
[null,null,null,null,{"$f":"IFERROR(GESTION!H58,\" \")","v":0},{"$f":"IFERROR(GESTION!I58,\" \")","v":0},{"$f":"IFERROR(GESTION!J58,\" \")","v":0},null,""]
[null,null,null,null,{"$f":"IFERROR(GESTION!H59,\" \")","v":0},{"$f":"IFERROR(GESTION!I59,\" \")","v":0},{"$f":"IFERROR(GESTION!J59,\" \")","v":0},null,""]
[null,null,null,null,{"$f":"IFERROR(GESTION!H60,\" \")","v":0},{"$f":"IFERROR(GESTION!I60,\" \")","v":0},{"$f":"IFERROR(GESTION!J60,\" \")","v":0},null,""]
["3. Confianza pública, transparencia y rendición de cuentas","Confianza pública, transparencia y rendición de cuentas: Aumentar la confianza pública en la justicia a través de la transparencia, la rendición de cuentas y la participación, incluyendo la información de justicia y la producción, gestión y acceso a las fuentes de derecho, el fortalecimiento del sistema de gestión de calidad y medio ambiente (SIGCMA) y el mejoramiento de la calidad y publicidad de la información. ","1. Incrementar la cantidad, la calidad y pertinencia de los datos sobre el funcionamiento del servicio de justicia bajo un modelo de gobierno de datos y un liderazgo unificado. ","4. Hacer un uso racional de los recursos naturales aplicando los principios y fases de la Economía Circular, para prevenir, mitigar y controlar los impactos ambientales.",{"$f":"IFERROR(GESTION!H61,\" \")","v":"Crear y repartir solicitudes de audiencias concentradas y reservadas de actos urgentes a los  juzgados penales municipales con funciones de control de garantias de Cali."},{"$f":"IFERROR(GESTION!I61,\" \")","v":"Entregable"},{"$f":"IFERROR(GESTION!J61,\" \")","v":0},null,"",null,"Según el informe estadistico de reparto se  repartieron 97 audiencias concentradas del Procedimiento Aberviado, 1891 Audiencia Concentradas del Procesoo Ordinario y reservadas de actos urgentes con los  JuzgadosPenales Municipales conFfunciones de Control de Garantias de Cali."]
[null,null,null,null,{"$f":"IFERROR(GESTION!H62,\" \")","v":"Crear y repartir las solicitudes de audiencias programadas para los  juzgados penales municipales con funciones de control de garantias de Cali."},{"$f":"IFERROR(GESTION!I62,\" \")","v":"Entregable"},{"$f":"IFERROR(GESTION!J62,\" \")","v":0},null,"",null,"Según el informe estadistico de reparto se tramitaron 1,625 audiencias programadas con los  juzgados penales municipales con funciones de control de garantias de Cali."]
[null,null,null,null,{"$f":"IFERROR(GESTION!H63,\" \")","v":"Crear y repartir solicitudes para los juzgados penales municipales y del circuito con funciones de conocimiento y Tribunal Superior Sala de Decision Penal de Cali. "},{"$f":"IFERROR(GESTION!I63,\" \")","v":"Entregable"},{"$f":"IFERROR(GESTION!J63,\" \")","v":0},null,"",null,"Según el informe estadistico de reparto se tramitaron  1,509  solicitudes a los juzgados penales municipales y del circuito con funciones de conocimiento y Tribunal Superior Sala de Decision Penal de Cali. "]
[null,null,null,null,{"$f":"IFERROR(GESTION!H64,\" \")","v":"Recepcionar expedientes fisicos de los despachos penales municipales y del circuito, Tribunal Superior Sala de Decision Penal de Cali y Juzgados de Ejecución de Penas y Medidas de Seguridad de Cali. "},{"$f":"IFERROR(GESTION!I64,\" \")","v":"Entregable"},{"$f":"IFERROR(GESTION!J64,\" \")","v":0},null,"",null,"Según el informe se recibieron 1,393 expedientes fisicos"]
[null,null,null,null,{"$f":"IFERROR(GESTION!H65,\" \")","v":"Recepcionar expedientes electronicos y digitalizados por las plataformas establecidas (OneDrive y BestDoc) para comunicar y dar cumplimiento a las decisiones adoptados por los Juecesde los  Juzgados Penales Municipales con Funciones de Control de Garantias de Cali y demas despachos a nivel nacional."},{"$f":"IFERROR(GESTION!I65,\" \")","v":"Entregable"},{"$f":"IFERROR(GESTION!J65,\" \")","v":0},null,"",null,"Según el informe se tramitaron 2,474 expedientes digitales allegados por los Juzgados Penales Municipales con Funciones de Control de Garantias de Cali y demas despachos a nivel nacional."]
[null,null,"2. Consolidar la administración de la información entendida como todas las acciones rientadas a garantizar el acceso, consulta, uso y conservación de la información de justicia de manera ágil, flexible e inteligente, bajo un enfoque de innovación.",null,{"$f":"IFERROR(GESTION!H66,\" \")","v":"Recepcionar expedientes electronicos y digitalizados por las plataformas establecidas (OneDrive y BestDoc) para comunicar y dar cumplimiento a las decisiones adoptados por los jueces de los Juzgados Penales Municipales y del Circuito con Funciones de Conocimiento de Cali, Tribunal Superior Sala de Decision Penal, Corte Suprema de Justicia Sala de Casacion Penal y demas despachos a nivel nacional. "},{"$f":"IFERROR(GESTION!I66,\" \")","v":"Entregable"},{"$f":"IFERROR(GESTION!J66,\" \")","v":0},null,"",null,"Según el informe se tramitaron 1,874 expedientes digitales allegados por los Juzgados Penales Municipales y del Circuito con Funciones de Conocimiento de Cali, Tribunal Superior Sala de Decision Penal, Corte Suprema de Justicia Sala de Casacion Penal y demas despachos a nivel nacional. "]
[null,null,null,null,{"$f":"IFERROR(GESTION!H67,\" \")","v":"Notificar, comunicar y publicar las decisiones adoptadas por los jueces que conforman el Sistema Penal Oral Acusatorio de Cali y demas despachos a nivel nacional e internacional. "},{"$f":"IFERROR(GESTION!I67,\" \")","v":"Entregable"},{"$f":"IFERROR(GESTION!J67,\" \")","v":0},null,"",null,"Aproximadamente se realizaron 100 tramites de notificacion, comunicación y publicacion de decisiones judiciales"]
[null,null,null,null,{"$f":"IFERROR(GESTION!H68,\" \")","v":"Gestionar las actividades  donde es vinculado el Centro de Servicios Judiciales de Cali."},{"$f":"IFERROR(GESTION!I68,\" \")","v":"Entregable"},{"$f":"IFERROR(GESTION!J68,\" \")","v":0},null,"",null,"Aproximadamente se tramitaron 747 derechos de peticion y respuestas a vinculaciones de acciones constitucionales"]
[null,null,null,null,{"$f":"IFERROR(GESTION!H69,\" \")","v":"Gestionar todas las actividades encaminadas al área administrativa y operativa del talento humano. "},{"$f":"IFERROR(GESTION!I69,\" \")","v":"Entregable"},{"$f":"IFERROR(GESTION!J69,\" \")","v":0},null,"",null,"Aproximadamente se tramitaron 93 Gestiones Administrativas"]
[null,null,null,null,{"$f":"IFERROR(GESTION!H70,\" \")","v":"Dar cumplimiento a las decisiones judiciales ejecutoriadas en los procesos penales."},{"$f":"IFERROR(GESTION!I70,\" \")","v":"Entregable"},{"$f":"IFERROR(GESTION!J70,\" \")","v":0},null,{"$f":"IFERROR(H70/G70,\"\")","v":""},null,"Según el informe se dio cumplimiento a 1,013 decisiones ejecutoriadas"]
[null,null,"3. Fortalecer el Sistema integrado de Gestión de la Rama, orientado a la implementación y certificación de las normas antisoborno.","1. Gestionar el desarrollo de las competencias, la toma de conciencia , la cultura  organizacional  y el compromiso de los  servidores judiciales, contratistas, practicantes y  judicantes de contribuir a generar valor público en la administración de justicia, en el marco de  cumplimiento de los requisitos  aplicables y el comportamiento ético.\n3. Fomentar la transparencia y la participación generando lineamientos y promoviendo la rendición de cuentas ,la consulta, reporte y planteamiento de inquietudes en relación con las decisiones y aspectos del SIGCMA.",{"$f":"IFERROR(GESTION!H71,\" \")","v":"Recepcionar, custodiar y realizar devoluciones de los titulos judiciales."},{"$f":"IFERROR(GESTION!I71,\" \")","v":"Entregable"},{"$f":"IFERROR(GESTION!J71,\" \")","v":0},null,"",null,"Según el informe se realizo la devolución de 26 titulos judiciales"]
[null,null,null,null,{"$f":"IFERROR(GESTION!H72,\" \")","v":"Atender y brindar informacion a las partes interesadas de forma presencial y virtual."},{"$f":"IFERROR(GESTION!I72,\" \")","v":"Entregable"},{"$f":"IFERROR(GESTION!J72,\" \")","v":0},null,"",null,"Aproximadamente se atienen 13,000 partes interesadas de forma vitual y 5,000 partes interesadas de forma presencial. "]
[null,null,null,null,{"$f":"IFERROR(GESTION!H73,\" \")","v":"Comunicar la programación de audiencias de los despachos judiciales que conforman el Sistema Penal Oral Acusatorio de Cali."},{"$f":"IFERROR(GESTION!I73,\" \")","v":"Entregable"},{"$f":"IFERROR(GESTION!J73,\" \")","v":0},null,"",null,"Según el informe realziado se comunicaron 30,336 programaciones de audiencias. "]
[null,null,null,null,{"$f":"IFERROR(GESTION!H74,\" \")","v":"Custodiar y organizar el archivo fisico del Centro de Servicios Judiciales para los Juzgados penales Municipales y del Circuito"},{"$f":"IFERROR(GESTION!I74,\" \")","v":"Entregable"},{"$f":"IFERROR(GESTION!J74,\" \")","v":0},null,"",null,"Aproximadamente se custodian mas de 100,000 expedientes fisicos "]
[null,null,null,null,{"$f":"IFERROR(GESTION!H75,\" \")","v":"Digitalizar procesos recepcionados de forma fisica. "},{"$f":"IFERROR(GESTION!I75,\" \")","v":"Entregable"},{"$f":"IFERROR(GESTION!J75,\" \")","v":0},null,"",null,"Se han digitalizado aproximadamente 575 expedientes fisicos"]
[null,null,"4. Aumentar la confianza, la cercanía y acceso a los servicios de la Rama Judicial a través, entre otros, de una comunicación clara y asertiva con la ciudadanía.","3. Fomentar la transparencia y la participación generando lineamientos y promoviendo la rendición de cuentas ,la consulta, reporte y planteamiento de inquietudes en relación con las decisiones y aspectos del SIGCMA.",{"$f":"IFERROR(GESTION!H76,\" \")","v":"Asignación de salas para la realizacion  de las  adiencias de los despachos que conforman el Sistema Penal Oral Acusatorio de Cali. "},{"$f":"IFERROR(GESTION!I76,\" \")","v":"Entregable"},{"$f":"IFERROR(GESTION!J76,\" \")","v":0},null,""]
[null,null,null,null,{"$f":"IFERROR(GESTION!H77,\" \")","v":0},{"$f":"IFERROR(GESTION!I77,\" \")","v":0},{"$f":"IFERROR(GESTION!J77,\" \")","v":0},null,""]
[null,null,null,null,{"$f":"IFERROR(GESTION!H78,\" \")","v":0},{"$f":"IFERROR(GESTION!I78,\" \")","v":0},{"$f":"IFERROR(GESTION!J78,\" \")","v":0},null,""]
[null,null,null,null,{"$f":"IFERROR(GESTION!H79,\" \")","v":0},{"$f":"IFERROR(GESTION!I79,\" \")","v":0},{"$f":"IFERROR(GESTION!J79,\" \")","v":0},null,""]
[null,null,null,null,{"$f":"IFERROR(GESTION!H80,\" \")","v":0},{"$f":"IFERROR(GESTION!I80,\" \")","v":0},{"$f":"IFERROR(GESTION!J80,\" \")","v":0},null,""]
[null,null,"5. Prevenir fenómenos asociados con actos de corrupción en la Rama Judicial y reducir las experiencias de corrupción de usuarios y servidores judiciales.",null,{"$f":"IFERROR(GESTION!H81,\" \")","v":0},{"$f":"IFERROR(GESTION!I81,\" \")","v":0},{"$f":"IFERROR(GESTION!J81,\" \")","v":0},null,""]
[null,null,null,null,{"$f":"IFERROR(GESTION!H82,\" \")","v":0},{"$f":"IFERROR(GESTION!I82,\" \")","v":0},{"$f":"IFERROR(GESTION!J82,\" \")","v":0},null,""]
[null,null,null,null,{"$f":"IFERROR(GESTION!H83,\" \")","v":0},{"$f":"IFERROR(GESTION!I83,\" \")","v":0},{"$f":"IFERROR(GESTION!J83,\" \")","v":0},null,""]
[null,null,null,null,{"$f":"IFERROR(GESTION!H84,\" \")","v":0},{"$f":"IFERROR(GESTION!I84,\" \")","v":0},{"$f":"IFERROR(GESTION!J84,\" \")","v":0},null,""]
[null,null,null,null,{"$f":"IFERROR(GESTION!H85,\" \")","v":0},{"$f":"IFERROR(GESTION!I85,\" \")","v":0},{"$f":"IFERROR(GESTION!J85,\" \")","v":0},null,""]
[null,null,"6. Promover la rendición de cuentas y la colaboración real con la ciudadanía como fundamento para diseñar acciones de mejoramiento del acceso a la justicia.",null,{"$f":"IFERROR(GESTION!H86,\" \")","v":0},{"$f":"IFERROR(GESTION!I86,\" \")","v":0},{"$f":"IFERROR(GESTION!J86,\" \")","v":0},null,""]
[null,null,null,null,{"$f":"IFERROR(GESTION!H87,\" \")","v":0},{"$f":"IFERROR(GESTION!I87,\" \")","v":0},{"$f":"IFERROR(GESTION!J87,\" \")","v":0},null,""]
[null,null,null,null,{"$f":"IFERROR(GESTION!H88,\" \")","v":0},{"$f":"IFERROR(GESTION!I88,\" \")","v":0},{"$f":"IFERROR(GESTION!J88,\" \")","v":0},null,""]
[null,null,null,null,{"$f":"IFERROR(GESTION!H89,\" \")","v":0},{"$f":"IFERROR(GESTION!I89,\" \")","v":0},{"$f":"IFERROR(GESTION!J89,\" \")","v":0},null,""]
[null,null,null,null,{"$f":"IFERROR(GESTION!H90,\" \")","v":"Preparar informe de revisión por la alta dirección del año 2022"},{"$f":"IFERROR(GESTION!I90,\" \")","v":"Entregable"},{"$f":"IFERROR(GESTION!J90,\" \")","v":1},null,0,null,"Informe alta direccion finalizado "]
[null,null,"7. Continuar la consolidación del SIGCMA, a través de los procesos de formación en modelos de gestión, logrando la implementación y ampliación de este en los esquemas certificados de manera gradual, teniendo en cuenta las capacidades de los diferentes despachos judiciales y dependencias de la Rama Judicial y articulando el enfoque de Arquitectura Empresarial para el desarrollo del PETD a través de la gestión del conocimiento para la gestión del cambio propendiendo por una cultura de la calidad, la transparencia, la rendición de cuentas, la anticorrupción y el antisoborno","1. Gestionar el desarrollo de las competencias, la toma de conciencia , la cultura  organizacional  y el compromiso de los  servidores judiciales, contratistas, practicantes y  judicantes de contribuir a generar valor público en la administración de justicia, en el marco de  cumplimiento de los requisitos  aplicables y el comportamiento ético.\n4. Hacer un uso racional de los recursos naturales aplicando los principios y fases de la Economía Circular, para prevenir, mitigar y controlar los impactos ambientales.",{"$f":"IFERROR(GESTION!H91,\" \")","v":"Preparar y hacer seguimiento a la matriz de riesgos del SIGCMA"},{"$f":"IFERROR(GESTION!I91,\" \")","v":"Entregable"},{"$f":"IFERROR(GESTION!J91,\" \")","v":0},null,"",null,"Actualizacion y seguimiento continuo de los riesgos, plasmados en la matriz determinada"]
[null,null,null,null,{"$f":"IFERROR(GESTION!H92,\" \")","v":"Preparar y atender las auditorias internas y externas al SIGCMA"},{"$f":"IFERROR(GESTION!I92,\" \")","v":"Entregable"},{"$f":"IFERROR(GESTION!J92,\" \")","v":0},null,"",null,"Informe de auditorias "]
[null,null,null,null,{"$f":"IFERROR(GESTION!H93,\" \")","v":"Formular y desarrollar las acciones de gestión del SIGCMA"},{"$f":"IFERROR(GESTION!I93,\" \")","v":"Entregable"},{"$f":"IFERROR(GESTION!J93,\" \")","v":0},null,"",null,"Formatos de acciones de gestion finalizados"]
[null,null,null,null,{"$f":"IFERROR(GESTION!H94,\" \")","v":"Gestionar las salidas no conformes mediante su registro, seguimiento y ejecución de acciones de mejora"},{"$f":"IFERROR(GESTION!I94,\" \")","v":"Entregable"},{"$f":"IFERROR(GESTION!J94,\" \")","v":0},null,"",null,"Matriz de registro de salidas no conformes por areas "]
[null,null,null,null,{"$f":"IFERROR(GESTION!H95,\" \")","v":"Medir la satisfacción de partes interesadas mediante la encuesta de satisfacción del año 2022"},{"$f":"IFERROR(GESTION!I95,\" \")","v":"Entregable"},{"$f":"IFERROR(GESTION!J95,\" \")","v":1},null,0,null,"Encuestas diligenciadas por las partes interesadas"]
["4. Talento Humano","Talento Humano: Fortalecer el talento humano en la Rama Judicial para que sea eficiente, capacitado y realice su labor en ambientes saludables y seguros. Ampliar la cobertura de la carrera judicial y mejorar la oferta de formación, que esté disponible para todos los servidores judiciales e impacte positivamente el servicio de justicia y responda a las necesidades reales del ejercicio de la función judicial.","1. Ampliar la cobertura de la carrera judicial optimizando los procesos de los concursos de méritos y propender por mitigar su litigiosidad.","1. Gestionar el desarrollo de las competencias, la toma de conciencia , la cultura  organizacional  y el compromiso de los  servidores judiciales, contratistas, practicantes y  judicantes de contribuir a generar valor público en la administración de justicia, en el marco de  cumplimiento de los requisitos  aplicables y el comportamiento ético.",{"$f":"IFERROR(GESTION!H96,\" \")","v":0},{"$f":"IFERROR(GESTION!I96,\" \")","v":0},{"$f":"IFERROR(GESTION!J96,\" \")","v":0},null,""]
[null,null,null,null,{"$f":"IFERROR(GESTION!H97,\" \")","v":0},{"$f":"IFERROR(GESTION!I97,\" \")","v":0},{"$f":"IFERROR(GESTION!J97,\" \")","v":0},null,""]
[null,null,null,null,{"$f":"IFERROR(GESTION!H98,\" \")","v":0},{"$f":"IFERROR(GESTION!I98,\" \")","v":0},{"$f":"IFERROR(GESTION!J98,\" \")","v":0},null,""]
[null,null,null,null,{"$f":"IFERROR(GESTION!H99,\" \")","v":0},{"$f":"IFERROR(GESTION!I99,\" \")","v":0},{"$f":"IFERROR(GESTION!J99,\" \")","v":0},null,""]
[null,null,null,null,{"$f":"IFERROR(GESTION!H100,\" \")","v":0},{"$f":"IFERROR(GESTION!I100,\" \")","v":0},{"$f":"IFERROR(GESTION!J100,\" \")","v":0},null,""]
[null,null,"2. Impactar la función y servicios que presta la Rama Judicial, a través de una formación integral desde una visión de gestión del conocimiento, relacionada con los problemas de la justicia y los problemas de gestión de quienes administran los recursos de la justicia, y potenciando el uso de medios virtuales.",null,{"$f":"IFERROR(GESTION!H101,\" \")","v":"Participar de los diplomados programados en el Plan de Formación por la Dirección Nacional del SIGCMA"},{"$f":"IFERROR(GESTION!I101,\" \")","v":"Entregable"},{"$f":"IFERROR(GESTION!J101,\" \")","v":0},null,"",null,"Certificados de participacion en los diplomados "]
[null,null,null,null,{"$f":"IFERROR(GESTION!H102,\" \")","v":"Capacitar a los servidores en temas de SIGCMA. "},{"$f":"IFERROR(GESTION!I102,\" \")","v":"Entregable"},{"$f":"IFERROR(GESTION!J102,\" \")","v":0},null,{"$f":"IFERROR(H102/G102,\"\")","v":""},null,"Actas de asistencias y evidencias fotograficas"]
[null,null,null,null,{"$f":"IFERROR(GESTION!H103,\" \")","v":0},{"$f":"IFERROR(GESTION!I103,\" \")","v":0},{"$f":"IFERROR(GESTION!J103,\" \")","v":0},null,""]
[null,null,null,null,{"$f":"IFERROR(GESTION!H104,\" \")","v":0},{"$f":"IFERROR(GESTION!I104,\" \")","v":0},{"$f":"IFERROR(GESTION!J104,\" \")","v":0},null,""]
[null,null,null,null,{"$f":"IFERROR(GESTION!H105,\" \")","v":0},{"$f":"IFERROR(GESTION!I105,\" \")","v":0},{"$f":"IFERROR(GESTION!J105,\" \")","v":0},null,""]
[null,null,"3. Promover la incorporación de la perspectiva de género y el enfoque diferencial en los fallos judiciales y en la atención a los ciudadanos, la administración de la Rama Judicial, la administración de la carrera judicial y la elaboración de listas para altas Cortes. ",null,{"$f":"IFERROR(GESTION!H106,\" \")","v":0},{"$f":"IFERROR(GESTION!I106,\" \")","v":0},{"$f":"IFERROR(GESTION!J106,\" \")","v":0},null,""]
[null,null,null,null,{"$f":"IFERROR(GESTION!H107,\" \")","v":0},{"$f":"IFERROR(GESTION!I107,\" \")","v":0},{"$f":"IFERROR(GESTION!J107,\" \")","v":0},null,""]
[null,null,null,null,{"$f":"IFERROR(GESTION!H108,\" \")","v":0},{"$f":"IFERROR(GESTION!I108,\" \")","v":0},{"$f":"IFERROR(GESTION!J108,\" \")","v":0},null,""]
[null,null,null,null,{"$f":"IFERROR(GESTION!H109,\" \")","v":0},{"$f":"IFERROR(GESTION!I109,\" \")","v":0},{"$f":"IFERROR(GESTION!J109,\" \")","v":0},null,""]
[null,null,null,null,{"$f":"IFERROR(GESTION!H110,\" \")","v":0},{"$f":"IFERROR(GESTION!I110,\" \")","v":0},{"$f":"IFERROR(GESTION!J110,\" \")","v":0},null,""]
[null,null,"4. Desarrollar en los servidores judiciales y demás grupos de valor relevantes las competencias necesarias para la efectividad de la transformación digital de modo que puedan, entre otros, utilizar con solvencia las herramientas digitales dispuestas para sus respectivas funciones. Además, fortalecer y actualizar los conocimientos del personal a cargo de la gestión de proyectos de tecnología.",null,{"$f":"IFERROR(GESTION!H111,\" \")","v":0},{"$f":"IFERROR(GESTION!I111,\" \")","v":0},{"$f":"IFERROR(GESTION!J111,\" \")","v":0},null,""]
[null,null,null,null,{"$f":"IFERROR(GESTION!H112,\" \")","v":0},{"$f":"IFERROR(GESTION!I112,\" \")","v":0},{"$f":"IFERROR(GESTION!J112,\" \")","v":0},null,""]
[null,null,null,null,{"$f":"IFERROR(GESTION!H113,\" \")","v":0},{"$f":"IFERROR(GESTION!I113,\" \")","v":0},{"$f":"IFERROR(GESTION!J113,\" \")","v":0},null,""]
[null,null,null,null,{"$f":"IFERROR(GESTION!H114,\" \")","v":0},{"$f":"IFERROR(GESTION!I114,\" \")","v":0},{"$f":"IFERROR(GESTION!J114,\" \")","v":0},null,""]
[null,null,null,null,{"$f":"IFERROR(GESTION!H115,\" \")","v":0},{"$f":"IFERROR(GESTION!I115,\" \")","v":0},{"$f":"IFERROR(GESTION!J115,\" \")","v":0},null,""]
[null,null,"5. Promover el bienestar de todos los servidores judiciales a través de la implementación de un sistema que contemple los diferentes niveles de estrategias y acciones necesarios para mejorar el clima laboral, la salud física y mental y la calidad del tiempo de descanso.","5. Generar espacios de trabajo seguros y saludables que contribuyan a minimizar los  incidentes, accidentes y enfermedades laborales derivados de las condiciones y actos  inseguros y fomentar  el autocuidado, los  estilos de vida y el trabajo saludable en los servidores judiciales, contratistas, judicantes y practicantes",{"$f":"IFERROR(GESTION!H116,\" \")","v":"Asistir a las capacitaciones convocadas por la Rama Judicial, a traves del área de SST y la Coordinación del Centro de Servicios Judiciales. "},{"$f":"IFERROR(GESTION!I116,\" \")","v":"Entregable"},{"$f":"IFERROR(GESTION!J116,\" \")","v":0},null,"",null,"Actas de asistencias y evidencias fotograficas"]
[null,null,null,null,{"$f":"IFERROR(GESTION!H117,\" \")","v":0},{"$f":"IFERROR(GESTION!I117,\" \")","v":0},{"$f":"IFERROR(GESTION!J117,\" \")","v":0},null,""]
[null,null,null,null,{"$f":"IFERROR(GESTION!H118,\" \")","v":0},{"$f":"IFERROR(GESTION!I118,\" \")","v":0},{"$f":"IFERROR(GESTION!J118,\" \")","v":0},null,""]
[null,null,null,null,{"$f":"IFERROR(GESTION!H119,\" \")","v":0},{"$f":"IFERROR(GESTION!I119,\" \")","v":0},{"$f":"IFERROR(GESTION!J119,\" \")","v":0},null,""]
[null,null,null,null,{"$f":"IFERROR(GESTION!H120,\" \")","v":0},{"$f":"IFERROR(GESTION!I120,\" \")","v":0},{"$f":"IFERROR(GESTION!J120,\" \")","v":0},null,""]
["5. Gobernanza, planeación estratégica y capacidad de toma de decisiones","Gobernanza, planeación estratégica y capacidad de toma de decisiones: Fortalecer la gobernanza, la planeación estratégica y la capacidad de toma de decisiones de la Rama Judicial con base en la evidencia empírica y la articulación efectiva con las demás entidades, para que la perspectiva de género y el enfoque diferencial sean transversales en el presente plan. ","1. Implementar un nuevo modelo integrado para la planeación estratégica, el seguimiento y la medición del desempeño institucional.","2. Asegurar  el cumplimiento de los objetivos institucionales, la normatividad aplicable,  la mejora del SIGCMA y la satisfacción de los usuarios, revisando de  forma continua y sistemática la planificación de la gestión y fortaleciendo la administración de riesgos y sus controles.",{"$f":"IFERROR(GESTION!H121,\" \")","v":"Preparar plan de acción del SICGMA 2023"},{"$f":"IFERROR(GESTION!I121,\" \")","v":"Meta cuantificable"},{"$f":"IFERROR(GESTION!J121,\" \")","v":1},null,0,null,"Avanzar en la elaboracion del Plan de Accion del 2023"]
[null,null,null,null,{"$f":"IFERROR(GESTION!H122,\" \")","v":"Realizar reuniones de seguimiento de las actividades. "},{"$f":"IFERROR(GESTION!I122,\" \")","v":"Entregable"},{"$f":"IFERROR(GESTION!J122,\" \")","v":0},null,"",null,"Actas de asistencias y evidencias fotograficas"]
[null,null,null,null,{"$f":"IFERROR(GESTION!H123,\" \")","v":"Asistir a las reuniones del Comité Nacional del SIGCMA"},{"$f":"IFERROR(GESTION!I123,\" \")","v":"Entregable"},{"$f":"IFERROR(GESTION!J123,\" \")","v":0},null,"",null,"Actas de asistencias y evidencias fotograficas"]
[null,null,null,null,{"$f":"IFERROR(GESTION!H124,\" \")","v":"Actualizar los protocolos, los manuales de funciones y de procecimientos de cada una de las áreas. "},{"$f":"IFERROR(GESTION!I124,\" \")","v":"Entregable"},{"$f":"IFERROR(GESTION!J124,\" \")","v":0},null,"",null,"Manuales de funciones y procedimeinto actualizados "]
[null,null,null,null,{"$f":"IFERROR(GESTION!H125,\" \")","v":0},{"$f":"IFERROR(GESTION!I125,\" \")","v":0},{"$f":"IFERROR(GESTION!J125,\" \")","v":0},null,""]
[null,null,"2. Definir e implementar el modelo optimizado de formulación, seguimiento y evaluación de la política pública judicial.",null,{"$f":"IFERROR(GESTION!H126,\" \")","v":0},{"$f":"IFERROR(GESTION!I126,\" \")","v":0},{"$f":"IFERROR(GESTION!J126,\" \")","v":0},null,""]
[null,null,null,null,{"$f":"IFERROR(GESTION!H127,\" \")","v":0},{"$f":"IFERROR(GESTION!I127,\" \")","v":0},{"$f":"IFERROR(GESTION!J127,\" \")","v":0},null,""]
[null,null,null,null,{"$f":"IFERROR(GESTION!H128,\" \")","v":0},{"$f":"IFERROR(GESTION!I128,\" \")","v":0},{"$f":"IFERROR(GESTION!J128,\" \")","v":0},null,""]
[null,null,null,null,{"$f":"IFERROR(GESTION!H129,\" \")","v":0},{"$f":"IFERROR(GESTION!I129,\" \")","v":0},{"$f":"IFERROR(GESTION!J129,\" \")","v":0},null,""]
[null,null,null,null,{"$f":"IFERROR(GESTION!H130,\" \")","v":0},{"$f":"IFERROR(GESTION!I130,\" \")","v":0},{"$f":"IFERROR(GESTION!J130,\" \")","v":0},null,""]

{"sheet":"GESTION_SEG_2_TRIM","index":6,"n_rows":130,"n_cols":11,"rows_kept":130,"cut":false,"hidden":false,"merged":[[15,2,19,2],[15,3,19,3],[20,2,24,2],[20,3,24,3],[1,0,1,10],[2,0,2,3],[2,4,2,9],[2,10,4,10],[3,0,4,1],[3,2,4,2],[3,3,4,3],[3,4,3,9],[25,2,29,2],[25,3,29,3],[30,0,59,0],[30,1,59,1],[30,2,34,2],[30,3,59,3],[35,2,39,2],[40,2,44,2],[45,2,49,2],[50,2,54,2],[5,0,29,0],[5,1,29,1],[5,2,9,2],[5,3,9,3],[10,2,14,2],[10,3,14,3],[55,2,59,2],[60,0,94,0],[60,1,94,1],[60,2,64,2],[60,3,64,3],[65,2,69,2],[65,3,69,3],[70,2,74,2],[70,3,74,3],[75,2,79,2],[75,3,89,3],[80,2,84,2],[85,2,89,2],[90,2,94,2],[90,3,94,3],[105,2,109,2],[110,2,114,2],[115,2,119,2],[115,3,119,3],[120,0,129,0],[120,1,129,1],[120,2,124,2],[120,3,129,3],[125,2,129,2],[95,0,119,0],[95,1,119,1],[95,2,99,2],[95,3,114,3],[100,2,104,2]]}
[]
["CONSEJO SUPERIOR DE LA JUDICATURA \nUNIDADES MISIONALES DEL CONSEJO SUPERIOR DE LA JUDICATURA - \nDIRECCIÓN EJECUTIVA DE ADMINISTRACIÓN JUDICIAL - UNIDADES MISIONALES DE LA DEAJ\nDIRECCIONES SECCIONALES DE ADMINISTRACIÓN JUDICIAL - DEPENDENCIAS JUDICIALES CERTIFICADAS"]
["PLAN SECTORIAL DE DESARROLLO 2023-2026 - OBJETIVOS SIGCMA",null,null,null,null,null,null,null,null,null," ANÁLISIS RESULTADO"]
["OBJETIVO ESTRATÉGICO",null,"OBJETIVO ESPECÍFICO PSD","OBJETIVO ESPECÍFICO SIGCMA","MEDICIÓN DE LA GESTIÓN ANUAL"]
[null,null,null,null,"ACTIVIDADES ","INDIQUE SI ES ENTREGABLE O META CUANTIFICABLE","META ANUAL","AVANCE DE LA META ","NIVEL CUMPLIMIENTO","DIFICULTADES PARA LOGRAR LA META PROPUESTA"]
["1. Acceso e Infraestructura Física","Acceso e Infraestructura Física: Ampliar, en todo el territorio nacional, el acceso a una justicia efectiva, pronta, equitativa e incluyente, reduciendo el atraso y la congestión, de acuerdo con las necesidades de la demanda de justicia por jurisdicción y especialidad, y mejorando la articulación con la justicia restaurativa y terapéutica, y otros mecanismos de solución de conflictos y consolidando una infraestructura física óptima para el acceso a la justicia.","1. Ampliar el acceso a justicia para atender las necesidades jurídicas de los ciudadanos con un enfoque diferencial, de una manera pronta, reduciendo las inequidades y las brechas territoriales de acceso.","2. Asegurar  el cumplimiento de los objetivos institucionales, la normatividad aplicable,  la mejora del SIGCMA y la satisfacción de los usuarios, revisando de  forma continua y sistemática la planificación de la gestión y fortaleciendo la administración de riesgos y sus controles",{"$f":"IFERROR(GESTION!H6,\" \")","v":0},{"$f":"IFERROR(GESTION!I6,\" \")","v":0},{"$f":"IFERROR(GESTION!J6,\" \")","v":0},null,{"$f":"IFERROR(H6/G6,\"\")","v":""}]
[null,null,null,null,{"$f":"IFERROR(GESTION!H7,\" \")","v":0},{"$f":"IFERROR(GESTION!I7,\" \")","v":0},{"$f":"IFERROR(GESTION!J7,\" \")","v":0},null,""]
[null,null,null,null,{"$f":"IFERROR(GESTION!H8,\" \")","v":0},{"$f":"IFERROR(GESTION!I8,\" \")","v":0},{"$f":"IFERROR(GESTION!J8,\" \")","v":0},null,""]
[null,null,null,null,{"$f":"IFERROR(GESTION!H9,\" \")","v":0},{"$f":"IFERROR(GESTION!I9,\" \")","v":0},{"$f":"IFERROR(GESTION!J9,\" \")","v":0},null,""]
[null,null,null,null,{"$f":"IFERROR(GESTION!H10,\" \")","v":0},{"$f":"IFERROR(GESTION!I10,\" \")","v":0},{"$f":"IFERROR(GESTION!J10,\" \")","v":0},null,""]
[null,null,"2. Mejorar los tiempos de respuesta de la Rama Judicial y reducir el inventario de procesos, identificando los retos internos y promoviendo tanto acciones articuladas específicas para abordarlos como estrategias coordinadas para enfrentar las barreras que dependen de otras entidades.","2. Asegurar  el cumplimiento de los objetivos institucionales, la normatividad aplicable,  la mejora del SIGCMA y la satisfacción de los usuarios, revisando de  forma continua y sistemática la planificación de la gestión y fortaleciendo la administración de riesgos y sus controles",{"$f":"IFERROR(GESTION!H11,\" \")","v":0},{"$f":"IFERROR(GESTION!I11,\" \")","v":0},{"$f":"IFERROR(GESTION!J11,\" \")","v":0},null,""]
[null,null,null,null,{"$f":"IFERROR(GESTION!H12,\" \")","v":0},{"$f":"IFERROR(GESTION!I12,\" \")","v":0},{"$f":"IFERROR(GESTION!J12,\" \")","v":0},null,""]
[null,null,null,null,{"$f":"IFERROR(GESTION!H13,\" \")","v":0},{"$f":"IFERROR(GESTION!I13,\" \")","v":0},{"$f":"IFERROR(GESTION!J13,\" \")","v":0},null,{"$f":"IFERROR(H13/G13,\"\")","v":""}]
[null,null,null,null,{"$f":"IFERROR(GESTION!H14,\" \")","v":0},{"$f":"IFERROR(GESTION!I14,\" \")","v":0},{"$f":"IFERROR(GESTION!J14,\" \")","v":0},null,""]
[null,null,null,null,{"$f":"IFERROR(GESTION!H15,\" \")","v":0},{"$f":"IFERROR(GESTION!I15,\" \")","v":0},{"$f":"IFERROR(GESTION!J15,\" \")","v":0},null,""]
[null,null,"3. Coadyuvar en la garantía de la idoneidad en el ejercicio de la profesión jurídica de acuerdo con lo establecido en la Ley 1905 de 2018","2. Asegurar  el cumplimiento de los objetivos institucionales, la normatividad aplicable,  la mejora del SIGCMA y la satisfacción de los usuarios, revisando de  forma continua y sistemática la planificación de la gestión y fortaleciendo la administración de riesgos y sus controles",{"$f":"IFERROR(GESTION!H16,\" \")","v":0},{"$f":"IFERROR(GESTION!I16,\" \")","v":0},{"$f":"IFERROR(GESTION!J16,\" \")","v":0},null,""]
[null,null,null,null,{"$f":"IFERROR(GESTION!H17,\" \")","v":0},{"$f":"IFERROR(GESTION!I17,\" \")","v":0},{"$f":"IFERROR(GESTION!J17,\" \")","v":0},null,""]
[null,null,null,null,{"$f":"IFERROR(GESTION!H18,\" \")","v":0},{"$f":"IFERROR(GESTION!I18,\" \")","v":0},{"$f":"IFERROR(GESTION!J18,\" \")","v":0},null,""]
[null,null,null,null,{"$f":"IFERROR(GESTION!H19,\" \")","v":0},{"$f":"IFERROR(GESTION!I19,\" \")","v":0},{"$f":"IFERROR(GESTION!J19,\" \")","v":0},null,""]
[null,null,null,null,{"$f":"IFERROR(GESTION!H20,\" \")","v":0},{"$f":"IFERROR(GESTION!I20,\" \")","v":0},{"$f":"IFERROR(GESTION!J20,\" \")","v":0},null,""]
[null,null,"4. Avanzar en la disposición de una infraestructura óptima para el acceso a la justicia en la Rama Judicial de modo que se fortalezca la presencia territorial, teniendo en cuenta las posibilidades que ofrece la transformación digital y las necesidades que se derivan de ella, y considerando tanto las necesidades de los usuarios como las de los servidores judiciales.","4. Hacer un uso racional de los recursos naturales aplicando los principios y fases de la Economía Circular, para prevenir, mitigar y controlar los impactos ambientales",{"$f":"IFERROR(GESTION!H21,\" \")","v":0},{"$f":"IFERROR(GESTION!I21,\" \")","v":0},{"$f":"IFERROR(GESTION!J21,\" \")","v":0},null,""]
[null,null,null,null,{"$f":"IFERROR(GESTION!H22,\" \")","v":0},{"$f":"IFERROR(GESTION!I22,\" \")","v":0},{"$f":"IFERROR(GESTION!J22,\" \")","v":0},null,""]
[null,null,null,null,{"$f":"IFERROR(GESTION!H23,\" \")","v":0},{"$f":"IFERROR(GESTION!I23,\" \")","v":0},{"$f":"IFERROR(GESTION!J23,\" \")","v":0},null,""]
[null,null,null,null,{"$f":"IFERROR(GESTION!H24,\" \")","v":0},{"$f":"IFERROR(GESTION!I24,\" \")","v":0},{"$f":"IFERROR(GESTION!J24,\" \")","v":0},null,""]
[null,null,null,null,{"$f":"IFERROR(GESTION!H25,\" \")","v":0},{"$f":"IFERROR(GESTION!I25,\" \")","v":0},{"$f":"IFERROR(GESTION!J25,\" \")","v":0},null,""]
[null,null,"5. Impulsar el uso de mecanismos alternativos para la solución de conflictos y la ampliación de la justicia restaurativa y terapéutica y el robustecimiento de las alternativas al encarcelamiento","2. Asegurar  el cumplimiento de los objetivos institucionales, la normatividad aplicable,  la mejora del SIGCMA y la satisfacción de los usuarios, revisando de  forma continua y sistemática la planificación de la gestión y fortaleciendo la administración de riesgos y sus controles",{"$f":"IFERROR(GESTION!H26,\" \")","v":0},{"$f":"IFERROR(GESTION!I26,\" \")","v":0},{"$f":"IFERROR(GESTION!J26,\" \")","v":0},null,""]
[null,null,null,null,{"$f":"IFERROR(GESTION!H27,\" \")","v":0},{"$f":"IFERROR(GESTION!I27,\" \")","v":0},{"$f":"IFERROR(GESTION!J27,\" \")","v":0},null,""]
[null,null,null,null,{"$f":"IFERROR(GESTION!H28,\" \")","v":0},{"$f":"IFERROR(GESTION!I28,\" \")","v":0},{"$f":"IFERROR(GESTION!J28,\" \")","v":0},null,""]
[null,null,null,null,{"$f":"IFERROR(GESTION!H29,\" \")","v":0},{"$f":"IFERROR(GESTION!I29,\" \")","v":0},{"$f":"IFERROR(GESTION!J29,\" \")","v":0},null,""]
[null,null,null,null,{"$f":"IFERROR(GESTION!H30,\" \")","v":0},{"$f":"IFERROR(GESTION!I30,\" \")","v":0},{"$f":"IFERROR(GESTION!J30,\" \")","v":0},null,""]
["2. Servicios digitales y de tecnología, innovación y análisis de la información.","Servicios digitales y de tecnología, innovación y análisis de la información: Consolidar una justicia integrada y soportada en servicios digitales y de tecnología, innovación y análisis de la información, con una cultura digital apropiada, segura y sensible a las realidades del territorio nacional. ","1. Ampliar el acceso a la justicia a través de la consolidación del uso de los servicios digitales que conforman el sistema único integrado de gestión judicial en todos los despachos judiciales y dependencias de apoyo y, específicamente, incluyendo el despliegue e implementación del Expediente Judicial Electrónico en todas las jurisdicciones y especialidades.","6. Proteger, preservar y administrar los activos de información  implementando acciones  para gestionar de forma adecuada los incidentes, proteger los datos personales y adoptar mecanismos  de ciberseguridad y aseguramiento de la  continuidad del negocio.",{"$f":"IFERROR(GESTION!H31,\" \")","v":"Registrar las actuaciones en el aplicativo Justicia XXI."},{"$f":"IFERROR(GESTION!I31,\" \")","v":"Entregable"},{"$f":"IFERROR(GESTION!J31,\" \")","v":0},null,"",null,"Todas las áreas realizan registros en el aplicativo de acuerdo a sus actividades"]
[null,null,null,null,{"$f":"IFERROR(GESTION!H32,\" \")","v":"Registrar la información de los procesos judiciales digitalizados y electronicos en las plataformas One Drive y BestDoc."},{"$f":"IFERROR(GESTION!I32,\" \")","v":"Entregable"},{"$f":"IFERROR(GESTION!J32,\" \")","v":0},null,"",null,"Se han creado los procesos judiciales en las plataformas OneDrive y BESTDoc."]
[null,null,null,null,{"$f":"IFERROR(GESTION!H33,\" \")","v":"Migrar la información de los procesos judiciales digitalizados y electronicos en las plataformas One Drive y BestDoc."},{"$f":"IFERROR(GESTION!I33,\" \")","v":"Entregable"},{"$f":"IFERROR(GESTION!J33,\" \")","v":0},null,"",null,"Se han migrado los procesos judiciales en las plataformas OneDrive y BestDoc"]
[null,null,null,null,{"$f":"IFERROR(GESTION!H34,\" \")","v":"Implementación SIRIS con el módulo de Administración Expedientes "},{"$f":"IFERROR(GESTION!I34,\" \")","v":"Entregable"},{"$f":"IFERROR(GESTION!J34,\" \")","v":0},null,"",null,"Se ha ingresado los datos relacionados de los Procesos físicos "]
[null,null,null,null,{"$f":"IFERROR(GESTION!H35,\" \")","v":"Recepción de la información por medio del correo principal del Centro de Sevicios"},{"$f":"IFERROR(GESTION!I35,\" \")","v":"Entregable"},{"$f":"IFERROR(GESTION!J35,\" \")","v":0},null,""]
[null,null,"2. Integrar y hacer compatibles todos los aplicativos de transición con SIUGJ, para que la migración de los expedientes judiciales a dicha plataforma sea real y no suponga afectaciones en la prestación del servicio de justicia.",null,{"$f":"IFERROR(GESTION!H36,\" \")","v":0},{"$f":"IFERROR(GESTION!I36,\" \")","v":0},{"$f":"IFERROR(GESTION!J36,\" \")","v":0},null,""]
[null,null,null,null,{"$f":"IFERROR(GESTION!H37,\" \")","v":0},{"$f":"IFERROR(GESTION!I37,\" \")","v":0},{"$f":"IFERROR(GESTION!J37,\" \")","v":0},null,""]
[null,null,null,null,{"$f":"IFERROR(GESTION!H38,\" \")","v":0},{"$f":"IFERROR(GESTION!I38,\" \")","v":0},{"$f":"IFERROR(GESTION!J38,\" \")","v":0},null,{"$f":"IFERROR(H38/G38,\"\")","v":""}]
[null,null,null,null,{"$f":"IFERROR(GESTION!H39,\" \")","v":0},{"$f":"IFERROR(GESTION!I39,\" \")","v":0},{"$f":"IFERROR(GESTION!J39,\" \")","v":0},null,""]
[null,null,null,null,{"$f":"IFERROR(GESTION!H40,\" \")","v":0},{"$f":"IFERROR(GESTION!I40,\" \")","v":0},{"$f":"IFERROR(GESTION!J40,\" \")","v":0},null,""]
[null,null,"3. Fortalecer las capacidades institucionales, adecuar el modelo operativo y de servicio, bajo un enfoque de Arquitectura Empresarial y de fortalecimiento del acceso a la justicia.",null,{"$f":"IFERROR(GESTION!H41,\" \")","v":0},{"$f":"IFERROR(GESTION!I41,\" \")","v":0},{"$f":"IFERROR(GESTION!J41,\" \")","v":0},null,""]
[null,null,null,null,{"$f":"IFERROR(GESTION!H42,\" \")","v":0},{"$f":"IFERROR(GESTION!I42,\" \")","v":0},{"$f":"IFERROR(GESTION!J42,\" \")","v":0},null,""]
[null,null,null,null,{"$f":"IFERROR(GESTION!H43,\" \")","v":0},{"$f":"IFERROR(GESTION!I43,\" \")","v":0},{"$f":"IFERROR(GESTION!J43,\" \")","v":0},null,""]
[null,null,null,null,{"$f":"IFERROR(GESTION!H44,\" \")","v":0},{"$f":"IFERROR(GESTION!I44,\" \")","v":0},{"$f":"IFERROR(GESTION!J44,\" \")","v":0},null,""]
[null,null,null,null,{"$f":"IFERROR(GESTION!H45,\" \")","v":0},{"$f":"IFERROR(GESTION!I45,\" \")","v":0},{"$f":"IFERROR(GESTION!J45,\" \")","v":0},null,""]
[null,null,"4.Consolidar la cultura y apropiación de la transformación digital en los servidores y usuarios de los servicios de la Rama Judicial y reducir brechas de acceso y conocimiento, incluyendo la oferta efectiva de información sobre el uso de las nuevas herramientas virtuales implementadas en las diferentes jurisdicciones, con especial énfasis en las zonas del país donde es evidente la brecha digital.",null,{"$f":"IFERROR(GESTION!H46,\" \")","v":0},{"$f":"IFERROR(GESTION!I46,\" \")","v":0},{"$f":"IFERROR(GESTION!J46,\" \")","v":0},null,""]
[null,null,null,null,{"$f":"IFERROR(GESTION!H47,\" \")","v":0},{"$f":"IFERROR(GESTION!I47,\" \")","v":0},{"$f":"IFERROR(GESTION!J47,\" \")","v":0},null,""]
[null,null,null,null,{"$f":"IFERROR(GESTION!H48,\" \")","v":0},{"$f":"IFERROR(GESTION!I48,\" \")","v":0},{"$f":"IFERROR(GESTION!J48,\" \")","v":0},null,""]
[null,null,null,null,{"$f":"IFERROR(GESTION!H49,\" \")","v":0},{"$f":"IFERROR(GESTION!I49,\" \")","v":0},{"$f":"IFERROR(GESTION!J49,\" \")","v":0},null,""]
[null,null,null,null,{"$f":"IFERROR(GESTION!H50,\" \")","v":0},{"$f":"IFERROR(GESTION!I50,\" \")","v":0},{"$f":"IFERROR(GESTION!J50,\" \")","v":0},null,""]
[null,null,"5.Consolidar la infraestructura y los recursos necesarios para la implementación exitosa de la transformación digital, incluyendo la disposición de internet de calidad en el 100% de las sedes en la Rama Judicial y modernizar los servicios tecnológicos de soporte. ",null,{"$f":"IFERROR(GESTION!H51,\" \")","v":0},{"$f":"IFERROR(GESTION!I51,\" \")","v":0},{"$f":"IFERROR(GESTION!J51,\" \")","v":0},null,""]
[null,null,null,null,{"$f":"IFERROR(GESTION!H52,\" \")","v":0},{"$f":"IFERROR(GESTION!I52,\" \")","v":0},{"$f":"IFERROR(GESTION!J52,\" \")","v":0},null,""]
[null,null,null,null,{"$f":"IFERROR(GESTION!H53,\" \")","v":0},{"$f":"IFERROR(GESTION!I53,\" \")","v":0},{"$f":"IFERROR(GESTION!J53,\" \")","v":0},null,""]
[null,null,null,null,{"$f":"IFERROR(GESTION!H54,\" \")","v":0},{"$f":"IFERROR(GESTION!I54,\" \")","v":0},{"$f":"IFERROR(GESTION!J54,\" \")","v":0},null,""]
[null,null,null,null,{"$f":"IFERROR(GESTION!H55,\" \")","v":0},{"$f":"IFERROR(GESTION!I55,\" \")","v":0},{"$f":"IFERROR(GESTION!J55,\" \")","v":0},null,""]
[null,null,"6.Integrar y optimizar los servicios administrativos de la Rama Judicial bajo un enfoque de transformación digital e innovación incluyendo los componentes financiero, administrativo, talento humano, entre otros",null,{"$f":"IFERROR(GESTION!H56,\" \")","v":0},{"$f":"IFERROR(GESTION!I56,\" \")","v":0},{"$f":"IFERROR(GESTION!J56,\" \")","v":0},null,""]
[null,null,null,null,{"$f":"IFERROR(GESTION!H57,\" \")","v":0},{"$f":"IFERROR(GESTION!I57,\" \")","v":0},{"$f":"IFERROR(GESTION!J57,\" \")","v":0},null,""]
[null,null,null,null,{"$f":"IFERROR(GESTION!H58,\" \")","v":0},{"$f":"IFERROR(GESTION!I58,\" \")","v":0},{"$f":"IFERROR(GESTION!J58,\" \")","v":0},null,""]
[null,null,null,null,{"$f":"IFERROR(GESTION!H59,\" \")","v":0},{"$f":"IFERROR(GESTION!I59,\" \")","v":0},{"$f":"IFERROR(GESTION!J59,\" \")","v":0},null,""]
[null,null,null,null,{"$f":"IFERROR(GESTION!H60,\" \")","v":0},{"$f":"IFERROR(GESTION!I60,\" \")","v":0},{"$f":"IFERROR(GESTION!J60,\" \")","v":0},null,""]
["3. Confianza pública, transparencia y rendición de cuentas","Confianza pública, transparencia y rendición de cuentas: Aumentar la confianza pública en la justicia a través de la transparencia, la rendición de cuentas y la participación, incluyendo la información de justicia y la producción, gestión y acceso a las fuentes de derecho, el fortalecimiento del sistema de gestión de calidad y medio ambiente (SIGCMA) y el mejoramiento de la calidad y publicidad de la información. ","1. Incrementar la cantidad, la calidad y pertinencia de los datos sobre el funcionamiento del servicio de justicia bajo un modelo de gobierno de datos y un liderazgo unificado. ","4. Hacer un uso racional de los recursos naturales aplicando los principios y fases de la Economía Circular, para prevenir, mitigar y controlar los impactos ambientales.",{"$f":"IFERROR(GESTION!H61,\" \")","v":"Crear y repartir solicitudes de audiencias concentradas y reservadas de actos urgentes a los  juzgados penales municipales con funciones de control de garantias de Cali."},{"$f":"IFERROR(GESTION!I61,\" \")","v":"Entregable"},{"$f":"IFERROR(GESTION!J61,\" \")","v":0},null,"",null,"Según la estadistica de repartos realizados los juzgados Penales Municipales con Funcion de control de Garantias de Actos urgentes se le repartieron 63 audiencias del procedimiento abreviado y 1889 audiencia del proceso ordinario e incluyendo reservadas para un total de 1,952 audiencias entregadas a los despachos judiciales. "]
[null,null,null,null,{"$f":"IFERROR(GESTION!H62,\" \")","v":"Crear y repartir las solicitudes de audiencias programadas para los  juzgados penales municipales con funciones de control de garantias de Cali."},{"$f":"IFERROR(GESTION!I62,\" \")","v":"Entregable"},{"$f":"IFERROR(GESTION!J62,\" \")","v":0},null,"",null,"Según la estadistica de reparto realizados los juzgados Penales Municipales con Funcion de control de Garantias de programadas se le repartieron 1,495 audiencia para su realización"]
[null,null,null,null,{"$f":"IFERROR(GESTION!H63,\" \")","v":"Crear y repartir solicitudes para los juzgados penales municipales y del circuito con funciones de conocimiento y Tribunal Superior Sala de Decision Penal de Cali. "},{"$f":"IFERROR(GESTION!I63,\" \")","v":"Entregable"},{"$f":"IFERROR(GESTION!J63,\" \")","v":0},null,"",null,"Según la estadistica de reparto realizados, los juzgados Penales Municipales con Funcion de  conocimeinto se le repartieron 333 Audiecias, los Juzgados Penales con Funciones de Concimiento se le repartieron 895 audiencias y el Tribunal Superior Sala de Decision Penal  se le repartieron 189 Audiencia, para un total de 1,417 audiencias en total. "]
[null,null,null,null,{"$f":"IFERROR(GESTION!H64,\" \")","v":"Recepcionar expedientes fisicos de los despachos penales municipales y del circuito, Tribunal Superior Sala de Decision Penal de Cali y Juzgados de Ejecución de Penas y Medidas de Seguridad de Cali. "},{"$f":"IFERROR(GESTION!I64,\" \")","v":"Entregable"},{"$f":"IFERROR(GESTION!J64,\" \")","v":0},null,"",null,"Según el informe se recibieron 236 expedientes fisicos"]
[null,null,null,null,{"$f":"IFERROR(GESTION!H65,\" \")","v":"Recepcionar expedientes electronicos y digitalizados por las plataformas establecidas (OneDrive y BestDoc) para comunicar y dar cumplimiento a las decisiones adoptados por los Juecesde los  Juzgados Penales Municipales con Funciones de Control de Garantias de Cali y demas despachos a nivel nacional."},{"$f":"IFERROR(GESTION!I65,\" \")","v":"Entregable"},{"$f":"IFERROR(GESTION!J65,\" \")","v":0},null,"",null,"Según el informe se tramitaron 2,395  expedientes digitales allegados por los Juzgados Penales Municipales con Funciones de Control de Garantias de Cali y demas despachos a nivel nacional."]
[null,null,"2. Consolidar la administración de la información entendida como todas las acciones rientadas a garantizar el acceso, consulta, uso y conservación de la información de justicia de manera ágil, flexible e inteligente, bajo un enfoque de innovación.",null,{"$f":"IFERROR(GESTION!H66,\" \")","v":"Recepcionar expedientes electronicos y digitalizados por las plataformas establecidas (OneDrive y BestDoc) para comunicar y dar cumplimiento a las decisiones adoptados por los jueces de los Juzgados Penales Municipales y del Circuito con Funciones de Conocimiento de Cali, Tribunal Superior Sala de Decision Penal, Corte Suprema de Justicia Sala de Casacion Penal y demas despachos a nivel nacional. "},{"$f":"IFERROR(GESTION!I66,\" \")","v":"Entregable"},{"$f":"IFERROR(GESTION!J66,\" \")","v":0},null,"",null,"Según el informe se tramitaron 1,553.expedientes digitales allegados por los Juzgados Penales Municipales y del Circuito con Funciones de Conocimiento de Cali, Tribunal Superior Sala de Decision Penal, Corte Suprema de Justicia Sala de Casacion Penal y demas despachos a nivel nacional. "]
[null,null,null,null,{"$f":"IFERROR(GESTION!H67,\" \")","v":"Notificar, comunicar y publicar las decisiones adoptadas por los jueces que conforman el Sistema Penal Oral Acusatorio de Cali y demas despachos a nivel nacional e internacional. "},{"$f":"IFERROR(GESTION!I67,\" \")","v":"Entregable"},{"$f":"IFERROR(GESTION!J67,\" \")","v":0},null,"",null,"Aproximadamente se realizaron 1.663 tramites de notificacion, comunicación y publicacion de decisiones judiciales"]
[null,null,null,null,{"$f":"IFERROR(GESTION!H68,\" \")","v":"Gestionar las actividades  donde es vinculado el Centro de Servicios Judiciales de Cali."},{"$f":"IFERROR(GESTION!I68,\" \")","v":"Entregable"},{"$f":"IFERROR(GESTION!J68,\" \")","v":0},null,"",null,"Aproximadamente se tramitaron 316 derechos de peticion y 103 respuestas a vinculaciones de acciones constitucionales"]
[null,null,null,null,{"$f":"IFERROR(GESTION!H69,\" \")","v":"Gestionar todas las actividades encaminadas al área administrativa y operativa del talento humano. "},{"$f":"IFERROR(GESTION!I69,\" \")","v":"Entregable"},{"$f":"IFERROR(GESTION!J69,\" \")","v":0},null,"",null,"Aproximadamente se tramitaron 82 diligencias de Gestiones Administrativas"]
[null,null,null,null,{"$f":"IFERROR(GESTION!H70,\" \")","v":"Dar cumplimiento a las decisiones judiciales ejecutoriadas en los procesos penales."},{"$f":"IFERROR(GESTION!I70,\" \")","v":"Entregable"},{"$f":"IFERROR(GESTION!J70,\" \")","v":0},null,{"$f":"IFERROR(H70/G70,\"\")","v":""},null,"Según el informe se dio cumplimiento a 983 decisiones ejecutoriadas"]
[null,null,"3. Fortalecer el Sistema integrado de Gestión de la Rama, orientado a la implementación y certificación de las normas antisoborno.","1. Gestionar el desarrollo de las competencias, la toma de conciencia , la cultura  organizacional  y el compromiso de los  servidores judiciales, contratistas, practicantes y  judicantes de contribuir a generar valor público en la administración de justicia, en el marco de  cumplimiento de los requisitos  aplicables y el comportamiento ético.\n3. Fomentar la transparencia y la participación generando lineamientos y promoviendo la rendición de cuentas ,la consulta, reporte y planteamiento de inquietudes en relación con las decisiones y aspectos del SIGCMA.",{"$f":"IFERROR(GESTION!H71,\" \")","v":"Recepcionar, custodiar y realizar devoluciones de los titulos judiciales."},{"$f":"IFERROR(GESTION!I71,\" \")","v":"Entregable"},{"$f":"IFERROR(GESTION!J71,\" \")","v":0},null,"",null,"Según el informe se realizo la devolución de 25 titulos judiciales"]
[null,null,null,null,{"$f":"IFERROR(GESTION!H72,\" \")","v":"Atender y brindar informacion a las partes interesadas de forma presencial y virtual."},{"$f":"IFERROR(GESTION!I72,\" \")","v":"Entregable"},{"$f":"IFERROR(GESTION!J72,\" \")","v":0},null,"",null,"Aproximadamente se atienen 13,000 partes interesadas de forma vitual y 5,000 partes interesadas de forma presencial. "]
[null,null,null,null,{"$f":"IFERROR(GESTION!H73,\" \")","v":"Comunicar la programación de audiencias de los despachos judiciales que conforman el Sistema Penal Oral Acusatorio de Cali."},{"$f":"IFERROR(GESTION!I73,\" \")","v":"Entregable"},{"$f":"IFERROR(GESTION!J73,\" \")","v":0},null,"",null,"Según el informe realziado se comunicaron 28,902 programaciones de audiencias. "]
[null,null,null,null,{"$f":"IFERROR(GESTION!H74,\" \")","v":"Custodiar y organizar el archivo fisico del Centro de Servicios Judiciales para los Juzgados penales Municipales y del Circuito"},{"$f":"IFERROR(GESTION!I74,\" \")","v":"Entregable"},{"$f":"IFERROR(GESTION!J74,\" \")","v":0},null,"",null,"Aproximadamente se custodian mas de 100,000 expedientes fisicos "]
[null,null,null,null,{"$f":"IFERROR(GESTION!H75,\" \")","v":"Digitalizar procesos recepcionados de forma fisica. "},{"$f":"IFERROR(GESTION!I75,\" \")","v":"Entregable"},{"$f":"IFERROR(GESTION!J75,\" \")","v":0},null,"",null,"Se han digitalizado aproximadamente 236 expedientes fisicos"]
[null,null,"4. Aumentar la confianza, la cercanía y acceso a los servicios de la Rama Judicial a través, entre otros, de una comunicación clara y asertiva con la ciudadanía.","3. Fomentar la transparencia y la participación generando lineamientos y promoviendo la rendición de cuentas ,la consulta, reporte y planteamiento de inquietudes en relación con las decisiones y aspectos del SIGCMA.",{"$f":"IFERROR(GESTION!H76,\" \")","v":"Asignación de salas para la realizacion  de las  adiencias de los despachos que conforman el Sistema Penal Oral Acusatorio de Cali. "},{"$f":"IFERROR(GESTION!I76,\" \")","v":"Entregable"},{"$f":"IFERROR(GESTION!J76,\" \")","v":0},null,"",null,"Se asignaron 247 salas para realizar audiencia con la asistencia de las partes internas y partes  interesadas"]
[null,null,null,null,{"$f":"IFERROR(GESTION!H77,\" \")","v":0},{"$f":"IFERROR(GESTION!I77,\" \")","v":0},{"$f":"IFERROR(GESTION!J77,\" \")","v":0},null,""]
[null,null,null,null,{"$f":"IFERROR(GESTION!H78,\" \")","v":0},{"$f":"IFERROR(GESTION!I78,\" \")","v":0},{"$f":"IFERROR(GESTION!J78,\" \")","v":0},null,""]
[null,null,null,null,{"$f":"IFERROR(GESTION!H79,\" \")","v":0},{"$f":"IFERROR(GESTION!I79,\" \")","v":0},{"$f":"IFERROR(GESTION!J79,\" \")","v":0},null,""]
[null,null,null,null,{"$f":"IFERROR(GESTION!H80,\" \")","v":0},{"$f":"IFERROR(GESTION!I80,\" \")","v":0},{"$f":"IFERROR(GESTION!J80,\" \")","v":0},null,""]
[null,null,"5. Prevenir fenómenos asociados con actos de corrupción en la Rama Judicial y reducir las experiencias de corrupción de usuarios y servidores judiciales.",null,{"$f":"IFERROR(GESTION!H81,\" \")","v":0},{"$f":"IFERROR(GESTION!I81,\" \")","v":0},{"$f":"IFERROR(GESTION!J81,\" \")","v":0},null,""]
[null,null,null,null,{"$f":"IFERROR(GESTION!H82,\" \")","v":0},{"$f":"IFERROR(GESTION!I82,\" \")","v":0},{"$f":"IFERROR(GESTION!J82,\" \")","v":0},null,""]
[null,null,null,null,{"$f":"IFERROR(GESTION!H83,\" \")","v":0},{"$f":"IFERROR(GESTION!I83,\" \")","v":0},{"$f":"IFERROR(GESTION!J83,\" \")","v":0},null,""]
[null,null,null,null,{"$f":"IFERROR(GESTION!H84,\" \")","v":0},{"$f":"IFERROR(GESTION!I84,\" \")","v":0},{"$f":"IFERROR(GESTION!J84,\" \")","v":0},null,""]
[null,null,null,null,{"$f":"IFERROR(GESTION!H85,\" \")","v":0},{"$f":"IFERROR(GESTION!I85,\" \")","v":0},{"$f":"IFERROR(GESTION!J85,\" \")","v":0},null,""]
[null,null,"6. Promover la rendición de cuentas y la colaboración real con la ciudadanía como fundamento para diseñar acciones de mejoramiento del acceso a la justicia.",null,{"$f":"IFERROR(GESTION!H86,\" \")","v":0},{"$f":"IFERROR(GESTION!I86,\" \")","v":0},{"$f":"IFERROR(GESTION!J86,\" \")","v":0},null,""]
[null,null,null,null,{"$f":"IFERROR(GESTION!H87,\" \")","v":0},{"$f":"IFERROR(GESTION!I87,\" \")","v":0},{"$f":"IFERROR(GESTION!J87,\" \")","v":0},null,""]
[null,null,null,null,{"$f":"IFERROR(GESTION!H88,\" \")","v":0},{"$f":"IFERROR(GESTION!I88,\" \")","v":0},{"$f":"IFERROR(GESTION!J88,\" \")","v":0},null,""]
[null,null,null,null,{"$f":"IFERROR(GESTION!H89,\" \")","v":0},{"$f":"IFERROR(GESTION!I89,\" \")","v":0},{"$f":"IFERROR(GESTION!J89,\" \")","v":0},null,""]
[null,null,null,null,{"$f":"IFERROR(GESTION!H90,\" \")","v":"Preparar informe de revisión por la alta dirección del año 2022"},{"$f":"IFERROR(GESTION!I90,\" \")","v":"Entregable"},{"$f":"IFERROR(GESTION!J90,\" \")","v":1},null,0,null,"Informe a la alta direccion"]
[null,null,"7. Continuar la consolidación del SIGCMA, a través de los procesos de formación en modelos de gestión, logrando la implementación y ampliación de este en los esquemas certificados de manera gradual, teniendo en cuenta las capacidades de los diferentes despachos judiciales y dependencias de la Rama Judicial y articulando el enfoque de Arquitectura Empresarial para el desarrollo del PETD a través de la gestión del conocimiento para la gestión del cambio propendiendo por una cultura de la calidad, la transparencia, la rendición de cuentas, la anticorrupción y el antisoborno","1. Gestionar el desarrollo de las competencias, la toma de conciencia , la cultura  organizacional  y el compromiso de los  servidores judiciales, contratistas, practicantes y  judicantes de contribuir a generar valor público en la administración de justicia, en el marco de  cumplimiento de los requisitos  aplicables y el comportamiento ético.\n4. Hacer un uso racional de los recursos naturales aplicando los principios y fases de la Economía Circular, para prevenir, mitigar y controlar los impactos ambientales.",{"$f":"IFERROR(GESTION!H91,\" \")","v":"Preparar y hacer seguimiento a la matriz de riesgos del SIGCMA"},{"$f":"IFERROR(GESTION!I91,\" \")","v":"Entregable"},{"$f":"IFERROR(GESTION!J91,\" \")","v":0},null,"",null,"Se atualizo y se le hizo seguimiento continuo plasmado en la matriz de riesgos determinada"]
[null,null,null,null,{"$f":"IFERROR(GESTION!H92,\" \")","v":"Preparar y atender las auditorias internas y externas al SIGCMA"},{"$f":"IFERROR(GESTION!I92,\" \")","v":"Entregable"},{"$f":"IFERROR(GESTION!J92,\" \")","v":0},null,"",null,"Se realizaron los formartos de gestion ya finalizados."]
[null,null,null,null,{"$f":"IFERROR(GESTION!H93,\" \")","v":"Formular y desarrollar las acciones de gestión del SIGCMA"},{"$f":"IFERROR(GESTION!I93,\" \")","v":"Entregable"},{"$f":"IFERROR(GESTION!J93,\" \")","v":0},null,"",null,"Informe de auditorias"]
[null,null,null,null,{"$f":"IFERROR(GESTION!H94,\" \")","v":"Gestionar las salidas no conformes mediante su registro, seguimiento y ejecución de acciones de mejora"},{"$f":"IFERROR(GESTION!I94,\" \")","v":"Entregable"},{"$f":"IFERROR(GESTION!J94,\" \")","v":0},null,"",null,"Matriz de riesgo con las salidas no conformes por cada area."]
[null,null,null,null,{"$f":"IFERROR(GESTION!H95,\" \")","v":"Medir la satisfacción de partes interesadas mediante la encuesta de satisfacción del año 2022"},{"$f":"IFERROR(GESTION!I95,\" \")","v":"Entregable"},{"$f":"IFERROR(GESTION!J95,\" \")","v":1},null,0,null,"Encuestas diligenciadas por las partes interesadas."]
["4. Talento Humano","Talento Humano: Fortalecer el talento humano en la Rama Judicial para que sea eficiente, capacitado y realice su labor en ambientes saludables y seguros. Ampliar la cobertura de la carrera judicial y mejorar la oferta de formación, que esté disponible para todos los servidores judiciales e impacte positivamente el servicio de justicia y responda a las necesidades reales del ejercicio de la función judicial.","1. Ampliar la cobertura de la carrera judicial optimizando los procesos de los concursos de méritos y propender por mitigar su litigiosidad.","1. Gestionar el desarrollo de las competencias, la toma de conciencia , la cultura  organizacional  y el compromiso de los  servidores judiciales, contratistas, practicantes y  judicantes de contribuir a generar valor público en la administración de justicia, en el marco de  cumplimiento de los requisitos  aplicables y el comportamiento ético.",{"$f":"IFERROR(GESTION!H96,\" \")","v":0},{"$f":"IFERROR(GESTION!I96,\" \")","v":0},{"$f":"IFERROR(GESTION!J96,\" \")","v":0},null,""]
[null,null,null,null,{"$f":"IFERROR(GESTION!H97,\" \")","v":0},{"$f":"IFERROR(GESTION!I97,\" \")","v":0},{"$f":"IFERROR(GESTION!J97,\" \")","v":0},null,""]
[null,null,null,null,{"$f":"IFERROR(GESTION!H98,\" \")","v":0},{"$f":"IFERROR(GESTION!I98,\" \")","v":0},{"$f":"IFERROR(GESTION!J98,\" \")","v":0},null,""]
[null,null,null,null,{"$f":"IFERROR(GESTION!H99,\" \")","v":0},{"$f":"IFERROR(GESTION!I99,\" \")","v":0},{"$f":"IFERROR(GESTION!J99,\" \")","v":0},null,""]
[null,null,null,null,{"$f":"IFERROR(GESTION!H100,\" \")","v":0},{"$f":"IFERROR(GESTION!I100,\" \")","v":0},{"$f":"IFERROR(GESTION!J100,\" \")","v":0},null,""]
[null,null,"2. Impactar la función y servicios que presta la Rama Judicial, a través de una formación integral desde una visión de gestión del conocimiento, relacionada con los problemas de la justicia y los problemas de gestión de quienes administran los recursos de la justicia, y potenciando el uso de medios virtuales.",null,{"$f":"IFERROR(GESTION!H101,\" \")","v":"Participar de los diplomados programados en el Plan de Formación por la Dirección Nacional del SIGCMA"},{"$f":"IFERROR(GESTION!I101,\" \")","v":"Entregable"},{"$f":"IFERROR(GESTION!J101,\" \")","v":0},null,"",null,"Certificados de participacion de los diplomados"]
[null,null,null,null,{"$f":"IFERROR(GESTION!H102,\" \")","v":"Capacitar a los servidores en temas de SIGCMA. "},{"$f":"IFERROR(GESTION!I102,\" \")","v":"Entregable"},{"$f":"IFERROR(GESTION!J102,\" \")","v":0},null,{"$f":"IFERROR(H102/G102,\"\")","v":""},null,"Se plasman actas de asistencia y evidencias fotograficas"]
[null,null,null,null,{"$f":"IFERROR(GESTION!H103,\" \")","v":0},{"$f":"IFERROR(GESTION!I103,\" \")","v":0},{"$f":"IFERROR(GESTION!J103,\" \")","v":0},null,""]
[null,null,null,null,{"$f":"IFERROR(GESTION!H104,\" \")","v":0},{"$f":"IFERROR(GESTION!I104,\" \")","v":0},{"$f":"IFERROR(GESTION!J104,\" \")","v":0},null,""]
[null,null,null,null,{"$f":"IFERROR(GESTION!H105,\" \")","v":0},{"$f":"IFERROR(GESTION!I105,\" \")","v":0},{"$f":"IFERROR(GESTION!J105,\" \")","v":0},null,""]
[null,null,"3. Promover la incorporación de la perspectiva de género y el enfoque diferencial en los fallos judiciales y en la atención a los ciudadanos, la administración de la Rama Judicial, la administración de la carrera judicial y la elaboración de listas para altas Cortes. ",null,{"$f":"IFERROR(GESTION!H106,\" \")","v":0},{"$f":"IFERROR(GESTION!I106,\" \")","v":0},{"$f":"IFERROR(GESTION!J106,\" \")","v":0},null,""]
[null,null,null,null,{"$f":"IFERROR(GESTION!H107,\" \")","v":0},{"$f":"IFERROR(GESTION!I107,\" \")","v":0},{"$f":"IFERROR(GESTION!J107,\" \")","v":0},null,""]
[null,null,null,null,{"$f":"IFERROR(GESTION!H108,\" \")","v":0},{"$f":"IFERROR(GESTION!I108,\" \")","v":0},{"$f":"IFERROR(GESTION!J108,\" \")","v":0},null,""]
[null,null,null,null,{"$f":"IFERROR(GESTION!H109,\" \")","v":0},{"$f":"IFERROR(GESTION!I109,\" \")","v":0},{"$f":"IFERROR(GESTION!J109,\" \")","v":0},null,""]
[null,null,null,null,{"$f":"IFERROR(GESTION!H110,\" \")","v":0},{"$f":"IFERROR(GESTION!I110,\" \")","v":0},{"$f":"IFERROR(GESTION!J110,\" \")","v":0},null,""]
[null,null,"4. Desarrollar en los servidores judiciales y demás grupos de valor relevantes las competencias necesarias para la efectividad de la transformación digital de modo que puedan, entre otros, utilizar con solvencia las herramientas digitales dispuestas para sus respectivas funciones. Además, fortalecer y actualizar los conocimientos del personal a cargo de la gestión de proyectos de tecnología.",null,{"$f":"IFERROR(GESTION!H111,\" \")","v":0},{"$f":"IFERROR(GESTION!I111,\" \")","v":0},{"$f":"IFERROR(GESTION!J111,\" \")","v":0},null,""]
[null,null,null,null,{"$f":"IFERROR(GESTION!H112,\" \")","v":0},{"$f":"IFERROR(GESTION!I112,\" \")","v":0},{"$f":"IFERROR(GESTION!J112,\" \")","v":0},null,""]
[null,null,null,null,{"$f":"IFERROR(GESTION!H113,\" \")","v":0},{"$f":"IFERROR(GESTION!I113,\" \")","v":0},{"$f":"IFERROR(GESTION!J113,\" \")","v":0},null,""]
[null,null,null,null,{"$f":"IFERROR(GESTION!H114,\" \")","v":0},{"$f":"IFERROR(GESTION!I114,\" \")","v":0},{"$f":"IFERROR(GESTION!J114,\" \")","v":0},null,""]
[null,null,null,null,{"$f":"IFERROR(GESTION!H115,\" \")","v":0},{"$f":"IFERROR(GESTION!I115,\" \")","v":0},{"$f":"IFERROR(GESTION!J115,\" \")","v":0},null,""]
[null,null,"5. Promover el bienestar de todos los servidores judiciales a través de la implementación de un sistema que contemple los diferentes niveles de estrategias y acciones necesarios para mejorar el clima laboral, la salud física y mental y la calidad del tiempo de descanso.","5. Generar espacios de trabajo seguros y saludables que contribuyan a minimizar los  incidentes, accidentes y enfermedades laborales derivados de las condiciones y actos  inseguros y fomentar  el autocuidado, los  estilos de vida y el trabajo saludable en los servidores judiciales, contratistas, judicantes y practicantes",{"$f":"IFERROR(GESTION!H116,\" \")","v":"Asistir a las capacitaciones convocadas por la Rama Judicial, a traves del área de SST y la Coordinación del Centro de Servicios Judiciales. "},{"$f":"IFERROR(GESTION!I116,\" \")","v":"Entregable"},{"$f":"IFERROR(GESTION!J116,\" \")","v":0},null,"",null,"Estan las actas de asistencia y evidencia fotografica a las diferentes capacitaciones"]
[null,null,null,null,{"$f":"IFERROR(GESTION!H117,\" \")","v":0},{"$f":"IFERROR(GESTION!I117,\" \")","v":0},{"$f":"IFERROR(GESTION!J117,\" \")","v":0},null,""]
[null,null,null,null,{"$f":"IFERROR(GESTION!H118,\" \")","v":0},{"$f":"IFERROR(GESTION!I118,\" \")","v":0},{"$f":"IFERROR(GESTION!J118,\" \")","v":0},null,""]
[null,null,null,null,{"$f":"IFERROR(GESTION!H119,\" \")","v":0},{"$f":"IFERROR(GESTION!I119,\" \")","v":0},{"$f":"IFERROR(GESTION!J119,\" \")","v":0},null,""]
[null,null,null,null,{"$f":"IFERROR(GESTION!H120,\" \")","v":0},{"$f":"IFERROR(GESTION!I120,\" \")","v":0},{"$f":"IFERROR(GESTION!J120,\" \")","v":0},null,""]
["5. Gobernanza, planeación estratégica y capacidad de toma de decisiones","Gobernanza, planeación estratégica y capacidad de toma de decisiones: Fortalecer la gobernanza, la planeación estratégica y la capacidad de toma de decisiones de la Rama Judicial con base en la evidencia empírica y la articulación efectiva con las demás entidades, para que la perspectiva de género y el enfoque diferencial sean transversales en el presente plan. ","1. Implementar un nuevo modelo integrado para la planeación estratégica, el seguimiento y la medición del desempeño institucional.","2. Asegurar  el cumplimiento de los objetivos institucionales, la normatividad aplicable,  la mejora del SIGCMA y la satisfacción de los usuarios, revisando de  forma continua y sistemática la planificación de la gestión y fortaleciendo la administración de riesgos y sus controles.",{"$f":"IFERROR(GESTION!H121,\" \")","v":"Preparar plan de acción del SICGMA 2023"},{"$f":"IFERROR(GESTION!I121,\" \")","v":"Meta cuantificable"},{"$f":"IFERROR(GESTION!J121,\" \")","v":1},null,0,null,"Se sigue avanzando en el plan de Accion del año 2023"]
[null,null,null,null,{"$f":"IFERROR(GESTION!H122,\" \")","v":"Realizar reuniones de seguimiento de las actividades. "},{"$f":"IFERROR(GESTION!I122,\" \")","v":"Entregable"},{"$f":"IFERROR(GESTION!J122,\" \")","v":0},null,"",null,"Estan las actas de asistencia y evidencia con fotogafias a las diferentes reuniones de Seguimiento de las actividades (Archivo)"]
[null,null,null,null,{"$f":"IFERROR(GESTION!H123,\" \")","v":"Asistir a las reuniones del Comité Nacional del SIGCMA"},{"$f":"IFERROR(GESTION!I123,\" \")","v":"Entregable"},{"$f":"IFERROR(GESTION!J123,\" \")","v":0},null,"",null,"Estan las actas de asistencia y evidencia con fotogafias a las diferentes reuniones del Comité Nacional del SIGMA  (Archivo)"]
[null,null,null,null,{"$f":"IFERROR(GESTION!H124,\" \")","v":"Actualizar los protocolos, los manuales de funciones y de procecimientos de cada una de las áreas. "},{"$f":"IFERROR(GESTION!I124,\" \")","v":"Entregable"},{"$f":"IFERROR(GESTION!J124,\" \")","v":0},null,"",null,"Los Manuales se actualizaron con el Lider de la Alta Gerencia del SIGMA  del Centro de Servicios Judiciales Para los Juzgados Penales Municipales y del Circuito."]
[null,null,null,null,{"$f":"IFERROR(GESTION!H125,\" \")","v":0},{"$f":"IFERROR(GESTION!I125,\" \")","v":0},{"$f":"IFERROR(GESTION!J125,\" \")","v":0},null,""]
[null,null,"2. Definir e implementar el modelo optimizado de formulación, seguimiento y evaluación de la política pública judicial.",null,{"$f":"IFERROR(GESTION!H126,\" \")","v":0},{"$f":"IFERROR(GESTION!I126,\" \")","v":0},{"$f":"IFERROR(GESTION!J126,\" \")","v":0},null,""]
[null,null,null,null,{"$f":"IFERROR(GESTION!H127,\" \")","v":0},{"$f":"IFERROR(GESTION!I127,\" \")","v":0},{"$f":"IFERROR(GESTION!J127,\" \")","v":0},null,""]
[null,null,null,null,{"$f":"IFERROR(GESTION!H128,\" \")","v":0},{"$f":"IFERROR(GESTION!I128,\" \")","v":0},{"$f":"IFERROR(GESTION!J128,\" \")","v":0},null,""]
[null,null,null,null,{"$f":"IFERROR(GESTION!H129,\" \")","v":0},{"$f":"IFERROR(GESTION!I129,\" \")","v":0},{"$f":"IFERROR(GESTION!J129,\" \")","v":0},null,""]
[null,null,null,null,{"$f":"IFERROR(GESTION!H130,\" \")","v":0},{"$f":"IFERROR(GESTION!I130,\" \")","v":0},{"$f":"IFERROR(GESTION!J130,\" \")","v":0},null,""]

{"sheet":"GESTION_SEG_3_TRIM","index":7,"n_rows":130,"n_cols":11,"rows_kept":130,"cut":false,"hidden":false,"merged":[[15,2,19,2],[15,3,19,3],[20,2,24,2],[20,3,24,3],[1,0,1,10],[2,0,2,3],[2,4,2,9],[2,10,4,10],[3,0,4,1],[3,2,4,2],[3,3,4,3],[3,4,3,9],[25,2,29,2],[25,3,29,3],[30,0,59,0],[30,1,59,1],[30,2,34,2],[30,3,59,3],[35,2,39,2],[40,2,44,2],[45,2,49,2],[50,2,54,2],[5,0,29,0],[5,1,29,1],[5,2,9,2],[5,3,9,3],[10,2,14,2],[10,3,14,3],[55,2,59,2],[60,0,94,0],[60,1,94,1],[60,2,64,2],[60,3,64,3],[65,2,69,2],[65,3,69,3],[70,2,74,2],[70,3,74,3],[75,2,79,2],[75,3,89,3],[80,2,84,2],[85,2,89,2],[90,2,94,2],[90,3,94,3],[105,2,109,2],[110,2,114,2],[115,2,119,2],[115,3,119,3],[120,0,129,0],[120,1,129,1],[120,2,124,2],[120,3,129,3],[125,2,129,2],[95,0,119,0],[95,1,119,1],[95,2,99,2],[95,3,114,3],[100,2,104,2]]}
[]
["CONSEJO SUPERIOR DE LA JUDICATURA \nUNIDADES MISIONALES DEL CONSEJO SUPERIOR DE LA JUDICATURA - \nDIRECCIÓN EJECUTIVA DE ADMINISTRACIÓN JUDICIAL - UNIDADES MISIONALES DE LA DEAJ\nDIRECCIONES SECCIONALES DE ADMINISTRACIÓN JUDICIAL - DEPENDENCIAS JUDICIALES CERTIFICADAS"]
["PLAN SECTORIAL DE DESARROLLO 2023-2026 - OBJETIVOS SIGCMA",null,null,null,null,null,null,null,null,null," ANÁLISIS RESULTADO"]
["OBJETIVO ESTRATÉGICO",null,"OBJETIVO ESPECÍFICO PSD","OBJETIVO ESPECÍFICO SIGCMA","MEDICIÓN DE LA GESTIÓN ANUAL"]
[null,null,null,null,"ACTIVIDADES ","INDIQUE SI ES ENTREGABLE O META CUANTIFICABLE","META ANUAL","AVANCE DE LA META ","NIVEL CUMPLIMIENTO","DIFICULTADES PARA LOGRAR LA META PROPUESTA"]
["1. Acceso e Infraestructura Física","Acceso e Infraestructura Física: Ampliar, en todo el territorio nacional, el acceso a una justicia efectiva, pronta, equitativa e incluyente, reduciendo el atraso y la congestión, de acuerdo con las necesidades de la demanda de justicia por jurisdicción y especialidad, y mejorando la articulación con la justicia restaurativa y terapéutica, y otros mecanismos de solución de conflictos y consolidando una infraestructura física óptima para el acceso a la justicia.","1. Ampliar el acceso a justicia para atender las necesidades jurídicas de los ciudadanos con un enfoque diferencial, de una manera pronta, reduciendo las inequidades y las brechas territoriales de acceso.","2. Asegurar  el cumplimiento de los objetivos institucionales, la normatividad aplicable,  la mejora del SIGCMA y la satisfacción de los usuarios, revisando de  forma continua y sistemática la planificación de la gestión y fortaleciendo la administración de riesgos y sus controles",{"$f":"IFERROR(GESTION!H6,\" \")","v":0},{"$f":"IFERROR(GESTION!I6,\" \")","v":0},{"$f":"IFERROR(GESTION!J6,\" \")","v":0},null,{"$f":"IFERROR(H6/G6,\"\")","v":""}]
[null,null,null,null,{"$f":"IFERROR(GESTION!H7,\" \")","v":0},{"$f":"IFERROR(GESTION!I7,\" \")","v":0},{"$f":"IFERROR(GESTION!J7,\" \")","v":0},null,""]
[null,null,null,null,{"$f":"IFERROR(GESTION!H8,\" \")","v":0},{"$f":"IFERROR(GESTION!I8,\" \")","v":0},{"$f":"IFERROR(GESTION!J8,\" \")","v":0},null,""]
[null,null,null,null,{"$f":"IFERROR(GESTION!H9,\" \")","v":0},{"$f":"IFERROR(GESTION!I9,\" \")","v":0},{"$f":"IFERROR(GESTION!J9,\" \")","v":0},null,""]
[null,null,null,null,{"$f":"IFERROR(GESTION!H10,\" \")","v":0},{"$f":"IFERROR(GESTION!I10,\" \")","v":0},{"$f":"IFERROR(GESTION!J10,\" \")","v":0},null,""]
[null,null,"2. Mejorar los tiempos de respuesta de la Rama Judicial y reducir el inventario de procesos, identificando los retos internos y promoviendo tanto acciones articuladas específicas para abordarlos como estrategias coordinadas para enfrentar las barreras que dependen de otras entidades.","2. Asegurar  el cumplimiento de los objetivos institucionales, la normatividad aplicable,  la mejora del SIGCMA y la satisfacción de los usuarios, revisando de  forma continua y sistemática la planificación de la gestión y fortaleciendo la administración de riesgos y sus controles",{"$f":"IFERROR(GESTION!H11,\" \")","v":0},{"$f":"IFERROR(GESTION!I11,\" \")","v":0},{"$f":"IFERROR(GESTION!J11,\" \")","v":0},null,""]
[null,null,null,null,{"$f":"IFERROR(GESTION!H12,\" \")","v":0},{"$f":"IFERROR(GESTION!I12,\" \")","v":0},{"$f":"IFERROR(GESTION!J12,\" \")","v":0},null,""]
[null,null,null,null,{"$f":"IFERROR(GESTION!H13,\" \")","v":0},{"$f":"IFERROR(GESTION!I13,\" \")","v":0},{"$f":"IFERROR(GESTION!J13,\" \")","v":0},null,""]
[null,null,null,null,{"$f":"IFERROR(GESTION!H14,\" \")","v":0},{"$f":"IFERROR(GESTION!I14,\" \")","v":0},{"$f":"IFERROR(GESTION!J14,\" \")","v":0},null,""]
[null,null,null,null,{"$f":"IFERROR(GESTION!H15,\" \")","v":0},{"$f":"IFERROR(GESTION!I15,\" \")","v":0},{"$f":"IFERROR(GESTION!J15,\" \")","v":0},null,""]
[null,null,"3. Coadyuvar en la garantía de la idoneidad en el ejercicio de la profesión jurídica de acuerdo con lo establecido en la Ley 1905 de 2018","2. Asegurar  el cumplimiento de los objetivos institucionales, la normatividad aplicable,  la mejora del SIGCMA y la satisfacción de los usuarios, revisando de  forma continua y sistemática la planificación de la gestión y fortaleciendo la administración de riesgos y sus controles",{"$f":"IFERROR(GESTION!H16,\" \")","v":0},{"$f":"IFERROR(GESTION!I16,\" \")","v":0},{"$f":"IFERROR(GESTION!J16,\" \")","v":0},null,""]
[null,null,null,null,{"$f":"IFERROR(GESTION!H17,\" \")","v":0},{"$f":"IFERROR(GESTION!I17,\" \")","v":0},{"$f":"IFERROR(GESTION!J17,\" \")","v":0},null,""]
[null,null,null,null,{"$f":"IFERROR(GESTION!H18,\" \")","v":0},{"$f":"IFERROR(GESTION!I18,\" \")","v":0},{"$f":"IFERROR(GESTION!J18,\" \")","v":0},null,""]
[null,null,null,null,{"$f":"IFERROR(GESTION!H19,\" \")","v":0},{"$f":"IFERROR(GESTION!I19,\" \")","v":0},{"$f":"IFERROR(GESTION!J19,\" \")","v":0},null,""]
[null,null,null,null,{"$f":"IFERROR(GESTION!H20,\" \")","v":0},{"$f":"IFERROR(GESTION!I20,\" \")","v":0},{"$f":"IFERROR(GESTION!J20,\" \")","v":0},null,""]
[null,null,"4. Avanzar en la disposición de una infraestructura óptima para el acceso a la justicia en la Rama Judicial de modo que se fortalezca la presencia territorial, teniendo en cuenta las posibilidades que ofrece la transformación digital y las necesidades que se derivan de ella, y considerando tanto las necesidades de los usuarios como las de los servidores judiciales.","4. Hacer un uso racional de los recursos naturales aplicando los principios y fases de la Economía Circular, para prevenir, mitigar y controlar los impactos ambientales",{"$f":"IFERROR(GESTION!H21,\" \")","v":0},{"$f":"IFERROR(GESTION!I21,\" \")","v":0},{"$f":"IFERROR(GESTION!J21,\" \")","v":0},null,""]
[null,null,null,null,{"$f":"IFERROR(GESTION!H22,\" \")","v":0},{"$f":"IFERROR(GESTION!I22,\" \")","v":0},{"$f":"IFERROR(GESTION!J22,\" \")","v":0},null,""]
[null,null,null,null,{"$f":"IFERROR(GESTION!H23,\" \")","v":0},{"$f":"IFERROR(GESTION!I23,\" \")","v":0},{"$f":"IFERROR(GESTION!J23,\" \")","v":0},null,""]
[null,null,null,null,{"$f":"IFERROR(GESTION!H24,\" \")","v":0},{"$f":"IFERROR(GESTION!I24,\" \")","v":0},{"$f":"IFERROR(GESTION!J24,\" \")","v":0},null,""]
[null,null,null,null,{"$f":"IFERROR(GESTION!H25,\" \")","v":0},{"$f":"IFERROR(GESTION!I25,\" \")","v":0},{"$f":"IFERROR(GESTION!J25,\" \")","v":0},null,""]
[null,null,"5. Impulsar el uso de mecanismos alternativos para la solución de conflictos y la ampliación de la justicia restaurativa y terapéutica y el robustecimiento de las alternativas al encarcelamiento","2. Asegurar  el cumplimiento de los objetivos institucionales, la normatividad aplicable,  la mejora del SIGCMA y la satisfacción de los usuarios, revisando de  forma continua y sistemática la planificación de la gestión y fortaleciendo la administración de riesgos y sus controles",{"$f":"IFERROR(GESTION!H26,\" \")","v":0},{"$f":"IFERROR(GESTION!I26,\" \")","v":0},{"$f":"IFERROR(GESTION!J26,\" \")","v":0},null,""]
[null,null,null,null,{"$f":"IFERROR(GESTION!H27,\" \")","v":0},{"$f":"IFERROR(GESTION!I27,\" \")","v":0},{"$f":"IFERROR(GESTION!J27,\" \")","v":0},null,""]
[null,null,null,null,{"$f":"IFERROR(GESTION!H28,\" \")","v":0},{"$f":"IFERROR(GESTION!I28,\" \")","v":0},{"$f":"IFERROR(GESTION!J28,\" \")","v":0},null,""]
[null,null,null,null,{"$f":"IFERROR(GESTION!H29,\" \")","v":0},{"$f":"IFERROR(GESTION!I29,\" \")","v":0},{"$f":"IFERROR(GESTION!J29,\" \")","v":0},null,""]
[null,null,null,null,{"$f":"IFERROR(GESTION!H30,\" \")","v":0},{"$f":"IFERROR(GESTION!I30,\" \")","v":0},{"$f":"IFERROR(GESTION!J30,\" \")","v":0},null,""]
["2. Servicios digitales y de tecnología, innovación y análisis de la información.","Servicios digitales y de tecnología, innovación y análisis de la información: Consolidar una justicia integrada y soportada en servicios digitales y de tecnología, innovación y análisis de la información, con una cultura digital apropiada, segura y sensible a las realidades del territorio nacional. ","1. Ampliar el acceso a la justicia a través de la consolidación del uso de los servicios digitales que conforman el sistema único integrado de gestión judicial en todos los despachos judiciales y dependencias de apoyo y, específicamente, incluyendo el despliegue e implementación del Expediente Judicial Electrónico en todas las jurisdicciones y especialidades.","6. Proteger, preservar y administrar los activos de información  implementando acciones  para gestionar de forma adecuada los incidentes, proteger los datos personales y adoptar mecanismos  de ciberseguridad y aseguramiento de la  continuidad del negocio.",{"$f":"IFERROR(GESTION!H31,\" \")","v":"Registrar las actuaciones en el aplicativo Justicia XXI."},{"$f":"IFERROR(GESTION!I31,\" \")","v":"Entregable"},{"$f":"IFERROR(GESTION!J31,\" \")","v":0},null,"",null,"Todas las áreas realizaron el ingreso de la información de los  registros emitidos  en el aplicativo de acuerdo a sus actividades."]
[null,null,null,null,{"$f":"IFERROR(GESTION!H32,\" \")","v":"Registrar la información de los procesos judiciales digitalizados y electronicos en las plataformas One Drive y BestDoc."},{"$f":"IFERROR(GESTION!I32,\" \")","v":"Entregable"},{"$f":"IFERROR(GESTION!J32,\" \")","v":0},null,"",null,"Se ha creado y registrado la informacion de  los procesos judiciales en las plataformas OneDrive y BESTDoc."]
[null,null,null,null,{"$f":"IFERROR(GESTION!H33,\" \")","v":"Migrar la información de los procesos judiciales digitalizados y electronicos en las plataformas One Drive y BestDoc."},{"$f":"IFERROR(GESTION!I33,\" \")","v":"Entregable"},{"$f":"IFERROR(GESTION!J33,\" \")","v":0},null,"",null,"Se han migrado los procesos judiciales en las plataformas OneDrive y BestDoc, para ser enviados a los Juzgados Penales del Circuito Espcializados."]
[null,null,null,null,{"$f":"IFERROR(GESTION!H34,\" \")","v":"Implementación SIRIS con el módulo de Administración Expedientes "},{"$f":"IFERROR(GESTION!I34,\" \")","v":"Entregable"},{"$f":"IFERROR(GESTION!J34,\" \")","v":0},null,"",null,"Se ha ingresado los datos relacionados de los Procesos físicos "]
[null,null,null,null,{"$f":"IFERROR(GESTION!H35,\" \")","v":"Recepción de la información por medio del correo principal del Centro de Sevicios"},{"$f":"IFERROR(GESTION!I35,\" \")","v":"Entregable"},{"$f":"IFERROR(GESTION!J35,\" \")","v":0},null,"",null,"Según el informe de  recibieron 14769 Correos provenientes de todo el Pais para ser tramitados en las diferentes areas"]
[null,null,"2. Integrar y hacer compatibles todos los aplicativos de transición con SIUGJ, para que la migración de los expedientes judiciales a dicha plataforma sea real y no suponga afectaciones en la prestación del servicio de justicia.",null,{"$f":"IFERROR(GESTION!H36,\" \")","v":0},{"$f":"IFERROR(GESTION!I36,\" \")","v":0},{"$f":"IFERROR(GESTION!J36,\" \")","v":0},null,""]
[null,null,null,null,{"$f":"IFERROR(GESTION!H37,\" \")","v":0},{"$f":"IFERROR(GESTION!I37,\" \")","v":0},{"$f":"IFERROR(GESTION!J37,\" \")","v":0},null,""]
[null,null,null,null,{"$f":"IFERROR(GESTION!H38,\" \")","v":0},{"$f":"IFERROR(GESTION!I38,\" \")","v":0},{"$f":"IFERROR(GESTION!J38,\" \")","v":0},null,{"$f":"IFERROR(H38/G38,\"\")","v":""}]
[null,null,null,null,{"$f":"IFERROR(GESTION!H39,\" \")","v":0},{"$f":"IFERROR(GESTION!I39,\" \")","v":0},{"$f":"IFERROR(GESTION!J39,\" \")","v":0},null,""]
[null,null,null,null,{"$f":"IFERROR(GESTION!H40,\" \")","v":0},{"$f":"IFERROR(GESTION!I40,\" \")","v":0},{"$f":"IFERROR(GESTION!J40,\" \")","v":0},null,""]
[null,null,"3. Fortalecer las capacidades institucionales, adecuar el modelo operativo y de servicio, bajo un enfoque de Arquitectura Empresarial y de fortalecimiento del acceso a la justicia.",null,{"$f":"IFERROR(GESTION!H41,\" \")","v":0},{"$f":"IFERROR(GESTION!I41,\" \")","v":0},{"$f":"IFERROR(GESTION!J41,\" \")","v":0},null,""]
[null,null,null,null,{"$f":"IFERROR(GESTION!H42,\" \")","v":0},{"$f":"IFERROR(GESTION!I42,\" \")","v":0},{"$f":"IFERROR(GESTION!J42,\" \")","v":0},null,""]
[null,null,null,null,{"$f":"IFERROR(GESTION!H43,\" \")","v":0},{"$f":"IFERROR(GESTION!I43,\" \")","v":0},{"$f":"IFERROR(GESTION!J43,\" \")","v":0},null,""]
[null,null,null,null,{"$f":"IFERROR(GESTION!H44,\" \")","v":0},{"$f":"IFERROR(GESTION!I44,\" \")","v":0},{"$f":"IFERROR(GESTION!J44,\" \")","v":0},null,""]
[null,null,null,null,{"$f":"IFERROR(GESTION!H45,\" \")","v":0},{"$f":"IFERROR(GESTION!I45,\" \")","v":0},{"$f":"IFERROR(GESTION!J45,\" \")","v":0},null,""]
[null,null,"4.Consolidar la cultura y apropiación de la transformación digital en los servidores y usuarios de los servicios de la Rama Judicial y reducir brechas de acceso y conocimiento, incluyendo la oferta efectiva de información sobre el uso de las nuevas herramientas virtuales implementadas en las diferentes jurisdicciones, con especial énfasis en las zonas del país donde es evidente la brecha digital.",null,{"$f":"IFERROR(GESTION!H46,\" \")","v":0},{"$f":"IFERROR(GESTION!I46,\" \")","v":0},{"$f":"IFERROR(GESTION!J46,\" \")","v":0},null,""]
[null,null,null,null,{"$f":"IFERROR(GESTION!H47,\" \")","v":0},{"$f":"IFERROR(GESTION!I47,\" \")","v":0},{"$f":"IFERROR(GESTION!J47,\" \")","v":0},null,""]
[null,null,null,null,{"$f":"IFERROR(GESTION!H48,\" \")","v":0},{"$f":"IFERROR(GESTION!I48,\" \")","v":0},{"$f":"IFERROR(GESTION!J48,\" \")","v":0},null,""]
[null,null,null,null,{"$f":"IFERROR(GESTION!H49,\" \")","v":0},{"$f":"IFERROR(GESTION!I49,\" \")","v":0},{"$f":"IFERROR(GESTION!J49,\" \")","v":0},null,""]
[null,null,null,null,{"$f":"IFERROR(GESTION!H50,\" \")","v":0},{"$f":"IFERROR(GESTION!I50,\" \")","v":0},{"$f":"IFERROR(GESTION!J50,\" \")","v":0},null,""]
[null,null,"5.Consolidar la infraestructura y los recursos necesarios para la implementación exitosa de la transformación digital, incluyendo la disposición de internet de calidad en el 100% de las sedes en la Rama Judicial y modernizar los servicios tecnológicos de soporte. ",null,{"$f":"IFERROR(GESTION!H51,\" \")","v":0},{"$f":"IFERROR(GESTION!I51,\" \")","v":0},{"$f":"IFERROR(GESTION!J51,\" \")","v":0},null,""]
[null,null,null,null,{"$f":"IFERROR(GESTION!H52,\" \")","v":0},{"$f":"IFERROR(GESTION!I52,\" \")","v":0},{"$f":"IFERROR(GESTION!J52,\" \")","v":0},null,""]
[null,null,null,null,{"$f":"IFERROR(GESTION!H53,\" \")","v":0},{"$f":"IFERROR(GESTION!I53,\" \")","v":0},{"$f":"IFERROR(GESTION!J53,\" \")","v":0},null,""]
[null,null,null,null,{"$f":"IFERROR(GESTION!H54,\" \")","v":0},{"$f":"IFERROR(GESTION!I54,\" \")","v":0},{"$f":"IFERROR(GESTION!J54,\" \")","v":0},null,""]
[null,null,null,null,{"$f":"IFERROR(GESTION!H55,\" \")","v":0},{"$f":"IFERROR(GESTION!I55,\" \")","v":0},{"$f":"IFERROR(GESTION!J55,\" \")","v":0},null,""]
[null,null,"6.Integrar y optimizar los servicios administrativos de la Rama Judicial bajo un enfoque de transformación digital e innovación incluyendo los componentes financiero, administrativo, talento humano, entre otros",null,{"$f":"IFERROR(GESTION!H56,\" \")","v":0},{"$f":"IFERROR(GESTION!I56,\" \")","v":0},{"$f":"IFERROR(GESTION!J56,\" \")","v":0},null,""]
[null,null,null,null,{"$f":"IFERROR(GESTION!H57,\" \")","v":0},{"$f":"IFERROR(GESTION!I57,\" \")","v":0},{"$f":"IFERROR(GESTION!J57,\" \")","v":0},null,""]
[null,null,null,null,{"$f":"IFERROR(GESTION!H58,\" \")","v":0},{"$f":"IFERROR(GESTION!I58,\" \")","v":0},{"$f":"IFERROR(GESTION!J58,\" \")","v":0},null,""]
[null,null,null,null,{"$f":"IFERROR(GESTION!H59,\" \")","v":0},{"$f":"IFERROR(GESTION!I59,\" \")","v":0},{"$f":"IFERROR(GESTION!J59,\" \")","v":0},null,""]
[null,null,null,null,{"$f":"IFERROR(GESTION!H60,\" \")","v":0},{"$f":"IFERROR(GESTION!I60,\" \")","v":0},{"$f":"IFERROR(GESTION!J60,\" \")","v":0},null,""]
["3. Confianza pública, transparencia y rendición de cuentas","Confianza pública, transparencia y rendición de cuentas: Aumentar la confianza pública en la justicia a través de la transparencia, la rendición de cuentas y la participación, incluyendo la información de justicia y la producción, gestión y acceso a las fuentes de derecho, el fortalecimiento del sistema de gestión de calidad y medio ambiente (SIGCMA) y el mejoramiento de la calidad y publicidad de la información. ","1. Incrementar la cantidad, la calidad y pertinencia de los datos sobre el funcionamiento del servicio de justicia bajo un modelo de gobierno de datos y un liderazgo unificado. ","4. Hacer un uso racional de los recursos naturales aplicando los principios y fases de la Economía Circular, para prevenir, mitigar y controlar los impactos ambientales.",{"$f":"IFERROR(GESTION!H61,\" \")","v":"Crear y repartir solicitudes de audiencias concentradas y reservadas de actos urgentes a los  juzgados penales municipales con funciones de control de garantias de Cali."},{"$f":"IFERROR(GESTION!I61,\" \")","v":"Entregable"},{"$f":"IFERROR(GESTION!J61,\" \")","v":0},null,"",null,"Según la estadistica del sistema de reparto se enviaron a los Jugados Penales Municipales con Función de Control de Garantias de actos urgentes: 61 solicitudes de audiencias del procedimiento abreviado y 1852 solicitudes de audiencias del procedimiento ordinario."]
[null,null,null,null,{"$f":"IFERROR(GESTION!H62,\" \")","v":"Crear y repartir las solicitudes de audiencias programadas para los  juzgados penales municipales con funciones de control de garantias de Cali."},{"$f":"IFERROR(GESTION!I62,\" \")","v":"Entregable"},{"$f":"IFERROR(GESTION!J62,\" \")","v":0},null,"",null,"Según la estadistica del sistema de reparto se enviaron a los Jugados Penales Municipales con Función de Control de Garantias de programadas 1642 solicitudes de audiencias como esta estipulado por la Ley para su concocimiento."]
[null,null,null,null,{"$f":"IFERROR(GESTION!H63,\" \")","v":"Crear y repartir solicitudes para los juzgados penales municipales y del circuito con funciones de conocimiento y Tribunal Superior Sala de Decision Penal de Cali. "},{"$f":"IFERROR(GESTION!I63,\" \")","v":"Entregable"},{"$f":"IFERROR(GESTION!J63,\" \")","v":0},null,"",null," Segun la estadistica de reparto a los Juzgados Penales Municipales de conocimiento se enviaron  6 solicitudes de allanamiento con preso, 3 solicitudes de allanamiento sin preso, 38 solicitudes de audiencias de formulacion de ausación con preso, 19 solicitudes de audiencias de acusacion sin preso, 47 solicitudes de preclusiones especial, 116 solicitudes del procedimiento abreviado con preso, 219 solicitudes de audiencia del procedimiento abreviado sin preso. Según la estadistica de reparto para los Juzgados del Circuito de Conocimientos se entregaron  309 solicitudes de audiencias de acusación con preso, 221 Solicitudes de audiencia de acusación sin preso,  9 solicitudes de audiencia de allanamiento a la imputación con preso, 3 solicitudes de audiencia de allanamiento a la imputación sin preso, 18 solicitudes de audiencia de asuntos complejos, 122 solicitudes de audiencia de autos apelados con preso, 71 solicitudes de audiencia de autos apelados sin preso, 2 solicitudes de audiencia de impedimentos, 20 solicitudes de audiencia de preacuerdos con preso, 2 solicitudes de audiencia de preacuerdos sin preso, 6  solicitudes de audiencia de preclusiones con preso, 127 solicitudes de audiencia de preclusión sin preso, 4 solicitudes de audiencia de recurso de queja, 1 solicitud de audiencia de recusación.  Segun estadistica reparto al Tribunal Superior Sala Penal se enviaron: 1 solicitud de acción de revisión, 15 solicitudes de audiencias de autos interlocutorios Apelados, 57 solicitudes de audiencia de sentencias apeladas de los Juzgados Penales del Circuito de conocimiento, 20 solicitudes de apelaciones de sentencia Juzgados Penales Municipales, 9 solicitudes de autos varios, 2 solicitudes de audiencia de autos de preclusión, 1 solicitud de audiencia de escrito de acusación, 8 solicitudes de audiencia de fijacion o colisión de competencia, 5 solicitudes de audiencia de impedimentos y recusaciones, 3 solicitudes de audiencia de recursos de queja, 34 solicitudes de audiencias de sentencias de juicio oral Juzgados Penales  del Circuito, 13 solicitudes de audiencia de sentencia de juicio oral Juzgados Penales Especializados, 10 solicitudes de audiencia de sentencia juicio oral Juzgados Penales Muncipales.  "]
[null,null,null,null,{"$f":"IFERROR(GESTION!H64,\" \")","v":"Recepcionar expedientes fisicos de los despachos penales municipales y del circuito, Tribunal Superior Sala de Decision Penal de Cali y Juzgados de Ejecución de Penas y Medidas de Seguridad de Cali. "},{"$f":"IFERROR(GESTION!I64,\" \")","v":"Entregable"},{"$f":"IFERROR(GESTION!J64,\" \")","v":0},null,"",null,"Según el reporte de estadistica de grupo de reparto se recibieron 141 expedientes de conocimeinto."]
[null,null,null,null,{"$f":"IFERROR(GESTION!H65,\" \")","v":"Recepcionar expedientes electronicos y digitalizados por las plataformas establecidas (OneDrive y BestDoc) para comunicar y dar cumplimiento a las decisiones adoptados por los Juecesde los  Juzgados Penales Municipales con Funciones de Control de Garantias de Cali y demas despachos a nivel nacional."},{"$f":"IFERROR(GESTION!I65,\" \")","v":"Entregable"},{"$f":"IFERROR(GESTION!J65,\" \")","v":0},null,"",null,"Según el reporte de estadistica de grupo de reparto se recibieron 130 Expedientes  del procedimeinto abreviado y 2234 expedientes del proceso ordinario."]
[null,null,"2. Consolidar la administración de la información entendida como todas las acciones rientadas a garantizar el acceso, consulta, uso y conservación de la información de justicia de manera ágil, flexible e inteligente, bajo un enfoque de innovación.",null,{"$f":"IFERROR(GESTION!H66,\" \")","v":"Recepcionar expedientes electronicos y digitalizados por las plataformas establecidas (OneDrive y BestDoc) para comunicar y dar cumplimiento a las decisiones adoptados por los jueces de los Juzgados Penales Municipales y del Circuito con Funciones de Conocimiento de Cali, Tribunal Superior Sala de Decision Penal, Corte Suprema de Justicia Sala de Casacion Penal y demas despachos a nivel nacional. "},{"$f":"IFERROR(GESTION!I66,\" \")","v":"Entregable"},{"$f":"IFERROR(GESTION!J66,\" \")","v":0},null,"",null,"Según la estadistica del lider de area del Grupo de Conocimiento se recibieron 1645 expedientes para comunicar las decisiones adoptadas por los Jueces."]
[null,null,null,null,{"$f":"IFERROR(GESTION!H67,\" \")","v":"Notificar, comunicar y publicar las decisiones adoptadas por los jueces que conforman el Sistema Penal Oral Acusatorio de Cali y demas despachos a nivel nacional e internacional. "},{"$f":"IFERROR(GESTION!I67,\" \")","v":"Entregable"},{"$f":"IFERROR(GESTION!J67,\" \")","v":0},null,"",null,"Según el informe de estadistica del lider de area se comunicaron 233 Despachos Comisorios"]
[null,null,null,null,{"$f":"IFERROR(GESTION!H68,\" \")","v":"Gestionar las actividades  donde es vinculado el Centro de Servicios Judiciales de Cali."},{"$f":"IFERROR(GESTION!I68,\" \")","v":"Entregable"},{"$f":"IFERROR(GESTION!J68,\" \")","v":0},null,"",null,"Según la estadistica de secretaria se tramitaron 616 derechos de petición, 410 oficios varios, 191 tutelas y habeas corpus, 112 boletas de libertad, 97 decisiones de segunda instancia, 85 constancias ejecutoria, 82 procesos enviados a la Sala Penal, 79 anuncios publicos, 70 solictud de comunicaciones a penas, 68 ordenes de captura, 35 decisiones de notificacion de primera instancia, 32 despachos comisorios, 31 actas de compromiso,29 cosntancias de terminos de casación, 25 ordenes de traslado a domicilio, 20 paz y salvos, 18 procesos de remision a la Corte Constitucional, 15 boletas de encarcelación, 12 cancelaciones de captura, 12 ordenes de custodia, 12 comunicaciones a la carcel, 12 cosntancias a procesos, 6 certificaciones, 3 oficios  de comunicaciones a  juzgados y Tribunal de Decisiones, 2 editos emplazatorios,1 comunicación de medida de protección, 1 circular. "]
[null,null,null,null,{"$f":"IFERROR(GESTION!H69,\" \")","v":"Gestionar todas las actividades encaminadas al área administrativa y operativa del talento humano. "},{"$f":"IFERROR(GESTION!I69,\" \")","v":"Entregable"},{"$f":"IFERROR(GESTION!J69,\" \")","v":0},null,"",null,"Según la estadistica del Profesional universitario grado 20 se tramitaron: 17 oficios de aceptación de renuncia, 34 oficios y circulares, 4 oficios de concediendo licencia no remunerada, 14 oficios de incapacidades, 5 oficios de memorandos, 12 oficios de nombramientos, 5 oficios de requirimientos para un total de 91 oficios remisorios. Resoluciones se tramitaron: 17 resoluciones de aceptacion a renuncia, 40 resoluciones de permiso, 4 resoluciones de comisiones, 15 resoluciones de nombramientos, 20 resoluciones de turnos, 7 resoluciones de vacaciones, 4 resoluciones de conceder licencia no remunerada, 1 resolucion de aclaración, 1 resolucion de reintegro. "]
[null,null,null,null,{"$f":"IFERROR(GESTION!H70,\" \")","v":"Dar cumplimiento a las decisiones judiciales ejecutoriadas en los procesos penales."},{"$f":"IFERROR(GESTION!I70,\" \")","v":"Entregable"},{"$f":"IFERROR(GESTION!J70,\" \")","v":0},null,{"$f":"IFERROR(H70/G70,\"\")","v":""},null,"Según el informe de estadistica se dio  tramite a  671  procesos que se  enviados a ejecucion de pena, 204 procesos con preclusiones, 147 procesos con absolutorias y  116 Principios de oportunidad."]
[null,null,"3. Fortalecer el Sistema integrado de Gestión de la Rama, orientado a la implementación y certificación de las normas antisoborno.","1. Gestionar el desarrollo de las competencias, la toma de conciencia , la cultura  organizacional  y el compromiso de los  servidores judiciales, contratistas, practicantes y  judicantes de contribuir a generar valor público en la administración de justicia, en el marco de  cumplimiento de los requisitos  aplicables y el comportamiento ético.\n3. Fomentar la transparencia y la participación generando lineamientos y promoviendo la rendición de cuentas ,la consulta, reporte y planteamiento de inquietudes en relación con las decisiones y aspectos del SIGCMA.",{"$f":"IFERROR(GESTION!H71,\" \")","v":"Recepcionar, custodiar y realizar devoluciones de los titulos judiciales."},{"$f":"IFERROR(GESTION!I71,\" \")","v":"Entregable"},{"$f":"IFERROR(GESTION!J71,\" \")","v":0},null,"",null,"Según el informe de estadistica fueron pagados 20 titulos, se precribieron 306 titulos y se convirtio 1 titulo."]
[null,null,null,null,{"$f":"IFERROR(GESTION!H72,\" \")","v":"Atender y brindar informacion a las partes interesadas de forma presencial y virtual."},{"$f":"IFERROR(GESTION!I72,\" \")","v":"Entregable"},{"$f":"IFERROR(GESTION!J72,\" \")","v":0},null,"",null,"Aproximadamente se atienen 13,000 partes interesadas de forma vitual y 5,000 partes interesadas de forma presencial. "]
[null,null,null,null,{"$f":"IFERROR(GESTION!H73,\" \")","v":"Comunicar la programación de audiencias de los despachos judiciales que conforman el Sistema Penal Oral Acusatorio de Cali."},{"$f":"IFERROR(GESTION!I73,\" \")","v":"Entregable"},{"$f":"IFERROR(GESTION!J73,\" \")","v":0},null,"",null,"Según el lider de area del Departamento de Comunicaciones se hicieron 12958 citaciones por telegrafia, 1913 remisiones, 14027 citaciones electronicas, "]
[null,null,null,null,{"$f":"IFERROR(GESTION!H74,\" \")","v":"Custodiar y organizar el archivo fisico del Centro de Servicios Judiciales para los Juzgados penales Municipales y del Circuito"},{"$f":"IFERROR(GESTION!I74,\" \")","v":"Entregable"},{"$f":"IFERROR(GESTION!J74,\" \")","v":0},null,"",null,"Aproximadamente se custodian mas de 100,000 expedientes fisicos dentro de los archivos del Centro de Servicios Judiciales para los juzgados Penales Municipales y del Circuito. En los archivos que reposan en el Palacio de Justicia Pedro Elias Serrano y Britilana. "]
[null,null,null,null,{"$f":"IFERROR(GESTION!H75,\" \")","v":"Digitalizar procesos recepcionados de forma fisica. "},{"$f":"IFERROR(GESTION!I75,\" \")","v":"Entregable"},{"$f":"IFERROR(GESTION!J75,\" \")","v":0},null,"",null,"Se han digitalizado 141 Procesos "]
[null,null,"4. Aumentar la confianza, la cercanía y acceso a los servicios de la Rama Judicial a través, entre otros, de una comunicación clara y asertiva con la ciudadanía.","3. Fomentar la transparencia y la participación generando lineamientos y promoviendo la rendición de cuentas ,la consulta, reporte y planteamiento de inquietudes en relación con las decisiones y aspectos del SIGCMA.",{"$f":"IFERROR(GESTION!H76,\" \")","v":"Asignación de salas para la realizacion  de las  adiencias de los despachos que conforman el Sistema Penal Oral Acusatorio de Cali. "},{"$f":"IFERROR(GESTION!I76,\" \")","v":"Entregable"},{"$f":"IFERROR(GESTION!J76,\" \")","v":0},null,"",null,"Se asignaron 347 Salas para tramitar las audiencias de los Juzgados de la Jurisdicción Penal en el Palacio de Justicia Pedro Elias Serrano y 163 Salas en el Palacio Nacional para las audiencia de los Magistrados de la Sala Penal."]
[null,null,null,null,{"$f":"IFERROR(GESTION!H77,\" \")","v":0},{"$f":"IFERROR(GESTION!I77,\" \")","v":0},{"$f":"IFERROR(GESTION!J77,\" \")","v":0},null,""]
[null,null,null,null,{"$f":"IFERROR(GESTION!H78,\" \")","v":0},{"$f":"IFERROR(GESTION!I78,\" \")","v":0},{"$f":"IFERROR(GESTION!J78,\" \")","v":0},null,""]
[null,null,null,null,{"$f":"IFERROR(GESTION!H79,\" \")","v":0},{"$f":"IFERROR(GESTION!I79,\" \")","v":0},{"$f":"IFERROR(GESTION!J79,\" \")","v":0},null,""]
[null,null,null,null,{"$f":"IFERROR(GESTION!H80,\" \")","v":0},{"$f":"IFERROR(GESTION!I80,\" \")","v":0},{"$f":"IFERROR(GESTION!J80,\" \")","v":0},null,""]
[null,null,"5. Prevenir fenómenos asociados con actos de corrupción en la Rama Judicial y reducir las experiencias de corrupción de usuarios y servidores judiciales.",null,{"$f":"IFERROR(GESTION!H81,\" \")","v":0},{"$f":"IFERROR(GESTION!I81,\" \")","v":0},{"$f":"IFERROR(GESTION!J81,\" \")","v":0},null,""]
[null,null,null,null,{"$f":"IFERROR(GESTION!H82,\" \")","v":0},{"$f":"IFERROR(GESTION!I82,\" \")","v":0},{"$f":"IFERROR(GESTION!J82,\" \")","v":0},null,""]
[null,null,null,null,{"$f":"IFERROR(GESTION!H83,\" \")","v":0},{"$f":"IFERROR(GESTION!I83,\" \")","v":0},{"$f":"IFERROR(GESTION!J83,\" \")","v":0},null,""]
[null,null,null,null,{"$f":"IFERROR(GESTION!H84,\" \")","v":0},{"$f":"IFERROR(GESTION!I84,\" \")","v":0},{"$f":"IFERROR(GESTION!J84,\" \")","v":0},null,""]
[null,null,null,null,{"$f":"IFERROR(GESTION!H85,\" \")","v":0},{"$f":"IFERROR(GESTION!I85,\" \")","v":0},{"$f":"IFERROR(GESTION!J85,\" \")","v":0},null,""]
[null,null,"6. Promover la rendición de cuentas y la colaboración real con la ciudadanía como fundamento para diseñar acciones de mejoramiento del acceso a la justicia.",null,{"$f":"IFERROR(GESTION!H86,\" \")","v":0},{"$f":"IFERROR(GESTION!I86,\" \")","v":0},{"$f":"IFERROR(GESTION!J86,\" \")","v":0},null,""]
[null,null,null,null,{"$f":"IFERROR(GESTION!H87,\" \")","v":0},{"$f":"IFERROR(GESTION!I87,\" \")","v":0},{"$f":"IFERROR(GESTION!J87,\" \")","v":0},null,""]
[null,null,null,null,{"$f":"IFERROR(GESTION!H88,\" \")","v":0},{"$f":"IFERROR(GESTION!I88,\" \")","v":0},{"$f":"IFERROR(GESTION!J88,\" \")","v":0},null,""]
[null,null,null,null,{"$f":"IFERROR(GESTION!H89,\" \")","v":0},{"$f":"IFERROR(GESTION!I89,\" \")","v":0},{"$f":"IFERROR(GESTION!J89,\" \")","v":0},null,""]
[null,null,null,null,{"$f":"IFERROR(GESTION!H90,\" \")","v":"Preparar informe de revisión por la alta dirección del año 2022"},{"$f":"IFERROR(GESTION!I90,\" \")","v":"Entregable"},{"$f":"IFERROR(GESTION!J90,\" \")","v":1},null,0,null,"Se preparo el informe de la alta direccion finalizado. "]
[null,null,"7. Continuar la consolidación del SIGCMA, a través de los procesos de formación en modelos de gestión, logrando la implementación y ampliación de este en los esquemas certificados de manera gradual, teniendo en cuenta las capacidades de los diferentes despachos judiciales y dependencias de la Rama Judicial y articulando el enfoque de Arquitectura Empresarial para el desarrollo del PETD a través de la gestión del conocimiento para la gestión del cambio propendiendo por una cultura de la calidad, la transparencia, la rendición de cuentas, la anticorrupción y el antisoborno","1. Gestionar el desarrollo de las competencias, la toma de conciencia , la cultura  organizacional  y el compromiso de los  servidores judiciales, contratistas, practicantes y  judicantes de contribuir a generar valor público en la administración de justicia, en el marco de  cumplimiento de los requisitos  aplicables y el comportamiento ético.\n4. Hacer un uso racional de los recursos naturales aplicando los principios y fases de la Economía Circular, para prevenir, mitigar y controlar los impactos ambientales.",{"$f":"IFERROR(GESTION!H91,\" \")","v":"Preparar y hacer seguimiento a la matriz de riesgos del SIGCMA"},{"$f":"IFERROR(GESTION!I91,\" \")","v":"Entregable"},{"$f":"IFERROR(GESTION!J91,\" \")","v":0},null,"",null,"Se atualizo y se le hizo seguimiento continuo plasmado en la matriz de riesgos determinada"]
[null,null,null,null,{"$f":"IFERROR(GESTION!H92,\" \")","v":"Preparar y atender las auditorias internas y externas al SIGCMA"},{"$f":"IFERROR(GESTION!I92,\" \")","v":"Entregable"},{"$f":"IFERROR(GESTION!J92,\" \")","v":0},null,"",null,"Se realizaron los formartos de gestion ya finalizados,para atendere la auditoria externa."]
[null,null,null,null,{"$f":"IFERROR(GESTION!H93,\" \")","v":"Formular y desarrollar las acciones de gestión del SIGCMA"},{"$f":"IFERROR(GESTION!I93,\" \")","v":"Entregable"},{"$f":"IFERROR(GESTION!J93,\" \")","v":0},null,"",null,"Informe de auditorias"]
[null,null,null,null,{"$f":"IFERROR(GESTION!H94,\" \")","v":"Gestionar las salidas no conformes mediante su registro, seguimiento y ejecución de acciones de mejora"},{"$f":"IFERROR(GESTION!I94,\" \")","v":"Entregable"},{"$f":"IFERROR(GESTION!J94,\" \")","v":0},null,"",null,"Matriz de riesgo con las salidas no conformes por cada area."]
[null,null,null,null,{"$f":"IFERROR(GESTION!H95,\" \")","v":"Medir la satisfacción de partes interesadas mediante la encuesta de satisfacción del año 2022"},{"$f":"IFERROR(GESTION!I95,\" \")","v":"Entregable"},{"$f":"IFERROR(GESTION!J95,\" \")","v":1},null,0,null,"Se midio por encuestas diligenciadas a las partes interesadas."]
["4. Talento Humano","Talento Humano: Fortalecer el talento humano en la Rama Judicial para que sea eficiente, capacitado y realice su labor en ambientes saludables y seguros. Ampliar la cobertura de la carrera judicial y mejorar la oferta de formación, que esté disponible para todos los servidores judiciales e impacte positivamente el servicio de justicia y responda a las necesidades reales del ejercicio de la función judicial.","1. Ampliar la cobertura de la carrera judicial optimizando los procesos de los concursos de méritos y propender por mitigar su litigiosidad.","1. Gestionar el desarrollo de las competencias, la toma de conciencia , la cultura  organizacional  y el compromiso de los  servidores judiciales, contratistas, practicantes y  judicantes de contribuir a generar valor público en la administración de justicia, en el marco de  cumplimiento de los requisitos  aplicables y el comportamiento ético.",{"$f":"IFERROR(GESTION!H96,\" \")","v":0},{"$f":"IFERROR(GESTION!I96,\" \")","v":0},{"$f":"IFERROR(GESTION!J96,\" \")","v":0},null,""]
[null,null,null,null,{"$f":"IFERROR(GESTION!H97,\" \")","v":0},{"$f":"IFERROR(GESTION!I97,\" \")","v":0},{"$f":"IFERROR(GESTION!J97,\" \")","v":0},null,""]
[null,null,null,null,{"$f":"IFERROR(GESTION!H98,\" \")","v":0},{"$f":"IFERROR(GESTION!I98,\" \")","v":0},{"$f":"IFERROR(GESTION!J98,\" \")","v":0},null,""]
[null,null,null,null,{"$f":"IFERROR(GESTION!H99,\" \")","v":0},{"$f":"IFERROR(GESTION!I99,\" \")","v":0},{"$f":"IFERROR(GESTION!J99,\" \")","v":0},null,""]
[null,null,null,null,{"$f":"IFERROR(GESTION!H100,\" \")","v":0},{"$f":"IFERROR(GESTION!I100,\" \")","v":0},{"$f":"IFERROR(GESTION!J100,\" \")","v":0},null,""]
[null,null,"2. Impactar la función y servicios que presta la Rama Judicial, a través de una formación integral desde una visión de gestión del conocimiento, relacionada con los problemas de la justicia y los problemas de gestión de quienes administran los recursos de la justicia, y potenciando el uso de medios virtuales.",null,{"$f":"IFERROR(GESTION!H101,\" \")","v":"Participar de los diplomados programados en el Plan de Formación por la Dirección Nacional del SIGCMA"},{"$f":"IFERROR(GESTION!I101,\" \")","v":"Entregable"},{"$f":"IFERROR(GESTION!J101,\" \")","v":0},null,"",null,"N/A"]
[null,null,null,null,{"$f":"IFERROR(GESTION!H102,\" \")","v":"Capacitar a los servidores en temas de SIGCMA. "},{"$f":"IFERROR(GESTION!I102,\" \")","v":"Entregable"},{"$f":"IFERROR(GESTION!J102,\" \")","v":0},null,{"$f":"IFERROR(H102/G102,\"\")","v":""},null,"Se plasman actas de asistencia y evidencias fotograficas"]
[null,null,null,null,{"$f":"IFERROR(GESTION!H103,\" \")","v":0},{"$f":"IFERROR(GESTION!I103,\" \")","v":0},{"$f":"IFERROR(GESTION!J103,\" \")","v":0},null,""]
[null,null,null,null,{"$f":"IFERROR(GESTION!H104,\" \")","v":0},{"$f":"IFERROR(GESTION!I104,\" \")","v":0},{"$f":"IFERROR(GESTION!J104,\" \")","v":0},null,""]
[null,null,null,null,{"$f":"IFERROR(GESTION!H105,\" \")","v":0},{"$f":"IFERROR(GESTION!I105,\" \")","v":0},{"$f":"IFERROR(GESTION!J105,\" \")","v":0},null,""]
[null,null,"3. Promover la incorporación de la perspectiva de género y el enfoque diferencial en los fallos judiciales y en la atención a los ciudadanos, la administración de la Rama Judicial, la administración de la carrera judicial y la elaboración de listas para altas Cortes. ",null,{"$f":"IFERROR(GESTION!H106,\" \")","v":0},{"$f":"IFERROR(GESTION!I106,\" \")","v":0},{"$f":"IFERROR(GESTION!J106,\" \")","v":0},null,""]
[null,null,null,null,{"$f":"IFERROR(GESTION!H107,\" \")","v":0},{"$f":"IFERROR(GESTION!I107,\" \")","v":0},{"$f":"IFERROR(GESTION!J107,\" \")","v":0},null,""]
[null,null,null,null,{"$f":"IFERROR(GESTION!H108,\" \")","v":0},{"$f":"IFERROR(GESTION!I108,\" \")","v":0},{"$f":"IFERROR(GESTION!J108,\" \")","v":0},null,""]
[null,null,null,null,{"$f":"IFERROR(GESTION!H109,\" \")","v":0},{"$f":"IFERROR(GESTION!I109,\" \")","v":0},{"$f":"IFERROR(GESTION!J109,\" \")","v":0},null,""]
[null,null,null,null,{"$f":"IFERROR(GESTION!H110,\" \")","v":0},{"$f":"IFERROR(GESTION!I110,\" \")","v":0},{"$f":"IFERROR(GESTION!J110,\" \")","v":0},null,""]
[null,null,"4. Desarrollar en los servidores judiciales y demás grupos de valor relevantes las competencias necesarias para la efectividad de la transformación digital de modo que puedan, entre otros, utilizar con solvencia las herramientas digitales dispuestas para sus respectivas funciones. Además, fortalecer y actualizar los conocimientos del personal a cargo de la gestión de proyectos de tecnología.",null,{"$f":"IFERROR(GESTION!H111,\" \")","v":0},{"$f":"IFERROR(GESTION!I111,\" \")","v":0},{"$f":"IFERROR(GESTION!J111,\" \")","v":0},null,""]
[null,null,null,null,{"$f":"IFERROR(GESTION!H112,\" \")","v":0},{"$f":"IFERROR(GESTION!I112,\" \")","v":0},{"$f":"IFERROR(GESTION!J112,\" \")","v":0},null,""]
[null,null,null,null,{"$f":"IFERROR(GESTION!H113,\" \")","v":0},{"$f":"IFERROR(GESTION!I113,\" \")","v":0},{"$f":"IFERROR(GESTION!J113,\" \")","v":0},null,""]
[null,null,null,null,{"$f":"IFERROR(GESTION!H114,\" \")","v":0},{"$f":"IFERROR(GESTION!I114,\" \")","v":0},{"$f":"IFERROR(GESTION!J114,\" \")","v":0},null,""]
[null,null,null,null,{"$f":"IFERROR(GESTION!H115,\" \")","v":0},{"$f":"IFERROR(GESTION!I115,\" \")","v":0},{"$f":"IFERROR(GESTION!J115,\" \")","v":0},null,""]
[null,null,"5. Promover el bienestar de todos los servidores judiciales a través de la implementación de un sistema que contemple los diferentes niveles de estrategias y acciones necesarios para mejorar el clima laboral, la salud física y mental y la calidad del tiempo de descanso.","5. Generar espacios de trabajo seguros y saludables que contribuyan a minimizar los  incidentes, accidentes y enfermedades laborales derivados de las condiciones y actos  inseguros y fomentar  el autocuidado, los  estilos de vida y el trabajo saludable en los servidores judiciales, contratistas, judicantes y practicantes",{"$f":"IFERROR(GESTION!H116,\" \")","v":"Asistir a las capacitaciones convocadas por la Rama Judicial, a traves del área de SST y la Coordinación del Centro de Servicios Judiciales. "},{"$f":"IFERROR(GESTION!I116,\" \")","v":"Entregable"},{"$f":"IFERROR(GESTION!J116,\" \")","v":0},null,"",null,"Estan plasmadas las actas de asistencia y evidencia fotografica a las diferentes capacitaciones, convocadas por la Rama Judicial."]
[null,null,null,null,{"$f":"IFERROR(GESTION!H117,\" \")","v":0},{"$f":"IFERROR(GESTION!I117,\" \")","v":0},{"$f":"IFERROR(GESTION!J117,\" \")","v":0},null,""]
[null,null,null,null,{"$f":"IFERROR(GESTION!H118,\" \")","v":0},{"$f":"IFERROR(GESTION!I118,\" \")","v":0},{"$f":"IFERROR(GESTION!J118,\" \")","v":0},null,""]
[null,null,null,null,{"$f":"IFERROR(GESTION!H119,\" \")","v":0},{"$f":"IFERROR(GESTION!I119,\" \")","v":0},{"$f":"IFERROR(GESTION!J119,\" \")","v":0},null,""]
[null,null,null,null,{"$f":"IFERROR(GESTION!H120,\" \")","v":0},{"$f":"IFERROR(GESTION!I120,\" \")","v":0},{"$f":"IFERROR(GESTION!J120,\" \")","v":0},null,""]
["5. Gobernanza, planeación estratégica y capacidad de toma de decisiones","Gobernanza, planeación estratégica y capacidad de toma de decisiones: Fortalecer la gobernanza, la planeación estratégica y la capacidad de toma de decisiones de la Rama Judicial con base en la evidencia empírica y la articulación efectiva con las demás entidades, para que la perspectiva de género y el enfoque diferencial sean transversales en el presente plan. ","1. Implementar un nuevo modelo integrado para la planeación estratégica, el seguimiento y la medición del desempeño institucional.","2. Asegurar  el cumplimiento de los objetivos institucionales, la normatividad aplicable,  la mejora del SIGCMA y la satisfacción de los usuarios, revisando de  forma continua y sistemática la planificación de la gestión y fortaleciendo la administración de riesgos y sus controles.",{"$f":"IFERROR(GESTION!H121,\" \")","v":"Preparar plan de acción del SICGMA 2023"},{"$f":"IFERROR(GESTION!I121,\" \")","v":"Meta cuantificable"},{"$f":"IFERROR(GESTION!J121,\" \")","v":1},null,0,null,"Se actualizó el plan de accion del tercer trimestre en sus diferentes actividades con los lineamientos que estable la norma "]
[null,null,null,null,{"$f":"IFERROR(GESTION!H122,\" \")","v":"Realizar reuniones de seguimiento de las actividades. "},{"$f":"IFERROR(GESTION!I122,\" \")","v":"Entregable"},{"$f":"IFERROR(GESTION!J122,\" \")","v":0},null,"",null,"Se realiazaron las reuniones de seguimiento con los Profesionales del Sigcma y lideres de areas."]
[null,null,null,null,{"$f":"IFERROR(GESTION!H123,\" \")","v":"Asistir a las reuniones del Comité Nacional del SIGCMA"},{"$f":"IFERROR(GESTION!I123,\" \")","v":"Entregable"},{"$f":"IFERROR(GESTION!J123,\" \")","v":0},null,"",null,"Se ha asistido virtualmente a las reuniones del Comité Nacional del Sigma. "]
[null,null,null,null,{"$f":"IFERROR(GESTION!H124,\" \")","v":"Actualizar los protocolos, los manuales de funciones y de procecimientos de cada una de las áreas. "},{"$f":"IFERROR(GESTION!I124,\" \")","v":"Entregable"},{"$f":"IFERROR(GESTION!J124,\" \")","v":0},null,"",null,"Se reestructuraron los manuales de funciones de las areas de trabajo con los lineamietos establecidos por la Ley."]
[null,null,null,null,{"$f":"IFERROR(GESTION!H125,\" \")","v":0},{"$f":"IFERROR(GESTION!I125,\" \")","v":0},{"$f":"IFERROR(GESTION!J125,\" \")","v":0},null,""]
[null,null,"2. Definir e implementar el modelo optimizado de formulación, seguimiento y evaluación de la política pública judicial.",null,{"$f":"IFERROR(GESTION!H126,\" \")","v":0},{"$f":"IFERROR(GESTION!I126,\" \")","v":0},{"$f":"IFERROR(GESTION!J126,\" \")","v":0},null,""]
[null,null,null,null,{"$f":"IFERROR(GESTION!H127,\" \")","v":0},{"$f":"IFERROR(GESTION!I127,\" \")","v":0},{"$f":"IFERROR(GESTION!J127,\" \")","v":0},null,""]
[null,null,null,null,{"$f":"IFERROR(GESTION!H128,\" \")","v":0},{"$f":"IFERROR(GESTION!I128,\" \")","v":0},{"$f":"IFERROR(GESTION!J128,\" \")","v":0},null,""]
[null,null,null,null,{"$f":"IFERROR(GESTION!H129,\" \")","v":0},{"$f":"IFERROR(GESTION!I129,\" \")","v":0},{"$f":"IFERROR(GESTION!J129,\" \")","v":0},null,""]
[null,null,null,null,{"$f":"IFERROR(GESTION!H130,\" \")","v":0},{"$f":"IFERROR(GESTION!I130,\" \")","v":0},{"$f":"IFERROR(GESTION!J130,\" \")","v":0},null,""]

{"sheet":"INVERSION","index":8,"n_rows":130,"n_cols":40,"rows_kept":130,"cut":false,"hidden":false,"merged":[[95,5,114,5],[115,5,119,5],[95,1,119,1],[95,0,119,0],[120,5,129,5],[125,2,129,2],[125,3,129,3],[125,4,129,4],[120,1,129,1],[120,0,129,0],[115,2,119,2],[115,3,119,3],[115,4,119,4],[120,2,124,2],[120,3,124,3],[120,4,124,4],[110,2,114,2],[110,3,114,3],[110,4,114,4],[105,2,109,2],[105,3,109,3],[105,4,109,4],[60,0,94,0],[95,2,99,2],[95,3,99,3],[95,4,99,4],[100,2,104,2],[100,3,104,3],[100,4,104,4],[70,2,74,2],[70,3,74,3],[70,4,74,4],[70,5,74,5],[60,1,94,1],[75,5,89,5],[65,2,69,2],[65,3,69,3],[65,4,69,4],[65,5,69,5],[60,2,64,2],[60,3,64,3],[60,4,64,4],[60,5,64,5],[80,2,84,2],[80,3,84,3],[80,4,84,4],[75,2,79,2],[75,3,79,3],[75,4,79,4],[90,2,94,2],[90,3,94,3],[90,4,94,4],[90,5,94,5],[85,4,89,4],[85,2,89,2],[85,3,89,3],[30,0,59,0],[30,1,59,1],[25,5,29,5],[5,0,29,0],[5,1,29,1],[55,2,59,2],[55,3,59,3],[55,4,59,4],[30,5,59,5],[30,2,34,2],[30,3,34,3],[30,4,34,4],[35,2,39,2],[35,3,39,3],[35,4,39,4],[40,2,44,2],[15,5,19,5],[20,2,24,2],[20,3,24,3],[20,4,24,4],[20,5,24,5],[5,5,9,5],[10,2,14,2],[10,3,14,3],[10,4,14,4],[10,5,14,5],[3,4,4,4],[5,2,9,2],[5,3,9,3],[5,4,9,4],[15,2,19,2],[15,3,19,3],[15,4,19,4],[25,2,29,2],[25,3,29,3],[25,4,29,4],[40,3,44,3],[40,4,44,4],[45,2,49,2],[45,3,49,3],[45,4,49,4],[50,2,54,2],[50,3,54,3],[50,4,54,4],[1,39,1,48],[1,0,1,17],[1,18,1,38],[2,25,2,37],[2,38,4,38],[3,0,4,1],[3,2,4,2],[3,5,4,5],[3,6,3,11],[3,12,3,22],[3,23,3,24],[2,0,2,5],[2,6,2,24],[3,32,3,37],[3,25,3,31],[3,3,4,3]]}
[]
["CONSEJO SUPERIOR DE LA JUDICATURA \nUNIDADES MISIONALES DEL CONSEJO SUPERIOR DE LA JUDICATURA \nDIRECCIÓN EJECUTIVA DE ADMINISTRACIÓN JUDICIAL (DEAJ) - UNIDADES MISIONALES DE LA DEAJ\nDIRECCIONES SECCIONALES DE ADMINISTRACIÓN JUDICIAL ",null,null,null,null,null,null,null,null,null,null,null,null,null,null,null,null,null,null,null,null,null,null,null,null,null,null,null,null,null,null,null,null,null,null,null,null,null,null,"GENERADOR DE SEGUIMIENTOS TRIMESTALES"]
["PLAN SECTORIAL DE DESARROLLO 2023-2026 - OBJETIVOS SIGCMA",null,null,null,null,null,"PLAN DE ACCIÓN Y SEGUIMIENTO A LA INVERSIÓN INSTITUCIONAL ",null,null,null,null,null,null,null,null,null,null,null,null,null,null,null,null,null,null,"AVANCE PLAN DE ACCIÓN ANUAL",null,null,null,null,null,null,null,null,null,null,null,null," ANÁLISIS RESULTADO\nFINAL - ACUMULADO"]
["OBJETIVO ESTRATÉGICO",null,"OBJETIVO ESPECÍFICO PSD","NOMBRE DEL INDICADOR PSD","DEFINICIÓN DEL INDICADOR","OBJETIVO ESPECÍFICO SIGCMA","IDENTIFICACIÓN PROYECTO DE INVERSIÓN",null,null,null,null,null,"PARÁMETROS DE MEDICIÓN ",null,null,null,null,null,null,null,null,null,null,"INFORMACIÓN FINANCIERA",null,"SEGUIMIENTO - CUMPLIMIENTO ANUAL ",null,null,null,null,null,null,"INFORMACIÓN COMPLEMENTARIA FINAL"]
[null,null,null,null,null,null,"PROGRAMA DE INVERSIÓN","SUBPROGRAMA DE INVERSIÓN","RUBRO PRESUPUESTAL","CÓDIGO BPIN","NOMBRE DE PROYECTO","OBJETIVO ESPECÍFICO FORMULADO DEL PROYECTO BPIN","NOMBRE ACTIVIDAD DE INVERSIÓN (POAI)","JUSTIFICACIÓN DE LA ACTIVIDAD","DESCRIBA EL ENTREGABLE \n(Producto y/o servicio principal)","META ANUALIDAD","UNIDAD DE MEDIDA","TIPO DE INDICADOR (GESTIÓN O PRODUCTO)","FECHA DE INICIO DE LA ACTIVIDAD\nDÍA/MES/AÑO","FECHA TERMINACIÓN ACTIVIDAD\nDÍA/MES/AÑO \n(Sí supera anualidad, favor dejar 31/12/20xx)","NÚMERO DE BENEFICIARIOS INTERNOS (Servidores Judiciales)","NÚMERO DE BENEFICIARIOS EXTERNOS (Usuarios)"," DEPENDENCIA RESPONSABLE ","ACTO ADMINISTRATIVO (INDICAR EL ACUERDO INICIAL Y MODIFICACIONES)","RECURSOS ASIGNADOS ($)","DETALLE DE LAS ACTIVIDADES REALIZADAS PARA EL LOGRO DE LA INVERSIÓN (Periodo de reporte acumulado) ","COMPROMISO PRESUPUESTAL (VALOR DEL CONTRATO)","AVANCE DE LA META","% AVANCE ANUAL DE LA ACTIVIDAD"," % AVANCE PRESUPUESTAL ANUAL","AVANCE  DE LA ACTIVIDAD - % EN TIEMPO ANUAL","REZAGO","NÚMERO DE BENEFICIADOS INTERNOS","NÚMERO DE BENEFICIADOS EXTERNOS","DIFICULTADES PARA LOGRAR LA META PROPUESTA","EL PRODUCTO FINAL OBTENIDO ¿CÓMO IMPACTÓ SOBRE EL OBJETIVO ESTRATÉGICO?","RECOMENDACIONES PARA LOGRAR LA META","OBSERVACIONES"]
["1. Acceso e Infraestructura Física","Acceso e Infraestructura Física: Ampliar, en todo el territorio nacional, el acceso a una justicia efectiva, pronta, equitativa e incluyente, reduciendo el atraso y la congestión, de acuerdo con las necesidades de la demanda de justicia por jurisdicción y especialidad, y mejorando la articulación con la justicia restaurativa y terapéutica, y otros mecanismos de solución de conflictos y consolidando una infraestructura física óptima para el acceso a la justicia.","1. Ampliar el acceso a justicia para atender las necesidades jurídicas de los ciudadanos con un enfoque diferencial, de una manera pronta, reduciendo las inequidades y las brechas territoriales de acceso.","Estrategias implementadas por la Rama Judicial para ampliar el acceso a la justicia considerando el enfoque diferencial y territorial\n\nÍndice de dispersión en la calificación del factor calidad","# de estrategias establecida s en la meta implementa das durante la vigencia del plan\n\nDispersión en la calificación del factor de calidad por jurisdicción y nivel de competencia.","2. Asegurar  el cumplimiento de los objetivos institucionales, la normatividad aplicable,  la mejora del SIGCMA y la satisfacción de los usuarios, revisando de  forma continua y sistemática la planificación de la gestión y fortaleciendo la administración de riesgos y sus controles",null,null,null,null,null,null,null,null,null,null,null,null,null,null,null,null,null,null,null,{"$f":"IFERROR(#REF!,\" \")","v":" "},{"$f":"IFERROR(#REF!,\"\")","v":""},{"$f":"IFERROR(#REF!,\"\")","v":""},{"$f":"IFERROR(AB6/P6,\"\")","v":""},{"$f":"IFERROR(AA6/Y6,\"\")","v":""},{"$f":"IFERROR(#REF!,\"\")","v":""},{"$f":"IFERROR(P6-AB6,\"\")","v":""},{"$f":"IFERROR(#REF!,\"\")","v":""},{"$f":"IFERROR(#REF!,\"\")","v":""},{"$f":"_xlfn.CONCAT(\"Trimestre 1\",CHAR(10),IFERROR(#REF!,\"\"))","v":"Trimestre 1\n"},{"$f":"_xlfn.CONCAT(\"Trimestre 1\",CHAR(10),IFERROR(#REF!,\"\"))","v":"Trimestre 1\n"},{"$f":"_xlfn.CONCAT(\"Trimestre 1\",CHAR(10),IFERROR(#REF!,\"\"))","v":"Trimestre 1\n"},{"$f":"_xlfn.CONCAT(\"Trimestre 1\",CHAR(10),IFERROR(#REF!,\"\"))","v":"Trimestre 1\n"},{"$f":"_xlfn.CONCAT(\"Trimestre 1\",CHAR(10),IFERROR(#REF!,\"\"))","v":"Trimestre 1\n"}]
[null,null,null,null,null,null,null,null,null,null,null,null,null,null,null,null,null,null,null,null,null,null,null,null,null,{"$f":"IFERROR(#REF!,\" \")","v":" "},{"$f":"IFERROR(#REF!,\"\")","v":""},{"$f":"IFERROR(#REF!,\"\")","v":""},{"$f":"IFERROR(AB7/P7,\"\")","v":""},{"$f":"IFERROR(AA7/Y7,\"\")","v":""},{"$f":"IFERROR(#REF!,\"\")","v":""},{"$f":"IFERROR(P7-AB7,\"\")","v":""},{"$f":"IFERROR(#REF!,\"\")","v":""},{"$f":"IFERROR(#REF!,\"\")","v":""},{"$f":"_xlfn.CONCAT(\"Trimestre 1\",CHAR(10),IFERROR(#REF!,\"\"))","v":"Trimestre 1\n"},{"$f":"_xlfn.CONCAT(\"Trimestre 1\",CHAR(10),IFERROR(#REF!,\"\"))","v":"Trimestre 1\n"},{"$f":"_xlfn.CONCAT(\"Trimestre 1\",CHAR(10),IFERROR(#REF!,\"\"))","v":"Trimestre 1\n"},{"$f":"_xlfn.CONCAT(\"Trimestre 1\",CHAR(10),IFERROR(#REF!,\"\"))","v":"Trimestre 1\n"},{"$f":"_xlfn.CONCAT(\"Trimestre 1\",CHAR(10),IFERROR(#REF!,\"\"))","v":"Trimestre 1\n"}]
[null,null,null,null,null,null,null,null,null,null,null,null,null,null,null,null,null,null,null,null,null,null,null,null,null,{"$f":"IFERROR(#REF!,\" \")","v":" "},{"$f":"IFERROR(#REF!,\"\")","v":""},{"$f":"IFERROR(#REF!,\"\")","v":""},{"$f":"IFERROR(AB8/P8,\"\")","v":""},{"$f":"IFERROR(AA8/Y8,\"\")","v":""},{"$f":"IFERROR(#REF!,\"\")","v":""},"",{"$f":"IFERROR(#REF!,\"\")","v":""},{"$f":"IFERROR(#REF!,\"\")","v":""},{"$f":"_xlfn.CONCAT(\"Trimestre 1\",CHAR(10),IFERROR(#REF!,\"\"))","v":"Trimestre 1\n"},{"$f":"_xlfn.CONCAT(\"Trimestre 1\",CHAR(10),IFERROR(#REF!,\"\"))","v":"Trimestre 1\n"},{"$f":"_xlfn.CONCAT(\"Trimestre 1\",CHAR(10),IFERROR(#REF!,\"\"))","v":"Trimestre 1\n"},{"$f":"_xlfn.CONCAT(\"Trimestre 1\",CHAR(10),IFERROR(#REF!,\"\"))","v":"Trimestre 1\n"},{"$f":"_xlfn.CONCAT(\"Trimestre 1\",CHAR(10),IFERROR(#REF!,\"\"))","v":"Trimestre 1\n"}]
[null,null,null,null,null,null,null,null,null,null,null,null,null,null,null,null,null,null,null,null,null,null,null,null,null,{"$f":"IFERROR(#REF!,\" \")","v":" "},{"$f":"IFERROR(#REF!,\"\")","v":""},{"$f":"IFERROR(#REF!,\"\")","v":""},"","",{"$f":"IFERROR(#REF!,\"\")","v":""},"",{"$f":"IFERROR(#REF!,\"\")","v":""},{"$f":"IFERROR(#REF!,\"\")","v":""},{"$f":"_xlfn.CONCAT(\"Trimestre 1\",CHAR(10),IFERROR(#REF!,\"\"))","v":"Trimestre 1\n"},{"$f":"_xlfn.CONCAT(\"Trimestre 1\",CHAR(10),IFERROR(#REF!,\"\"))","v":"Trimestre 1\n"},{"$f":"_xlfn.CONCAT(\"Trimestre 1\",CHAR(10),IFERROR(#REF!,\"\"))","v":"Trimestre 1\n"},{"$f":"_xlfn.CONCAT(\"Trimestre 1\",CHAR(10),IFERROR(#REF!,\"\"))","v":"Trimestre 1\n"},{"$f":"_xlfn.CONCAT(\"Trimestre 1\",CHAR(10),IFERROR(#REF!,\"\"))","v":"Trimestre 1\n"}]
[null,null,null,null,null,null,null,null,null,null,null,null,null,null,null,null,null,null,null,null,null,null,null,null,null,{"$f":"IFERROR(#REF!,\" \")","v":" "},{"$f":"IFERROR(#REF!,\"\")","v":""},{"$f":"IFERROR(#REF!,\"\")","v":""},"","",{"$f":"IFERROR(#REF!,\"\")","v":""},"",{"$f":"IFERROR(#REF!,\"\")","v":""},{"$f":"IFERROR(#REF!,\"\")","v":""},{"$f":"_xlfn.CONCAT(\"Trimestre 1\",CHAR(10),IFERROR(#REF!,\"\"))","v":"Trimestre 1\n"},{"$f":"_xlfn.CONCAT(\"Trimestre 1\",CHAR(10),IFERROR(#REF!,\"\"))","v":"Trimestre 1\n"},{"$f":"_xlfn.CONCAT(\"Trimestre 1\",CHAR(10),IFERROR(#REF!,\"\"))","v":"Trimestre 1\n"},{"$f":"_xlfn.CONCAT(\"Trimestre 1\",CHAR(10),IFERROR(#REF!,\"\"))","v":"Trimestre 1\n"},{"$f":"_xlfn.CONCAT(\"Trimestre 1\",CHAR(10),IFERROR(#REF!,\"\"))","v":"Trimestre 1\n"}]
[null,null,"2. Mejorar los tiempos de respuesta de la Rama Judicial y reducir el inventario de procesos, identificando los retos internos y promoviendo tanto acciones articuladas específicas para abordarlos como estrategias coordinadas para enfrentar las barreras que dependen de otras entidades.","Reducción de tiempos de respuesta en los despachos en los que se implemente el sistema de gestión judicial","% Reducción del promedio de días de duración de los procesos judiciales en los despachos en los que se implemente el sistema de gestión judicial","2. Asegurar  el cumplimiento de los objetivos institucionales, la normatividad aplicable,  la mejora del SIGCMA y la satisfacción de los usuarios, revisando de  forma continua y sistemática la planificación de la gestión y fortaleciendo la administración de riesgos y sus controles",null,null,null,null,null,null,null,null,null,null,null,null,null,null,null,null,null,null,null,{"$f":"IFERROR(#REF!,\" \")","v":" "},{"$f":"IFERROR(#REF!,\"\")","v":""},{"$f":"IFERROR(#REF!,\"\")","v":""},"","",{"$f":"IFERROR(#REF!,\"\")","v":""},"",{"$f":"IFERROR(#REF!,\"\")","v":""},{"$f":"IFERROR(#REF!,\"\")","v":""},{"$f":"_xlfn.CONCAT(\"Trimestre 1\",CHAR(10),IFERROR(#REF!,\"\"))","v":"Trimestre 1\n"},{"$f":"_xlfn.CONCAT(\"Trimestre 1\",CHAR(10),IFERROR(#REF!,\"\"))","v":"Trimestre 1\n"},{"$f":"_xlfn.CONCAT(\"Trimestre 1\",CHAR(10),IFERROR(#REF!,\"\"))","v":"Trimestre 1\n"},{"$f":"_xlfn.CONCAT(\"Trimestre 1\",CHAR(10),IFERROR(#REF!,\"\"))","v":"Trimestre 1\n"},{"$f":"_xlfn.CONCAT(\"Trimestre 1\",CHAR(10),IFERROR(#REF!,\"\"))","v":"Trimestre 1\n"}]
[null,null,null,null,null,null,null,null,null,null,null,null,null,null,null,null,null,null,null,null,null,null,null,null,null,{"$f":"IFERROR(#REF!,\" \")","v":" "},{"$f":"IFERROR(#REF!,\"\")","v":""},{"$f":"IFERROR(#REF!,\"\")","v":""},"","",{"$f":"IFERROR(#REF!,\"\")","v":""},"",{"$f":"IFERROR(#REF!,\"\")","v":""},{"$f":"IFERROR(#REF!,\"\")","v":""},{"$f":"_xlfn.CONCAT(\"Trimestre 1\",CHAR(10),IFERROR(#REF!,\"\"))","v":"Trimestre 1\n"},{"$f":"_xlfn.CONCAT(\"Trimestre 1\",CHAR(10),IFERROR(#REF!,\"\"))","v":"Trimestre 1\n"},{"$f":"_xlfn.CONCAT(\"Trimestre 1\",CHAR(10),IFERROR(#REF!,\"\"))","v":"Trimestre 1\n"},{"$f":"_xlfn.CONCAT(\"Trimestre 1\",CHAR(10),IFERROR(#REF!,\"\"))","v":"Trimestre 1\n"},{"$f":"_xlfn.CONCAT(\"Trimestre 1\",CHAR(10),IFERROR(#REF!,\"\"))","v":"Trimestre 1\n"}]
[null,null,null,null,null,null,null,null,null,null,null,null,null,null,null,null,null,null,null,null,null,null,null,null,null,{"$f":"IFERROR(#REF!,\" \")","v":" "},{"$f":"IFERROR(#REF!,\"\")","v":""},{"$f":"IFERROR(#REF!,\"\")","v":""},"","",{"$f":"IFERROR(#REF!,\"\")","v":""},"",{"$f":"IFERROR(#REF!,\"\")","v":""},{"$f":"IFERROR(#REF!,\"\")","v":""},{"$f":"_xlfn.CONCAT(\"Trimestre 1\",CHAR(10),IFERROR(#REF!,\"\"))","v":"Trimestre 1\n"},{"$f":"_xlfn.CONCAT(\"Trimestre 1\",CHAR(10),IFERROR(#REF!,\"\"))","v":"Trimestre 1\n"},{"$f":"_xlfn.CONCAT(\"Trimestre 1\",CHAR(10),IFERROR(#REF!,\"\"))","v":"Trimestre 1\n"},{"$f":"_xlfn.CONCAT(\"Trimestre 1\",CHAR(10),IFERROR(#REF!,\"\"))","v":"Trimestre 1\n"},{"$f":"_xlfn.CONCAT(\"Trimestre 1\",CHAR(10),IFERROR(#REF!,\"\"))","v":"Trimestre 1\n"}]
[null,null,null,null,null,null,null,null,null,null,null,null,null,null,null,null,null,null,null,null,null,null,null,null,null,{"$f":"IFERROR(#REF!,\" \")","v":" "},{"$f":"IFERROR(#REF!,\"\")","v":""},{"$f":"IFERROR(#REF!,\"\")","v":""},"","",{"$f":"IFERROR(#REF!,\"\")","v":""},"",{"$f":"IFERROR(#REF!,\"\")","v":""},{"$f":"IFERROR(#REF!,\"\")","v":""},{"$f":"_xlfn.CONCAT(\"Trimestre 1\",CHAR(10),IFERROR(#REF!,\"\"))","v":"Trimestre 1\n"},{"$f":"_xlfn.CONCAT(\"Trimestre 1\",CHAR(10),IFERROR(#REF!,\"\"))","v":"Trimestre 1\n"},{"$f":"_xlfn.CONCAT(\"Trimestre 1\",CHAR(10),IFERROR(#REF!,\"\"))","v":"Trimestre 1\n"},{"$f":"_xlfn.CONCAT(\"Trimestre 1\",CHAR(10),IFERROR(#REF!,\"\"))","v":"Trimestre 1\n"},{"$f":"_xlfn.CONCAT(\"Trimestre 1\",CHAR(10),IFERROR(#REF!,\"\"))","v":"Trimestre 1\n"}]
[null,null,null,null,null,null,null,null,null,null,null,null,null,null,null,null,null,null,null,null,null,null,null,null,null,{"$f":"IFERROR(#REF!,\" \")","v":" "},{"$f":"IFERROR(#REF!,\"\")","v":""},{"$f":"IFERROR(#REF!,\"\")","v":""},"","",{"$f":"IFERROR(#REF!,\"\")","v":""},"",{"$f":"IFERROR(#REF!,\"\")","v":""},{"$f":"IFERROR(#REF!,\"\")","v":""},{"$f":"_xlfn.CONCAT(\"Trimestre 1\",CHAR(10),IFERROR(#REF!,\"\"))","v":"Trimestre 1\n"},{"$f":"_xlfn.CONCAT(\"Trimestre 1\",CHAR(10),IFERROR(#REF!,\"\"))","v":"Trimestre 1\n"},{"$f":"_xlfn.CONCAT(\"Trimestre 1\",CHAR(10),IFERROR(#REF!,\"\"))","v":"Trimestre 1\n"},{"$f":"_xlfn.CONCAT(\"Trimestre 1\",CHAR(10),IFERROR(#REF!,\"\"))","v":"Trimestre 1\n"},{"$f":"_xlfn.CONCAT(\"Trimestre 1\",CHAR(10),IFERROR(#REF!,\"\"))","v":"Trimestre 1\n"}]
[null,null,"3. Coadyuvar en la garantía de la idoneidad en el ejercicio de la profesión jurídica de acuerdo con lo establecido en la Ley 1905 de 2018.",null,null,"2. Asegurar  el cumplimiento de los objetivos institucionales, la normatividad aplicable,  la mejora del SIGCMA y la satisfacción de los usuarios, revisando de  forma continua y sistemática la planificación de la gestión y fortaleciendo la administración de riesgos y sus controles",null,null,null,null,null,null,null,null,null,null,null,null,null,null,null,null,null,null,null,{"$f":"IFERROR(#REF!,\" \")","v":" "},{"$f":"IFERROR(#REF!,\"\")","v":""},{"$f":"IFERROR(#REF!,\"\")","v":""},"","",{"$f":"IFERROR(#REF!,\"\")","v":""},"",{"$f":"IFERROR(#REF!,\"\")","v":""},{"$f":"IFERROR(#REF!,\"\")","v":""},{"$f":"_xlfn.CONCAT(\"Trimestre 1\",CHAR(10),IFERROR(#REF!,\"\"))","v":"Trimestre 1\n"},{"$f":"_xlfn.CONCAT(\"Trimestre 1\",CHAR(10),IFERROR(#REF!,\"\"))","v":"Trimestre 1\n"},{"$f":"_xlfn.CONCAT(\"Trimestre 1\",CHAR(10),IFERROR(#REF!,\"\"))","v":"Trimestre 1\n"},{"$f":"_xlfn.CONCAT(\"Trimestre 1\",CHAR(10),IFERROR(#REF!,\"\"))","v":"Trimestre 1\n"},{"$f":"_xlfn.CONCAT(\"Trimestre 1\",CHAR(10),IFERROR(#REF!,\"\"))","v":"Trimestre 1\n"}]
[null,null,null,null,null,null,null,null,null,null,null,null,null,null,null,null,null,null,null,null,null,null,null,null,null,{"$f":"IFERROR(#REF!,\" \")","v":" "},{"$f":"IFERROR(#REF!,\"\")","v":""},{"$f":"IFERROR(#REF!,\"\")","v":""},"","",{"$f":"IFERROR(#REF!,\"\")","v":""},"",{"$f":"IFERROR(#REF!,\"\")","v":""},{"$f":"IFERROR(#REF!,\"\")","v":""},{"$f":"_xlfn.CONCAT(\"Trimestre 1\",CHAR(10),IFERROR(#REF!,\"\"))","v":"Trimestre 1\n"},{"$f":"_xlfn.CONCAT(\"Trimestre 1\",CHAR(10),IFERROR(#REF!,\"\"))","v":"Trimestre 1\n"},{"$f":"_xlfn.CONCAT(\"Trimestre 1\",CHAR(10),IFERROR(#REF!,\"\"))","v":"Trimestre 1\n"},{"$f":"_xlfn.CONCAT(\"Trimestre 1\",CHAR(10),IFERROR(#REF!,\"\"))","v":"Trimestre 1\n"},{"$f":"_xlfn.CONCAT(\"Trimestre 1\",CHAR(10),IFERROR(#REF!,\"\"))","v":"Trimestre 1\n"}]
[null,null,null,null,null,null,null,null,null,null,null,null,null,null,null,null,null,null,null,null,null,null,null,null,null,{"$f":"IFERROR(#REF!,\" \")","v":" "},{"$f":"IFERROR(#REF!,\"\")","v":""},{"$f":"IFERROR(#REF!,\"\")","v":""},"","",{"$f":"IFERROR(#REF!,\"\")","v":""},"",{"$f":"IFERROR(#REF!,\"\")","v":""},{"$f":"IFERROR(#REF!,\"\")","v":""},{"$f":"_xlfn.CONCAT(\"Trimestre 1\",CHAR(10),IFERROR(#REF!,\"\"))","v":"Trimestre 1\n"},{"$f":"_xlfn.CONCAT(\"Trimestre 1\",CHAR(10),IFERROR(#REF!,\"\"))","v":"Trimestre 1\n"},{"$f":"_xlfn.CONCAT(\"Trimestre 1\",CHAR(10),IFERROR(#REF!,\"\"))","v":"Trimestre 1\n"},{"$f":"_xlfn.CONCAT(\"Trimestre 1\",CHAR(10),IFERROR(#REF!,\"\"))","v":"Trimestre 1\n"},{"$f":"_xlfn.CONCAT(\"Trimestre 1\",CHAR(10),IFERROR(#REF!,\"\"))","v":"Trimestre 1\n"}]
[null,null,null,null,null,null,null,null,null,null,null,null,null,null,null,null,null,null,null,null,null,null,null,null,null,{"$f":"IFERROR(#REF!,\" \")","v":" "},{"$f":"IFERROR(#REF!,\"\")","v":""},{"$f":"IFERROR(#REF!,\"\")","v":""},"","",{"$f":"IFERROR(#REF!,\"\")","v":""},"",{"$f":"IFERROR(#REF!,\"\")","v":""},{"$f":"IFERROR(#REF!,\"\")","v":""},{"$f":"_xlfn.CONCAT(\"Trimestre 1\",CHAR(10),IFERROR(#REF!,\"\"))","v":"Trimestre 1\n"},{"$f":"_xlfn.CONCAT(\"Trimestre 1\",CHAR(10),IFERROR(#REF!,\"\"))","v":"Trimestre 1\n"},{"$f":"_xlfn.CONCAT(\"Trimestre 1\",CHAR(10),IFERROR(#REF!,\"\"))","v":"Trimestre 1\n"},{"$f":"_xlfn.CONCAT(\"Trimestre 1\",CHAR(10),IFERROR(#REF!,\"\"))","v":"Trimestre 1\n"},{"$f":"_xlfn.CONCAT(\"Trimestre 1\",CHAR(10),IFERROR(#REF!,\"\"))","v":"Trimestre 1\n"}]
[null,null,null,null,null,null,null,null,null,null,null,null,null,null,null,null,null,null,null,null,null,null,null,null,null,{"$f":"IFERROR(#REF!,\" \")","v":" "},{"$f":"IFERROR(#REF!,\"\")","v":""},{"$f":"IFERROR(#REF!,\"\")","v":""},"","",{"$f":"IFERROR(#REF!,\"\")","v":""},"",{"$f":"IFERROR(#REF!,\"\")","v":""},{"$f":"IFERROR(#REF!,\"\")","v":""},{"$f":"_xlfn.CONCAT(\"Trimestre 1\",CHAR(10),IFERROR(#REF!,\"\"))","v":"Trimestre 1\n"},{"$f":"_xlfn.CONCAT(\"Trimestre 1\",CHAR(10),IFERROR(#REF!,\"\"))","v":"Trimestre 1\n"},{"$f":"_xlfn.CONCAT(\"Trimestre 1\",CHAR(10),IFERROR(#REF!,\"\"))","v":"Trimestre 1\n"},{"$f":"_xlfn.CONCAT(\"Trimestre 1\",CHAR(10),IFERROR(#REF!,\"\"))","v":"Trimestre 1\n"},{"$f":"_xlfn.CONCAT(\"Trimestre 1\",CHAR(10),IFERROR(#REF!,\"\"))","v":"Trimestre 1\n"}]
[null,null,"4. Avanzar en la disposición de una infraestructura óptima para el acceso a la justicia en la Rama Judicial de modo que se fortalezca la presencia territorial, teniendo en cuenta las posibilidades que ofrece la transformación digital y las necesidades que se derivan de ella, y considerando tanto las necesidades de los usuarios como las de los servidores judiciales.","Diseños para la construcción de despachos judiciales","# de sedes proyectada s para construir o intervenir en el cuatrienio / # sedes efectivamen te construidas o intervenidas\n\nTotal de\ndiseños aprobados","4. Hacer un uso racional de los recursos naturales aplicando los principios y fases de la Economía Circular, para prevenir, mitigar y controlar los impactos ambientales",null,null,null,null,null,null,null,null,null,null,null,null,null,null,null,null,null,null,null,{"$f":"IFERROR(#REF!,\" \")","v":" "},{"$f":"IFERROR(#REF!,\"\")","v":""},{"$f":"IFERROR(#REF!,\"\")","v":""},"","",{"$f":"IFERROR(#REF!,\"\")","v":""},"",{"$f":"IFERROR(#REF!,\"\")","v":""},{"$f":"IFERROR(#REF!,\"\")","v":""},{"$f":"_xlfn.CONCAT(\"Trimestre 1\",CHAR(10),IFERROR(#REF!,\"\"))","v":"Trimestre 1\n"},{"$f":"_xlfn.CONCAT(\"Trimestre 1\",CHAR(10),IFERROR(#REF!,\"\"))","v":"Trimestre 1\n"},{"$f":"_xlfn.CONCAT(\"Trimestre 1\",CHAR(10),IFERROR(#REF!,\"\"))","v":"Trimestre 1\n"},{"$f":"_xlfn.CONCAT(\"Trimestre 1\",CHAR(10),IFERROR(#REF!,\"\"))","v":"Trimestre 1\n"},{"$f":"_xlfn.CONCAT(\"Trimestre 1\",CHAR(10),IFERROR(#REF!,\"\"))","v":"Trimestre 1\n"}]
[null,null,null,null,null,null,null,null,null,null,null,null,null,null,null,null,null,null,null,null,null,null,null,null,null,{"$f":"IFERROR(#REF!,\" \")","v":" "},{"$f":"IFERROR(#REF!,\"\")","v":""},{"$f":"IFERROR(#REF!,\"\")","v":""},"","",{"$f":"IFERROR(#REF!,\"\")","v":""},"",{"$f":"IFERROR(#REF!,\"\")","v":""},{"$f":"IFERROR(#REF!,\"\")","v":""},{"$f":"_xlfn.CONCAT(\"Trimestre 1\",CHAR(10),IFERROR(#REF!,\"\"))","v":"Trimestre 1\n"},{"$f":"_xlfn.CONCAT(\"Trimestre 1\",CHAR(10),IFERROR(#REF!,\"\"))","v":"Trimestre 1\n"},{"$f":"_xlfn.CONCAT(\"Trimestre 1\",CHAR(10),IFERROR(#REF!,\"\"))","v":"Trimestre 1\n"},{"$f":"_xlfn.CONCAT(\"Trimestre 1\",CHAR(10),IFERROR(#REF!,\"\"))","v":"Trimestre 1\n"},{"$f":"_xlfn.CONCAT(\"Trimestre 1\",CHAR(10),IFERROR(#REF!,\"\"))","v":"Trimestre 1\n"}]
[null,null,null,null,null,null,null,null,null,null,null,null,null,null,null,null,null,null,null,null,null,null,null,null,null,{"$f":"IFERROR(#REF!,\" \")","v":" "},{"$f":"IFERROR(#REF!,\"\")","v":""},{"$f":"IFERROR(#REF!,\"\")","v":""},"","",{"$f":"IFERROR(#REF!,\"\")","v":""},"",{"$f":"IFERROR(#REF!,\"\")","v":""},{"$f":"IFERROR(#REF!,\"\")","v":""},{"$f":"_xlfn.CONCAT(\"Trimestre 1\",CHAR(10),IFERROR(#REF!,\"\"))","v":"Trimestre 1\n"},{"$f":"_xlfn.CONCAT(\"Trimestre 1\",CHAR(10),IFERROR(#REF!,\"\"))","v":"Trimestre 1\n"},{"$f":"_xlfn.CONCAT(\"Trimestre 1\",CHAR(10),IFERROR(#REF!,\"\"))","v":"Trimestre 1\n"},{"$f":"_xlfn.CONCAT(\"Trimestre 1\",CHAR(10),IFERROR(#REF!,\"\"))","v":"Trimestre 1\n"},{"$f":"_xlfn.CONCAT(\"Trimestre 1\",CHAR(10),IFERROR(#REF!,\"\"))","v":"Trimestre 1\n"}]
[null,null,null,null,null,null,null,null,null,null,null,null,null,null,null,null,null,null,null,null,null,null,null,null,null,{"$f":"IFERROR(#REF!,\" \")","v":" "},{"$f":"IFERROR(#REF!,\"\")","v":""},{"$f":"IFERROR(#REF!,\"\")","v":""},"","",{"$f":"IFERROR(#REF!,\"\")","v":""},"",{"$f":"IFERROR(#REF!,\"\")","v":""},{"$f":"IFERROR(#REF!,\"\")","v":""},{"$f":"_xlfn.CONCAT(\"Trimestre 1\",CHAR(10),IFERROR(#REF!,\"\"))","v":"Trimestre 1\n"},{"$f":"_xlfn.CONCAT(\"Trimestre 1\",CHAR(10),IFERROR(#REF!,\"\"))","v":"Trimestre 1\n"},{"$f":"_xlfn.CONCAT(\"Trimestre 1\",CHAR(10),IFERROR(#REF!,\"\"))","v":"Trimestre 1\n"},{"$f":"_xlfn.CONCAT(\"Trimestre 1\",CHAR(10),IFERROR(#REF!,\"\"))","v":"Trimestre 1\n"},{"$f":"_xlfn.CONCAT(\"Trimestre 1\",CHAR(10),IFERROR(#REF!,\"\"))","v":"Trimestre 1\n"}]
[null,null,null,null,null,null,null,null,null,null,null,null,null,null,null,null,null,null,null,null,null,null,null,null,null,{"$f":"IFERROR(#REF!,\" \")","v":" "},{"$f":"IFERROR(#REF!,\"\")","v":""},{"$f":"IFERROR(#REF!,\"\")","v":""},"","",{"$f":"IFERROR(#REF!,\"\")","v":""},"",{"$f":"IFERROR(#REF!,\"\")","v":""},{"$f":"IFERROR(#REF!,\"\")","v":""},{"$f":"_xlfn.CONCAT(\"Trimestre 1\",CHAR(10),IFERROR(#REF!,\"\"))","v":"Trimestre 1\n"},{"$f":"_xlfn.CONCAT(\"Trimestre 1\",CHAR(10),IFERROR(#REF!,\"\"))","v":"Trimestre 1\n"},{"$f":"_xlfn.CONCAT(\"Trimestre 1\",CHAR(10),IFERROR(#REF!,\"\"))","v":"Trimestre 1\n"},{"$f":"_xlfn.CONCAT(\"Trimestre 1\",CHAR(10),IFERROR(#REF!,\"\"))","v":"Trimestre 1\n"},{"$f":"_xlfn.CONCAT(\"Trimestre 1\",CHAR(10),IFERROR(#REF!,\"\"))","v":"Trimestre 1\n"}]
[null,null,"5. Impulsar el uso de mecanismos alternativos para la solución de conflictos y la ampliación de la justicia restaurativa y terapéutica y el robustecimiento de las alternativas al encarcelamiento","Seguimiento al cumplimiento de las disposiciones del CSJ que impulsan el uso de mecanismos alternativos de solución de conflictos, la ampliación de la justicia restaurativa y terapéutica y las alternativas al encarcelamiento.","% avance de implementa ción de las estrategias definidas para el seguimiento de las disposicion es adoptadas por el Consejo en materia de justicia restaurativa y terapéutica y las alternativas de encarcelami ento","2. Asegurar  el cumplimiento de los objetivos institucionales, la normatividad aplicable,  la mejora del SIGCMA y la satisfacción de los usuarios, revisando de  forma continua y sistemática la planificación de la gestión y fortaleciendo la administración de riesgos y sus controles",null,null,null,null,null,null,null,null,null,null,null,null,null,null,null,null,null,null,null,{"$f":"IFERROR(#REF!,\" \")","v":" "},{"$f":"IFERROR(#REF!,\"\")","v":""},{"$f":"IFERROR(#REF!,\"\")","v":""},"","",{"$f":"IFERROR(#REF!,\"\")","v":""},"",{"$f":"IFERROR(#REF!,\"\")","v":""},{"$f":"IFERROR(#REF!,\"\")","v":""},{"$f":"_xlfn.CONCAT(\"Trimestre 1\",CHAR(10),IFERROR(#REF!,\"\"))","v":"Trimestre 1\n"},{"$f":"_xlfn.CONCAT(\"Trimestre 1\",CHAR(10),IFERROR(#REF!,\"\"))","v":"Trimestre 1\n"},{"$f":"_xlfn.CONCAT(\"Trimestre 1\",CHAR(10),IFERROR(#REF!,\"\"))","v":"Trimestre 1\n"},{"$f":"_xlfn.CONCAT(\"Trimestre 1\",CHAR(10),IFERROR(#REF!,\"\"))","v":"Trimestre 1\n"},{"$f":"_xlfn.CONCAT(\"Trimestre 1\",CHAR(10),IFERROR(#REF!,\"\"))","v":"Trimestre 1\n"}]
[null,null,null,null,null,null,null,null,null,null,null,null,null,null,null,null,null,null,null,null,null,null,null,null,null,{"$f":"IFERROR(#REF!,\" \")","v":" "},{"$f":"IFERROR(#REF!,\"\")","v":""},{"$f":"IFERROR(#REF!,\"\")","v":""},"","",{"$f":"IFERROR(#REF!,\"\")","v":""},"",{"$f":"IFERROR(#REF!,\"\")","v":""},{"$f":"IFERROR(#REF!,\"\")","v":""},{"$f":"_xlfn.CONCAT(\"Trimestre 1\",CHAR(10),IFERROR(#REF!,\"\"))","v":"Trimestre 1\n"},{"$f":"_xlfn.CONCAT(\"Trimestre 1\",CHAR(10),IFERROR(#REF!,\"\"))","v":"Trimestre 1\n"},{"$f":"_xlfn.CONCAT(\"Trimestre 1\",CHAR(10),IFERROR(#REF!,\"\"))","v":"Trimestre 1\n"},{"$f":"_xlfn.CONCAT(\"Trimestre 1\",CHAR(10),IFERROR(#REF!,\"\"))","v":"Trimestre 1\n"},{"$f":"_xlfn.CONCAT(\"Trimestre 1\",CHAR(10),IFERROR(#REF!,\"\"))","v":"Trimestre 1\n"}]
[null,null,null,null,null,null,null,null,null,null,null,null,null,null,null,null,null,null,null,null,null,null,null,null,null,{"$f":"IFERROR(#REF!,\" \")","v":" "},{"$f":"IFERROR(#REF!,\"\")","v":""},{"$f":"IFERROR(#REF!,\"\")","v":""},"","",{"$f":"IFERROR(#REF!,\"\")","v":""},"",{"$f":"IFERROR(#REF!,\"\")","v":""},{"$f":"IFERROR(#REF!,\"\")","v":""},{"$f":"_xlfn.CONCAT(\"Trimestre 1\",CHAR(10),IFERROR(#REF!,\"\"))","v":"Trimestre 1\n"},{"$f":"_xlfn.CONCAT(\"Trimestre 1\",CHAR(10),IFERROR(#REF!,\"\"))","v":"Trimestre 1\n"},{"$f":"_xlfn.CONCAT(\"Trimestre 1\",CHAR(10),IFERROR(#REF!,\"\"))","v":"Trimestre 1\n"},{"$f":"_xlfn.CONCAT(\"Trimestre 1\",CHAR(10),IFERROR(#REF!,\"\"))","v":"Trimestre 1\n"},{"$f":"_xlfn.CONCAT(\"Trimestre 1\",CHAR(10),IFERROR(#REF!,\"\"))","v":"Trimestre 1\n"}]
[null,null,null,null,null,null,null,null,null,null,null,null,null,null,null,null,null,null,null,null,null,null,null,null,null,{"$f":"IFERROR(#REF!,\" \")","v":" "},{"$f":"IFERROR(#REF!,\"\")","v":""},{"$f":"IFERROR(#REF!,\"\")","v":""},"","",{"$f":"IFERROR(#REF!,\"\")","v":""},"",{"$f":"IFERROR(#REF!,\"\")","v":""},{"$f":"IFERROR(#REF!,\"\")","v":""},{"$f":"_xlfn.CONCAT(\"Trimestre 1\",CHAR(10),IFERROR(#REF!,\"\"))","v":"Trimestre 1\n"},{"$f":"_xlfn.CONCAT(\"Trimestre 1\",CHAR(10),IFERROR(#REF!,\"\"))","v":"Trimestre 1\n"},{"$f":"_xlfn.CONCAT(\"Trimestre 1\",CHAR(10),IFERROR(#REF!,\"\"))","v":"Trimestre 1\n"},{"$f":"_xlfn.CONCAT(\"Trimestre 1\",CHAR(10),IFERROR(#REF!,\"\"))","v":"Trimestre 1\n"},{"$f":"_xlfn.CONCAT(\"Trimestre 1\",CHAR(10),IFERROR(#REF!,\"\"))","v":"Trimestre 1\n"}]
[null,null,null,null,null,null,null,null,null,null,null,null,null,null,null,null,null,null,null,null,null,null,null,null,null,{"$f":"IFERROR(#REF!,\" \")","v":" "},{"$f":"IFERROR(#REF!,\"\")","v":""},{"$f":"IFERROR(#REF!,\"\")","v":""},"","",{"$f":"IFERROR(#REF!,\"\")","v":""},"",{"$f":"IFERROR(#REF!,\"\")","v":""},{"$f":"IFERROR(#REF!,\"\")","v":""},{"$f":"_xlfn.CONCAT(\"Trimestre 1\",CHAR(10),IFERROR(#REF!,\"\"))","v":"Trimestre 1\n"},{"$f":"_xlfn.CONCAT(\"Trimestre 1\",CHAR(10),IFERROR(#REF!,\"\"))","v":"Trimestre 1\n"},{"$f":"_xlfn.CONCAT(\"Trimestre 1\",CHAR(10),IFERROR(#REF!,\"\"))","v":"Trimestre 1\n"},{"$f":"_xlfn.CONCAT(\"Trimestre 1\",CHAR(10),IFERROR(#REF!,\"\"))","v":"Trimestre 1\n"},{"$f":"_xlfn.CONCAT(\"Trimestre 1\",CHAR(10),IFERROR(#REF!,\"\"))","v":"Trimestre 1\n"}]
["2. Servicios digitales y de tecnología, innovación y análisis de la información.","Servicios digitales y de tecnología, innovación y análisis de la información: Consolidar una justicia integrada y soportada en servicios digitales y de tecnología, innovación y análisis de la información, con una cultura digital apropiada, segura y sensible a las realidades del territorio nacional. ","1. Ampliar el acceso a la justicia a través de la consolidación del uso de los servicios digitales que conforman el sistema único integrado de gestión judicial en todos los despachos judiciales y dependencias de apoyo y, específicamente, incluyendo el despliegue e implementación del Expediente Judicial Electrónico en todas las jurisdicciones y especialidades.","Procesos\njudiciales gestionados a través del expediente electrónico por especialidad","# de procesos judiciales en gestión con expediente electrónico en cada especialida d y por categoría de despacho a nivel de circuito / # de procesos judiciales totales en gestión por cada especialida d y circuito (cabecera de circuito)","6. Proteger, preservar y administrar los activos de información  implementando acciones  para gestionar de forma adecuada los incidentes, proteger los datos personales y adoptar mecanismos  de ciberseguridad y aseguramiento de la  continuidad del negocio.",null,null,null,null,null,null,null,null,null,null,null,null,null,null,null,null,null,null,null,{"$f":"IFERROR(#REF!,\" \")","v":" "},{"$f":"IFERROR(#REF!,\"\")","v":""},{"$f":"IFERROR(#REF!,\"\")","v":""},"","",{"$f":"IFERROR(#REF!,\"\")","v":""},"",{"$f":"IFERROR(#REF!,\"\")","v":""},{"$f":"IFERROR(#REF!,\"\")","v":""},{"$f":"_xlfn.CONCAT(\"Trimestre 1\",CHAR(10),IFERROR(#REF!,\"\"))","v":"Trimestre 1\n"},{"$f":"_xlfn.CONCAT(\"Trimestre 1\",CHAR(10),IFERROR(#REF!,\"\"))","v":"Trimestre 1\n"},{"$f":"_xlfn.CONCAT(\"Trimestre 1\",CHAR(10),IFERROR(#REF!,\"\"))","v":"Trimestre 1\n"},{"$f":"_xlfn.CONCAT(\"Trimestre 1\",CHAR(10),IFERROR(#REF!,\"\"))","v":"Trimestre 1\n"},{"$f":"_xlfn.CONCAT(\"Trimestre 1\",CHAR(10),IFERROR(#REF!,\"\"))","v":"Trimestre 1\n"}]
[null,null,null,null,null,null,null,null,null,null,null,null,null,null,null,null,null,null,null,null,null,null,null,null,null,{"$f":"IFERROR(#REF!,\" \")","v":" "},{"$f":"IFERROR(#REF!,\"\")","v":""},{"$f":"IFERROR(#REF!,\"\")","v":""},"","",{"$f":"IFERROR(#REF!,\"\")","v":""},"",{"$f":"IFERROR(#REF!,\"\")","v":""},{"$f":"IFERROR(#REF!,\"\")","v":""},{"$f":"_xlfn.CONCAT(\"Trimestre 1\",CHAR(10),IFERROR(#REF!,\"\"))","v":"Trimestre 1\n"},{"$f":"_xlfn.CONCAT(\"Trimestre 1\",CHAR(10),IFERROR(#REF!,\"\"))","v":"Trimestre 1\n"},{"$f":"_xlfn.CONCAT(\"Trimestre 1\",CHAR(10),IFERROR(#REF!,\"\"))","v":"Trimestre 1\n"},{"$f":"_xlfn.CONCAT(\"Trimestre 1\",CHAR(10),IFERROR(#REF!,\"\"))","v":"Trimestre 1\n"},{"$f":"_xlfn.CONCAT(\"Trimestre 1\",CHAR(10),IFERROR(#REF!,\"\"))","v":"Trimestre 1\n"}]
[null,null,null,null,null,null,null,null,null,null,null,null,null,null,null,null,null,null,null,null,null,null,null,null,null,{"$f":"IFERROR(#REF!,\" \")","v":" "},{"$f":"IFERROR(#REF!,\"\")","v":""},{"$f":"IFERROR(#REF!,\"\")","v":""},"","",{"$f":"IFERROR(#REF!,\"\")","v":""},"",{"$f":"IFERROR(#REF!,\"\")","v":""},{"$f":"IFERROR(#REF!,\"\")","v":""},{"$f":"_xlfn.CONCAT(\"Trimestre 1\",CHAR(10),IFERROR(#REF!,\"\"))","v":"Trimestre 1\n"},{"$f":"_xlfn.CONCAT(\"Trimestre 1\",CHAR(10),IFERROR(#REF!,\"\"))","v":"Trimestre 1\n"},{"$f":"_xlfn.CONCAT(\"Trimestre 1\",CHAR(10),IFERROR(#REF!,\"\"))","v":"Trimestre 1\n"},{"$f":"_xlfn.CONCAT(\"Trimestre 1\",CHAR(10),IFERROR(#REF!,\"\"))","v":"Trimestre 1\n"},{"$f":"_xlfn.CONCAT(\"Trimestre 1\",CHAR(10),IFERROR(#REF!,\"\"))","v":"Trimestre 1\n"}]
[null,null,null,null,null,null,null,null,null,null,null,null,null,null,null,null,null,null,null,null,null,null,null,null,null,{"$f":"IFERROR(#REF!,\" \")","v":" "},{"$f":"IFERROR(#REF!,\"\")","v":""},{"$f":"IFERROR(#REF!,\"\")","v":""},"","",{"$f":"IFERROR(#REF!,\"\")","v":""},"",{"$f":"IFERROR(#REF!,\"\")","v":""},{"$f":"IFERROR(#REF!,\"\")","v":""},{"$f":"_xlfn.CONCAT(\"Trimestre 1\",CHAR(10),IFERROR(#REF!,\"\"))","v":"Trimestre 1\n"},{"$f":"_xlfn.CONCAT(\"Trimestre 1\",CHAR(10),IFERROR(#REF!,\"\"))","v":"Trimestre 1\n"},{"$f":"_xlfn.CONCAT(\"Trimestre 1\",CHAR(10),IFERROR(#REF!,\"\"))","v":"Trimestre 1\n"},{"$f":"_xlfn.CONCAT(\"Trimestre 1\",CHAR(10),IFERROR(#REF!,\"\"))","v":"Trimestre 1\n"},{"$f":"_xlfn.CONCAT(\"Trimestre 1\",CHAR(10),IFERROR(#REF!,\"\"))","v":"Trimestre 1\n"}]
[null,null,null,null,null,null,null,null,null,null,null,null,null,null,null,null,null,null,null,null,null,null,null,null,null,{"$f":"IFERROR(#REF!,\" \")","v":" "},{"$f":"IFERROR(#REF!,\"\")","v":""},{"$f":"IFERROR(#REF!,\"\")","v":""},"","",{"$f":"IFERROR(#REF!,\"\")","v":""},"",{"$f":"IFERROR(#REF!,\"\")","v":""},{"$f":"IFERROR(#REF!,\"\")","v":""},{"$f":"_xlfn.CONCAT(\"Trimestre 1\",CHAR(10),IFERROR(#REF!,\"\"))","v":"Trimestre 1\n"},{"$f":"_xlfn.CONCAT(\"Trimestre 1\",CHAR(10),IFERROR(#REF!,\"\"))","v":"Trimestre 1\n"},{"$f":"_xlfn.CONCAT(\"Trimestre 1\",CHAR(10),IFERROR(#REF!,\"\"))","v":"Trimestre 1\n"},{"$f":"_xlfn.CONCAT(\"Trimestre 1\",CHAR(10),IFERROR(#REF!,\"\"))","v":"Trimestre 1\n"},{"$f":"_xlfn.CONCAT(\"Trimestre 1\",CHAR(10),IFERROR(#REF!,\"\"))","v":"Trimestre 1\n"}]
[null,null,"2. Integrar y hacer compatibles todos los aplicativos de transición con SIUGJ, para que la migración de los expedientes judiciales a dicha plataforma sea real y no suponga afectaciones en la prestación del servicio de justicia.",null,null,null,null,null,null,null,null,null,null,null,null,null,null,null,null,null,null,null,null,null,null,{"$f":"IFERROR(#REF!,\" \")","v":" "},{"$f":"IFERROR(#REF!,\"\")","v":""},{"$f":"IFERROR(#REF!,\"\")","v":""},"","",{"$f":"IFERROR(#REF!,\"\")","v":""},"",{"$f":"IFERROR(#REF!,\"\")","v":""},{"$f":"IFERROR(#REF!,\"\")","v":""},{"$f":"_xlfn.CONCAT(\"Trimestre 1\",CHAR(10),IFERROR(#REF!,\"\"))","v":"Trimestre 1\n"},{"$f":"_xlfn.CONCAT(\"Trimestre 1\",CHAR(10),IFERROR(#REF!,\"\"))","v":"Trimestre 1\n"},{"$f":"_xlfn.CONCAT(\"Trimestre 1\",CHAR(10),IFERROR(#REF!,\"\"))","v":"Trimestre 1\n"},{"$f":"_xlfn.CONCAT(\"Trimestre 1\",CHAR(10),IFERROR(#REF!,\"\"))","v":"Trimestre 1\n"},{"$f":"_xlfn.CONCAT(\"Trimestre 1\",CHAR(10),IFERROR(#REF!,\"\"))","v":"Trimestre 1\n"}]
[null,null,null,null,null,null,null,null,null,null,null,null,null,null,null,null,null,null,null,null,null,null,null,null,null,{"$f":"IFERROR(#REF!,\" \")","v":" "},{"$f":"IFERROR(#REF!,\"\")","v":""},{"$f":"IFERROR(#REF!,\"\")","v":""},"","",{"$f":"IFERROR(#REF!,\"\")","v":""},"",{"$f":"IFERROR(#REF!,\"\")","v":""},{"$f":"IFERROR(#REF!,\"\")","v":""},{"$f":"_xlfn.CONCAT(\"Trimestre 1\",CHAR(10),IFERROR(#REF!,\"\"))","v":"Trimestre 1\n"},{"$f":"_xlfn.CONCAT(\"Trimestre 1\",CHAR(10),IFERROR(#REF!,\"\"))","v":"Trimestre 1\n"},{"$f":"_xlfn.CONCAT(\"Trimestre 1\",CHAR(10),IFERROR(#REF!,\"\"))","v":"Trimestre 1\n"},{"$f":"_xlfn.CONCAT(\"Trimestre 1\",CHAR(10),IFERROR(#REF!,\"\"))","v":"Trimestre 1\n"},{"$f":"_xlfn.CONCAT(\"Trimestre 1\",CHAR(10),IFERROR(#REF!,\"\"))","v":"Trimestre 1\n"}]
[null,null,null,null,null,null,null,null,null,null,null,null,null,null,null,null,null,null,null,null,null,null,null,null,null,{"$f":"IFERROR(#REF!,\" \")","v":" "},{"$f":"IFERROR(#REF!,\"\")","v":""},{"$f":"IFERROR(#REF!,\"\")","v":""},"","",{"$f":"IFERROR(#REF!,\"\")","v":""},"",{"$f":"IFERROR(#REF!,\"\")","v":""},{"$f":"IFERROR(#REF!,\"\")","v":""},{"$f":"_xlfn.CONCAT(\"Trimestre 1\",CHAR(10),IFERROR(#REF!,\"\"))","v":"Trimestre 1\n"},{"$f":"_xlfn.CONCAT(\"Trimestre 1\",CHAR(10),IFERROR(#REF!,\"\"))","v":"Trimestre 1\n"},{"$f":"_xlfn.CONCAT(\"Trimestre 1\",CHAR(10),IFERROR(#REF!,\"\"))","v":"Trimestre 1\n"},{"$f":"_xlfn.CONCAT(\"Trimestre 1\",CHAR(10),IFERROR(#REF!,\"\"))","v":"Trimestre 1\n"},{"$f":"_xlfn.CONCAT(\"Trimestre 1\",CHAR(10),IFERROR(#REF!,\"\"))","v":"Trimestre 1\n"}]
[null,null,null,null,null,null,null,null,null,null,null,null,null,null,null,null,null,null,null,null,null,null,null,null,null,{"$f":"IFERROR(#REF!,\" \")","v":" "},{"$f":"IFERROR(#REF!,\"\")","v":""},{"$f":"IFERROR(#REF!,\"\")","v":""},"","",{"$f":"IFERROR(#REF!,\"\")","v":""},"",{"$f":"IFERROR(#REF!,\"\")","v":""},{"$f":"IFERROR(#REF!,\"\")","v":""},{"$f":"_xlfn.CONCAT(\"Trimestre 1\",CHAR(10),IFERROR(#REF!,\"\"))","v":"Trimestre 1\n"},{"$f":"_xlfn.CONCAT(\"Trimestre 1\",CHAR(10),IFERROR(#REF!,\"\"))","v":"Trimestre 1\n"},{"$f":"_xlfn.CONCAT(\"Trimestre 1\",CHAR(10),IFERROR(#REF!,\"\"))","v":"Trimestre 1\n"},{"$f":"_xlfn.CONCAT(\"Trimestre 1\",CHAR(10),IFERROR(#REF!,\"\"))","v":"Trimestre 1\n"},{"$f":"_xlfn.CONCAT(\"Trimestre 1\",CHAR(10),IFERROR(#REF!,\"\"))","v":"Trimestre 1\n"}]
[null,null,null,null,null,null,null,null,null,null,null,null,null,null,null,null,null,null,null,null,null,null,null,null,null,{"$f":"IFERROR(#REF!,\" \")","v":" "},{"$f":"IFERROR(#REF!,\"\")","v":""},{"$f":"IFERROR(#REF!,\"\")","v":""},"","",{"$f":"IFERROR(#REF!,\"\")","v":""},"",{"$f":"IFERROR(#REF!,\"\")","v":""},{"$f":"IFERROR(#REF!,\"\")","v":""},{"$f":"_xlfn.CONCAT(\"Trimestre 1\",CHAR(10),IFERROR(#REF!,\"\"))","v":"Trimestre 1\n"},{"$f":"_xlfn.CONCAT(\"Trimestre 1\",CHAR(10),IFERROR(#REF!,\"\"))","v":"Trimestre 1\n"},{"$f":"_xlfn.CONCAT(\"Trimestre 1\",CHAR(10),IFERROR(#REF!,\"\"))","v":"Trimestre 1\n"},{"$f":"_xlfn.CONCAT(\"Trimestre 1\",CHAR(10),IFERROR(#REF!,\"\"))","v":"Trimestre 1\n"},{"$f":"_xlfn.CONCAT(\"Trimestre 1\",CHAR(10),IFERROR(#REF!,\"\"))","v":"Trimestre 1\n"}]
[null,null,"3. Fortalecer las capacidades institucionales, adecuar el modelo operativo y de servicio, bajo un enfoque de Arquitectura Empresarial y de fortalecimiento del acceso a la justicia.","Implementación del programa de gestión del cambio y las comunicaciones del PETD","# de actividades del objetivo \"aumentar el conocimient o digital y el uso de apropiación de los sistemas\" del programa de gestión del cambio y las comunicaci ones del PETD cumplidas /# de actividades del objetivo \"aumentar el conocimient o digital y el uso de apropiación de los sistemas\" del programa de gestión del cambio y las comunicaci ones del PETD programada s",null,null,null,null,null,null,null,null,null,null,null,null,null,null,null,null,null,null,null,null,{"$f":"IFERROR(#REF!,\" \")","v":" "},{"$f":"IFERROR(#REF!,\"\")","v":""},{"$f":"IFERROR(#REF!,\"\")","v":""},"","",{"$f":"IFERROR(#REF!,\"\")","v":""},"",{"$f":"IFERROR(#REF!,\"\")","v":""},{"$f":"IFERROR(#REF!,\"\")","v":""},{"$f":"_xlfn.CONCAT(\"Trimestre 1\",CHAR(10),IFERROR(#REF!,\"\"))","v":"Trimestre 1\n"},{"$f":"_xlfn.CONCAT(\"Trimestre 1\",CHAR(10),IFERROR(#REF!,\"\"))","v":"Trimestre 1\n"},{"$f":"_xlfn.CONCAT(\"Trimestre 1\",CHAR(10),IFERROR(#REF!,\"\"))","v":"Trimestre 1\n"},{"$f":"_xlfn.CONCAT(\"Trimestre 1\",CHAR(10),IFERROR(#REF!,\"\"))","v":"Trimestre 1\n"},{"$f":"_xlfn.CONCAT(\"Trimestre 1\",CHAR(10),IFERROR(#REF!,\"\"))","v":"Trimestre 1\n"}]
[null,null,null,null,null,null,null,null,null,null,null,null,null,null,null,null,null,null,null,null,null,null,null,null,null,{"$f":"IFERROR(#REF!,\" \")","v":" "},{"$f":"IFERROR(#REF!,\"\")","v":""},{"$f":"IFERROR(#REF!,\"\")","v":""},"","",{"$f":"IFERROR(#REF!,\"\")","v":""},"",{"$f":"IFERROR(#REF!,\"\")","v":""},{"$f":"IFERROR(#REF!,\"\")","v":""},{"$f":"_xlfn.CONCAT(\"Trimestre 1\",CHAR(10),IFERROR(#REF!,\"\"))","v":"Trimestre 1\n"},{"$f":"_xlfn.CONCAT(\"Trimestre 1\",CHAR(10),IFERROR(#REF!,\"\"))","v":"Trimestre 1\n"},{"$f":"_xlfn.CONCAT(\"Trimestre 1\",CHAR(10),IFERROR(#REF!,\"\"))","v":"Trimestre 1\n"},{"$f":"_xlfn.CONCAT(\"Trimestre 1\",CHAR(10),IFERROR(#REF!,\"\"))","v":"Trimestre 1\n"},{"$f":"_xlfn.CONCAT(\"Trimestre 1\",CHAR(10),IFERROR(#REF!,\"\"))","v":"Trimestre 1\n"}]
[null,null,null,null,null,null,null,null,null,null,null,null,null,null,null,null,null,null,null,null,null,null,null,null,null,{"$f":"IFERROR(#REF!,\" \")","v":" "},{"$f":"IFERROR(#REF!,\"\")","v":""},{"$f":"IFERROR(#REF!,\"\")","v":""},"","",{"$f":"IFERROR(#REF!,\"\")","v":""},"",{"$f":"IFERROR(#REF!,\"\")","v":""},{"$f":"IFERROR(#REF!,\"\")","v":""},{"$f":"_xlfn.CONCAT(\"Trimestre 1\",CHAR(10),IFERROR(#REF!,\"\"))","v":"Trimestre 1\n"},{"$f":"_xlfn.CONCAT(\"Trimestre 1\",CHAR(10),IFERROR(#REF!,\"\"))","v":"Trimestre 1\n"},{"$f":"_xlfn.CONCAT(\"Trimestre 1\",CHAR(10),IFERROR(#REF!,\"\"))","v":"Trimestre 1\n"},{"$f":"_xlfn.CONCAT(\"Trimestre 1\",CHAR(10),IFERROR(#REF!,\"\"))","v":"Trimestre 1\n"},{"$f":"_xlfn.CONCAT(\"Trimestre 1\",CHAR(10),IFERROR(#REF!,\"\"))","v":"Trimestre 1\n"}]
[null,null,null,null,null,null,null,null,null,null,null,null,null,null,null,null,null,null,null,null,null,null,null,null,null,{"$f":"IFERROR(#REF!,\" \")","v":" "},{"$f":"IFERROR(#REF!,\"\")","v":""},{"$f":"IFERROR(#REF!,\"\")","v":""},"","",{"$f":"IFERROR(#REF!,\"\")","v":""},"",{"$f":"IFERROR(#REF!,\"\")","v":""},{"$f":"IFERROR(#REF!,\"\")","v":""},{"$f":"_xlfn.CONCAT(\"Trimestre 1\",CHAR(10),IFERROR(#REF!,\"\"))","v":"Trimestre 1\n"},{"$f":"_xlfn.CONCAT(\"Trimestre 1\",CHAR(10),IFERROR(#REF!,\"\"))","v":"Trimestre 1\n"},{"$f":"_xlfn.CONCAT(\"Trimestre 1\",CHAR(10),IFERROR(#REF!,\"\"))","v":"Trimestre 1\n"},{"$f":"_xlfn.CONCAT(\"Trimestre 1\",CHAR(10),IFERROR(#REF!,\"\"))","v":"Trimestre 1\n"},{"$f":"_xlfn.CONCAT(\"Trimestre 1\",CHAR(10),IFERROR(#REF!,\"\"))","v":"Trimestre 1\n"}]
[null,null,null,null,null,null,null,null,null,null,null,null,null,null,null,null,null,null,null,null,null,null,null,null,null,{"$f":"IFERROR(#REF!,\" \")","v":" "},{"$f":"IFERROR(#REF!,\"\")","v":""},{"$f":"IFERROR(#REF!,\"\")","v":""},"","",{"$f":"IFERROR(#REF!,\"\")","v":""},"",{"$f":"IFERROR(#REF!,\"\")","v":""},{"$f":"IFERROR(#REF!,\"\")","v":""},{"$f":"_xlfn.CONCAT(\"Trimestre 1\",CHAR(10),IFERROR(#REF!,\"\"))","v":"Trimestre 1\n"},{"$f":"_xlfn.CONCAT(\"Trimestre 1\",CHAR(10),IFERROR(#REF!,\"\"))","v":"Trimestre 1\n"},{"$f":"_xlfn.CONCAT(\"Trimestre 1\",CHAR(10),IFERROR(#REF!,\"\"))","v":"Trimestre 1\n"},{"$f":"_xlfn.CONCAT(\"Trimestre 1\",CHAR(10),IFERROR(#REF!,\"\"))","v":"Trimestre 1\n"},{"$f":"_xlfn.CONCAT(\"Trimestre 1\",CHAR(10),IFERROR(#REF!,\"\"))","v":"Trimestre 1\n"}]
[null,null,"4.Consolidar la cultura y apropiación de la transformación digital en los servidores y usuarios de los servicios de la Rama Judicial y reducir brechas de acceso y conocimiento, incluyendo la oferta efectiva de información sobre el uso de las nuevas herramientas virtuales implementadas en las diferentes jurisdicciones, con especial énfasis en las zonas del país donde es evidente la brecha digital.","Cobertura de infraestructura y conectividad consolidada","# de sedes con infraestruct ura y conectivida d consolidada s/Número total de sedes",null,null,null,null,null,null,null,null,null,null,null,null,null,null,null,null,null,null,null,null,{"$f":"IFERROR(#REF!,\" \")","v":" "},{"$f":"IFERROR(#REF!,\"\")","v":""},{"$f":"IFERROR(#REF!,\"\")","v":""},"","",{"$f":"IFERROR(#REF!,\"\")","v":""},"",{"$f":"IFERROR(#REF!,\"\")","v":""},{"$f":"IFERROR(#REF!,\"\")","v":""},{"$f":"_xlfn.CONCAT(\"Trimestre 1\",CHAR(10),IFERROR(#REF!,\"\"))","v":"Trimestre 1\n"},{"$f":"_xlfn.CONCAT(\"Trimestre 1\",CHAR(10),IFERROR(#REF!,\"\"))","v":"Trimestre 1\n"},{"$f":"_xlfn.CONCAT(\"Trimestre 1\",CHAR(10),IFERROR(#REF!,\"\"))","v":"Trimestre 1\n"},{"$f":"_xlfn.CONCAT(\"Trimestre 1\",CHAR(10),IFERROR(#REF!,\"\"))","v":"Trimestre 1\n"},{"$f":"_xlfn.CONCAT(\"Trimestre 1\",CHAR(10),IFERROR(#REF!,\"\"))","v":"Trimestre 1\n"}]
[null,null,null,null,null,null,null,null,null,null,null,null,null,null,null,null,null,null,null,null,null,null,null,null,null,{"$f":"IFERROR(#REF!,\" \")","v":" "},{"$f":"IFERROR(#REF!,\"\")","v":""},{"$f":"IFERROR(#REF!,\"\")","v":""},"","",{"$f":"IFERROR(#REF!,\"\")","v":""},"",{"$f":"IFERROR(#REF!,\"\")","v":""},{"$f":"IFERROR(#REF!,\"\")","v":""},{"$f":"_xlfn.CONCAT(\"Trimestre 1\",CHAR(10),IFERROR(#REF!,\"\"))","v":"Trimestre 1\n"},{"$f":"_xlfn.CONCAT(\"Trimestre 1\",CHAR(10),IFERROR(#REF!,\"\"))","v":"Trimestre 1\n"},{"$f":"_xlfn.CONCAT(\"Trimestre 1\",CHAR(10),IFERROR(#REF!,\"\"))","v":"Trimestre 1\n"},{"$f":"_xlfn.CONCAT(\"Trimestre 1\",CHAR(10),IFERROR(#REF!,\"\"))","v":"Trimestre 1\n"},{"$f":"_xlfn.CONCAT(\"Trimestre 1\",CHAR(10),IFERROR(#REF!,\"\"))","v":"Trimestre 1\n"}]
[null,null,null,null,null,null,null,null,null,null,null,null,null,null,null,null,null,null,null,null,null,null,null,null,null,{"$f":"IFERROR(#REF!,\" \")","v":" "},{"$f":"IFERROR(#REF!,\"\")","v":""},{"$f":"IFERROR(#REF!,\"\")","v":""},"","",{"$f":"IFERROR(#REF!,\"\")","v":""},"",{"$f":"IFERROR(#REF!,\"\")","v":""},{"$f":"IFERROR(#REF!,\"\")","v":""},{"$f":"_xlfn.CONCAT(\"Trimestre 1\",CHAR(10),IFERROR(#REF!,\"\"))","v":"Trimestre 1\n"},{"$f":"_xlfn.CONCAT(\"Trimestre 1\",CHAR(10),IFERROR(#REF!,\"\"))","v":"Trimestre 1\n"},{"$f":"_xlfn.CONCAT(\"Trimestre 1\",CHAR(10),IFERROR(#REF!,\"\"))","v":"Trimestre 1\n"},{"$f":"_xlfn.CONCAT(\"Trimestre 1\",CHAR(10),IFERROR(#REF!,\"\"))","v":"Trimestre 1\n"},{"$f":"_xlfn.CONCAT(\"Trimestre 1\",CHAR(10),IFERROR(#REF!,\"\"))","v":"Trimestre 1\n"}]
[null,null,null,null,null,null,null,null,null,null,null,null,null,null,null,null,null,null,null,null,null,null,null,null,null,{"$f":"IFERROR(#REF!,\" \")","v":" "},{"$f":"IFERROR(#REF!,\"\")","v":""},{"$f":"IFERROR(#REF!,\"\")","v":""},"","",{"$f":"IFERROR(#REF!,\"\")","v":""},"",{"$f":"IFERROR(#REF!,\"\")","v":""},{"$f":"IFERROR(#REF!,\"\")","v":""},{"$f":"_xlfn.CONCAT(\"Trimestre 1\",CHAR(10),IFERROR(#REF!,\"\"))","v":"Trimestre 1\n"},{"$f":"_xlfn.CONCAT(\"Trimestre 1\",CHAR(10),IFERROR(#REF!,\"\"))","v":"Trimestre 1\n"},{"$f":"_xlfn.CONCAT(\"Trimestre 1\",CHAR(10),IFERROR(#REF!,\"\"))","v":"Trimestre 1\n"},{"$f":"_xlfn.CONCAT(\"Trimestre 1\",CHAR(10),IFERROR(#REF!,\"\"))","v":"Trimestre 1\n"},{"$f":"_xlfn.CONCAT(\"Trimestre 1\",CHAR(10),IFERROR(#REF!,\"\"))","v":"Trimestre 1\n"}]
[null,null,null,null,null,null,null,null,null,null,null,null,null,null,null,null,null,null,null,null,null,null,null,null,null,{"$f":"IFERROR(#REF!,\" \")","v":" "},{"$f":"IFERROR(#REF!,\"\")","v":""},{"$f":"IFERROR(#REF!,\"\")","v":""},"","",{"$f":"IFERROR(#REF!,\"\")","v":""},"",{"$f":"IFERROR(#REF!,\"\")","v":""},{"$f":"IFERROR(#REF!,\"\")","v":""},{"$f":"_xlfn.CONCAT(\"Trimestre 1\",CHAR(10),IFERROR(#REF!,\"\"))","v":"Trimestre 1\n"},{"$f":"_xlfn.CONCAT(\"Trimestre 1\",CHAR(10),IFERROR(#REF!,\"\"))","v":"Trimestre 1\n"},{"$f":"_xlfn.CONCAT(\"Trimestre 1\",CHAR(10),IFERROR(#REF!,\"\"))","v":"Trimestre 1\n"},{"$f":"_xlfn.CONCAT(\"Trimestre 1\",CHAR(10),IFERROR(#REF!,\"\"))","v":"Trimestre 1\n"},{"$f":"_xlfn.CONCAT(\"Trimestre 1\",CHAR(10),IFERROR(#REF!,\"\"))","v":"Trimestre 1\n"}]
[null,null,"5.Consolidar la infraestructura y los recursos necesarios para la implementación exitosa de la transformación digital, incluyendo la disposición de internet de calidad en el 100% de las sedes en la Rama Judicial y modernizar los servicios tecnológicos de soporte. ","Implementación del programa de gestión del cambio y las comunicaciones del PETD","# de actividades del objetivo \"aumentar el conocimient o digital y el uso de apropiación de los sistemas\" del programa de gestión del cambio y las comunicaci ones del PETD cumplidas /# de actividades del objetivo \"aumentar el conocimient o digital y el uso de apropiación de los sistemas\" del programa de gestión del cambio y las comunicaci ones del PETD programada s",null,null,null,null,null,null,null,null,null,null,null,null,null,null,null,null,null,null,null,null,{"$f":"IFERROR(#REF!,\" \")","v":" "},{"$f":"IFERROR(#REF!,\"\")","v":""},{"$f":"IFERROR(#REF!,\"\")","v":""},"","",{"$f":"IFERROR(#REF!,\"\")","v":""},"",{"$f":"IFERROR(#REF!,\"\")","v":""},{"$f":"IFERROR(#REF!,\"\")","v":""},{"$f":"_xlfn.CONCAT(\"Trimestre 1\",CHAR(10),IFERROR(#REF!,\"\"))","v":"Trimestre 1\n"},{"$f":"_xlfn.CONCAT(\"Trimestre 1\",CHAR(10),IFERROR(#REF!,\"\"))","v":"Trimestre 1\n"},{"$f":"_xlfn.CONCAT(\"Trimestre 1\",CHAR(10),IFERROR(#REF!,\"\"))","v":"Trimestre 1\n"},{"$f":"_xlfn.CONCAT(\"Trimestre 1\",CHAR(10),IFERROR(#REF!,\"\"))","v":"Trimestre 1\n"},{"$f":"_xlfn.CONCAT(\"Trimestre 1\",CHAR(10),IFERROR(#REF!,\"\"))","v":"Trimestre 1\n"}]
[null,null,null,null,null,null,null,null,null,null,null,null,null,null,null,null,null,null,null,null,null,null,null,null,null,{"$f":"IFERROR(#REF!,\" \")","v":" "},{"$f":"IFERROR(#REF!,\"\")","v":""},{"$f":"IFERROR(#REF!,\"\")","v":""},"","",{"$f":"IFERROR(#REF!,\"\")","v":""},"",{"$f":"IFERROR(#REF!,\"\")","v":""},{"$f":"IFERROR(#REF!,\"\")","v":""},{"$f":"_xlfn.CONCAT(\"Trimestre 1\",CHAR(10),IFERROR(#REF!,\"\"))","v":"Trimestre 1\n"},{"$f":"_xlfn.CONCAT(\"Trimestre 1\",CHAR(10),IFERROR(#REF!,\"\"))","v":"Trimestre 1\n"},{"$f":"_xlfn.CONCAT(\"Trimestre 1\",CHAR(10),IFERROR(#REF!,\"\"))","v":"Trimestre 1\n"},{"$f":"_xlfn.CONCAT(\"Trimestre 1\",CHAR(10),IFERROR(#REF!,\"\"))","v":"Trimestre 1\n"},{"$f":"_xlfn.CONCAT(\"Trimestre 1\",CHAR(10),IFERROR(#REF!,\"\"))","v":"Trimestre 1\n"}]
[null,null,null,null,null,null,null,null,null,null,null,null,null,null,null,null,null,null,null,null,null,null,null,null,null,{"$f":"IFERROR(#REF!,\" \")","v":" "},{"$f":"IFERROR(#REF!,\"\")","v":""},{"$f":"IFERROR(#REF!,\"\")","v":""},"","",{"$f":"IFERROR(#REF!,\"\")","v":""},"",{"$f":"IFERROR(#REF!,\"\")","v":""},{"$f":"IFERROR(#REF!,\"\")","v":""},{"$f":"_xlfn.CONCAT(\"Trimestre 1\",CHAR(10),IFERROR(#REF!,\"\"))","v":"Trimestre 1\n"},{"$f":"_xlfn.CONCAT(\"Trimestre 1\",CHAR(10),IFERROR(#REF!,\"\"))","v":"Trimestre 1\n"},{"$f":"_xlfn.CONCAT(\"Trimestre 1\",CHAR(10),IFERROR(#REF!,\"\"))","v":"Trimestre 1\n"},{"$f":"_xlfn.CONCAT(\"Trimestre 1\",CHAR(10),IFERROR(#REF!,\"\"))","v":"Trimestre 1\n"},{"$f":"_xlfn.CONCAT(\"Trimestre 1\",CHAR(10),IFERROR(#REF!,\"\"))","v":"Trimestre 1\n"}]
[null,null,null,null,null,null,null,null,null,null,null,null,null,null,null,null,null,null,null,null,null,null,null,null,null,{"$f":"IFERROR(#REF!,\" \")","v":" "},{"$f":"IFERROR(#REF!,\"\")","v":""},{"$f":"IFERROR(#REF!,\"\")","v":""},"","",{"$f":"IFERROR(#REF!,\"\")","v":""},"",{"$f":"IFERROR(#REF!,\"\")","v":""},{"$f":"IFERROR(#REF!,\"\")","v":""},{"$f":"_xlfn.CONCAT(\"Trimestre 1\",CHAR(10),IFERROR(#REF!,\"\"))","v":"Trimestre 1\n"},{"$f":"_xlfn.CONCAT(\"Trimestre 1\",CHAR(10),IFERROR(#REF!,\"\"))","v":"Trimestre 1\n"},{"$f":"_xlfn.CONCAT(\"Trimestre 1\",CHAR(10),IFERROR(#REF!,\"\"))","v":"Trimestre 1\n"},{"$f":"_xlfn.CONCAT(\"Trimestre 1\",CHAR(10),IFERROR(#REF!,\"\"))","v":"Trimestre 1\n"},{"$f":"_xlfn.CONCAT(\"Trimestre 1\",CHAR(10),IFERROR(#REF!,\"\"))","v":"Trimestre 1\n"}]
[null,null,null,null,null,null,null,null,null,null,null,null,null,null,null,null,null,null,null,null,null,null,null,null,null,{"$f":"IFERROR(#REF!,\" \")","v":" "},{"$f":"IFERROR(#REF!,\"\")","v":""},{"$f":"IFERROR(#REF!,\"\")","v":""},"","",{"$f":"IFERROR(#REF!,\"\")","v":""},"",{"$f":"IFERROR(#REF!,\"\")","v":""},{"$f":"IFERROR(#REF!,\"\")","v":""},{"$f":"_xlfn.CONCAT(\"Trimestre 1\",CHAR(10),IFERROR(#REF!,\"\"))","v":"Trimestre 1\n"},{"$f":"_xlfn.CONCAT(\"Trimestre 1\",CHAR(10),IFERROR(#REF!,\"\"))","v":"Trimestre 1\n"},{"$f":"_xlfn.CONCAT(\"Trimestre 1\",CHAR(10),IFERROR(#REF!,\"\"))","v":"Trimestre 1\n"},{"$f":"_xlfn.CONCAT(\"Trimestre 1\",CHAR(10),IFERROR(#REF!,\"\"))","v":"Trimestre 1\n"},{"$f":"_xlfn.CONCAT(\"Trimestre 1\",CHAR(10),IFERROR(#REF!,\"\"))","v":"Trimestre 1\n"}]
[null,null,"6.Integrar y optimizar los servicios administrativos de la Rama Judicial bajo un enfoque de transformación digital e innovación incluyendo los componentes financiero, administrativo, talento humano, entre otros.",null,null,null,null,null,null,null,null,null,null,null,null,null,null,null,null,null,null,null,null,null,null,{"$f":"IFERROR(#REF!,\" \")","v":" "},{"$f":"IFERROR(#REF!,\"\")","v":""},{"$f":"IFERROR(#REF!,\"\")","v":""},"","",{"$f":"IFERROR(#REF!,\"\")","v":""},"",{"$f":"IFERROR(#REF!,\"\")","v":""},{"$f":"IFERROR(#REF!,\"\")","v":""},{"$f":"_xlfn.CONCAT(\"Trimestre 1\",CHAR(10),IFERROR(#REF!,\"\"))","v":"Trimestre 1\n"},{"$f":"_xlfn.CONCAT(\"Trimestre 1\",CHAR(10),IFERROR(#REF!,\"\"))","v":"Trimestre 1\n"},{"$f":"_xlfn.CONCAT(\"Trimestre 1\",CHAR(10),IFERROR(#REF!,\"\"))","v":"Trimestre 1\n"},{"$f":"_xlfn.CONCAT(\"Trimestre 1\",CHAR(10),IFERROR(#REF!,\"\"))","v":"Trimestre 1\n"},{"$f":"_xlfn.CONCAT(\"Trimestre 1\",CHAR(10),IFERROR(#REF!,\"\"))","v":"Trimestre 1\n"}]
[null,null,null,null,null,null,null,null,null,null,null,null,null,null,null,null,null,null,null,null,null,null,null,null,null,{"$f":"IFERROR(#REF!,\" \")","v":" "},{"$f":"IFERROR(#REF!,\"\")","v":""},{"$f":"IFERROR(#REF!,\"\")","v":""},"","",{"$f":"IFERROR(#REF!,\"\")","v":""},"",{"$f":"IFERROR(#REF!,\"\")","v":""},{"$f":"IFERROR(#REF!,\"\")","v":""},{"$f":"_xlfn.CONCAT(\"Trimestre 1\",CHAR(10),IFERROR(#REF!,\"\"))","v":"Trimestre 1\n"},{"$f":"_xlfn.CONCAT(\"Trimestre 1\",CHAR(10),IFERROR(#REF!,\"\"))","v":"Trimestre 1\n"},{"$f":"_xlfn.CONCAT(\"Trimestre 1\",CHAR(10),IFERROR(#REF!,\"\"))","v":"Trimestre 1\n"},{"$f":"_xlfn.CONCAT(\"Trimestre 1\",CHAR(10),IFERROR(#REF!,\"\"))","v":"Trimestre 1\n"},{"$f":"_xlfn.CONCAT(\"Trimestre 1\",CHAR(10),IFERROR(#REF!,\"\"))","v":"Trimestre 1\n"}]
[null,null,null,null,null,null,null,null,null,null,null,null,null,null,null,null,null,null,null,null,null,null,null,null,null,{"$f":"IFERROR(#REF!,\" \")","v":" "},{"$f":"IFERROR(#REF!,\"\")","v":""},{"$f":"IFERROR(#REF!,\"\")","v":""},"","",{"$f":"IFERROR(#REF!,\"\")","v":""},"",{"$f":"IFERROR(#REF!,\"\")","v":""},{"$f":"IFERROR(#REF!,\"\")","v":""},{"$f":"_xlfn.CONCAT(\"Trimestre 1\",CHAR(10),IFERROR(#REF!,\"\"))","v":"Trimestre 1\n"},{"$f":"_xlfn.CONCAT(\"Trimestre 1\",CHAR(10),IFERROR(#REF!,\"\"))","v":"Trimestre 1\n"},{"$f":"_xlfn.CONCAT(\"Trimestre 1\",CHAR(10),IFERROR(#REF!,\"\"))","v":"Trimestre 1\n"},{"$f":"_xlfn.CONCAT(\"Trimestre 1\",CHAR(10),IFERROR(#REF!,\"\"))","v":"Trimestre 1\n"},{"$f":"_xlfn.CONCAT(\"Trimestre 1\",CHAR(10),IFERROR(#REF!,\"\"))","v":"Trimestre 1\n"}]
[null,null,null,null,null,null,null,null,null,null,null,null,null,null,null,null,null,null,null,null,null,null,null,null,null,{"$f":"IFERROR(#REF!,\" \")","v":" "},{"$f":"IFERROR(#REF!,\"\")","v":""},{"$f":"IFERROR(#REF!,\"\")","v":""},"","",{"$f":"IFERROR(#REF!,\"\")","v":""},"",{"$f":"IFERROR(#REF!,\"\")","v":""},{"$f":"IFERROR(#REF!,\"\")","v":""},{"$f":"_xlfn.CONCAT(\"Trimestre 1\",CHAR(10),IFERROR(#REF!,\"\"))","v":"Trimestre 1\n"},{"$f":"_xlfn.CONCAT(\"Trimestre 1\",CHAR(10),IFERROR(#REF!,\"\"))","v":"Trimestre 1\n"},{"$f":"_xlfn.CONCAT(\"Trimestre 1\",CHAR(10),IFERROR(#REF!,\"\"))","v":"Trimestre 1\n"},{"$f":"_xlfn.CONCAT(\"Trimestre 1\",CHAR(10),IFERROR(#REF!,\"\"))","v":"Trimestre 1\n"},{"$f":"_xlfn.CONCAT(\"Trimestre 1\",CHAR(10),IFERROR(#REF!,\"\"))","v":"Trimestre 1\n"}]
[null,null,null,null,null,null,null,null,null,null,null,null,null,null,null,null,null,null,null,null,null,null,null,null,null,{"$f":"IFERROR(#REF!,\" \")","v":" "},{"$f":"IFERROR(#REF!,\"\")","v":""},{"$f":"IFERROR(#REF!,\"\")","v":""},"","",{"$f":"IFERROR(#REF!,\"\")","v":""},"",{"$f":"IFERROR(#REF!,\"\")","v":""},{"$f":"IFERROR(#REF!,\"\")","v":""},{"$f":"_xlfn.CONCAT(\"Trimestre 1\",CHAR(10),IFERROR(#REF!,\"\"))","v":"Trimestre 1\n"},{"$f":"_xlfn.CONCAT(\"Trimestre 1\",CHAR(10),IFERROR(#REF!,\"\"))","v":"Trimestre 1\n"},{"$f":"_xlfn.CONCAT(\"Trimestre 1\",CHAR(10),IFERROR(#REF!,\"\"))","v":"Trimestre 1\n"},{"$f":"_xlfn.CONCAT(\"Trimestre 1\",CHAR(10),IFERROR(#REF!,\"\"))","v":"Trimestre 1\n"},{"$f":"_xlfn.CONCAT(\"Trimestre 1\",CHAR(10),IFERROR(#REF!,\"\"))","v":"Trimestre 1\n"}]
["3. Confianza pública, transparencia y rendición de cuentas","Confianza pública, transparencia y rendición de cuentas: Aumentar la confianza pública en la justicia a través de la transparencia, la rendición de cuentas y la participación, incluyendo la información de justicia y la producción, gestión y acceso a las fuentes de derecho, el fortalecimiento del sistema de gestión de calidad y medio ambiente (SIGCMA) y el mejoramiento de la calidad y publicidad de la información. ","1. Incrementar la cantidad, la calidad y pertinencia de los datos sobre el funcionamiento del servicio de justicia bajo un modelo de gobierno de datos y un liderazgo unificado. ","Modelo de\ngobierno y calidad de datos implementado","% de implementa ción del modelo de gobierno y calidad de datos","4. Hacer un uso racional de los recursos naturales aplicando los principios y fases de la Economía Circular, para prevenir, mitigar y controlar los impactos ambientales.",null,null,null,null,null,null,null,null,null,null,null,null,null,null,null,null,null,null,null,{"$f":"IFERROR(#REF!,\" \")","v":" "},{"$f":"IFERROR(#REF!,\"\")","v":""},{"$f":"IFERROR(#REF!,\"\")","v":""},"","",{"$f":"IFERROR(#REF!,\"\")","v":""},"",{"$f":"IFERROR(#REF!,\"\")","v":""},{"$f":"IFERROR(#REF!,\"\")","v":""},{"$f":"_xlfn.CONCAT(\"Trimestre 1\",CHAR(10),IFERROR(#REF!,\"\"))","v":"Trimestre 1\n"},{"$f":"_xlfn.CONCAT(\"Trimestre 1\",CHAR(10),IFERROR(#REF!,\"\"))","v":"Trimestre 1\n"},{"$f":"_xlfn.CONCAT(\"Trimestre 1\",CHAR(10),IFERROR(#REF!,\"\"))","v":"Trimestre 1\n"},{"$f":"_xlfn.CONCAT(\"Trimestre 1\",CHAR(10),IFERROR(#REF!,\"\"))","v":"Trimestre 1\n"},{"$f":"_xlfn.CONCAT(\"Trimestre 1\",CHAR(10),IFERROR(#REF!,\"\"))","v":"Trimestre 1\n"}]
[null,null,null,null,null,null,null,null,null,null,null,null,null,null,null,null,null,null,null,null,null,null,null,null,null,{"$f":"IFERROR(#REF!,\" \")","v":" "},{"$f":"IFERROR(#REF!,\"\")","v":""},{"$f":"IFERROR(#REF!,\"\")","v":""},"","",{"$f":"IFERROR(#REF!,\"\")","v":""},"",{"$f":"IFERROR(#REF!,\"\")","v":""},{"$f":"IFERROR(#REF!,\"\")","v":""},{"$f":"_xlfn.CONCAT(\"Trimestre 1\",CHAR(10),IFERROR(#REF!,\"\"))","v":"Trimestre 1\n"},{"$f":"_xlfn.CONCAT(\"Trimestre 1\",CHAR(10),IFERROR(#REF!,\"\"))","v":"Trimestre 1\n"},{"$f":"_xlfn.CONCAT(\"Trimestre 1\",CHAR(10),IFERROR(#REF!,\"\"))","v":"Trimestre 1\n"},{"$f":"_xlfn.CONCAT(\"Trimestre 1\",CHAR(10),IFERROR(#REF!,\"\"))","v":"Trimestre 1\n"},{"$f":"_xlfn.CONCAT(\"Trimestre 1\",CHAR(10),IFERROR(#REF!,\"\"))","v":"Trimestre 1\n"}]
[null,null,null,null,null,null,null,null,null,null,null,null,null,null,null,null,null,null,null,null,null,null,null,null,null,{"$f":"IFERROR(#REF!,\" \")","v":" "},{"$f":"IFERROR(#REF!,\"\")","v":""},{"$f":"IFERROR(#REF!,\"\")","v":""},"","",{"$f":"IFERROR(#REF!,\"\")","v":""},"",{"$f":"IFERROR(#REF!,\"\")","v":""},{"$f":"IFERROR(#REF!,\"\")","v":""},{"$f":"_xlfn.CONCAT(\"Trimestre 1\",CHAR(10),IFERROR(#REF!,\"\"))","v":"Trimestre 1\n"},{"$f":"_xlfn.CONCAT(\"Trimestre 1\",CHAR(10),IFERROR(#REF!,\"\"))","v":"Trimestre 1\n"},{"$f":"_xlfn.CONCAT(\"Trimestre 1\",CHAR(10),IFERROR(#REF!,\"\"))","v":"Trimestre 1\n"},{"$f":"_xlfn.CONCAT(\"Trimestre 1\",CHAR(10),IFERROR(#REF!,\"\"))","v":"Trimestre 1\n"},{"$f":"_xlfn.CONCAT(\"Trimestre 1\",CHAR(10),IFERROR(#REF!,\"\"))","v":"Trimestre 1\n"}]
[null,null,null,null,null,null,null,null,null,null,null,null,null,null,null,null,null,null,null,null,null,null,null,null,null,{"$f":"IFERROR(#REF!,\" \")","v":" "},{"$f":"IFERROR(#REF!,\"\")","v":""},{"$f":"IFERROR(#REF!,\"\")","v":""},"","",{"$f":"IFERROR(#REF!,\"\")","v":""},"",{"$f":"IFERROR(#REF!,\"\")","v":""},{"$f":"IFERROR(#REF!,\"\")","v":""},{"$f":"_xlfn.CONCAT(\"Trimestre 1\",CHAR(10),IFERROR(#REF!,\"\"))","v":"Trimestre 1\n"},{"$f":"_xlfn.CONCAT(\"Trimestre 1\",CHAR(10),IFERROR(#REF!,\"\"))","v":"Trimestre 1\n"},{"$f":"_xlfn.CONCAT(\"Trimestre 1\",CHAR(10),IFERROR(#REF!,\"\"))","v":"Trimestre 1\n"},{"$f":"_xlfn.CONCAT(\"Trimestre 1\",CHAR(10),IFERROR(#REF!,\"\"))","v":"Trimestre 1\n"},{"$f":"_xlfn.CONCAT(\"Trimestre 1\",CHAR(10),IFERROR(#REF!,\"\"))","v":"Trimestre 1\n"}]
[null,null,null,null,null,null,null,null,null,null,null,null,null,null,null,null,null,null,null,null,null,null,null,null,null,{"$f":"IFERROR(#REF!,\" \")","v":" "},{"$f":"IFERROR(#REF!,\"\")","v":""},{"$f":"IFERROR(#REF!,\"\")","v":""},"","",{"$f":"IFERROR(#REF!,\"\")","v":""},"",{"$f":"IFERROR(#REF!,\"\")","v":""},{"$f":"IFERROR(#REF!,\"\")","v":""},{"$f":"_xlfn.CONCAT(\"Trimestre 1\",CHAR(10),IFERROR(#REF!,\"\"))","v":"Trimestre 1\n"},{"$f":"_xlfn.CONCAT(\"Trimestre 1\",CHAR(10),IFERROR(#REF!,\"\"))","v":"Trimestre 1\n"},{"$f":"_xlfn.CONCAT(\"Trimestre 1\",CHAR(10),IFERROR(#REF!,\"\"))","v":"Trimestre 1\n"},{"$f":"_xlfn.CONCAT(\"Trimestre 1\",CHAR(10),IFERROR(#REF!,\"\"))","v":"Trimestre 1\n"},{"$f":"_xlfn.CONCAT(\"Trimestre 1\",CHAR(10),IFERROR(#REF!,\"\"))","v":"Trimestre 1\n"}]
[null,null,"2. Consolidar la administración de la información entendida como todas las acciones rientadas a garantizar el acceso, consulta, uso y conservación de la información de justicia de manera ágil, flexible e inteligente, bajo un enfoque de innovación.","Modelo de producción, acceso, consulta y conservación del conocimiento jurídico","% de implementa ción del modelo de producción, acceso, consulta y conservació n del conocimient o jurídico",null,null,null,null,null,null,null,null,null,null,null,null,null,null,null,null,null,null,null,null,{"$f":"IFERROR(#REF!,\" \")","v":" "},{"$f":"IFERROR(#REF!,\"\")","v":""},{"$f":"IFERROR(#REF!,\"\")","v":""},"","",{"$f":"IFERROR(#REF!,\"\")","v":""},"",{"$f":"IFERROR(#REF!,\"\")","v":""},{"$f":"IFERROR(#REF!,\"\")","v":""},{"$f":"_xlfn.CONCAT(\"Trimestre 1\",CHAR(10),IFERROR(#REF!,\"\"))","v":"Trimestre 1\n"},{"$f":"_xlfn.CONCAT(\"Trimestre 1\",CHAR(10),IFERROR(#REF!,\"\"))","v":"Trimestre 1\n"},{"$f":"_xlfn.CONCAT(\"Trimestre 1\",CHAR(10),IFERROR(#REF!,\"\"))","v":"Trimestre 1\n"},{"$f":"_xlfn.CONCAT(\"Trimestre 1\",CHAR(10),IFERROR(#REF!,\"\"))","v":"Trimestre 1\n"},{"$f":"_xlfn.CONCAT(\"Trimestre 1\",CHAR(10),IFERROR(#REF!,\"\"))","v":"Trimestre 1\n"}]
[null,null,null,null,null,null,null,null,null,null,null,null,null,null,null,null,null,null,null,null,null,null,null,null,null,{"$f":"IFERROR(#REF!,\" \")","v":" "},{"$f":"IFERROR(#REF!,\"\")","v":""},{"$f":"IFERROR(#REF!,\"\")","v":""},"","",{"$f":"IFERROR(#REF!,\"\")","v":""},"",{"$f":"IFERROR(#REF!,\"\")","v":""},{"$f":"IFERROR(#REF!,\"\")","v":""},{"$f":"_xlfn.CONCAT(\"Trimestre 1\",CHAR(10),IFERROR(#REF!,\"\"))","v":"Trimestre 1\n"},{"$f":"_xlfn.CONCAT(\"Trimestre 1\",CHAR(10),IFERROR(#REF!,\"\"))","v":"Trimestre 1\n"},{"$f":"_xlfn.CONCAT(\"Trimestre 1\",CHAR(10),IFERROR(#REF!,\"\"))","v":"Trimestre 1\n"},{"$f":"_xlfn.CONCAT(\"Trimestre 1\",CHAR(10),IFERROR(#REF!,\"\"))","v":"Trimestre 1\n"},{"$f":"_xlfn.CONCAT(\"Trimestre 1\",CHAR(10),IFERROR(#REF!,\"\"))","v":"Trimestre 1\n"}]
[null,null,null,null,null,null,null,null,null,null,null,null,null,null,null,null,null,null,null,null,null,null,null,null,null,{"$f":"IFERROR(#REF!,\" \")","v":" "},{"$f":"IFERROR(#REF!,\"\")","v":""},{"$f":"IFERROR(#REF!,\"\")","v":""},"","",{"$f":"IFERROR(#REF!,\"\")","v":""},"",{"$f":"IFERROR(#REF!,\"\")","v":""},{"$f":"IFERROR(#REF!,\"\")","v":""},{"$f":"_xlfn.CONCAT(\"Trimestre 1\",CHAR(10),IFERROR(#REF!,\"\"))","v":"Trimestre 1\n"},{"$f":"_xlfn.CONCAT(\"Trimestre 1\",CHAR(10),IFERROR(#REF!,\"\"))","v":"Trimestre 1\n"},{"$f":"_xlfn.CONCAT(\"Trimestre 1\",CHAR(10),IFERROR(#REF!,\"\"))","v":"Trimestre 1\n"},{"$f":"_xlfn.CONCAT(\"Trimestre 1\",CHAR(10),IFERROR(#REF!,\"\"))","v":"Trimestre 1\n"},{"$f":"_xlfn.CONCAT(\"Trimestre 1\",CHAR(10),IFERROR(#REF!,\"\"))","v":"Trimestre 1\n"}]
[null,null,null,null,null,null,null,null,null,null,null,null,null,null,null,null,null,null,null,null,null,null,null,null,null,{"$f":"IFERROR(#REF!,\" \")","v":" "},{"$f":"IFERROR(#REF!,\"\")","v":""},{"$f":"IFERROR(#REF!,\"\")","v":""},"","",{"$f":"IFERROR(#REF!,\"\")","v":""},"",{"$f":"IFERROR(#REF!,\"\")","v":""},{"$f":"IFERROR(#REF!,\"\")","v":""},{"$f":"_xlfn.CONCAT(\"Trimestre 1\",CHAR(10),IFERROR(#REF!,\"\"))","v":"Trimestre 1\n"},{"$f":"_xlfn.CONCAT(\"Trimestre 1\",CHAR(10),IFERROR(#REF!,\"\"))","v":"Trimestre 1\n"},{"$f":"_xlfn.CONCAT(\"Trimestre 1\",CHAR(10),IFERROR(#REF!,\"\"))","v":"Trimestre 1\n"},{"$f":"_xlfn.CONCAT(\"Trimestre 1\",CHAR(10),IFERROR(#REF!,\"\"))","v":"Trimestre 1\n"},{"$f":"_xlfn.CONCAT(\"Trimestre 1\",CHAR(10),IFERROR(#REF!,\"\"))","v":"Trimestre 1\n"}]
[null,null,null,null,null,null,null,null,null,null,null,null,null,null,null,null,null,null,null,null,null,null,null,null,null,{"$f":"IFERROR(#REF!,\" \")","v":" "},{"$f":"IFERROR(#REF!,\"\")","v":""},{"$f":"IFERROR(#REF!,\"\")","v":""},"","",{"$f":"IFERROR(#REF!,\"\")","v":""},"",{"$f":"IFERROR(#REF!,\"\")","v":""},{"$f":"IFERROR(#REF!,\"\")","v":""},{"$f":"_xlfn.CONCAT(\"Trimestre 1\",CHAR(10),IFERROR(#REF!,\"\"))","v":"Trimestre 1\n"},{"$f":"_xlfn.CONCAT(\"Trimestre 1\",CHAR(10),IFERROR(#REF!,\"\"))","v":"Trimestre 1\n"},{"$f":"_xlfn.CONCAT(\"Trimestre 1\",CHAR(10),IFERROR(#REF!,\"\"))","v":"Trimestre 1\n"},{"$f":"_xlfn.CONCAT(\"Trimestre 1\",CHAR(10),IFERROR(#REF!,\"\"))","v":"Trimestre 1\n"},{"$f":"_xlfn.CONCAT(\"Trimestre 1\",CHAR(10),IFERROR(#REF!,\"\"))","v":"Trimestre 1\n"}]
[null,null,"3. Fortalecer el Sistema integrado de Gestión de la Rama, orientado a la implementación y certificación de las normas antisoborno.","Certificación del Sistema Integrado de Gestión de la Rama en norma antisoborno","# de dependenci as judiciales y administrati vas certificadas en norma antisoborno /# total de despachos certificados en calidad","1. Gestionar el desarrollo de las competencias, la toma de conciencia , la cultura  organizacional  y el compromiso de los  servidores judiciales, contratistas, practicantes y  judicantes de contribuir a generar valor público en la administración de justicia, en el marco de  cumplimiento de los requisitos  aplicables y el comportamiento ético.\n3. Fomentar la transparencia y la participación generando lineamientos y promoviendo la rendición de cuentas ,la consulta, reporte y planteamiento de inquietudes en relación con las decisiones y aspectos del SIGCMA.",null,null,null,null,null,null,null,null,null,null,null,null,null,null,null,null,null,null,null,{"$f":"IFERROR(#REF!,\" \")","v":" "},{"$f":"IFERROR(#REF!,\"\")","v":""},{"$f":"IFERROR(#REF!,\"\")","v":""},"","",{"$f":"IFERROR(#REF!,\"\")","v":""},{"$f":"IFERROR(P71-AB71,\"\")","v":""},{"$f":"IFERROR(#REF!,\"\")","v":""},{"$f":"IFERROR(#REF!,\"\")","v":""},{"$f":"_xlfn.CONCAT(\"Trimestre 1\",CHAR(10),IFERROR(#REF!,\"\"))","v":"Trimestre 1\n"},{"$f":"_xlfn.CONCAT(\"Trimestre 1\",CHAR(10),IFERROR(#REF!,\"\"))","v":"Trimestre 1\n"},{"$f":"_xlfn.CONCAT(\"Trimestre 1\",CHAR(10),IFERROR(#REF!,\"\"))","v":"Trimestre 1\n"},{"$f":"_xlfn.CONCAT(\"Trimestre 1\",CHAR(10),IFERROR(#REF!,\"\"))","v":"Trimestre 1\n"},{"$f":"_xlfn.CONCAT(\"Trimestre 1\",CHAR(10),IFERROR(#REF!,\"\"))","v":"Trimestre 1\n"}]
[null,null,null,null,null,null,null,null,null,null,null,null,null,null,null,null,null,null,null,null,null,null,null,null,null,{"$f":"IFERROR(#REF!,\" \")","v":" "},{"$f":"IFERROR(#REF!,\"\")","v":""},{"$f":"IFERROR(#REF!,\"\")","v":""},{"$f":"IFERROR(AB72/P72,\"\")","v":""},{"$f":"IFERROR(AA72/Y72,\"\")","v":""},{"$f":"IFERROR(#REF!,\"\")","v":""},"",{"$f":"IFERROR(#REF!,\"\")","v":""},{"$f":"IFERROR(#REF!,\"\")","v":""},{"$f":"_xlfn.CONCAT(\"Trimestre 1\",CHAR(10),IFERROR(#REF!,\"\"))","v":"Trimestre 1\n"},{"$f":"_xlfn.CONCAT(\"Trimestre 1\",CHAR(10),IFERROR(#REF!,\"\"))","v":"Trimestre 1\n"},{"$f":"_xlfn.CONCAT(\"Trimestre 1\",CHAR(10),IFERROR(#REF!,\"\"))","v":"Trimestre 1\n"},{"$f":"_xlfn.CONCAT(\"Trimestre 1\",CHAR(10),IFERROR(#REF!,\"\"))","v":"Trimestre 1\n"},{"$f":"_xlfn.CONCAT(\"Trimestre 1\",CHAR(10),IFERROR(#REF!,\"\"))","v":"Trimestre 1\n"}]
[null,null,null,null,null,null,null,null,null,null,null,null,null,null,null,null,null,null,null,null,null,null,null,null,null,{"$f":"IFERROR(#REF!,\" \")","v":" "},{"$f":"IFERROR(#REF!,\"\")","v":""},{"$f":"IFERROR(#REF!,\"\")","v":""},"","",{"$f":"IFERROR(#REF!,\"\")","v":""},"",{"$f":"IFERROR(#REF!,\"\")","v":""},{"$f":"IFERROR(#REF!,\"\")","v":""},{"$f":"_xlfn.CONCAT(\"Trimestre 1\",CHAR(10),IFERROR(#REF!,\"\"))","v":"Trimestre 1\n"},{"$f":"_xlfn.CONCAT(\"Trimestre 1\",CHAR(10),IFERROR(#REF!,\"\"))","v":"Trimestre 1\n"},{"$f":"_xlfn.CONCAT(\"Trimestre 1\",CHAR(10),IFERROR(#REF!,\"\"))","v":"Trimestre 1\n"},{"$f":"_xlfn.CONCAT(\"Trimestre 1\",CHAR(10),IFERROR(#REF!,\"\"))","v":"Trimestre 1\n"},{"$f":"_xlfn.CONCAT(\"Trimestre 1\",CHAR(10),IFERROR(#REF!,\"\"))","v":"Trimestre 1\n"}]
[null,null,null,null,null,null,null,null,null,null,null,null,null,null,null,null,null,null,null,null,null,null,null,null,null,{"$f":"IFERROR(#REF!,\" \")","v":" "},{"$f":"IFERROR(#REF!,\"\")","v":""},{"$f":"IFERROR(#REF!,\"\")","v":""},"","",{"$f":"IFERROR(#REF!,\"\")","v":""},"",{"$f":"IFERROR(#REF!,\"\")","v":""},{"$f":"IFERROR(#REF!,\"\")","v":""},{"$f":"_xlfn.CONCAT(\"Trimestre 1\",CHAR(10),IFERROR(#REF!,\"\"))","v":"Trimestre 1\n"},{"$f":"_xlfn.CONCAT(\"Trimestre 1\",CHAR(10),IFERROR(#REF!,\"\"))","v":"Trimestre 1\n"},{"$f":"_xlfn.CONCAT(\"Trimestre 1\",CHAR(10),IFERROR(#REF!,\"\"))","v":"Trimestre 1\n"},{"$f":"_xlfn.CONCAT(\"Trimestre 1\",CHAR(10),IFERROR(#REF!,\"\"))","v":"Trimestre 1\n"},{"$f":"_xlfn.CONCAT(\"Trimestre 1\",CHAR(10),IFERROR(#REF!,\"\"))","v":"Trimestre 1\n"}]
[null,null,null,null,null,null,null,null,null,null,null,null,null,null,null,null,null,null,null,null,null,null,null,null,null,{"$f":"IFERROR(#REF!,\" \")","v":" "},{"$f":"IFERROR(#REF!,\"\")","v":""},{"$f":"IFERROR(#REF!,\"\")","v":""},"","",{"$f":"IFERROR(#REF!,\"\")","v":""},"",{"$f":"IFERROR(#REF!,\"\")","v":""},{"$f":"IFERROR(#REF!,\"\")","v":""},{"$f":"_xlfn.CONCAT(\"Trimestre 1\",CHAR(10),IFERROR(#REF!,\"\"))","v":"Trimestre 1\n"},{"$f":"_xlfn.CONCAT(\"Trimestre 1\",CHAR(10),IFERROR(#REF!,\"\"))","v":"Trimestre 1\n"},{"$f":"_xlfn.CONCAT(\"Trimestre 1\",CHAR(10),IFERROR(#REF!,\"\"))","v":"Trimestre 1\n"},{"$f":"_xlfn.CONCAT(\"Trimestre 1\",CHAR(10),IFERROR(#REF!,\"\"))","v":"Trimestre 1\n"},{"$f":"_xlfn.CONCAT(\"Trimestre 1\",CHAR(10),IFERROR(#REF!,\"\"))","v":"Trimestre 1\n"}]
[null,null,"4. Aumentar la confianza, la cercanía y acceso a los servicios de la Rama Judicial a través, entre otros, de una comunicación clara y asertiva con la ciudadanía.","Satisfacción de la ciudadanía con la administración de justicia","% de satisfacción de la ciudadanía alto o muy alto con la administraci ón de justicia","3. Fomentar la transparencia y la participación generando lineamientos y promoviendo la rendición de cuentas ,la consulta, reporte y planteamiento de inquietudes en relación con las decisiones y aspectos del SIGCMA.",null,null,null,null,null,null,null,null,null,null,null,null,null,null,null,null,null,null,null,{"$f":"IFERROR(#REF!,\" \")","v":" "},{"$f":"IFERROR(#REF!,\"\")","v":""},{"$f":"IFERROR(#REF!,\"\")","v":""},"","",{"$f":"IFERROR(#REF!,\"\")","v":""},"",{"$f":"IFERROR(#REF!,\"\")","v":""},{"$f":"IFERROR(#REF!,\"\")","v":""},{"$f":"_xlfn.CONCAT(\"Trimestre 1\",CHAR(10),IFERROR(#REF!,\"\"))","v":"Trimestre 1\n"},{"$f":"_xlfn.CONCAT(\"Trimestre 1\",CHAR(10),IFERROR(#REF!,\"\"))","v":"Trimestre 1\n"},{"$f":"_xlfn.CONCAT(\"Trimestre 1\",CHAR(10),IFERROR(#REF!,\"\"))","v":"Trimestre 1\n"},{"$f":"_xlfn.CONCAT(\"Trimestre 1\",CHAR(10),IFERROR(#REF!,\"\"))","v":"Trimestre 1\n"},{"$f":"_xlfn.CONCAT(\"Trimestre 1\",CHAR(10),IFERROR(#REF!,\"\"))","v":"Trimestre 1\n"}]
[null,null,null,null,null,null,null,null,null,null,null,null,null,null,null,null,null,null,null,null,null,null,null,null,null,{"$f":"IFERROR(#REF!,\" \")","v":" "},{"$f":"IFERROR(#REF!,\"\")","v":""},{"$f":"IFERROR(#REF!,\"\")","v":""},"","",{"$f":"IFERROR(#REF!,\"\")","v":""},"",{"$f":"IFERROR(#REF!,\"\")","v":""},{"$f":"IFERROR(#REF!,\"\")","v":""},{"$f":"_xlfn.CONCAT(\"Trimestre 1\",CHAR(10),IFERROR(#REF!,\"\"))","v":"Trimestre 1\n"},{"$f":"_xlfn.CONCAT(\"Trimestre 1\",CHAR(10),IFERROR(#REF!,\"\"))","v":"Trimestre 1\n"},{"$f":"_xlfn.CONCAT(\"Trimestre 1\",CHAR(10),IFERROR(#REF!,\"\"))","v":"Trimestre 1\n"},{"$f":"_xlfn.CONCAT(\"Trimestre 1\",CHAR(10),IFERROR(#REF!,\"\"))","v":"Trimestre 1\n"},{"$f":"_xlfn.CONCAT(\"Trimestre 1\",CHAR(10),IFERROR(#REF!,\"\"))","v":"Trimestre 1\n"}]
[null,null,null,null,null,null,null,null,null,null,null,null,null,null,null,null,null,null,null,null,null,null,null,null,null,{"$f":"IFERROR(#REF!,\" \")","v":" "},{"$f":"IFERROR(#REF!,\"\")","v":""},{"$f":"IFERROR(#REF!,\"\")","v":""},"","",{"$f":"IFERROR(#REF!,\"\")","v":""},"",{"$f":"IFERROR(#REF!,\"\")","v":""},{"$f":"IFERROR(#REF!,\"\")","v":""},{"$f":"_xlfn.CONCAT(\"Trimestre 1\",CHAR(10),IFERROR(#REF!,\"\"))","v":"Trimestre 1\n"},{"$f":"_xlfn.CONCAT(\"Trimestre 1\",CHAR(10),IFERROR(#REF!,\"\"))","v":"Trimestre 1\n"},{"$f":"_xlfn.CONCAT(\"Trimestre 1\",CHAR(10),IFERROR(#REF!,\"\"))","v":"Trimestre 1\n"},{"$f":"_xlfn.CONCAT(\"Trimestre 1\",CHAR(10),IFERROR(#REF!,\"\"))","v":"Trimestre 1\n"},{"$f":"_xlfn.CONCAT(\"Trimestre 1\",CHAR(10),IFERROR(#REF!,\"\"))","v":"Trimestre 1\n"}]
[null,null,null,null,null,null,null,null,null,null,null,null,null,null,null,null,null,null,null,null,null,null,null,null,null,{"$f":"IFERROR(#REF!,\" \")","v":" "},{"$f":"IFERROR(#REF!,\"\")","v":""},{"$f":"IFERROR(#REF!,\"\")","v":""},"","",{"$f":"IFERROR(#REF!,\"\")","v":""},"",{"$f":"IFERROR(#REF!,\"\")","v":""},{"$f":"IFERROR(#REF!,\"\")","v":""},{"$f":"_xlfn.CONCAT(\"Trimestre 1\",CHAR(10),IFERROR(#REF!,\"\"))","v":"Trimestre 1\n"},{"$f":"_xlfn.CONCAT(\"Trimestre 1\",CHAR(10),IFERROR(#REF!,\"\"))","v":"Trimestre 1\n"},{"$f":"_xlfn.CONCAT(\"Trimestre 1\",CHAR(10),IFERROR(#REF!,\"\"))","v":"Trimestre 1\n"},{"$f":"_xlfn.CONCAT(\"Trimestre 1\",CHAR(10),IFERROR(#REF!,\"\"))","v":"Trimestre 1\n"},{"$f":"_xlfn.CONCAT(\"Trimestre 1\",CHAR(10),IFERROR(#REF!,\"\"))","v":"Trimestre 1\n"}]
[null,null,null,null,null,null,null,null,null,null,null,null,null,null,null,null,null,null,null,null,null,null,null,null,null,{"$f":"IFERROR(#REF!,\" \")","v":" "},{"$f":"IFERROR(#REF!,\"\")","v":""},{"$f":"IFERROR(#REF!,\"\")","v":""},"","",{"$f":"IFERROR(#REF!,\"\")","v":""},"",{"$f":"IFERROR(#REF!,\"\")","v":""},{"$f":"IFERROR(#REF!,\"\")","v":""},{"$f":"_xlfn.CONCAT(\"Trimestre 1\",CHAR(10),IFERROR(#REF!,\"\"))","v":"Trimestre 1\n"},{"$f":"_xlfn.CONCAT(\"Trimestre 1\",CHAR(10),IFERROR(#REF!,\"\"))","v":"Trimestre 1\n"},{"$f":"_xlfn.CONCAT(\"Trimestre 1\",CHAR(10),IFERROR(#REF!,\"\"))","v":"Trimestre 1\n"},{"$f":"_xlfn.CONCAT(\"Trimestre 1\",CHAR(10),IFERROR(#REF!,\"\"))","v":"Trimestre 1\n"},{"$f":"_xlfn.CONCAT(\"Trimestre 1\",CHAR(10),IFERROR(#REF!,\"\"))","v":"Trimestre 1\n"}]
[null,null,"5. Prevenir fenómenos asociados con actos de corrupción en la Rama Judicial y reducir las experiencias de corrupción de usuarios y servidores judiciales.","Cumplimiento del Plan Anticorrupción y de Atención al Ciudadano de la Rama Judicial","# Actividades cumplidas del PAAC/# Actividades programada s del PAAC*100",null,null,null,null,null,null,null,null,null,null,null,null,null,null,null,null,null,null,null,null,{"$f":"IFERROR(#REF!,\" \")","v":" "},{"$f":"IFERROR(#REF!,\"\")","v":""},{"$f":"IFERROR(#REF!,\"\")","v":""},"","",{"$f":"IFERROR(#REF!,\"\")","v":""},"",{"$f":"IFERROR(#REF!,\"\")","v":""},{"$f":"IFERROR(#REF!,\"\")","v":""},{"$f":"_xlfn.CONCAT(\"Trimestre 1\",CHAR(10),IFERROR(#REF!,\"\"))","v":"Trimestre 1\n"},{"$f":"_xlfn.CONCAT(\"Trimestre 1\",CHAR(10),IFERROR(#REF!,\"\"))","v":"Trimestre 1\n"},{"$f":"_xlfn.CONCAT(\"Trimestre 1\",CHAR(10),IFERROR(#REF!,\"\"))","v":"Trimestre 1\n"},{"$f":"_xlfn.CONCAT(\"Trimestre 1\",CHAR(10),IFERROR(#REF!,\"\"))","v":"Trimestre 1\n"},{"$f":"_xlfn.CONCAT(\"Trimestre 1\",CHAR(10),IFERROR(#REF!,\"\"))","v":"Trimestre 1\n"}]
[null,null,null,null,null,null,null,null,null,null,null,null,null,null,null,null,null,null,null,null,null,null,null,null,null,{"$f":"IFERROR(#REF!,\" \")","v":" "},{"$f":"IFERROR(#REF!,\"\")","v":""},{"$f":"IFERROR(#REF!,\"\")","v":""},"","",{"$f":"IFERROR(#REF!,\"\")","v":""},"",{"$f":"IFERROR(#REF!,\"\")","v":""},{"$f":"IFERROR(#REF!,\"\")","v":""},{"$f":"_xlfn.CONCAT(\"Trimestre 1\",CHAR(10),IFERROR(#REF!,\"\"))","v":"Trimestre 1\n"},{"$f":"_xlfn.CONCAT(\"Trimestre 1\",CHAR(10),IFERROR(#REF!,\"\"))","v":"Trimestre 1\n"},{"$f":"_xlfn.CONCAT(\"Trimestre 1\",CHAR(10),IFERROR(#REF!,\"\"))","v":"Trimestre 1\n"},{"$f":"_xlfn.CONCAT(\"Trimestre 1\",CHAR(10),IFERROR(#REF!,\"\"))","v":"Trimestre 1\n"},{"$f":"_xlfn.CONCAT(\"Trimestre 1\",CHAR(10),IFERROR(#REF!,\"\"))","v":"Trimestre 1\n"}]
[null,null,null,null,null,null,null,null,null,null,null,null,null,null,null,null,null,null,null,null,null,null,null,null,null,{"$f":"IFERROR(#REF!,\" \")","v":" "},{"$f":"IFERROR(#REF!,\"\")","v":""},{"$f":"IFERROR(#REF!,\"\")","v":""},"","",{"$f":"IFERROR(#REF!,\"\")","v":""},"",{"$f":"IFERROR(#REF!,\"\")","v":""},{"$f":"IFERROR(#REF!,\"\")","v":""},{"$f":"_xlfn.CONCAT(\"Trimestre 1\",CHAR(10),IFERROR(#REF!,\"\"))","v":"Trimestre 1\n"},{"$f":"_xlfn.CONCAT(\"Trimestre 1\",CHAR(10),IFERROR(#REF!,\"\"))","v":"Trimestre 1\n"},{"$f":"_xlfn.CONCAT(\"Trimestre 1\",CHAR(10),IFERROR(#REF!,\"\"))","v":"Trimestre 1\n"},{"$f":"_xlfn.CONCAT(\"Trimestre 1\",CHAR(10),IFERROR(#REF!,\"\"))","v":"Trimestre 1\n"},{"$f":"_xlfn.CONCAT(\"Trimestre 1\",CHAR(10),IFERROR(#REF!,\"\"))","v":"Trimestre 1\n"}]
[null,null,null,null,null,null,null,null,null,null,null,null,null,null,null,null,null,null,null,null,null,null,null,null,null,{"$f":"IFERROR(#REF!,\" \")","v":" "},{"$f":"IFERROR(#REF!,\"\")","v":""},{"$f":"IFERROR(#REF!,\"\")","v":""},"","",{"$f":"IFERROR(#REF!,\"\")","v":""},"",{"$f":"IFERROR(#REF!,\"\")","v":""},{"$f":"IFERROR(#REF!,\"\")","v":""},{"$f":"_xlfn.CONCAT(\"Trimestre 1\",CHAR(10),IFERROR(#REF!,\"\"))","v":"Trimestre 1\n"},{"$f":"_xlfn.CONCAT(\"Trimestre 1\",CHAR(10),IFERROR(#REF!,\"\"))","v":"Trimestre 1\n"},{"$f":"_xlfn.CONCAT(\"Trimestre 1\",CHAR(10),IFERROR(#REF!,\"\"))","v":"Trimestre 1\n"},{"$f":"_xlfn.CONCAT(\"Trimestre 1\",CHAR(10),IFERROR(#REF!,\"\"))","v":"Trimestre 1\n"},{"$f":"_xlfn.CONCAT(\"Trimestre 1\",CHAR(10),IFERROR(#REF!,\"\"))","v":"Trimestre 1\n"}]
[null,null,null,null,null,null,null,null,null,null,null,null,null,null,null,null,null,null,null,null,null,null,null,null,null,{"$f":"IFERROR(#REF!,\" \")","v":" "},{"$f":"IFERROR(#REF!,\"\")","v":""},{"$f":"IFERROR(#REF!,\"\")","v":""},"","",{"$f":"IFERROR(#REF!,\"\")","v":""},"",{"$f":"IFERROR(#REF!,\"\")","v":""},{"$f":"IFERROR(#REF!,\"\")","v":""},{"$f":"_xlfn.CONCAT(\"Trimestre 1\",CHAR(10),IFERROR(#REF!,\"\"))","v":"Trimestre 1\n"},{"$f":"_xlfn.CONCAT(\"Trimestre 1\",CHAR(10),IFERROR(#REF!,\"\"))","v":"Trimestre 1\n"},{"$f":"_xlfn.CONCAT(\"Trimestre 1\",CHAR(10),IFERROR(#REF!,\"\"))","v":"Trimestre 1\n"},{"$f":"_xlfn.CONCAT(\"Trimestre 1\",CHAR(10),IFERROR(#REF!,\"\"))","v":"Trimestre 1\n"},{"$f":"_xlfn.CONCAT(\"Trimestre 1\",CHAR(10),IFERROR(#REF!,\"\"))","v":"Trimestre 1\n"}]
[null,null,"6. Promover la rendición de cuentas y la colaboración real con la ciudadanía como fundamento para diseñar acciones de mejoramiento del acceso a la justicia.","Estrategias para implementar la colaboración real con la ciudadanía en el marco de la \"justicia abierta\" implementadas","% de implementa ción de las estrategias de colaboració n real con la ciudadanía en el marco de la \"justicia abierta\" definidas para cada anualidad",null,null,null,null,null,null,null,null,null,null,null,null,null,null,null,null,null,null,null,null,{"$f":"IFERROR(#REF!,\" \")","v":" "},{"$f":"IFERROR(#REF!,\"\")","v":""},{"$f":"IFERROR(#REF!,\"\")","v":""},"","",{"$f":"IFERROR(#REF!,\"\")","v":""},"",{"$f":"IFERROR(#REF!,\"\")","v":""},{"$f":"IFERROR(#REF!,\"\")","v":""},{"$f":"_xlfn.CONCAT(\"Trimestre 1\",CHAR(10),IFERROR(#REF!,\"\"))","v":"Trimestre 1\n"},{"$f":"_xlfn.CONCAT(\"Trimestre 1\",CHAR(10),IFERROR(#REF!,\"\"))","v":"Trimestre 1\n"},{"$f":"_xlfn.CONCAT(\"Trimestre 1\",CHAR(10),IFERROR(#REF!,\"\"))","v":"Trimestre 1\n"},{"$f":"_xlfn.CONCAT(\"Trimestre 1\",CHAR(10),IFERROR(#REF!,\"\"))","v":"Trimestre 1\n"},{"$f":"_xlfn.CONCAT(\"Trimestre 1\",CHAR(10),IFERROR(#REF!,\"\"))","v":"Trimestre 1\n"}]
[null,null,null,null,null,null,null,null,null,null,null,null,null,null,null,null,null,null,null,null,null,null,null,null,null,{"$f":"IFERROR(#REF!,\" \")","v":" "},{"$f":"IFERROR(#REF!,\"\")","v":""},{"$f":"IFERROR(#REF!,\"\")","v":""},"","",{"$f":"IFERROR(#REF!,\"\")","v":""},"",{"$f":"IFERROR(#REF!,\"\")","v":""},{"$f":"IFERROR(#REF!,\"\")","v":""},{"$f":"_xlfn.CONCAT(\"Trimestre 1\",CHAR(10),IFERROR(#REF!,\"\"))","v":"Trimestre 1\n"},{"$f":"_xlfn.CONCAT(\"Trimestre 1\",CHAR(10),IFERROR(#REF!,\"\"))","v":"Trimestre 1\n"},{"$f":"_xlfn.CONCAT(\"Trimestre 1\",CHAR(10),IFERROR(#REF!,\"\"))","v":"Trimestre 1\n"},{"$f":"_xlfn.CONCAT(\"Trimestre 1\",CHAR(10),IFERROR(#REF!,\"\"))","v":"Trimestre 1\n"},{"$f":"_xlfn.CONCAT(\"Trimestre 1\",CHAR(10),IFERROR(#REF!,\"\"))","v":"Trimestre 1\n"}]
[null,null,null,null,null,null,null,null,null,null,null,null,null,null,null,null,null,null,null,null,null,null,null,null,null,{"$f":"IFERROR(#REF!,\" \")","v":" "},{"$f":"IFERROR(#REF!,\"\")","v":""},{"$f":"IFERROR(#REF!,\"\")","v":""},"","",{"$f":"IFERROR(#REF!,\"\")","v":""},"",{"$f":"IFERROR(#REF!,\"\")","v":""},{"$f":"IFERROR(#REF!,\"\")","v":""},{"$f":"_xlfn.CONCAT(\"Trimestre 1\",CHAR(10),IFERROR(#REF!,\"\"))","v":"Trimestre 1\n"},{"$f":"_xlfn.CONCAT(\"Trimestre 1\",CHAR(10),IFERROR(#REF!,\"\"))","v":"Trimestre 1\n"},{"$f":"_xlfn.CONCAT(\"Trimestre 1\",CHAR(10),IFERROR(#REF!,\"\"))","v":"Trimestre 1\n"},{"$f":"_xlfn.CONCAT(\"Trimestre 1\",CHAR(10),IFERROR(#REF!,\"\"))","v":"Trimestre 1\n"},{"$f":"_xlfn.CONCAT(\"Trimestre 1\",CHAR(10),IFERROR(#REF!,\"\"))","v":"Trimestre 1\n"}]
[null,null,null,null,null,null,null,null,null,null,null,null,null,null,null,null,null,null,null,null,null,null,null,null,null,{"$f":"IFERROR(#REF!,\" \")","v":" "},{"$f":"IFERROR(#REF!,\"\")","v":""},{"$f":"IFERROR(#REF!,\"\")","v":""},"","",{"$f":"IFERROR(#REF!,\"\")","v":""},"",{"$f":"IFERROR(#REF!,\"\")","v":""},{"$f":"IFERROR(#REF!,\"\")","v":""},{"$f":"_xlfn.CONCAT(\"Trimestre 1\",CHAR(10),IFERROR(#REF!,\"\"))","v":"Trimestre 1\n"},{"$f":"_xlfn.CONCAT(\"Trimestre 1\",CHAR(10),IFERROR(#REF!,\"\"))","v":"Trimestre 1\n"},{"$f":"_xlfn.CONCAT(\"Trimestre 1\",CHAR(10),IFERROR(#REF!,\"\"))","v":"Trimestre 1\n"},{"$f":"_xlfn.CONCAT(\"Trimestre 1\",CHAR(10),IFERROR(#REF!,\"\"))","v":"Trimestre 1\n"},{"$f":"_xlfn.CONCAT(\"Trimestre 1\",CHAR(10),IFERROR(#REF!,\"\"))","v":"Trimestre 1\n"}]
[null,null,null,null,null,null,null,null,null,null,null,null,null,null,null,null,null,null,null,null,null,null,null,null,null,{"$f":"IFERROR(#REF!,\" \")","v":" "},{"$f":"IFERROR(#REF!,\"\")","v":""},{"$f":"IFERROR(#REF!,\"\")","v":""},"","",{"$f":"IFERROR(#REF!,\"\")","v":""},"",{"$f":"IFERROR(#REF!,\"\")","v":""},{"$f":"IFERROR(#REF!,\"\")","v":""},{"$f":"_xlfn.CONCAT(\"Trimestre 1\",CHAR(10),IFERROR(#REF!,\"\"))","v":"Trimestre 1\n"},{"$f":"_xlfn.CONCAT(\"Trimestre 1\",CHAR(10),IFERROR(#REF!,\"\"))","v":"Trimestre 1\n"},{"$f":"_xlfn.CONCAT(\"Trimestre 1\",CHAR(10),IFERROR(#REF!,\"\"))","v":"Trimestre 1\n"},{"$f":"_xlfn.CONCAT(\"Trimestre 1\",CHAR(10),IFERROR(#REF!,\"\"))","v":"Trimestre 1\n"},{"$f":"_xlfn.CONCAT(\"Trimestre 1\",CHAR(10),IFERROR(#REF!,\"\"))","v":"Trimestre 1\n"}]
[null,null,"7. Continuar la consolidación del SIGCMA, a través de los procesos de formación en modelos de gestión, logrando la implementación y ampliación de este en los esquemas certificados de manera gradual, teniendo en cuenta las capacidades de los diferentes despachos judiciales y dependencias de la Rama Judicial y articulando el enfoque de Arquitectura Empresarial para el desarrollo del PETD a través de la gestión del conocimiento para la gestión del cambio propendiendo por una cultura de la calidad, la transparencia, la rendición de cuentas, la anticorrupción y el antisoborno","Procesos de formación en modelos de gestión aplicados","# de servidores judiciales formados en modelos de gestión de las dependenci as judiciales y administrati vas certificadas en SIGCMA que implementa n el PETD / # total de servidores judiciales de las dependenci as judiciales y administrati vas certificadas en SIGCMA que implementa n el PETD","1. Gestionar el desarrollo de las competencias, la toma de conciencia , la cultura  organizacional  y el compromiso de los  servidores judiciales, contratistas, practicantes y  judicantes de contribuir a generar valor público en la administración de justicia, en el marco de  cumplimiento de los requisitos  aplicables y el comportamiento ético.\n4. Hacer un uso racional de los recursos naturales aplicando los principios y fases de la Economía Circular, para prevenir, mitigar y controlar los impactos ambientales.",null,null,null,null,null,null,null,null,null,null,null,null,null,null,null,null,null,null,null,{"$f":"IFERROR(#REF!,\" \")","v":" "},{"$f":"IFERROR(#REF!,\"\")","v":""},{"$f":"IFERROR(#REF!,\"\")","v":""},"","",{"$f":"IFERROR(#REF!,\"\")","v":""},"",{"$f":"IFERROR(#REF!,\"\")","v":""},{"$f":"IFERROR(#REF!,\"\")","v":""},{"$f":"_xlfn.CONCAT(\"Trimestre 1\",CHAR(10),IFERROR(#REF!,\"\"))","v":"Trimestre 1\n"},{"$f":"_xlfn.CONCAT(\"Trimestre 1\",CHAR(10),IFERROR(#REF!,\"\"))","v":"Trimestre 1\n"},{"$f":"_xlfn.CONCAT(\"Trimestre 1\",CHAR(10),IFERROR(#REF!,\"\"))","v":"Trimestre 1\n"},{"$f":"_xlfn.CONCAT(\"Trimestre 1\",CHAR(10),IFERROR(#REF!,\"\"))","v":"Trimestre 1\n"},{"$f":"_xlfn.CONCAT(\"Trimestre 1\",CHAR(10),IFERROR(#REF!,\"\"))","v":"Trimestre 1\n"}]
[null,null,null,null,null,null,null,null,null,null,null,null,null,null,null,null,null,null,null,null,null,null,null,null,null,{"$f":"IFERROR(#REF!,\" \")","v":" "},{"$f":"IFERROR(#REF!,\"\")","v":""},{"$f":"IFERROR(#REF!,\"\")","v":""},"","",{"$f":"IFERROR(#REF!,\"\")","v":""},"",{"$f":"IFERROR(#REF!,\"\")","v":""},{"$f":"IFERROR(#REF!,\"\")","v":""},{"$f":"_xlfn.CONCAT(\"Trimestre 1\",CHAR(10),IFERROR(#REF!,\"\"))","v":"Trimestre 1\n"},{"$f":"_xlfn.CONCAT(\"Trimestre 1\",CHAR(10),IFERROR(#REF!,\"\"))","v":"Trimestre 1\n"},{"$f":"_xlfn.CONCAT(\"Trimestre 1\",CHAR(10),IFERROR(#REF!,\"\"))","v":"Trimestre 1\n"},{"$f":"_xlfn.CONCAT(\"Trimestre 1\",CHAR(10),IFERROR(#REF!,\"\"))","v":"Trimestre 1\n"},{"$f":"_xlfn.CONCAT(\"Trimestre 1\",CHAR(10),IFERROR(#REF!,\"\"))","v":"Trimestre 1\n"}]
[null,null,null,null,null,null,null,null,null,null,null,null,null,null,null,null,null,null,null,null,null,null,null,null,null,{"$f":"IFERROR(#REF!,\" \")","v":" "},{"$f":"IFERROR(#REF!,\"\")","v":""},{"$f":"IFERROR(#REF!,\"\")","v":""},"","",{"$f":"IFERROR(#REF!,\"\")","v":""},"",{"$f":"IFERROR(#REF!,\"\")","v":""},{"$f":"IFERROR(#REF!,\"\")","v":""},{"$f":"_xlfn.CONCAT(\"Trimestre 1\",CHAR(10),IFERROR(#REF!,\"\"))","v":"Trimestre 1\n"},{"$f":"_xlfn.CONCAT(\"Trimestre 1\",CHAR(10),IFERROR(#REF!,\"\"))","v":"Trimestre 1\n"},{"$f":"_xlfn.CONCAT(\"Trimestre 1\",CHAR(10),IFERROR(#REF!,\"\"))","v":"Trimestre 1\n"},{"$f":"_xlfn.CONCAT(\"Trimestre 1\",CHAR(10),IFERROR(#REF!,\"\"))","v":"Trimestre 1\n"},{"$f":"_xlfn.CONCAT(\"Trimestre 1\",CHAR(10),IFERROR(#REF!,\"\"))","v":"Trimestre 1\n"}]
[null,null,null,null,null,null,null,null,null,null,null,null,null,null,null,null,null,null,null,null,null,null,null,null,null,{"$f":"IFERROR(#REF!,\" \")","v":" "},{"$f":"IFERROR(#REF!,\"\")","v":""},{"$f":"IFERROR(#REF!,\"\")","v":""},"","",{"$f":"IFERROR(#REF!,\"\")","v":""},"",{"$f":"IFERROR(#REF!,\"\")","v":""},{"$f":"IFERROR(#REF!,\"\")","v":""},{"$f":"_xlfn.CONCAT(\"Trimestre 1\",CHAR(10),IFERROR(#REF!,\"\"))","v":"Trimestre 1\n"},{"$f":"_xlfn.CONCAT(\"Trimestre 1\",CHAR(10),IFERROR(#REF!,\"\"))","v":"Trimestre 1\n"},{"$f":"_xlfn.CONCAT(\"Trimestre 1\",CHAR(10),IFERROR(#REF!,\"\"))","v":"Trimestre 1\n"},{"$f":"_xlfn.CONCAT(\"Trimestre 1\",CHAR(10),IFERROR(#REF!,\"\"))","v":"Trimestre 1\n"},{"$f":"_xlfn.CONCAT(\"Trimestre 1\",CHAR(10),IFERROR(#REF!,\"\"))","v":"Trimestre 1\n"}]
[null,null,null,null,null,null,null,null,null,null,null,null,null,null,null,null,null,null,null,null,null,null,null,null,null,{"$f":"IFERROR(#REF!,\" \")","v":" "},{"$f":"IFERROR(#REF!,\"\")","v":""},{"$f":"IFERROR(#REF!,\"\")","v":""},"","",{"$f":"IFERROR(#REF!,\"\")","v":""},"",{"$f":"IFERROR(#REF!,\"\")","v":""},{"$f":"IFERROR(#REF!,\"\")","v":""},{"$f":"_xlfn.CONCAT(\"Trimestre 1\",CHAR(10),IFERROR(#REF!,\"\"))","v":"Trimestre 1\n"},{"$f":"_xlfn.CONCAT(\"Trimestre 1\",CHAR(10),IFERROR(#REF!,\"\"))","v":"Trimestre 1\n"},{"$f":"_xlfn.CONCAT(\"Trimestre 1\",CHAR(10),IFERROR(#REF!,\"\"))","v":"Trimestre 1\n"},{"$f":"_xlfn.CONCAT(\"Trimestre 1\",CHAR(10),IFERROR(#REF!,\"\"))","v":"Trimestre 1\n"},{"$f":"_xlfn.CONCAT(\"Trimestre 1\",CHAR(10),IFERROR(#REF!,\"\"))","v":"Trimestre 1\n"}]
["4. Talento Humano","Talento Humano: Fortalecer el talento humano en la Rama Judicial para que sea eficiente, capacitado y realice su labor en ambientes saludables y seguros. Ampliar la cobertura de la carrera judicial y mejorar la oferta de formación, que esté disponible para todos los servidores judiciales e impacte positivamente el servicio de justicia y responda a las necesidades reales del ejercicio de la función judicial.","1. Ampliar la cobertura de la carrera judicial optimizando los procesos de los concursos de méritos y propender por mitigar su litigiosidad.","Cobertura de la carrera judicial diferenciada entre magistrados, jueces y empleados","# de cargos provistos por carrera judicial/# de cargos de carrera judicial","1. Gestionar el desarrollo de las competencias, la toma de conciencia , la cultura  organizacional  y el compromiso de los  servidores judiciales, contratistas, practicantes y  judicantes de contribuir a generar valor público en la administración de justicia, en el marco de  cumplimiento de los requisitos  aplicables y el comportamiento ético.",null,null,null,null,null,null,null,null,null,null,null,null,null,null,null,null,null,null,null,{"$f":"IFERROR(#REF!,\" \")","v":" "},{"$f":"IFERROR(#REF!,\"\")","v":""},{"$f":"IFERROR(#REF!,\"\")","v":""},"","",{"$f":"IFERROR(#REF!,\"\")","v":""},"",{"$f":"IFERROR(#REF!,\"\")","v":""},{"$f":"IFERROR(#REF!,\"\")","v":""},{"$f":"_xlfn.CONCAT(\"Trimestre 1\",CHAR(10),IFERROR(#REF!,\"\"))","v":"Trimestre 1\n"},{"$f":"_xlfn.CONCAT(\"Trimestre 1\",CHAR(10),IFERROR(#REF!,\"\"))","v":"Trimestre 1\n"},{"$f":"_xlfn.CONCAT(\"Trimestre 1\",CHAR(10),IFERROR(#REF!,\"\"))","v":"Trimestre 1\n"},{"$f":"_xlfn.CONCAT(\"Trimestre 1\",CHAR(10),IFERROR(#REF!,\"\"))","v":"Trimestre 1\n"},{"$f":"_xlfn.CONCAT(\"Trimestre 1\",CHAR(10),IFERROR(#REF!,\"\"))","v":"Trimestre 1\n"}]
[null,null,null,null,null,null,null,null,null,null,null,null,null,null,null,null,null,null,null,null,null,null,null,null,null,{"$f":"IFERROR(#REF!,\" \")","v":" "},{"$f":"IFERROR(#REF!,\"\")","v":""},{"$f":"IFERROR(#REF!,\"\")","v":""},"","",{"$f":"IFERROR(#REF!,\"\")","v":""},"",{"$f":"IFERROR(#REF!,\"\")","v":""},{"$f":"IFERROR(#REF!,\"\")","v":""},{"$f":"_xlfn.CONCAT(\"Trimestre 1\",CHAR(10),IFERROR(#REF!,\"\"))","v":"Trimestre 1\n"},{"$f":"_xlfn.CONCAT(\"Trimestre 1\",CHAR(10),IFERROR(#REF!,\"\"))","v":"Trimestre 1\n"},{"$f":"_xlfn.CONCAT(\"Trimestre 1\",CHAR(10),IFERROR(#REF!,\"\"))","v":"Trimestre 1\n"},{"$f":"_xlfn.CONCAT(\"Trimestre 1\",CHAR(10),IFERROR(#REF!,\"\"))","v":"Trimestre 1\n"},{"$f":"_xlfn.CONCAT(\"Trimestre 1\",CHAR(10),IFERROR(#REF!,\"\"))","v":"Trimestre 1\n"}]
[null,null,null,null,null,null,null,null,null,null,null,null,null,null,null,null,null,null,null,null,null,null,null,null,null,{"$f":"IFERROR(#REF!,\" \")","v":" "},{"$f":"IFERROR(#REF!,\"\")","v":""},{"$f":"IFERROR(#REF!,\"\")","v":""},"","",{"$f":"IFERROR(#REF!,\"\")","v":""},"",{"$f":"IFERROR(#REF!,\"\")","v":""},{"$f":"IFERROR(#REF!,\"\")","v":""},{"$f":"_xlfn.CONCAT(\"Trimestre 1\",CHAR(10),IFERROR(#REF!,\"\"))","v":"Trimestre 1\n"},{"$f":"_xlfn.CONCAT(\"Trimestre 1\",CHAR(10),IFERROR(#REF!,\"\"))","v":"Trimestre 1\n"},{"$f":"_xlfn.CONCAT(\"Trimestre 1\",CHAR(10),IFERROR(#REF!,\"\"))","v":"Trimestre 1\n"},{"$f":"_xlfn.CONCAT(\"Trimestre 1\",CHAR(10),IFERROR(#REF!,\"\"))","v":"Trimestre 1\n"},{"$f":"_xlfn.CONCAT(\"Trimestre 1\",CHAR(10),IFERROR(#REF!,\"\"))","v":"Trimestre 1\n"}]
[null,null,null,null,null,null,null,null,null,null,null,null,null,null,null,null,null,null,null,null,null,null,null,null,null,{"$f":"IFERROR(#REF!,\" \")","v":" "},{"$f":"IFERROR(#REF!,\"\")","v":""},{"$f":"IFERROR(#REF!,\"\")","v":""},"","",{"$f":"IFERROR(#REF!,\"\")","v":""},"",{"$f":"IFERROR(#REF!,\"\")","v":""},{"$f":"IFERROR(#REF!,\"\")","v":""},{"$f":"_xlfn.CONCAT(\"Trimestre 1\",CHAR(10),IFERROR(#REF!,\"\"))","v":"Trimestre 1\n"},{"$f":"_xlfn.CONCAT(\"Trimestre 1\",CHAR(10),IFERROR(#REF!,\"\"))","v":"Trimestre 1\n"},{"$f":"_xlfn.CONCAT(\"Trimestre 1\",CHAR(10),IFERROR(#REF!,\"\"))","v":"Trimestre 1\n"},{"$f":"_xlfn.CONCAT(\"Trimestre 1\",CHAR(10),IFERROR(#REF!,\"\"))","v":"Trimestre 1\n"},{"$f":"_xlfn.CONCAT(\"Trimestre 1\",CHAR(10),IFERROR(#REF!,\"\"))","v":"Trimestre 1\n"}]
[null,null,null,null,null,null,null,null,null,null,null,null,null,null,null,null,null,null,null,null,null,null,null,null,null,{"$f":"IFERROR(#REF!,\" \")","v":" "},{"$f":"IFERROR(#REF!,\"\")","v":""},{"$f":"IFERROR(#REF!,\"\")","v":""},"","",{"$f":"IFERROR(#REF!,\"\")","v":""},"",{"$f":"IFERROR(#REF!,\"\")","v":""},{"$f":"IFERROR(#REF!,\"\")","v":""},{"$f":"_xlfn.CONCAT(\"Trimestre 1\",CHAR(10),IFERROR(#REF!,\"\"))","v":"Trimestre 1\n"},{"$f":"_xlfn.CONCAT(\"Trimestre 1\",CHAR(10),IFERROR(#REF!,\"\"))","v":"Trimestre 1\n"},{"$f":"_xlfn.CONCAT(\"Trimestre 1\",CHAR(10),IFERROR(#REF!,\"\"))","v":"Trimestre 1\n"},{"$f":"_xlfn.CONCAT(\"Trimestre 1\",CHAR(10),IFERROR(#REF!,\"\"))","v":"Trimestre 1\n"},{"$f":"_xlfn.CONCAT(\"Trimestre 1\",CHAR(10),IFERROR(#REF!,\"\"))","v":"Trimestre 1\n"}]
[null,null,"2. Impactar la función y servicios que presta la Rama Judicial, a través de una formación integral desde una visión de gestión del conocimiento, relacionada con los problemas de la justicia y los problemas de gestión de quienes administran los recursos de la justicia, y potenciando el uso de medios virtuales.","Cobertura de la formación impartida por la Escuela Judicial en el fortalecimiento de las competencias de los servidores judiciales","# servidores que no han recibido ningún curso de formación en los dos años anteriores al proceso de formación, discriminad o por funcionarios y empleados, municipio y especialida d /# servidores totales, discriminad o por funcionarios y empleados, municipio y especialida d",null,null,null,null,null,null,null,null,null,null,null,null,null,null,null,null,null,null,null,null,{"$f":"IFERROR(#REF!,\" \")","v":" "},{"$f":"IFERROR(#REF!,\"\")","v":""},{"$f":"IFERROR(#REF!,\"\")","v":""},"","",{"$f":"IFERROR(#REF!,\"\")","v":""},"",{"$f":"IFERROR(#REF!,\"\")","v":""},{"$f":"IFERROR(#REF!,\"\")","v":""},{"$f":"_xlfn.CONCAT(\"Trimestre 1\",CHAR(10),IFERROR(#REF!,\"\"))","v":"Trimestre 1\n"},{"$f":"_xlfn.CONCAT(\"Trimestre 1\",CHAR(10),IFERROR(#REF!,\"\"))","v":"Trimestre 1\n"},{"$f":"_xlfn.CONCAT(\"Trimestre 1\",CHAR(10),IFERROR(#REF!,\"\"))","v":"Trimestre 1\n"},{"$f":"_xlfn.CONCAT(\"Trimestre 1\",CHAR(10),IFERROR(#REF!,\"\"))","v":"Trimestre 1\n"},{"$f":"_xlfn.CONCAT(\"Trimestre 1\",CHAR(10),IFERROR(#REF!,\"\"))","v":"Trimestre 1\n"}]
[null,null,null,null,null,null,null,null,null,null,null,null,null,null,null,null,null,null,null,null,null,null,null,null,null,{"$f":"IFERROR(#REF!,\" \")","v":" "},{"$f":"IFERROR(#REF!,\"\")","v":""},{"$f":"IFERROR(#REF!,\"\")","v":""},"","",{"$f":"IFERROR(#REF!,\"\")","v":""},"",{"$f":"IFERROR(#REF!,\"\")","v":""},{"$f":"IFERROR(#REF!,\"\")","v":""},{"$f":"_xlfn.CONCAT(\"Trimestre 1\",CHAR(10),IFERROR(#REF!,\"\"))","v":"Trimestre 1\n"},{"$f":"_xlfn.CONCAT(\"Trimestre 1\",CHAR(10),IFERROR(#REF!,\"\"))","v":"Trimestre 1\n"},{"$f":"_xlfn.CONCAT(\"Trimestre 1\",CHAR(10),IFERROR(#REF!,\"\"))","v":"Trimestre 1\n"},{"$f":"_xlfn.CONCAT(\"Trimestre 1\",CHAR(10),IFERROR(#REF!,\"\"))","v":"Trimestre 1\n"},{"$f":"_xlfn.CONCAT(\"Trimestre 1\",CHAR(10),IFERROR(#REF!,\"\"))","v":"Trimestre 1\n"}]
[null,null,null,null,null,null,null,null,null,null,null,null,null,null,null,null,null,null,null,null,null,null,null,null,null,{"$f":"IFERROR(#REF!,\" \")","v":" "},{"$f":"IFERROR(#REF!,\"\")","v":""},{"$f":"IFERROR(#REF!,\"\")","v":""},"","",{"$f":"IFERROR(#REF!,\"\")","v":""},"",{"$f":"IFERROR(#REF!,\"\")","v":""},{"$f":"IFERROR(#REF!,\"\")","v":""},{"$f":"_xlfn.CONCAT(\"Trimestre 1\",CHAR(10),IFERROR(#REF!,\"\"))","v":"Trimestre 1\n"},{"$f":"_xlfn.CONCAT(\"Trimestre 1\",CHAR(10),IFERROR(#REF!,\"\"))","v":"Trimestre 1\n"},{"$f":"_xlfn.CONCAT(\"Trimestre 1\",CHAR(10),IFERROR(#REF!,\"\"))","v":"Trimestre 1\n"},{"$f":"_xlfn.CONCAT(\"Trimestre 1\",CHAR(10),IFERROR(#REF!,\"\"))","v":"Trimestre 1\n"},{"$f":"_xlfn.CONCAT(\"Trimestre 1\",CHAR(10),IFERROR(#REF!,\"\"))","v":"Trimestre 1\n"}]
[null,null,null,null,null,null,null,null,null,null,null,null,null,null,null,null,null,null,null,null,null,null,null,null,null,{"$f":"IFERROR(#REF!,\" \")","v":" "},{"$f":"IFERROR(#REF!,\"\")","v":""},{"$f":"IFERROR(#REF!,\"\")","v":""},"","",{"$f":"IFERROR(#REF!,\"\")","v":""},"",{"$f":"IFERROR(#REF!,\"\")","v":""},{"$f":"IFERROR(#REF!,\"\")","v":""},{"$f":"_xlfn.CONCAT(\"Trimestre 1\",CHAR(10),IFERROR(#REF!,\"\"))","v":"Trimestre 1\n"},{"$f":"_xlfn.CONCAT(\"Trimestre 1\",CHAR(10),IFERROR(#REF!,\"\"))","v":"Trimestre 1\n"},{"$f":"_xlfn.CONCAT(\"Trimestre 1\",CHAR(10),IFERROR(#REF!,\"\"))","v":"Trimestre 1\n"},{"$f":"_xlfn.CONCAT(\"Trimestre 1\",CHAR(10),IFERROR(#REF!,\"\"))","v":"Trimestre 1\n"},{"$f":"_xlfn.CONCAT(\"Trimestre 1\",CHAR(10),IFERROR(#REF!,\"\"))","v":"Trimestre 1\n"}]
[null,null,null,null,null,null,null,null,null,null,null,null,null,null,null,null,null,null,null,null,null,null,null,null,null,{"$f":"IFERROR(#REF!,\" \")","v":" "},{"$f":"IFERROR(#REF!,\"\")","v":""},{"$f":"IFERROR(#REF!,\"\")","v":""},"","",{"$f":"IFERROR(#REF!,\"\")","v":""},"",{"$f":"IFERROR(#REF!,\"\")","v":""},{"$f":"IFERROR(#REF!,\"\")","v":""},{"$f":"_xlfn.CONCAT(\"Trimestre 1\",CHAR(10),IFERROR(#REF!,\"\"))","v":"Trimestre 1\n"},{"$f":"_xlfn.CONCAT(\"Trimestre 1\",CHAR(10),IFERROR(#REF!,\"\"))","v":"Trimestre 1\n"},{"$f":"_xlfn.CONCAT(\"Trimestre 1\",CHAR(10),IFERROR(#REF!,\"\"))","v":"Trimestre 1\n"},{"$f":"_xlfn.CONCAT(\"Trimestre 1\",CHAR(10),IFERROR(#REF!,\"\"))","v":"Trimestre 1\n"},{"$f":"_xlfn.CONCAT(\"Trimestre 1\",CHAR(10),IFERROR(#REF!,\"\"))","v":"Trimestre 1\n"}]
[null,null,"3. Promover la incorporación de la perspectiva de género y el enfoque diferencial en los fallos judiciales y en la atención a los ciudadanos, la administración de la Rama Judicial, la administración de la carrera judicial y la elaboración de listas para altas Cortes. ","Enfoque diferencial y perspectiva de género en las decisiones judiciales de la Rama Judicial","# de decisiones judiciales postuladas al Concurso de “Reconocim iento a la incorporaci ón del derecho a la igualdad y la no discriminaci ón en las sentencias judiciales” en el año corriente/# de decisiones judiciales postuladas al Concurso de “Reconocim iento a la incorporaci ón del derecho a la igualdad y la no discriminaci ón en las sentencias judiciales” en el año inmediatam ente anterior",null,null,null,null,null,null,null,null,null,null,null,null,null,null,null,null,null,null,null,null,{"$f":"IFERROR(#REF!,\" \")","v":" "},{"$f":"IFERROR(#REF!,\"\")","v":""},{"$f":"IFERROR(#REF!,\"\")","v":""},"","",{"$f":"IFERROR(#REF!,\"\")","v":""},"",{"$f":"IFERROR(#REF!,\"\")","v":""},{"$f":"IFERROR(#REF!,\"\")","v":""},{"$f":"_xlfn.CONCAT(\"Trimestre 1\",CHAR(10),IFERROR(#REF!,\"\"))","v":"Trimestre 1\n"},{"$f":"_xlfn.CONCAT(\"Trimestre 1\",CHAR(10),IFERROR(#REF!,\"\"))","v":"Trimestre 1\n"},{"$f":"_xlfn.CONCAT(\"Trimestre 1\",CHAR(10),IFERROR(#REF!,\"\"))","v":"Trimestre 1\n"},{"$f":"_xlfn.CONCAT(\"Trimestre 1\",CHAR(10),IFERROR(#REF!,\"\"))","v":"Trimestre 1\n"},{"$f":"_xlfn.CONCAT(\"Trimestre 1\",CHAR(10),IFERROR(#REF!,\"\"))","v":"Trimestre 1\n"}]
[null,null,null,null,null,null,null,null,null,null,null,null,null,null,null,null,null,null,null,null,null,null,null,null,null,{"$f":"IFERROR(#REF!,\" \")","v":" "},{"$f":"IFERROR(#REF!,\"\")","v":""},{"$f":"IFERROR(#REF!,\"\")","v":""},"","",{"$f":"IFERROR(#REF!,\"\")","v":""},"",{"$f":"IFERROR(#REF!,\"\")","v":""},{"$f":"IFERROR(#REF!,\"\")","v":""},{"$f":"_xlfn.CONCAT(\"Trimestre 1\",CHAR(10),IFERROR(#REF!,\"\"))","v":"Trimestre 1\n"},{"$f":"_xlfn.CONCAT(\"Trimestre 1\",CHAR(10),IFERROR(#REF!,\"\"))","v":"Trimestre 1\n"},{"$f":"_xlfn.CONCAT(\"Trimestre 1\",CHAR(10),IFERROR(#REF!,\"\"))","v":"Trimestre 1\n"},{"$f":"_xlfn.CONCAT(\"Trimestre 1\",CHAR(10),IFERROR(#REF!,\"\"))","v":"Trimestre 1\n"},{"$f":"_xlfn.CONCAT(\"Trimestre 1\",CHAR(10),IFERROR(#REF!,\"\"))","v":"Trimestre 1\n"}]
[null,null,null,null,null,null,null,null,null,null,null,null,null,null,null,null,null,null,null,null,null,null,null,null,null,{"$f":"IFERROR(#REF!,\" \")","v":" "},{"$f":"IFERROR(#REF!,\"\")","v":""},{"$f":"IFERROR(#REF!,\"\")","v":""},"","",{"$f":"IFERROR(#REF!,\"\")","v":""},"",{"$f":"IFERROR(#REF!,\"\")","v":""},{"$f":"IFERROR(#REF!,\"\")","v":""},{"$f":"_xlfn.CONCAT(\"Trimestre 1\",CHAR(10),IFERROR(#REF!,\"\"))","v":"Trimestre 1\n"},{"$f":"_xlfn.CONCAT(\"Trimestre 1\",CHAR(10),IFERROR(#REF!,\"\"))","v":"Trimestre 1\n"},{"$f":"_xlfn.CONCAT(\"Trimestre 1\",CHAR(10),IFERROR(#REF!,\"\"))","v":"Trimestre 1\n"},{"$f":"_xlfn.CONCAT(\"Trimestre 1\",CHAR(10),IFERROR(#REF!,\"\"))","v":"Trimestre 1\n"},{"$f":"_xlfn.CONCAT(\"Trimestre 1\",CHAR(10),IFERROR(#REF!,\"\"))","v":"Trimestre 1\n"}]
[null,null,null,null,null,null,null,null,null,null,null,null,null,null,null,null,null,null,null,null,null,null,null,null,null,{"$f":"IFERROR(#REF!,\" \")","v":" "},{"$f":"IFERROR(#REF!,\"\")","v":""},{"$f":"IFERROR(#REF!,\"\")","v":""},"","",{"$f":"IFERROR(#REF!,\"\")","v":""},"",{"$f":"IFERROR(#REF!,\"\")","v":""},{"$f":"IFERROR(#REF!,\"\")","v":""},{"$f":"_xlfn.CONCAT(\"Trimestre 1\",CHAR(10),IFERROR(#REF!,\"\"))","v":"Trimestre 1\n"},{"$f":"_xlfn.CONCAT(\"Trimestre 1\",CHAR(10),IFERROR(#REF!,\"\"))","v":"Trimestre 1\n"},{"$f":"_xlfn.CONCAT(\"Trimestre 1\",CHAR(10),IFERROR(#REF!,\"\"))","v":"Trimestre 1\n"},{"$f":"_xlfn.CONCAT(\"Trimestre 1\",CHAR(10),IFERROR(#REF!,\"\"))","v":"Trimestre 1\n"},{"$f":"_xlfn.CONCAT(\"Trimestre 1\",CHAR(10),IFERROR(#REF!,\"\"))","v":"Trimestre 1\n"}]
[null,null,null,null,null,null,null,null,null,null,null,null,null,null,null,null,null,null,null,null,null,null,null,null,null,{"$f":"IFERROR(#REF!,\" \")","v":" "},{"$f":"IFERROR(#REF!,\"\")","v":""},{"$f":"IFERROR(#REF!,\"\")","v":""},"","",{"$f":"IFERROR(#REF!,\"\")","v":""},"",{"$f":"IFERROR(#REF!,\"\")","v":""},{"$f":"IFERROR(#REF!,\"\")","v":""},{"$f":"_xlfn.CONCAT(\"Trimestre 1\",CHAR(10),IFERROR(#REF!,\"\"))","v":"Trimestre 1\n"},{"$f":"_xlfn.CONCAT(\"Trimestre 1\",CHAR(10),IFERROR(#REF!,\"\"))","v":"Trimestre 1\n"},{"$f":"_xlfn.CONCAT(\"Trimestre 1\",CHAR(10),IFERROR(#REF!,\"\"))","v":"Trimestre 1\n"},{"$f":"_xlfn.CONCAT(\"Trimestre 1\",CHAR(10),IFERROR(#REF!,\"\"))","v":"Trimestre 1\n"},{"$f":"_xlfn.CONCAT(\"Trimestre 1\",CHAR(10),IFERROR(#REF!,\"\"))","v":"Trimestre 1\n"}]
[null,null,"4. Desarrollar en los servidores judiciales y demás grupos de valor relevantes las competencias necesarias para la efectividad de la transformación digital de modo que puedan, entre otros, utilizar con solvencia las herramientas digitales dispuestas para sus respectivas funciones. Además, fortalecer y actualizar los conocimientos del personal a cargo de la gestión de proyectos de tecnología.","Cobertura de la formación impartida por la Escuela Judicial en Tecnologías de la Información y las Comunicaciones TIC para la práctica judicial.","# servidores que no han recibido ningún curso de formación en Tecnología s de la Información y las Comunicaci ones TIC en la vigencia del plan sectorial, discriminad o por funcionarios y empleados, municipio y especialida d /# servidores totales, discriminad o por funcionarios y empleados, municipio y especialida d",null,null,null,null,null,null,null,null,null,null,null,null,null,null,null,null,null,null,null,null,{"$f":"IFERROR(#REF!,\" \")","v":" "},{"$f":"IFERROR(#REF!,\"\")","v":""},{"$f":"IFERROR(#REF!,\"\")","v":""},"","",{"$f":"IFERROR(#REF!,\"\")","v":""},"",{"$f":"IFERROR(#REF!,\"\")","v":""},{"$f":"IFERROR(#REF!,\"\")","v":""},{"$f":"_xlfn.CONCAT(\"Trimestre 1\",CHAR(10),IFERROR(#REF!,\"\"))","v":"Trimestre 1\n"},{"$f":"_xlfn.CONCAT(\"Trimestre 1\",CHAR(10),IFERROR(#REF!,\"\"))","v":"Trimestre 1\n"},{"$f":"_xlfn.CONCAT(\"Trimestre 1\",CHAR(10),IFERROR(#REF!,\"\"))","v":"Trimestre 1\n"},{"$f":"_xlfn.CONCAT(\"Trimestre 1\",CHAR(10),IFERROR(#REF!,\"\"))","v":"Trimestre 1\n"},{"$f":"_xlfn.CONCAT(\"Trimestre 1\",CHAR(10),IFERROR(#REF!,\"\"))","v":"Trimestre 1\n"}]
[null,null,null,null,null,null,null,null,null,null,null,null,null,null,null,null,null,null,null,null,null,null,null,null,null,{"$f":"IFERROR(#REF!,\" \")","v":" "},{"$f":"IFERROR(#REF!,\"\")","v":""},{"$f":"IFERROR(#REF!,\"\")","v":""},"","",{"$f":"IFERROR(#REF!,\"\")","v":""},"",{"$f":"IFERROR(#REF!,\"\")","v":""},{"$f":"IFERROR(#REF!,\"\")","v":""},{"$f":"_xlfn.CONCAT(\"Trimestre 1\",CHAR(10),IFERROR(#REF!,\"\"))","v":"Trimestre 1\n"},{"$f":"_xlfn.CONCAT(\"Trimestre 1\",CHAR(10),IFERROR(#REF!,\"\"))","v":"Trimestre 1\n"},{"$f":"_xlfn.CONCAT(\"Trimestre 1\",CHAR(10),IFERROR(#REF!,\"\"))","v":"Trimestre 1\n"},{"$f":"_xlfn.CONCAT(\"Trimestre 1\",CHAR(10),IFERROR(#REF!,\"\"))","v":"Trimestre 1\n"},{"$f":"_xlfn.CONCAT(\"Trimestre 1\",CHAR(10),IFERROR(#REF!,\"\"))","v":"Trimestre 1\n"}]
[null,null,null,null,null,null,null,null,null,null,null,null,null,null,null,null,null,null,null,null,null,null,null,null,null,{"$f":"IFERROR(#REF!,\" \")","v":" "},{"$f":"IFERROR(#REF!,\"\")","v":""},{"$f":"IFERROR(#REF!,\"\")","v":""},"","",{"$f":"IFERROR(#REF!,\"\")","v":""},"",{"$f":"IFERROR(#REF!,\"\")","v":""},{"$f":"IFERROR(#REF!,\"\")","v":""},{"$f":"_xlfn.CONCAT(\"Trimestre 1\",CHAR(10),IFERROR(#REF!,\"\"))","v":"Trimestre 1\n"},{"$f":"_xlfn.CONCAT(\"Trimestre 1\",CHAR(10),IFERROR(#REF!,\"\"))","v":"Trimestre 1\n"},{"$f":"_xlfn.CONCAT(\"Trimestre 1\",CHAR(10),IFERROR(#REF!,\"\"))","v":"Trimestre 1\n"},{"$f":"_xlfn.CONCAT(\"Trimestre 1\",CHAR(10),IFERROR(#REF!,\"\"))","v":"Trimestre 1\n"},{"$f":"_xlfn.CONCAT(\"Trimestre 1\",CHAR(10),IFERROR(#REF!,\"\"))","v":"Trimestre 1\n"}]
[null,null,null,null,null,null,null,null,null,null,null,null,null,null,null,null,null,null,null,null,null,null,null,null,null,{"$f":"IFERROR(#REF!,\" \")","v":" "},{"$f":"IFERROR(#REF!,\"\")","v":""},{"$f":"IFERROR(#REF!,\"\")","v":""},"","",{"$f":"IFERROR(#REF!,\"\")","v":""},"",{"$f":"IFERROR(#REF!,\"\")","v":""},{"$f":"IFERROR(#REF!,\"\")","v":""},{"$f":"_xlfn.CONCAT(\"Trimestre 1\",CHAR(10),IFERROR(#REF!,\"\"))","v":"Trimestre 1\n"},{"$f":"_xlfn.CONCAT(\"Trimestre 1\",CHAR(10),IFERROR(#REF!,\"\"))","v":"Trimestre 1\n"},{"$f":"_xlfn.CONCAT(\"Trimestre 1\",CHAR(10),IFERROR(#REF!,\"\"))","v":"Trimestre 1\n"},{"$f":"_xlfn.CONCAT(\"Trimestre 1\",CHAR(10),IFERROR(#REF!,\"\"))","v":"Trimestre 1\n"},{"$f":"_xlfn.CONCAT(\"Trimestre 1\",CHAR(10),IFERROR(#REF!,\"\"))","v":"Trimestre 1\n"}]
[null,null,null,null,null,null,null,null,null,null,null,null,null,null,null,null,null,null,null,null,null,null,null,null,null,{"$f":"IFERROR(#REF!,\" \")","v":" "},{"$f":"IFERROR(#REF!,\"\")","v":""},{"$f":"IFERROR(#REF!,\"\")","v":""},"","",{"$f":"IFERROR(#REF!,\"\")","v":""},"",{"$f":"IFERROR(#REF!,\"\")","v":""},{"$f":"IFERROR(#REF!,\"\")","v":""},{"$f":"_xlfn.CONCAT(\"Trimestre 1\",CHAR(10),IFERROR(#REF!,\"\"))","v":"Trimestre 1\n"},{"$f":"_xlfn.CONCAT(\"Trimestre 1\",CHAR(10),IFERROR(#REF!,\"\"))","v":"Trimestre 1\n"},{"$f":"_xlfn.CONCAT(\"Trimestre 1\",CHAR(10),IFERROR(#REF!,\"\"))","v":"Trimestre 1\n"},{"$f":"_xlfn.CONCAT(\"Trimestre 1\",CHAR(10),IFERROR(#REF!,\"\"))","v":"Trimestre 1\n"},{"$f":"_xlfn.CONCAT(\"Trimestre 1\",CHAR(10),IFERROR(#REF!,\"\"))","v":"Trimestre 1\n"}]
[null,null,"5. Promover el bienestar de todos los servidores judiciales a través de la implementación de un sistema que contemple los diferentes niveles de estrategias y acciones necesarios para mejorar el clima laboral, la salud física y mental y la calidad del tiempo de descanso.","Satisfacción de los servidores judiciales con el clima laboral","(# respuestas con concepto de bueno o excelente / # total de respuestas) *100","5. Generar espacios de trabajo seguros y saludables que contribuyan a minimizar los  incidentes, accidentes y enfermedades laborales derivados de las condiciones y actos  inseguros y fomentar  el autocuidado, los  estilos de vida y el trabajo saludable en los servidores judiciales, contratistas, judicantes y practicantes.",null,null,null,null,null,null,null,null,null,null,null,null,null,null,null,null,null,null,null,{"$f":"IFERROR(#REF!,\" \")","v":" "},{"$f":"IFERROR(#REF!,\"\")","v":""},{"$f":"IFERROR(#REF!,\"\")","v":""},"","",{"$f":"IFERROR(#REF!,\"\")","v":""},"",{"$f":"IFERROR(#REF!,\"\")","v":""},{"$f":"IFERROR(#REF!,\"\")","v":""},{"$f":"_xlfn.CONCAT(\"Trimestre 1\",CHAR(10),IFERROR(#REF!,\"\"))","v":"Trimestre 1\n"},{"$f":"_xlfn.CONCAT(\"Trimestre 1\",CHAR(10),IFERROR(#REF!,\"\"))","v":"Trimestre 1\n"},{"$f":"_xlfn.CONCAT(\"Trimestre 1\",CHAR(10),IFERROR(#REF!,\"\"))","v":"Trimestre 1\n"},{"$f":"_xlfn.CONCAT(\"Trimestre 1\",CHAR(10),IFERROR(#REF!,\"\"))","v":"Trimestre 1\n"},{"$f":"_xlfn.CONCAT(\"Trimestre 1\",CHAR(10),IFERROR(#REF!,\"\"))","v":"Trimestre 1\n"}]
[null,null,null,null,null,null,null,null,null,null,null,null,null,null,null,null,null,null,null,null,null,null,null,null,null,{"$f":"IFERROR(#REF!,\" \")","v":" "},{"$f":"IFERROR(#REF!,\"\")","v":""},{"$f":"IFERROR(#REF!,\"\")","v":""},"","",{"$f":"IFERROR(#REF!,\"\")","v":""},"",{"$f":"IFERROR(#REF!,\"\")","v":""},{"$f":"IFERROR(#REF!,\"\")","v":""},{"$f":"_xlfn.CONCAT(\"Trimestre 1\",CHAR(10),IFERROR(#REF!,\"\"))","v":"Trimestre 1\n"},{"$f":"_xlfn.CONCAT(\"Trimestre 1\",CHAR(10),IFERROR(#REF!,\"\"))","v":"Trimestre 1\n"},{"$f":"_xlfn.CONCAT(\"Trimestre 1\",CHAR(10),IFERROR(#REF!,\"\"))","v":"Trimestre 1\n"},{"$f":"_xlfn.CONCAT(\"Trimestre 1\",CHAR(10),IFERROR(#REF!,\"\"))","v":"Trimestre 1\n"},{"$f":"_xlfn.CONCAT(\"Trimestre 1\",CHAR(10),IFERROR(#REF!,\"\"))","v":"Trimestre 1\n"}]
[null,null,null,null,null,null,null,null,null,null,null,null,null,null,null,null,null,null,null,null,null,null,null,null,null,{"$f":"IFERROR(#REF!,\" \")","v":" "},{"$f":"IFERROR(#REF!,\"\")","v":""},{"$f":"IFERROR(#REF!,\"\")","v":""},"","",{"$f":"IFERROR(#REF!,\"\")","v":""},"",{"$f":"IFERROR(#REF!,\"\")","v":""},{"$f":"IFERROR(#REF!,\"\")","v":""},{"$f":"_xlfn.CONCAT(\"Trimestre 1\",CHAR(10),IFERROR(#REF!,\"\"))","v":"Trimestre 1\n"},{"$f":"_xlfn.CONCAT(\"Trimestre 1\",CHAR(10),IFERROR(#REF!,\"\"))","v":"Trimestre 1\n"},{"$f":"_xlfn.CONCAT(\"Trimestre 1\",CHAR(10),IFERROR(#REF!,\"\"))","v":"Trimestre 1\n"},{"$f":"_xlfn.CONCAT(\"Trimestre 1\",CHAR(10),IFERROR(#REF!,\"\"))","v":"Trimestre 1\n"},{"$f":"_xlfn.CONCAT(\"Trimestre 1\",CHAR(10),IFERROR(#REF!,\"\"))","v":"Trimestre 1\n"}]
[null,null,null,null,null,null,null,null,null,null,null,null,null,null,null,null,null,null,null,null,null,null,null,null,null,{"$f":"IFERROR(#REF!,\" \")","v":" "},{"$f":"IFERROR(#REF!,\"\")","v":""},{"$f":"IFERROR(#REF!,\"\")","v":""},"","",{"$f":"IFERROR(#REF!,\"\")","v":""},"",{"$f":"IFERROR(#REF!,\"\")","v":""},{"$f":"IFERROR(#REF!,\"\")","v":""},{"$f":"_xlfn.CONCAT(\"Trimestre 1\",CHAR(10),IFERROR(#REF!,\"\"))","v":"Trimestre 1\n"},{"$f":"_xlfn.CONCAT(\"Trimestre 1\",CHAR(10),IFERROR(#REF!,\"\"))","v":"Trimestre 1\n"},{"$f":"_xlfn.CONCAT(\"Trimestre 1\",CHAR(10),IFERROR(#REF!,\"\"))","v":"Trimestre 1\n"},{"$f":"_xlfn.CONCAT(\"Trimestre 1\",CHAR(10),IFERROR(#REF!,\"\"))","v":"Trimestre 1\n"},{"$f":"_xlfn.CONCAT(\"Trimestre 1\",CHAR(10),IFERROR(#REF!,\"\"))","v":"Trimestre 1\n"}]
[null,null,null,null,null,null,null,null,null,null,null,null,null,null,null,null,null,null,null,null,null,null,null,null,null,{"$f":"IFERROR(#REF!,\" \")","v":" "},{"$f":"IFERROR(#REF!,\"\")","v":""},{"$f":"IFERROR(#REF!,\"\")","v":""},"","",{"$f":"IFERROR(#REF!,\"\")","v":""},"",{"$f":"IFERROR(#REF!,\"\")","v":""},{"$f":"IFERROR(#REF!,\"\")","v":""},{"$f":"_xlfn.CONCAT(\"Trimestre 1\",CHAR(10),IFERROR(#REF!,\"\"))","v":"Trimestre 1\n"},{"$f":"_xlfn.CONCAT(\"Trimestre 1\",CHAR(10),IFERROR(#REF!,\"\"))","v":"Trimestre 1\n"},{"$f":"_xlfn.CONCAT(\"Trimestre 1\",CHAR(10),IFERROR(#REF!,\"\"))","v":"Trimestre 1\n"},{"$f":"_xlfn.CONCAT(\"Trimestre 1\",CHAR(10),IFERROR(#REF!,\"\"))","v":"Trimestre 1\n"},{"$f":"_xlfn.CONCAT(\"Trimestre 1\",CHAR(10),IFERROR(#REF!,\"\"))","v":"Trimestre 1\n"}]
["5. Gobernanza, planeación estratégica y capacidad de toma de decisiones","Gobernanza, planeación estratégica y capacidad de toma de decisiones: Fortalecer la gobernanza, la planeación estratégica y la capacidad de toma de decisiones de la Rama Judicial con base en la evidencia empírica y la articulación efectiva con las demás entidades, para que la perspectiva de género y el enfoque diferencial sean transversales en el presente plan. ","1. Implementar un nuevo modelo integrado para la planeación estratégica, el seguimiento y la medición del desempeño institucional.","Modelo integrado para la planeación estratégica, seguimiento y medición del desempeño institucional implementado","% de implementa ción del modelo integrado","2. Asegurar  el cumplimiento de los objetivos institucionales, la normatividad aplicable,  la mejora del SIGCMA y la satisfacción de los usuarios, revisando de  forma continua y sistemática la planificación de la gestión y fortaleciendo la administración de riesgos y sus controles.",null,null,null,null,null,null,null,null,null,null,null,null,null,null,null,null,null,null,null,{"$f":"IFERROR(#REF!,\" \")","v":" "},{"$f":"IFERROR(#REF!,\"\")","v":""},{"$f":"IFERROR(#REF!,\"\")","v":""},"","",{"$f":"IFERROR(#REF!,\"\")","v":""},"",{"$f":"IFERROR(#REF!,\"\")","v":""},{"$f":"IFERROR(#REF!,\"\")","v":""},{"$f":"_xlfn.CONCAT(\"Trimestre 1\",CHAR(10),IFERROR(#REF!,\"\"))","v":"Trimestre 1\n"},{"$f":"_xlfn.CONCAT(\"Trimestre 1\",CHAR(10),IFERROR(#REF!,\"\"))","v":"Trimestre 1\n"},{"$f":"_xlfn.CONCAT(\"Trimestre 1\",CHAR(10),IFERROR(#REF!,\"\"))","v":"Trimestre 1\n"},{"$f":"_xlfn.CONCAT(\"Trimestre 1\",CHAR(10),IFERROR(#REF!,\"\"))","v":"Trimestre 1\n"},{"$f":"_xlfn.CONCAT(\"Trimestre 1\",CHAR(10),IFERROR(#REF!,\"\"))","v":"Trimestre 1\n"}]
[null,null,null,null,null,null,null,null,null,null,null,null,null,null,null,null,null,null,null,null,null,null,null,null,null,{"$f":"IFERROR(#REF!,\" \")","v":" "},{"$f":"IFERROR(#REF!,\"\")","v":""},{"$f":"IFERROR(#REF!,\"\")","v":""},"","",{"$f":"IFERROR(#REF!,\"\")","v":""},"",{"$f":"IFERROR(#REF!,\"\")","v":""},{"$f":"IFERROR(#REF!,\"\")","v":""},{"$f":"_xlfn.CONCAT(\"Trimestre 1\",CHAR(10),IFERROR(#REF!,\"\"))","v":"Trimestre 1\n"},{"$f":"_xlfn.CONCAT(\"Trimestre 1\",CHAR(10),IFERROR(#REF!,\"\"))","v":"Trimestre 1\n"},{"$f":"_xlfn.CONCAT(\"Trimestre 1\",CHAR(10),IFERROR(#REF!,\"\"))","v":"Trimestre 1\n"},{"$f":"_xlfn.CONCAT(\"Trimestre 1\",CHAR(10),IFERROR(#REF!,\"\"))","v":"Trimestre 1\n"},{"$f":"_xlfn.CONCAT(\"Trimestre 1\",CHAR(10),IFERROR(#REF!,\"\"))","v":"Trimestre 1\n"}]
[null,null,null,null,null,null,null,null,null,null,null,null,null,null,null,null,null,null,null,null,null,null,null,null,null,{"$f":"IFERROR(#REF!,\" \")","v":" "},{"$f":"IFERROR(#REF!,\"\")","v":""},{"$f":"IFERROR(#REF!,\"\")","v":""},"","",{"$f":"IFERROR(#REF!,\"\")","v":""},"",{"$f":"IFERROR(#REF!,\"\")","v":""},{"$f":"IFERROR(#REF!,\"\")","v":""},{"$f":"_xlfn.CONCAT(\"Trimestre 1\",CHAR(10),IFERROR(#REF!,\"\"))","v":"Trimestre 1\n"},{"$f":"_xlfn.CONCAT(\"Trimestre 1\",CHAR(10),IFERROR(#REF!,\"\"))","v":"Trimestre 1\n"},{"$f":"_xlfn.CONCAT(\"Trimestre 1\",CHAR(10),IFERROR(#REF!,\"\"))","v":"Trimestre 1\n"},{"$f":"_xlfn.CONCAT(\"Trimestre 1\",CHAR(10),IFERROR(#REF!,\"\"))","v":"Trimestre 1\n"},{"$f":"_xlfn.CONCAT(\"Trimestre 1\",CHAR(10),IFERROR(#REF!,\"\"))","v":"Trimestre 1\n"}]
[null,null,null,null,null,null,null,null,null,null,null,null,null,null,null,null,null,null,null,null,null,null,null,null,null,{"$f":"IFERROR(#REF!,\" \")","v":" "},{"$f":"IFERROR(#REF!,\"\")","v":""},{"$f":"IFERROR(#REF!,\"\")","v":""},"","",{"$f":"IFERROR(#REF!,\"\")","v":""},"",{"$f":"IFERROR(#REF!,\"\")","v":""},{"$f":"IFERROR(#REF!,\"\")","v":""},{"$f":"_xlfn.CONCAT(\"Trimestre 1\",CHAR(10),IFERROR(#REF!,\"\"))","v":"Trimestre 1\n"},{"$f":"_xlfn.CONCAT(\"Trimestre 1\",CHAR(10),IFERROR(#REF!,\"\"))","v":"Trimestre 1\n"},{"$f":"_xlfn.CONCAT(\"Trimestre 1\",CHAR(10),IFERROR(#REF!,\"\"))","v":"Trimestre 1\n"},{"$f":"_xlfn.CONCAT(\"Trimestre 1\",CHAR(10),IFERROR(#REF!,\"\"))","v":"Trimestre 1\n"},{"$f":"_xlfn.CONCAT(\"Trimestre 1\",CHAR(10),IFERROR(#REF!,\"\"))","v":"Trimestre 1\n"}]
[null,null,null,null,null,null,null,null,null,null,null,null,null,null,null,null,null,null,null,null,null,null,null,null,null,{"$f":"IFERROR(#REF!,\" \")","v":" "},{"$f":"IFERROR(#REF!,\"\")","v":""},{"$f":"IFERROR(#REF!,\"\")","v":""},"","",{"$f":"IFERROR(#REF!,\"\")","v":""},"",{"$f":"IFERROR(#REF!,\"\")","v":""},{"$f":"IFERROR(#REF!,\"\")","v":""},{"$f":"_xlfn.CONCAT(\"Trimestre 1\",CHAR(10),IFERROR(#REF!,\"\"))","v":"Trimestre 1\n"},{"$f":"_xlfn.CONCAT(\"Trimestre 1\",CHAR(10),IFERROR(#REF!,\"\"))","v":"Trimestre 1\n"},{"$f":"_xlfn.CONCAT(\"Trimestre 1\",CHAR(10),IFERROR(#REF!,\"\"))","v":"Trimestre 1\n"},{"$f":"_xlfn.CONCAT(\"Trimestre 1\",CHAR(10),IFERROR(#REF!,\"\"))","v":"Trimestre 1\n"},{"$f":"_xlfn.CONCAT(\"Trimestre 1\",CHAR(10),IFERROR(#REF!,\"\"))","v":"Trimestre 1\n"}]
[null,null,"2. Definir e implementar el modelo optimizado de formulación, seguimiento y evaluación de la política pública judicial.",null,null,null,null,null,null,null,null,null,null,null,null,null,null,null,null,null,null,null,null,null,null,{"$f":"IFERROR(#REF!,\" \")","v":" "},{"$f":"IFERROR(#REF!,\"\")","v":""},{"$f":"IFERROR(#REF!,\"\")","v":""},"","",{"$f":"IFERROR(#REF!,\"\")","v":""},"",{"$f":"IFERROR(#REF!,\"\")","v":""},{"$f":"IFERROR(#REF!,\"\")","v":""},{"$f":"_xlfn.CONCAT(\"Trimestre 1\",CHAR(10),IFERROR(#REF!,\"\"))","v":"Trimestre 1\n"},{"$f":"_xlfn.CONCAT(\"Trimestre 1\",CHAR(10),IFERROR(#REF!,\"\"))","v":"Trimestre 1\n"},{"$f":"_xlfn.CONCAT(\"Trimestre 1\",CHAR(10),IFERROR(#REF!,\"\"))","v":"Trimestre 1\n"},{"$f":"_xlfn.CONCAT(\"Trimestre 1\",CHAR(10),IFERROR(#REF!,\"\"))","v":"Trimestre 1\n"},{"$f":"_xlfn.CONCAT(\"Trimestre 1\",CHAR(10),IFERROR(#REF!,\"\"))","v":"Trimestre 1\n"}]
[null,null,null,null,null,null,null,null,null,null,null,null,null,null,null,null,null,null,null,null,null,null,null,null,null,{"$f":"IFERROR(#REF!,\" \")","v":" "},{"$f":"IFERROR(#REF!,\"\")","v":""},{"$f":"IFERROR(#REF!,\"\")","v":""},"","",{"$f":"IFERROR(#REF!,\"\")","v":""},"",{"$f":"IFERROR(#REF!,\"\")","v":""},{"$f":"IFERROR(#REF!,\"\")","v":""},{"$f":"_xlfn.CONCAT(\"Trimestre 1\",CHAR(10),IFERROR(#REF!,\"\"))","v":"Trimestre 1\n"},{"$f":"_xlfn.CONCAT(\"Trimestre 1\",CHAR(10),IFERROR(#REF!,\"\"))","v":"Trimestre 1\n"},{"$f":"_xlfn.CONCAT(\"Trimestre 1\",CHAR(10),IFERROR(#REF!,\"\"))","v":"Trimestre 1\n"},{"$f":"_xlfn.CONCAT(\"Trimestre 1\",CHAR(10),IFERROR(#REF!,\"\"))","v":"Trimestre 1\n"},{"$f":"_xlfn.CONCAT(\"Trimestre 1\",CHAR(10),IFERROR(#REF!,\"\"))","v":"Trimestre 1\n"}]
[null,null,null,null,null,null,null,null,null,null,null,null,null,null,null,null,null,null,null,null,null,null,null,null,null,{"$f":"IFERROR(#REF!,\" \")","v":" "},{"$f":"IFERROR(#REF!,\"\")","v":""},{"$f":"IFERROR(#REF!,\"\")","v":""},"","",{"$f":"IFERROR(#REF!,\"\")","v":""},"",{"$f":"IFERROR(#REF!,\"\")","v":""},{"$f":"IFERROR(#REF!,\"\")","v":""},{"$f":"_xlfn.CONCAT(\"Trimestre 1\",CHAR(10),IFERROR(#REF!,\"\"))","v":"Trimestre 1\n"},{"$f":"_xlfn.CONCAT(\"Trimestre 1\",CHAR(10),IFERROR(#REF!,\"\"))","v":"Trimestre 1\n"},{"$f":"_xlfn.CONCAT(\"Trimestre 1\",CHAR(10),IFERROR(#REF!,\"\"))","v":"Trimestre 1\n"},{"$f":"_xlfn.CONCAT(\"Trimestre 1\",CHAR(10),IFERROR(#REF!,\"\"))","v":"Trimestre 1\n"},{"$f":"_xlfn.CONCAT(\"Trimestre 1\",CHAR(10),IFERROR(#REF!,\"\"))","v":"Trimestre 1\n"}]
[null,null,null,null,null,null,null,null,null,null,null,null,null,null,null,null,null,null,null,null,null,null,null,null,null,{"$f":"IFERROR(#REF!,\" \")","v":" "},{"$f":"IFERROR(#REF!,\"\")","v":""},{"$f":"IFERROR(#REF!,\"\")","v":""},"","",{"$f":"IFERROR(#REF!,\"\")","v":""},"",{"$f":"IFERROR(#REF!,\"\")","v":""},{"$f":"IFERROR(#REF!,\"\")","v":""},{"$f":"_xlfn.CONCAT(\"Trimestre 1\",CHAR(10),IFERROR(#REF!,\"\"))","v":"Trimestre 1\n"},{"$f":"_xlfn.CONCAT(\"Trimestre 1\",CHAR(10),IFERROR(#REF!,\"\"))","v":"Trimestre 1\n"},{"$f":"_xlfn.CONCAT(\"Trimestre 1\",CHAR(10),IFERROR(#REF!,\"\"))","v":"Trimestre 1\n"},{"$f":"_xlfn.CONCAT(\"Trimestre 1\",CHAR(10),IFERROR(#REF!,\"\"))","v":"Trimestre 1\n"},{"$f":"_xlfn.CONCAT(\"Trimestre 1\",CHAR(10),IFERROR(#REF!,\"\"))","v":"Trimestre 1\n"}]
[null,null,null,null,null,null,null,null,null,null,null,null,null,null,null,null,null,null,null,null,null,null,null,null,null,{"$f":"IFERROR(#REF!,\" \")","v":" "},{"$f":"IFERROR(#REF!,\"\")","v":""},{"$f":"IFERROR(#REF!,\"\")","v":""},"","",{"$f":"IFERROR(#REF!,\"\")","v":""},"",{"$f":"IFERROR(#REF!,\"\")","v":""},{"$f":"IFERROR(#REF!,\"\")","v":""},{"$f":"_xlfn.CONCAT(\"Trimestre 1\",CHAR(10),IFERROR(#REF!,\"\"))","v":"Trimestre 1\n"},{"$f":"_xlfn.CONCAT(\"Trimestre 1\",CHAR(10),IFERROR(#REF!,\"\"))","v":"Trimestre 1\n"},{"$f":"_xlfn.CONCAT(\"Trimestre 1\",CHAR(10),IFERROR(#REF!,\"\"))","v":"Trimestre 1\n"},{"$f":"_xlfn.CONCAT(\"Trimestre 1\",CHAR(10),IFERROR(#REF!,\"\"))","v":"Trimestre 1\n"},{"$f":"_xlfn.CONCAT(\"Trimestre 1\",CHAR(10),IFERROR(#REF!,\"\"))","v":"Trimestre 1\n"}]

{"sheet":"JURISDICCIONAL","index":9,"n_rows":29,"n_cols":16,"rows_kept":29,"cut":false,"hidden":true,"merged":[[27,0,28,0],[27,1,28,1],[27,3,28,3],[15,0,21,0],[15,1,21,1],[15,3,21,3],[22,0,26,0],[22,1,26,1],[22,3,26,3],[2,14,2,15],[4,0,8,0],[4,1,8,1],[4,3,8,3],[9,0,14,0],[9,1,14,1],[9,3,14,3],[1,2,1,13],[2,0,3,0],[2,1,3,1],[2,2,3,2],[2,3,3,3],[2,4,3,4],[2,5,2,7],[2,8,2,10],[2,11,3,11],[2,12,2,13]]}
[]
[null,null,"CONSEJO SUPERIOR DE LA JUDICATURA \nUNIDADES MISIONALES DEL CONSEJO SUPERIOR DE LA JUDICATURA - \nDIRECCIÓN EJECUTIVA DE ADMINISTRACIÓN JUDICIAL -UNIDADES MISIONALES DE LA DEAJ\nDIRECCIONES SECCIONALES DE ADMINISTRACIÓN JUDICIAL "]
["No. ","OBJETIVOS ESTRATEGICOS PLAN SECTORIAL DE DESARROLLO 2023-2026","OBJETIVOS ESPECIFICOS PLAN SECTORIAL DE DESARROLLO 2023-2026","OBJETIVOS DEL SIGCMA","DESCRIPCIÓN DE LA ACTIVIDAD (INVERSIÓN O DE GESTIÓN) ","MAPA DE PROCESO DEL SIGCMA (RELACIONE  EL PROCESO ESTRATÉGICO, MISIONAL, APOYO y EVALUACIÓN - MEJORA)",null,null,"MEDICIÓN DE LA GESTIÓN ",null,null,"RESPONSABLE POR PROYECTO O ACTIVIDAD","FECHA DEL PROYECTO/ACTIVIDAD",null,"ANÁLISIS DE RESULTADOS"]
[null,null,null,null,null,"NOMBRE DEL PROCESO","CENTRAL","SECCIONAL","ENTREGABLE","INDICADOR","DESCRIBIR EL INDICADOR",null,"INICIO \nDÍA/MES/AÑO","FIN\nDÍA/MES/AÑO","CUMPLIMIENTO DEL OBJETIVO (ACUMULADO DE LOS 4 TRIMESTRES)"," ANÁLISIS RESULTADO\nFINAL - ACUMULADO"]
[1,"Acceso a Infraestructura Física"," 1. Ampliar el acceso a justicia para atender las necesidades jurídicas de los \nciudadanos con un enfoque diferencial, de una manera pronta, reduciendo las \ninequidades y las brechas territoriales de acceso.","\n2. Asegurar  el cumplimiento de los objetivos institucionales, la normatividad aplicable,  la mejora del SIGCMA y la satisfacción de los usuarios, revisando de  forma continua y sistemática la planificación de la gestión y fortaleciendo la administración de riesgos y sus controles. (1,2,3 y 5)\n\n4. Hacer un uso racional de los recursos naturales aplicando los principios y fases de la Economía Circular, para prevenir, mitigar y controlar los impactos ambientales. (4)\n\n"]
[null,null,"2. Mejorar los tiempos de respuesta de la Rama Judicial y reducir el inventario de \nprocesos, identificando los retos internos y promoviendo tanto acciones articuladas\nespecíficas para abordarlos como estrategias coordinadas para enfrentar las \nbarreras que dependen de otras entidades."]
[null,null,"3. Coadyuvar en la garantía de la idoneidad en el ejercicio de la profesión jurídica de acuerdo con lo establecido en la Ley 1905 de 2018"]
[null,null,"4. Avanzar en la disposición de una infraestructura óptima para el acceso a la justicia en la Rama Judicial de modo que se fortalezca la presencia territorial, teniendo en cuenta las posibilidades que ofrece la transformación digital y las necesidades que se derivan de ella, y considerando tanto las necesidades de los usuarios como las de los servidores judiciales."]
[null,null,"5. Impulsar el uso de mecanismos alternativos para la solución de conflictos y la \nampliación de la justicia restaurativa y terapéutica y el robustecimiento de las alternativas al encarcelamiento"]
[2,"Servicios digitales y de tecnología, innovación y análisis de la información","1. Ampliar el acceso a la justicia a través de la consolidación del uso de los servicios \ndigitales que conforman el sistema único integrado de gestión judicial en todos los \ndespachos judiciales y dependencias de apoyo y, específicamente, incluyendo el \ndespliegue e implementación del Expediente Judicial Electrónico en todas las \njurisdicciones y especialidades.","6. Proteger, preservar y administrar los activos de información  implementando acciones  para gestionar de forma adecuada los incidentes  , proteger los datos personales y adoptar mecanismos  de ciberseguridad y aseguramiento de la  continuidad del negocio (1, 2, 3, 4, 5 y 6)"]
[null,null,"2. Integrar y hacer compatibles todos los aplicativos de transición con SIUGJ, para que la migración de los expedientes judiciales a dicha plataforma sea real y no suponga afectaciones en la prestación del servicio de justicia."]
[null,null,"\n3. Fortalecer las capacidades institucionales, adecuar el modelo operativo y de \nservicio, bajo un enfoque de Arquitectura Empresarial y de fortalecimiento del \nacceso a la justicia."]
[null,null,"\n4.Consolidar la cultura y apropiación de la transformación digital en los servidores y \nusuarios de los servicios de la Rama Judicial y reducir brechas de acceso y conocimiento, incluyendo la oferta efectiva de información sobre el uso de las nuevas herramientas virtuales implementadas en las diferentes jurisdicciones, con especial énfasis en las zonas del país donde es evidente la brecha digital."]
[null,null,"\n5.Consolidar la infraestructura y los recursos necesarios para la implementación exitosa de la transformación digital, incluyendo la disposición de internet de calidad en el 100% de las sedes en la Rama Judicial y modernizar los servicios tecnológicos de soporte. "]
[null,null,"\n6.Integrar y optimizar los servicios administrativos de la Rama Judicial bajo un enfoque de transformación digital e innovación incluyendo los componentes financiero, administrativo, talento humano, entre otros"]
[3,"Confianza pública, transparencia y rendición de cuentas","1. Incrementar la cantidad, la calidad y pertinencia de los datos sobre el funcionamiento del servicio de justicia bajo un modelo de gobierno de datos y un liderazgo unificado. \n","1. Gestionar el desarrollo de las competencias, la toma de conciencia , la cultura  organizacional  y el compromiso de los  servidores judiciales, contratistas, practicantes y  judicantes de contribuir a generar valor público en la administración de justicia, en el marco de  cumplimiento de los requisitos  aplicables y el comportamiento ético. (3 y 7)\n\n3. Fomentar la transparencia y la participación generando lineamientos y promoviendo la rendición de cuentas ,la consulta, reporte y planteamiento de inquietudes en relación con las decisiones y aspectos del SIGCMA. (3, 4, 5 y 6)\n\n4. Hacer un uso racional de los recursos naturales aplicando los principios y fases de la Economía Circular, para prevenir, mitigar y controlar los impactos ambientales. (1 y 7)\n"]
[null,null,"2. Consolidar la administración de la información entendida como todas las acciones \norientadas a garantizar el acceso, consulta, uso y conservación de la información \nde justicia de manera ágil, flexible e inteligente, bajo un enfoque de innovación."]
[null,null,"3. Fortalecer el Sistema integrado de Gestión de la Rama, orientado a la implementación y certificación de las normas antisoborno."]
[null,null,"4. Aumentar la confianza, la cercanía y acceso a los servicios de la Rama Judicial a \ntravés, entre otros, de una comunicación clara y asertiva con la ciudadanía."]
[null,null,"5. Prevenir fenómenos asociados con actos de corrupción en la Rama Judicial y \nreducir las experiencias de corrupción de usuarios y servidores judiciales."]
[null,null,"6. Promover la rendición de cuentas y la colaboración real con la ciudadanía como \nfundamento para diseñar acciones de mejoramiento del acceso a la justicia."]
[null,null,"7. Continuar la consolidación del SIGCMA, a través de los procesos de formación en \nmodelos de gestión, logrando la implementación y ampliación de este en los esquemas certificados de manera gradual, teniendo en cuenta las capacidades de los diferentes despachos judiciales y dependencias de la Rama Judicial y articulando el enfoque de Arquitectura Empresarial para el desarrollo del PETD a través de la gestión del conocimiento para la gestión del cambio propendiendo por una cultura de la calidad, la transparencia, la rendición de cuentas, la anticorrupción y el antisoborno"]
[4,"Talento Humano","1. Ampliar la cobertura de la carrera judicial optimizando los procesos de los concursos de méritos y propender por mitigar su litigiosidad.","1. Gestionar el desarrollo de las competencias, la toma de conciencia , la cultura  organizacional  y el compromiso de los  servidores judiciales, contratistas, practicantes y  judicantes de contribuir a generar valor público en la administración de justicia, en el marco de  cumplimiento de los requisitos  aplicables y el comportamiento ético. (1, 2, 3 y 4)\n\n5. Generar espacios de trabajo seguros y saludables que contribuyan a minimizar los  incidentes, accidentes y enfermedades laborales derivados de las condiciones y actos  inseguros y fomentar  el autocuidado, los  estilos de vida y el trabajo saludable en los servidores judiciales, contratistas, judicantes y practicantes. (5)\n"]
[null,null,"2. Impactar la función y servicios que presta la Rama Judicial, a través de una\nformación integral desde una visión de gestión del conocimiento, relacionada con \nlos problemas de la justicia y los problemas de gestión de quienes administran los \nrecursos de la justicia, y potenciando el uso de medios virtuales."]
[null,null,"3. Promover la incorporación de la perspectiva de género y el enfoque diferencial en \nlos fallos judiciales y en la atención a los ciudadanos, la administración de la Rama \nJudicial, la administración de la carrera judicial y la elaboración de listas para altas \nCortes. "]
[null,null,"4. Desarrollar en los servidores judiciales y demás grupos de valor relevantes las \ncompetencias necesarias para la efectividad de la transformación digital de modo \nque puedan, entre otros, utilizar con solvencia las herramientas digitales dispuestas \npara sus respectivas funciones. Además, fortalecer y actualizar los conocimientos \ndel personal a cargo de la gestión de proyectos de tecnología."]
[null,null,"5. Promover el bienestar de todos los servidores judiciales a través de la implementación de un sistema que contemple los diferentes niveles de estrategias y acciones necesarios para mejorar el clima laboral, la salud física y mental y la calidad del tiempo de descanso."]
[5,"Gobernanza, planeación estratégica y capacidad de toma de decisiones","1. Implementar un nuevo modelo integrado para la planeación estratégica, el \nseguimiento y la medición del desempeño institucional.","\n2. Asegurar  el cumplimiento de los objetivos institucionales, la normatividad aplicable,  la mejora del SIGCMA y la satisfacción de los usuarios, revisando de  forma continua y sistemática la planificación de la gestión y fortaleciendo la administración de riesgos y sus controles. (1 y 2)"]
[null,null,"2. Definir e implementar el modelo optimizado de formulación, seguimiento y \nevaluación de la política pública judicial."]